Workbook

Sheet Cover
A2: RIIO-3 Business Plan Financial Model (BPFM)
B3: Gas Distribution
C4: Model Version | G4: =MID(CELL("filename"),SEARCH("[",CELL("filename"))+1,SEARCH("]",CELL("filename"))-SEARCH("[",CELL("filename"))-1) -> 
B7: Model key
E9: Sample | G9: Calculated value | I9: Sample | K9: Information and interface
E10: Sample | G10: Import | I10: Sample | K10: Fixed input value
E11: Sample | G11: Export | I11: Sample | K11: Ofgem annual update input (outturn value)
E12: Sample | G12: Named range | I12: Sample | K12: Ofgem annual update input (forecasted value)
E13: Sample | G13: Formula change in cells to the right | I13: Sample | K13: Other annual update input (outturn value)
I14: Sample | K14: Other annual update input (forecasted value)
I15: Sample | K15: Input linked from annual update
I16: Sample | K16: Notes and instructions
I17: Sample | K17: Check
B19: Contents
E21: INTERFACE > | I21: GENERAL INPUT SHEETS >
E22: Cover | G22: Model key and content directory | I22: Annual Inflation | K22: Derivation of annual inflation rates and price indices
E23: UserInterface | G23: Model operation | I23: Monthly Inflation | K23: Dataset and derivation of monthly inflation rates and price indices
E25: INPUT SELECTION > | I25: COMPANY SPECIFIC INPUT SHEETS >
E26: Extension | G26: Controls for timeline extension macro | I26: Cadent | K26: Inputs for Cadent
E27: Scenarios | G27: Inputs for selected licensee | I27: East | K27: Inputs for East
E28: InputSummary | G28: Mirroring company specific input sheet for selected company | I28: London | K28: Inputs for London
E29: MainInputs | G29: Arranging inputs for use in model | I29: North West | K29: Inputs for North West
I30: West Midlands | K30: Inputs for West Midlands
E31: CALCULATION > | I31: Northern | K31: Inputs for Northern
E32: Totex | G32: Totex allowance and actuals | I32: Scotland | K32: Inputs for Scotland
E33: TIM | G33: Totex Incentive Mechanism and capitalisation | I33: Southern | K33: Inputs for Southern
E34: Depn | G34: Gas distribution regulatory depreciation | I34: Wales & West | K34: Inputs for Wales & West
E35: FuelPoor | G35: Fuel poor RAV calculations
E36: Return&RAV | G36: RAV and return calculations | I36: DEBT SHEETS >
E37: TaxPools | G37: Tax pools and capital allowances | I37: F1 - Debt for BPFM | K37: Outputs for actual debt data, mirrored from BPDT
E38: Finance&Tax | G38: Net debt, equity issuance, financing costs and tax | I38: F2a - Financial Summary (TWA) | K38: Summary of information on actual debt and equity, mirrored from BPDT
E39: Revenue | G39: Summary of calculated revenue | I39: F2b - Financial Summary (YE) | K39: Derives embedded and new debt volumes at the atart and end of each year, mirrored from BPDT
I40: F3 - Fixed Rate Debt | K40: Aggregates fixed rate debt instruments from F6, mirrored from BPDT
E41: FINANCIAL & OUTPUT ANALYSIS SHEETS > | I41: F4 - Floating Rate Debt | K41: Aggregates floating rate debt instruments from F6, mirrored from BPDT
E42: FinInput | G42: Arranging inputs for use in financeability tabs | I42: F5 - Inflation Linked Debt | K42: Aggregates inflation linked debt instruments from F6, mirrored from BPDT
E43: RevenueSummary | G43: Revenue buildup for notional and actual companies | I43: F6 - Debt Dataset | K43: Inputs for actual debt data, mirrored from BPDT
E44: Finance&Tax(actual) | G44: Net debt, equity issuance, financing costs and tax for actual company | I44: F7 - Data Validation | K44: Stores definitions of drop-down validation lists in F6, mirrored from BPDT
E45: FinancialStatements | G45: Financial statements for selected company
E46: FinancialRatios | G46: Financial ratios for selected company | I46: SHEETS NOT USED IN BPFM >
E47: FinRatios RoRE decomposition | G47: Decomposition of RoRE, as derived in the FinancialRatios tab | I47: TaxTrigger Deadbands | K47: Used to calculate the Tax Trigger Deadbands - unused in BPFM
E48: RatingSimulator | G48: Credit rating estimation tool | I48: ReturnAdj | K48: Calculations for the Return Adjustment - unused in BPFM
E49: PowerQuery | G49: Tabulating data for OutputSummary's use | I49: AR | K49: Derivation of allowed revenue - unused in BPFM
E50: OutputSummary | G50: For use in exporting dashboard data | I50: LiveResults | K50: Results for selected company - unused in BPFM
E51: ScenarioRun_AllOutputData | G51: For use in exporting scenario modelling outputs | I51: SavedResults | K51: Saved results for all companies - unused in BPFM
E52: FBP Outputs | G52: Outputs for use in FBPs | I52: RIIO-1 | K52: RIIO-1 revenue & domestic charges input data - unused in BPFM
E53: Bills | G53: Calculations of approximated bills
B56: End of sheet

Sheet UserInterface
A1: User Interface
B3: Model operation
C5: PCFM year t
C6: Instruction: Use the following drop-down list to identify year t in the model. Year t is identified here by its end date.
E8: Year t selection:
E10: Year t selected: | G10: =INDEX(NumberofYear,m_PCFM_year_t) -> 2025-03-31
C12: Active company
C13: Instruction: Use the following drop-down list to select the active company in the model.
E15: Company selection:
E17: Selected company: | G17: =INDEX(E51:E59, E60) -> East
C19: RIIO extension
C20: Instruction: Use the following drop-down list to select the RIIO period to extend the model.
E22: RIIO period selection
E24: Selected RIIO period: | G24: =INDEX(RIIO, E75) -> RIIO8
C26: Run scenario output
C27: Instruction: Run an export to a new sheet for all licensees and scenarios selected on ScenarioRun_AllOutpuData tab
C32: Align model calculation debt with actual debt for selected licensee
C33: Instruction: Align actual debt data for the selected licensee based on BPDT values, for output on Finance&Tax(actual) tab
C38: Run scenario output
C39: Instruction: Extend the timeline of the model based on parameters set on Extension tab
B44: User selection lists
B45: Note: The lists below drive the drop-down lists above.
B46: Using the drop-down lists above returns an integer in the "cell link" positioned below their "source list."
B47: The number returned in the cell link corresponds to the position of the selected item in the source list.
B48: The company selection output is set as a "named range." This gives a stable anchor point for the "RunForAll" macro to change the company.
E50: ="Source for ''"&C12&"'' drop-down list" -> Source for ''Active company'' drop-down list | G50: ="Source for ''"&C5&"'' drop-down list" -> Source for ''PCFM year t'' drop-down list
E51: Cadent | G51: 2022-03-31
E52: East | G52: 2023-03-31
E53: London | G53: 2024-03-31
E54: North West | G54: 2025-03-31
E55: West Midlands | G55: 2026-03-31
E56: Northern | G56: 2027-03-31
E57: Scotland | G57: 2028-03-31
E58: Southern | G58: 4
E59: Wales & West | G59: Adjacent named range: m_PCFM_year_t
E60: 2
E61: Adjacent named range: m_identity
E62: =INDEX(NumberofOperators,m_identity) -> East
E63: Adjacent named range: n_identity
E64: ="Source for ''"&C19&"'' drop-down list" -> Source for ''RIIO extension'' drop-down list
E65: =RIIO -> RIIO4
E66: RIIO5
E67: RIIO6
E68: RIIO7
E69: RIIO8
E70: RIIO9
E71: RIIO10
E72: RIIO11
E73: RIIO12
E74: RIIO13
E75: 5
B77: End of sheet

Sheet Checks
A1: Model checks | I1: Checks not met:
B2: =UserInterface!G17 -> East | I2: =SUMPRODUCT(($I$8:$I$89 <> TRUE) * 1) - SUMPRODUCT(($I$8:$I$89 = "") * 1) -> 
E3: Parameter | G3: Units | I3: Constant | AP3: Annual values
E4: PCFM year ending | I4: =UserInterface!$G$10 -> 2025-03-31 | K4: 1991-03-31 | L4: 1992-03-31 | M4: 1993-03-31 | N4: 1994-03-31 | O4: 1995-03-31 | P4: 1996-03-31 | Q4: 1997-03-31 | R4: 1998-03-31 | S4: 1999-03-31 | T4: 2000-03-31 | U4: 2001-03-31 | V4: 2002-03-31 | W4: 2003-03-31 | X4: 2004-03-31 | Y4: 2005-03-31 | Z4: 2006-03-31 | AA4: 2007-03-31 | AB4: 2008-03-31 | AC4: 2009-03-31 | AD4: 2010-03-31 | AE4: 2011-03-31 | AF4: 2012-03-31 | AG4: 2013-03-31 | AH4: 2014-03-31 | AI4: 2015-03-31 | AJ4: 2016-03-31 | AK4: 2017-03-31 | AL4: 2018-03-31 | AM4: 2019-03-31 | AN4: 2020-03-31 | AO4: 2021-03-31 | AP4: 2022-03-31 | AQ4: 2023-03-31 | AR4: 2024-03-31 | AS4: 2025-03-31 | AT4: 2026-03-31 | AU4: 2027-03-31 | AV4: 2028-03-31 | AW4: 2029-03-31 | AX4: 2030-03-31 | AY4: =EOMONTH(AX4,12) -> 2031-03-31
AP5: 2 | AQ5: 2 | AR5: 2 | AS5: 2 | AT5: 2 | AU5: 3 | AV5: 3 | AW5: 3 | AX5: 3 | AY5: 3
B6: Financial statements - checks are not balanced if Revenue Profiling scenario option set to "Revenues"
E8: Equity | I8: =ABS(SUM(AP8:AY8) - 0) < 0.00000001 -> FALSE | AU8: =FinancialStatements!AU49 -> 46.25102372 | AV8: =FinancialStatements!AV49 -> 59.66355274 | AW8: =FinancialStatements!AW49 -> 55.10058485 | AX8: =FinancialStatements!AX49 -> 32.97492872 | AY8: =FinancialStatements!AY49 -> -13.91471427
E9: Closing RAV | I9: TRUE | AP9: =FinancialStatements!AP63 -> 0 | AQ9: =FinancialStatements!AQ63 -> 0 | AR9: =FinancialStatements!AR63 -> 0 | AS9: =FinancialStatements!AS63 -> 0 | AT9: =FinancialStatements!AT63 -> 0 | AU9: =FinancialStatements!AU63 -> 0 | AV9: =FinancialStatements!AV63 -> 0 | AW9: =FinancialStatements!AW63 -> 0 | AX9: =FinancialStatements!AX63 -> 0 | AY9: =FinancialStatements!AY63 -> 0
E10: Net cash flow | I10: FALSE | AP10: =FinancialStatements!AP93 -> -2.842170943e-13 | AQ10: =FinancialStatements!AQ93 -> -1.705302566e-13 | AR10: =FinancialStatements!AR93 -> -3.339550858e-13 | AS10: =FinancialStatements!AS93 -> 4.547473509e-13 | AT10: =FinancialStatements!AT93 -> -4.547473509e-13 | AU10: =FinancialStatements!AU93 -> 46.25102372 | AV10: =FinancialStatements!AV93 -> 13.41252901 | AW10: =FinancialStatements!AW93 -> -4.562967882 | AX10: =FinancialStatements!AX93 -> -22.12565613 | AY10: =FinancialStatements!AY93 -> -46.88964299
E11: Change in net debt | I11: FALSE | AP11: =FinancialStatements!AP159 -> 0 | AQ11: =FinancialStatements!AQ159 -> 0 | AR11: =FinancialStatements!AR159 -> 0 | AS11: =FinancialStatements!AS159 -> 0 | AT11: =FinancialStatements!AT159 -> 0 | AU11: =FinancialStatements!AU159 -> -46.251 | AV11: =FinancialStatements!AV159 -> -13.4125 | AW11: =FinancialStatements!AW159 -> 4.563 | AX11: =FinancialStatements!AX159 -> 22.1257 | AY11: =FinancialStatements!AY159 -> 46.8897
B13: FinRatios RoRE decomposition - checks are not balanced if Revenue Profiling scenario option set to "Revenues"
E15: Total revenue | I15: =ABS(SUM(AP15:AY15) - 0) < 0.00000001 -> FALSE | AP15: ='FinRatios RoRE decomposition'!AP56 -> 0 | AQ15: ='FinRatios RoRE decomposition'!AQ56 -> 0 | AR15: ='FinRatios RoRE decomposition'!AR56 -> 0 | AS15: ='FinRatios RoRE decomposition'!AS56 -> 0 | AT15: ='FinRatios RoRE decomposition'!AT56 -> 0 | AU15: ='FinRatios RoRE decomposition'!AU56 -> 42.25450354 | AV15: ='FinRatios RoRE decomposition'!AV56 -> 12 | AW15: ='FinRatios RoRE decomposition'!AW56 -> -4 | AX15: ='FinRatios RoRE decomposition'!AX56 -> -19 | AY15: ='FinRatios RoRE decomposition'!AY56 -> -39.44232276
E16: Retained earnings | I16: FALSE | AP16: ='FinRatios RoRE decomposition'!AP57 -> 1.527666882e-13 | AQ16: ='FinRatios RoRE decomposition'!AQ57 -> 0 | AR16: ='FinRatios RoRE decomposition'!AR57 -> 0 | AS16: ='FinRatios RoRE decomposition'!AS57 -> -3.197442311e-14 | AT16: ='FinRatios RoRE decomposition'!AT57 -> -3.552713679e-14 | AU16: ='FinRatios RoRE decomposition'!AU57 -> 42.25450354 | AV16: ='FinRatios RoRE decomposition'!AV57 -> 12 | AW16: ='FinRatios RoRE decomposition'!AW57 -> -4 | AX16: ='FinRatios RoRE decomposition'!AX57 -> -19 | AY16: ='FinRatios RoRE decomposition'!AY57 -> -39.44232276
E17: EBITDA | I17: FALSE | AP17: ='FinRatios RoRE decomposition'!AP58 -> 0 | AQ17: ='FinRatios RoRE decomposition'!AQ58 -> 0 | AR17: ='FinRatios RoRE decomposition'!AR58 -> 0 | AS17: ='FinRatios RoRE decomposition'!AS58 -> 0 | AT17: ='FinRatios RoRE decomposition'!AT58 -> 0 | AU17: ='FinRatios RoRE decomposition'!AU58 -> 42.25450354 | AV17: ='FinRatios RoRE decomposition'!AV58 -> 12 | AW17: ='FinRatios RoRE decomposition'!AW58 -> -4 | AX17: ='FinRatios RoRE decomposition'!AX58 -> -19 | AY17: ='FinRatios RoRE decomposition'!AY58 -> -39.44232276
E18: PAT | I18: FALSE | AP18: ='FinRatios RoRE decomposition'!AP59 -> 1.705302566e-13 | AQ18: ='FinRatios RoRE decomposition'!AQ59 -> -1.421085472e-14 | AR18: ='FinRatios RoRE decomposition'!AR59 -> 0 | AS18: ='FinRatios RoRE decomposition'!AS59 -> 0 | AT18: ='FinRatios RoRE decomposition'!AT59 -> -1.030286967e-13 | AU18: ='FinRatios RoRE decomposition'!AU59 -> 42.25450354 | AV18: ='FinRatios RoRE decomposition'!AV59 -> 12 | AW18: ='FinRatios RoRE decomposition'!AW59 -> -4 | AX18: ='FinRatios RoRE decomposition'!AX59 -> -19 | AY18: ='FinRatios RoRE decomposition'!AY59 -> -39.44232276
E19: FFO | I19: FALSE | AP19: ='FinRatios RoRE decomposition'!AP60 -> 0 | AQ19: ='FinRatios RoRE decomposition'!AQ60 -> 0 | AR19: ='FinRatios RoRE decomposition'!AR60 -> 0 | AS19: ='FinRatios RoRE decomposition'!AS60 -> 0 | AT19: ='FinRatios RoRE decomposition'!AT60 -> 0 | AU19: ='FinRatios RoRE decomposition'!AU60 -> 42.25450354 | AV19: ='FinRatios RoRE decomposition'!AV60 -> 12 | AW19: ='FinRatios RoRE decomposition'!AW60 -> -4 | AX19: ='FinRatios RoRE decomposition'!AX60 -> -19 | AY19: ='FinRatios RoRE decomposition'!AY60 -> -39.44232276
E20: RCF | I20: FALSE | AP20: ='FinRatios RoRE decomposition'!AP61 -> 0 | AQ20: ='FinRatios RoRE decomposition'!AQ61 -> 0 | AR20: ='FinRatios RoRE decomposition'!AR61 -> 0 | AS20: ='FinRatios RoRE decomposition'!AS61 -> 0 | AT20: ='FinRatios RoRE decomposition'!AT61 -> 0 | AU20: ='FinRatios RoRE decomposition'!AU61 -> 42.25450354 | AV20: ='FinRatios RoRE decomposition'!AV61 -> 12 | AW20: ='FinRatios RoRE decomposition'!AW61 -> -4 | AX20: ='FinRatios RoRE decomposition'!AX61 -> -19 | AY20: ='FinRatios RoRE decomposition'!AY61 -> -39.44232276
E21: RoRE (NPV-neutral equity) | I21: FALSE | AP21: ='FinRatios RoRE decomposition'!AP125 -> 6.938893904e-17 | AQ21: ='FinRatios RoRE decomposition'!AQ125 -> 0 | AR21: ='FinRatios RoRE decomposition'!AR125 -> -1.040834086e-16 | AS21: ='FinRatios RoRE decomposition'!AS125 -> 0 | AT21: ='FinRatios RoRE decomposition'!AT125 -> 0 | AU21: ='FinRatios RoRE decomposition'!AU125 -> 0.02529229188 | AV21: ='FinRatios RoRE decomposition'!AV125 -> 0.007156945589 | AW21: ='FinRatios RoRE decomposition'!AW125 -> -0.002389382123 | AX21: ='FinRatios RoRE decomposition'!AX125 -> -0.01140922002 | AY21: ='FinRatios RoRE decomposition'!AY125 -> -0.02389090026
E22: RoRE (closing equity) | I22: FALSE | AP22: ='FinRatios RoRE decomposition'!AP144 -> 6.938893904e-17 | AQ22: ='FinRatios RoRE decomposition'!AQ144 -> 0 | AR22: ='FinRatios RoRE decomposition'!AR144 -> -9.020562075e-17 | AS22: ='FinRatios RoRE decomposition'!AS144 -> 0 | AT22: ='FinRatios RoRE decomposition'!AT144 -> 0 | AU22: ='FinRatios RoRE decomposition'!AU144 -> 0.02448475882 | AV22: ='FinRatios RoRE decomposition'!AV144 -> 0.006946210191 | AW22: ='FinRatios RoRE decomposition'!AW144 -> -0.002324663212 | AX22: ='FinRatios RoRE decomposition'!AX144 -> -0.01110588389 | AY22: ='FinRatios RoRE decomposition'!AY144 -> -0.02330953523
E23: PAT | I23: TRUE | AP23: ='FinRatios RoRE decomposition'!AP149 -> -3.552713679e-14 | AQ23: ='FinRatios RoRE decomposition'!AQ149 -> -6.217248938e-14 | AR23: ='FinRatios RoRE decomposition'!AR149 -> -1.705302566e-13 | AS23: ='FinRatios RoRE decomposition'!AS149 -> -8.526512829e-14 | AT23: ='FinRatios RoRE decomposition'!AT149 -> 0 | AU23: ='FinRatios RoRE decomposition'!AU149 -> 0 | AV23: ='FinRatios RoRE decomposition'!AV149 -> 1.705302566e-13 | AW23: ='FinRatios RoRE decomposition'!AW149 -> 0 | AX23: ='FinRatios RoRE decomposition'!AX149 -> 1.136868377e-13 | AY23: ='FinRatios RoRE decomposition'!AY149 -> 0
E24: PAT / Regulated equity | I24: TRUE | AP24: ='FinRatios RoRE decomposition'!AP166 -> 0 | AQ24: ='FinRatios RoRE decomposition'!AQ166 -> 0 | AR24: ='FinRatios RoRE decomposition'!AR166 -> 0 | AS24: ='FinRatios RoRE decomposition'!AS166 -> 0 | AT24: ='FinRatios RoRE decomposition'!AT166 -> 0 | AU24: ='FinRatios RoRE decomposition'!AU166 -> 0 | AV24: ='FinRatios RoRE decomposition'!AV166 -> 0 | AW24: ='FinRatios RoRE decomposition'!AW166 -> 0 | AX24: ='FinRatios RoRE decomposition'!AX166 -> 0 | AY24: ='FinRatios RoRE decomposition'!AY166 -> 0
B26: FinInput
E28: BPDT gearing target import in base case | I28: =ABS(SUM(AP28:AY28) - 0) < 0.05 -> TRUE | AP28: =FinInput!AP98 -> 0 | AQ28: =FinInput!AQ98 -> 0 | AR28: =FinInput!AR98 -> 0 | AS28: =FinInput!AS98 -> 0 | AT28: =FinInput!AT98 -> 0 | AU28: =FinInput!AU98 -> 0 | AV28: =FinInput!AV98 -> 0 | AW28: =FinInput!AW98 -> 0 | AX28: =FinInput!AX98 -> 0 | AY28: =FinInput!AY98 -> 0
B30: Totex and TIM
E32: Actual totex | I32: =ABS(SUM(AP32:AY32) - 0) < 0.00000001 -> TRUE | AP32: =(Totex!AP82 - SUM(MainInputs!AP250,MainInputs!AP258))*Totex!AP53 -> 0 | AQ32: =(Totex!AQ82 - SUM(MainInputs!AQ250,MainInputs!AQ258))*Totex!AQ53 -> -5.684341886e-14 | AR32: =(Totex!AR82 - SUM(MainInputs!AR250,MainInputs!AR258))*Totex!AR53 -> 5.684341886e-14 | AS32: =(Totex!AS82 - SUM(MainInputs!AS250,MainInputs!AS258))*Totex!AS53 -> 0 | AT32: =(Totex!AT82 - SUM(MainInputs!AT250,MainInputs!AT258))*Totex!AT53 -> 0 | AU32: =(Totex!AU82 - SUM(MainInputs!AU250,MainInputs!AU258))*Totex!AU53 -> 0 | AV32: =(Totex!AV82 - SUM(MainInputs!AV250,MainInputs!AV258))*Totex!AV53 -> 0 | AW32: =(Totex!AW82 - SUM(MainInputs!AW250,MainInputs!AW258))*Totex!AW53 -> 0 | AX32: =(Totex!AX82 - SUM(MainInputs!AX250,MainInputs!AX258))*Totex!AX53 -> 0 | AY32: =(Totex!AY82 - SUM(MainInputs!AY250,MainInputs!AY258))*Totex!AY53 -> 0
E33: Actual totex (from totex summary) | I33: TRUE | AP33: =TIM!AP135 -> 0 | AQ33: =TIM!AQ135 -> 0 | AR33: =TIM!AR135 -> 0 | AS33: =TIM!AS135 -> 0 | AT33: =TIM!AT135 -> 0 | AU33: =TIM!AU135 -> 0 | AV33: =TIM!AV135 -> 0 | AW33: =TIM!AW135 -> 0 | AX33: =TIM!AX135 -> 0 | AY33: =TIM!AY135 -> 0
E34: Allowed totex | I34: TRUE | AP34: =Totex!AP46 - SUM(MainInputs!AP45, MainInputs!AP528) -> 0 | AQ34: =Totex!AQ46 - SUM(MainInputs!AQ45, MainInputs!AQ528) -> 0 | AR34: =Totex!AR46 - SUM(MainInputs!AR45, MainInputs!AR528) -> 0 | AS34: =Totex!AS46 - SUM(MainInputs!AS45, MainInputs!AS528) -> 0 | AT34: =Totex!AT46 - SUM(MainInputs!AT45, MainInputs!AT528) -> 0 | AU34: =Totex!AU46 - SUM(MainInputs!AU45, MainInputs!AU528) -> 0 | AV34: =Totex!AV46 - SUM(MainInputs!AV45, MainInputs!AV528) -> 0 | AW34: =Totex!AW46 - SUM(MainInputs!AW45, MainInputs!AW528) -> 0 | AX34: =Totex!AX46 - SUM(MainInputs!AX45, MainInputs!AX528) -> 0 | AY34: =Totex!AY46 - SUM(MainInputs!AY45, MainInputs!AY528) -> 0
E35: Actual totex (from capitalisation buckets) | I35: TRUE | AP35: =SUM(TIM!AP28, TIM!AP38, TIM!AP48) - Totex!AP82 -> 0 | AQ35: =SUM(TIM!AQ28, TIM!AQ38, TIM!AQ48) - Totex!AQ82 -> 0 | AR35: =SUM(TIM!AR28, TIM!AR38, TIM!AR48) - Totex!AR82 -> 0 | AS35: =SUM(TIM!AS28, TIM!AS38, TIM!AS48) - Totex!AS82 -> 0 | AT35: =SUM(TIM!AT28, TIM!AT38, TIM!AT48) - Totex!AT82 -> 0 | AU35: =SUM(TIM!AU28, TIM!AU38, TIM!AU48) - Totex!AU82 -> 0 | AV35: =SUM(TIM!AV28, TIM!AV38, TIM!AV48) - Totex!AV82 -> 0 | AW35: =SUM(TIM!AW28, TIM!AW38, TIM!AW48) - Totex!AW82 -> 0 | AX35: =SUM(TIM!AX28, TIM!AX38, TIM!AX48) - Totex!AX82 -> 0 | AY35: =SUM(TIM!AY28, TIM!AY38, TIM!AY48) - Totex!AY82 -> 0
E36: Allowed totex (from capitalisation buckets) | I36: TRUE | AP36: =SUM(TIM!AP29, TIM!AP39, TIM!AP49) + SUM(MainInputs!AP45, MainInputs!AP528) -> 0 | AQ36: =SUM(TIM!AQ29, TIM!AQ39, TIM!AQ49) + SUM(MainInputs!AQ45, MainInputs!AQ528) -> 0 | AR36: =SUM(TIM!AR29, TIM!AR39, TIM!AR49) + SUM(MainInputs!AR45, MainInputs!AR528) -> 0 | AS36: =SUM(TIM!AS29, TIM!AS39, TIM!AS49) + SUM(MainInputs!AS45, MainInputs!AS528) -> 0 | AT36: =SUM(TIM!AT29, TIM!AT39, TIM!AT49) + SUM(MainInputs!AT45, MainInputs!AT528) -> 0 | AU36: =SUM(TIM!AU29, TIM!AU39, TIM!AU49) + SUM(MainInputs!AU45, MainInputs!AU528) -> 0 | AV36: =SUM(TIM!AV29, TIM!AV39, TIM!AV49) + SUM(MainInputs!AV45, MainInputs!AV528) -> 0 | AW36: =SUM(TIM!AW29, TIM!AW39, TIM!AW49) + SUM(MainInputs!AW45, MainInputs!AW528) -> 0 | AX36: =SUM(TIM!AX29, TIM!AX39, TIM!AX49) + SUM(MainInputs!AX45, MainInputs!AX528) -> 0 | AY36: =SUM(TIM!AY29, TIM!AY39, TIM!AY49) + SUM(MainInputs!AY45, MainInputs!AY528) -> 0
B38: Return & RAV
E40: Inflation options' calculation of real WACC equal to MainInputs | I40: =ABS(SUM(AP40:AY40) - 0) < 0.00000001 -> TRUE | AP40: ='Return&RAV'!AP42 -> 0 | AQ40: ='Return&RAV'!AQ42 -> 0 | AR40: ='Return&RAV'!AR42 -> 0 | AS40: ='Return&RAV'!AS42 -> 0 | AT40: ='Return&RAV'!AT42 -> 0 | AU40: ='Return&RAV'!AU42 -> 0 | AV40: ='Return&RAV'!AV42 -> 0 | AW40: ='Return&RAV'!AW42 -> 0 | AX40: ='Return&RAV'!AX42 -> 0 | AY40: ='Return&RAV'!AY42 -> 0
B42: Depreciation
E44: Post-vesting assets fully depreciated | I44: =Depn!J492 -> TRUE
B46: Input
E48: Variant allowed totex | I48: =ABS(SUM(AP48:AY48) - 0) < 0.00000001 -> TRUE | AP48: =MainInputs!AP529 -> 0 | AQ48: =MainInputs!AQ529 -> 0 | AR48: =MainInputs!AR529 -> 0 | AS48: =MainInputs!AS529 -> 0 | AT48: =MainInputs!AT529 -> 0 | AU48: =MainInputs!AU529 -> 0 | AV48: =MainInputs!AV529 -> 0 | AW48: =MainInputs!AW529 -> 0 | AX48: =MainInputs!AX529 -> 0 | AY48: =MainInputs!AY529 -> 0
E49: Variant allowed totex subcategory allocations | I49: =ABS(SUM(AP49:AY49) - 0) < 0.00000001 -> TRUE | AP49: =MainInputs!AP530 -> 0 | AQ49: =MainInputs!AQ530 -> 0 | AR49: =MainInputs!AR530 -> 0 | AS49: =MainInputs!AS530 -> 0 | AT49: =MainInputs!AT530 -> 0 | AU49: =MainInputs!AU530 -> 0 | AV49: =MainInputs!AV530 -> 0 | AW49: =MainInputs!AW530 -> 0 | AX49: =MainInputs!AX530 -> 0 | AY49: =MainInputs!AY530 -> 0
E50: RPE non-variant allowances
E51: RPE PCDs
E52: RPE UMs
B54: Company tabs
E56: Totex allocations to tax pools | G56: East | I56: =IFERROR(SUMPRODUCT((AP56:AY56 = 1) * 1) = 10,FALSE) -> TRUE | AP56: =ROUND(INDIRECT("'"&$G56&"'!"&ADDRESS($BA56, $BC56 + YEAR(AP$4) - YEAR($AP$4))) + INDIRECT("'"&$G56&"'!"&ADDRESS($BB56, $BC56 + YEAR(AP$4) - YEAR($AP$4))),5) -> 1 | AQ56: =ROUND(INDIRECT("'"&$G56&"'!"&ADDRESS($BA56, $BC56 + YEAR(AQ$4) - YEAR($AP$4))) + INDIRECT("'"&$G56&"'!"&ADDRESS($BB56, $BC56 + YEAR(AQ$4) - YEAR($AP$4))),5) -> 1 | AR56: =ROUND(INDIRECT("'"&$G56&"'!"&ADDRESS($BA56, $BC56 + YEAR(AR$4) - YEAR($AP$4))) + INDIRECT("'"&$G56&"'!"&ADDRESS($BB56, $BC56 + YEAR(AR$4) - YEAR($AP$4))),5) -> 1 | AS56: =ROUND(INDIRECT("'"&$G56&"'!"&ADDRESS($BA56, $BC56 + YEAR(AS$4) - YEAR($AP$4))) + INDIRECT("'"&$G56&"'!"&ADDRESS($BB56, $BC56 + YEAR(AS$4) - YEAR($AP$4))),5) -> 1 | AT56: =ROUND(INDIRECT("'"&$G56&"'!"&ADDRESS($BA56, $BC56 + YEAR(AT$4) - YEAR($AP$4))) + INDIRECT("'"&$G56&"'!"&ADDRESS($BB56, $BC56 + YEAR(AT$4) - YEAR($AP$4))),5) -> 1 | AU56: =ROUND(INDIRECT("'"&$G56&"'!"&ADDRESS($BA56, $BC56 + YEAR(AU$4) - YEAR($AP$4))) + INDIRECT("'"&$G56&"'!"&ADDRESS($BB56, $BC56 + YEAR(AU$4) - YEAR($AP$4))),5) -> 1 | AV56: =ROUND(INDIRECT("'"&$G56&"'!"&ADDRESS($BA56, $BC56 + YEAR(AV$4) - YEAR($AP$4))) + INDIRECT("'"&$G56&"'!"&ADDRESS($BB56, $BC56 + YEAR(AV$4) - YEAR($AP$4))),5) -> 1 | AW56: =ROUND(INDIRECT("'"&$G56&"'!"&ADDRESS($BA56, $BC56 + YEAR(AW$4) - YEAR($AP$4))) + INDIRECT("'"&$G56&"'!"&ADDRESS($BB56, $BC56 + YEAR(AW$4) - YEAR($AP$4))),5) -> 1 | AX56: =ROUND(INDIRECT("'"&$G56&"'!"&ADDRESS($BA56, $BC56 + YEAR(AX$4) - YEAR($AP$4))) + INDIRECT("'"&$G56&"'!"&ADDRESS($BB56, $BC56 + YEAR(AX$4) - YEAR($AP$4))),5) -> 1 | AY56: =ROUND(INDIRECT("'"&$G56&"'!"&ADDRESS($BA56, $BC56 + YEAR(AY$4) - YEAR($AP$4))) + INDIRECT("'"&$G56&"'!"&ADDRESS($BB56, $BC56 + YEAR(AY$4) - YEAR($AP$4))),5) -> 1 | BA56: =ROW(East!$AP$1166) -> 1166 | BB56: =ROW(East!$AP$706) -> 706 | BC56: =COLUMN(East!$AP$1166) -> 42
E57: Totex allocations to tax pools | G57: London | I57: =IFERROR(SUMPRODUCT((AP57:AY57 = 1) * 1) = 10,FALSE) -> TRUE | AP57: =ROUND(INDIRECT("'"&$G57&"'!"&ADDRESS($BA57, $BC57 + YEAR(AP$4) - YEAR($AP$4))) + INDIRECT("'"&$G57&"'!"&ADDRESS($BB57, $BC57 + YEAR(AP$4) - YEAR($AP$4))),5) -> 1 | AQ57: =ROUND(INDIRECT("'"&$G57&"'!"&ADDRESS($BA57, $BC57 + YEAR(AQ$4) - YEAR($AP$4))) + INDIRECT("'"&$G57&"'!"&ADDRESS($BB57, $BC57 + YEAR(AQ$4) - YEAR($AP$4))),5) -> 1 | AR57: =ROUND(INDIRECT("'"&$G57&"'!"&ADDRESS($BA57, $BC57 + YEAR(AR$4) - YEAR($AP$4))) + INDIRECT("'"&$G57&"'!"&ADDRESS($BB57, $BC57 + YEAR(AR$4) - YEAR($AP$4))),5) -> 1 | AS57: =ROUND(INDIRECT("'"&$G57&"'!"&ADDRESS($BA57, $BC57 + YEAR(AS$4) - YEAR($AP$4))) + INDIRECT("'"&$G57&"'!"&ADDRESS($BB57, $BC57 + YEAR(AS$4) - YEAR($AP$4))),5) -> 1 | AT57: =ROUND(INDIRECT("'"&$G57&"'!"&ADDRESS($BA57, $BC57 + YEAR(AT$4) - YEAR($AP$4))) + INDIRECT("'"&$G57&"'!"&ADDRESS($BB57, $BC57 + YEAR(AT$4) - YEAR($AP$4))),5) -> 1 | AU57: =ROUND(INDIRECT("'"&$G57&"'!"&ADDRESS($BA57, $BC57 + YEAR(AU$4) - YEAR($AP$4))) + INDIRECT("'"&$G57&"'!"&ADDRESS($BB57, $BC57 + YEAR(AU$4) - YEAR($AP$4))),5) -> 1 | AV57: =ROUND(INDIRECT("'"&$G57&"'!"&ADDRESS($BA57, $BC57 + YEAR(AV$4) - YEAR($AP$4))) + INDIRECT("'"&$G57&"'!"&ADDRESS($BB57, $BC57 + YEAR(AV$4) - YEAR($AP$4))),5) -> 1 | AW57: =ROUND(INDIRECT("'"&$G57&"'!"&ADDRESS($BA57, $BC57 + YEAR(AW$4) - YEAR($AP$4))) + INDIRECT("'"&$G57&"'!"&ADDRESS($BB57, $BC57 + YEAR(AW$4) - YEAR($AP$4))),5) -> 1 | AX57: =ROUND(INDIRECT("'"&$G57&"'!"&ADDRESS($BA57, $BC57 + YEAR(AX$4) - YEAR($AP$4))) + INDIRECT("'"&$G57&"'!"&ADDRESS($BB57, $BC57 + YEAR(AX$4) - YEAR($AP$4))),5) -> 1 | AY57: =ROUND(INDIRECT("'"&$G57&"'!"&ADDRESS($BA57, $BC57 + YEAR(AY$4) - YEAR($AP$4))) + INDIRECT("'"&$G57&"'!"&ADDRESS($BB57, $BC57 + YEAR(AY$4) - YEAR($AP$4))),5) -> 1 | BA57: =ROW(East!$AP$1166) -> 1166 | BB57: =ROW(East!$AP$706) -> 706 | BC57: =COLUMN(East!$AP$1166) -> 42
E58: Totex allocations to tax pools | G58: North West | I58: =IFERROR(SUMPRODUCT((AP58:AY58 = 1) * 1) = 10,FALSE) -> TRUE | AP58: =ROUND(INDIRECT("'"&$G58&"'!"&ADDRESS($BA58, $BC58 + YEAR(AP$4) - YEAR($AP$4))) + INDIRECT("'"&$G58&"'!"&ADDRESS($BB58, $BC58 + YEAR(AP$4) - YEAR($AP$4))),5) -> 1 | AQ58: =ROUND(INDIRECT("'"&$G58&"'!"&ADDRESS($BA58, $BC58 + YEAR(AQ$4) - YEAR($AP$4))) + INDIRECT("'"&$G58&"'!"&ADDRESS($BB58, $BC58 + YEAR(AQ$4) - YEAR($AP$4))),5) -> 1 | AR58: =ROUND(INDIRECT("'"&$G58&"'!"&ADDRESS($BA58, $BC58 + YEAR(AR$4) - YEAR($AP$4))) + INDIRECT("'"&$G58&"'!"&ADDRESS($BB58, $BC58 + YEAR(AR$4) - YEAR($AP$4))),5) -> 1 | AS58: =ROUND(INDIRECT("'"&$G58&"'!"&ADDRESS($BA58, $BC58 + YEAR(AS$4) - YEAR($AP$4))) + INDIRECT("'"&$G58&"'!"&ADDRESS($BB58, $BC58 + YEAR(AS$4) - YEAR($AP$4))),5) -> 1 | AT58: =ROUND(INDIRECT("'"&$G58&"'!"&ADDRESS($BA58, $BC58 + YEAR(AT$4) - YEAR($AP$4))) + INDIRECT("'"&$G58&"'!"&ADDRESS($BB58, $BC58 + YEAR(AT$4) - YEAR($AP$4))),5) -> 1 | AU58: =ROUND(INDIRECT("'"&$G58&"'!"&ADDRESS($BA58, $BC58 + YEAR(AU$4) - YEAR($AP$4))) + INDIRECT("'"&$G58&"'!"&ADDRESS($BB58, $BC58 + YEAR(AU$4) - YEAR($AP$4))),5) -> 1 | AV58: =ROUND(INDIRECT("'"&$G58&"'!"&ADDRESS($BA58, $BC58 + YEAR(AV$4) - YEAR($AP$4))) + INDIRECT("'"&$G58&"'!"&ADDRESS($BB58, $BC58 + YEAR(AV$4) - YEAR($AP$4))),5) -> 1 | AW58: =ROUND(INDIRECT("'"&$G58&"'!"&ADDRESS($BA58, $BC58 + YEAR(AW$4) - YEAR($AP$4))) + INDIRECT("'"&$G58&"'!"&ADDRESS($BB58, $BC58 + YEAR(AW$4) - YEAR($AP$4))),5) -> 1 | AX58: =ROUND(INDIRECT("'"&$G58&"'!"&ADDRESS($BA58, $BC58 + YEAR(AX$4) - YEAR($AP$4))) + INDIRECT("'"&$G58&"'!"&ADDRESS($BB58, $BC58 + YEAR(AX$4) - YEAR($AP$4))),5) -> 1 | AY58: =ROUND(INDIRECT("'"&$G58&"'!"&ADDRESS($BA58, $BC58 + YEAR(AY$4) - YEAR($AP$4))) + INDIRECT("'"&$G58&"'!"&ADDRESS($BB58, $BC58 + YEAR(AY$4) - YEAR($AP$4))),5) -> 1 | BA58: =ROW(East!$AP$1166) -> 1166 | BB58: =ROW(East!$AP$706) -> 706 | BC58: =COLUMN(East!$AP$1166) -> 42
E59: Totex allocations to tax pools | G59: West Midlands | I59: =IFERROR(SUMPRODUCT((AP59:AY59 = 1) * 1) = 10,FALSE) -> TRUE | AP59: =ROUND(INDIRECT("'"&$G59&"'!"&ADDRESS($BA59, $BC59 + YEAR(AP$4) - YEAR($AP$4))) + INDIRECT("'"&$G59&"'!"&ADDRESS($BB59, $BC59 + YEAR(AP$4) - YEAR($AP$4))),5) -> 1 | AQ59: =ROUND(INDIRECT("'"&$G59&"'!"&ADDRESS($BA59, $BC59 + YEAR(AQ$4) - YEAR($AP$4))) + INDIRECT("'"&$G59&"'!"&ADDRESS($BB59, $BC59 + YEAR(AQ$4) - YEAR($AP$4))),5) -> 1 | AR59: =ROUND(INDIRECT("'"&$G59&"'!"&ADDRESS($BA59, $BC59 + YEAR(AR$4) - YEAR($AP$4))) + INDIRECT("'"&$G59&"'!"&ADDRESS($BB59, $BC59 + YEAR(AR$4) - YEAR($AP$4))),5) -> 1 | AS59: =ROUND(INDIRECT("'"&$G59&"'!"&ADDRESS($BA59, $BC59 + YEAR(AS$4) - YEAR($AP$4))) + INDIRECT("'"&$G59&"'!"&ADDRESS($BB59, $BC59 + YEAR(AS$4) - YEAR($AP$4))),5) -> 1 | AT59: =ROUND(INDIRECT("'"&$G59&"'!"&ADDRESS($BA59, $BC59 + YEAR(AT$4) - YEAR($AP$4))) + INDIRECT("'"&$G59&"'!"&ADDRESS($BB59, $BC59 + YEAR(AT$4) - YEAR($AP$4))),5) -> 1 | AU59: =ROUND(INDIRECT("'"&$G59&"'!"&ADDRESS($BA59, $BC59 + YEAR(AU$4) - YEAR($AP$4))) + INDIRECT("'"&$G59&"'!"&ADDRESS($BB59, $BC59 + YEAR(AU$4) - YEAR($AP$4))),5) -> 1 | AV59: =ROUND(INDIRECT("'"&$G59&"'!"&ADDRESS($BA59, $BC59 + YEAR(AV$4) - YEAR($AP$4))) + INDIRECT("'"&$G59&"'!"&ADDRESS($BB59, $BC59 + YEAR(AV$4) - YEAR($AP$4))),5) -> 1 | AW59: =ROUND(INDIRECT("'"&$G59&"'!"&ADDRESS($BA59, $BC59 + YEAR(AW$4) - YEAR($AP$4))) + INDIRECT("'"&$G59&"'!"&ADDRESS($BB59, $BC59 + YEAR(AW$4) - YEAR($AP$4))),5) -> 1 | AX59: =ROUND(INDIRECT("'"&$G59&"'!"&ADDRESS($BA59, $BC59 + YEAR(AX$4) - YEAR($AP$4))) + INDIRECT("'"&$G59&"'!"&ADDRESS($BB59, $BC59 + YEAR(AX$4) - YEAR($AP$4))),5) -> 1 | AY59: =ROUND(INDIRECT("'"&$G59&"'!"&ADDRESS($BA59, $BC59 + YEAR(AY$4) - YEAR($AP$4))) + INDIRECT("'"&$G59&"'!"&ADDRESS($BB59, $BC59 + YEAR(AY$4) - YEAR($AP$4))),5) -> 1 | BA59: =ROW(East!$AP$1166) -> 1166 | BB59: =ROW(East!$AP$706) -> 706 | BC59: =COLUMN(East!$AP$1166) -> 42
E60: Totex allocations to tax pools | G60: Northern | I60: =IFERROR(SUMPRODUCT((AP60:AY60 = 1) * 1) = 10,FALSE) -> FALSE | AP60: =ROUND(INDIRECT("'"&$G60&"'!"&ADDRESS($BA60, $BC60 + YEAR(AP$4) - YEAR($AP$4))) + INDIRECT("'"&$G60&"'!"&ADDRESS($BB60, $BC60 + YEAR(AP$4) - YEAR($AP$4))),5) -> 1.00001 | AQ60: =ROUND(INDIRECT("'"&$G60&"'!"&ADDRESS($BA60, $BC60 + YEAR(AQ$4) - YEAR($AP$4))) + INDIRECT("'"&$G60&"'!"&ADDRESS($BB60, $BC60 + YEAR(AQ$4) - YEAR($AP$4))),5) -> 1.00001 | AR60: =ROUND(INDIRECT("'"&$G60&"'!"&ADDRESS($BA60, $BC60 + YEAR(AR$4) - YEAR($AP$4))) + INDIRECT("'"&$G60&"'!"&ADDRESS($BB60, $BC60 + YEAR(AR$4) - YEAR($AP$4))),5) -> 1.00001 | AS60: =ROUND(INDIRECT("'"&$G60&"'!"&ADDRESS($BA60, $BC60 + YEAR(AS$4) - YEAR($AP$4))) + INDIRECT("'"&$G60&"'!"&ADDRESS($BB60, $BC60 + YEAR(AS$4) - YEAR($AP$4))),5) -> 1.00002 | AT60: =ROUND(INDIRECT("'"&$G60&"'!"&ADDRESS($BA60, $BC60 + YEAR(AT$4) - YEAR($AP$4))) + INDIRECT("'"&$G60&"'!"&ADDRESS($BB60, $BC60 + YEAR(AT$4) - YEAR($AP$4))),5) -> 0.99999 | AU60: =ROUND(INDIRECT("'"&$G60&"'!"&ADDRESS($BA60, $BC60 + YEAR(AU$4) - YEAR($AP$4))) + INDIRECT("'"&$G60&"'!"&ADDRESS($BB60, $BC60 + YEAR(AU$4) - YEAR($AP$4))),5) -> 1 | AV60: =ROUND(INDIRECT("'"&$G60&"'!"&ADDRESS($BA60, $BC60 + YEAR(AV$4) - YEAR($AP$4))) + INDIRECT("'"&$G60&"'!"&ADDRESS($BB60, $BC60 + YEAR(AV$4) - YEAR($AP$4))),5) -> 1 | AW60: =ROUND(INDIRECT("'"&$G60&"'!"&ADDRESS($BA60, $BC60 + YEAR(AW$4) - YEAR($AP$4))) + INDIRECT("'"&$G60&"'!"&ADDRESS($BB60, $BC60 + YEAR(AW$4) - YEAR($AP$4))),5) -> 1 | AX60: =ROUND(INDIRECT("'"&$G60&"'!"&ADDRESS($BA60, $BC60 + YEAR(AX$4) - YEAR($AP$4))) + INDIRECT("'"&$G60&"'!"&ADDRESS($BB60, $BC60 + YEAR(AX$4) - YEAR($AP$4))),5) -> 1 | AY60: =ROUND(INDIRECT("'"&$G60&"'!"&ADDRESS($BA60, $BC60 + YEAR(AY$4) - YEAR($AP$4))) + INDIRECT("'"&$G60&"'!"&ADDRESS($BB60, $BC60 + YEAR(AY$4) - YEAR($AP$4))),5) -> 1 | BA60: =ROW(East!$AP$1166) -> 1166 | BB60: =ROW(East!$AP$706) -> 706 | BC60: =COLUMN(East!$AP$1166) -> 42
E61: Totex allocations to tax pools | G61: Scotland | I61: =IFERROR(SUMPRODUCT((AP61:AY61 = 1) * 1) = 10,FALSE) -> TRUE | AP61: =ROUND(INDIRECT("'"&$G61&"'!"&ADDRESS($BA61, $BC61 + YEAR(AP$4) - YEAR($AP$4))) + INDIRECT("'"&$G61&"'!"&ADDRESS($BB61, $BC61 + YEAR(AP$4) - YEAR($AP$4))),5) -> 1 | AQ61: =ROUND(INDIRECT("'"&$G61&"'!"&ADDRESS($BA61, $BC61 + YEAR(AQ$4) - YEAR($AP$4))) + INDIRECT("'"&$G61&"'!"&ADDRESS($BB61, $BC61 + YEAR(AQ$4) - YEAR($AP$4))),5) -> 1 | AR61: =ROUND(INDIRECT("'"&$G61&"'!"&ADDRESS($BA61, $BC61 + YEAR(AR$4) - YEAR($AP$4))) + INDIRECT("'"&$G61&"'!"&ADDRESS($BB61, $BC61 + YEAR(AR$4) - YEAR($AP$4))),5) -> 1 | AS61: =ROUND(INDIRECT("'"&$G61&"'!"&ADDRESS($BA61, $BC61 + YEAR(AS$4) - YEAR($AP$4))) + INDIRECT("'"&$G61&"'!"&ADDRESS($BB61, $BC61 + YEAR(AS$4) - YEAR($AP$4))),5) -> 1 | AT61: =ROUND(INDIRECT("'"&$G61&"'!"&ADDRESS($BA61, $BC61 + YEAR(AT$4) - YEAR($AP$4))) + INDIRECT("'"&$G61&"'!"&ADDRESS($BB61, $BC61 + YEAR(AT$4) - YEAR($AP$4))),5) -> 1 | AU61: =ROUND(INDIRECT("'"&$G61&"'!"&ADDRESS($BA61, $BC61 + YEAR(AU$4) - YEAR($AP$4))) + INDIRECT("'"&$G61&"'!"&ADDRESS($BB61, $BC61 + YEAR(AU$4) - YEAR($AP$4))),5) -> 1 | AV61: =ROUND(INDIRECT("'"&$G61&"'!"&ADDRESS($BA61, $BC61 + YEAR(AV$4) - YEAR($AP$4))) + INDIRECT("'"&$G61&"'!"&ADDRESS($BB61, $BC61 + YEAR(AV$4) - YEAR($AP$4))),5) -> 1 | AW61: =ROUND(INDIRECT("'"&$G61&"'!"&ADDRESS($BA61, $BC61 + YEAR(AW$4) - YEAR($AP$4))) + INDIRECT("'"&$G61&"'!"&ADDRESS($BB61, $BC61 + YEAR(AW$4) - YEAR($AP$4))),5) -> 1 | AX61: =ROUND(INDIRECT("'"&$G61&"'!"&ADDRESS($BA61, $BC61 + YEAR(AX$4) - YEAR($AP$4))) + INDIRECT("'"&$G61&"'!"&ADDRESS($BB61, $BC61 + YEAR(AX$4) - YEAR($AP$4))),5) -> 1 | AY61: =ROUND(INDIRECT("'"&$G61&"'!"&ADDRESS($BA61, $BC61 + YEAR(AY$4) - YEAR($AP$4))) + INDIRECT("'"&$G61&"'!"&ADDRESS($BB61, $BC61 + YEAR(AY$4) - YEAR($AP$4))),5) -> 1 | BA61: =ROW(East!$AP$1166) -> 1166 | BB61: =ROW(East!$AP$706) -> 706 | BC61: =COLUMN(East!$AP$1166) -> 42
E62: Totex allocations to tax pools | G62: Southern | I62: =IFERROR(SUMPRODUCT((AP62:AY62 = 1) * 1) = 10,FALSE) -> TRUE | AP62: =ROUND(INDIRECT("'"&$G62&"'!"&ADDRESS($BA62, $BC62 + YEAR(AP$4) - YEAR($AP$4))) + INDIRECT("'"&$G62&"'!"&ADDRESS($BB62, $BC62 + YEAR(AP$4) - YEAR($AP$4))),5) -> 1 | AQ62: =ROUND(INDIRECT("'"&$G62&"'!"&ADDRESS($BA62, $BC62 + YEAR(AQ$4) - YEAR($AP$4))) + INDIRECT("'"&$G62&"'!"&ADDRESS($BB62, $BC62 + YEAR(AQ$4) - YEAR($AP$4))),5) -> 1 | AR62: =ROUND(INDIRECT("'"&$G62&"'!"&ADDRESS($BA62, $BC62 + YEAR(AR$4) - YEAR($AP$4))) + INDIRECT("'"&$G62&"'!"&ADDRESS($BB62, $BC62 + YEAR(AR$4) - YEAR($AP$4))),5) -> 1 | AS62: =ROUND(INDIRECT("'"&$G62&"'!"&ADDRESS($BA62, $BC62 + YEAR(AS$4) - YEAR($AP$4))) + INDIRECT("'"&$G62&"'!"&ADDRESS($BB62, $BC62 + YEAR(AS$4) - YEAR($AP$4))),5) -> 1 | AT62: =ROUND(INDIRECT("'"&$G62&"'!"&ADDRESS($BA62, $BC62 + YEAR(AT$4) - YEAR($AP$4))) + INDIRECT("'"&$G62&"'!"&ADDRESS($BB62, $BC62 + YEAR(AT$4) - YEAR($AP$4))),5) -> 1 | AU62: =ROUND(INDIRECT("'"&$G62&"'!"&ADDRESS($BA62, $BC62 + YEAR(AU$4) - YEAR($AP$4))) + INDIRECT("'"&$G62&"'!"&ADDRESS($BB62, $BC62 + YEAR(AU$4) - YEAR($AP$4))),5) -> 1 | AV62: =ROUND(INDIRECT("'"&$G62&"'!"&ADDRESS($BA62, $BC62 + YEAR(AV$4) - YEAR($AP$4))) + INDIRECT("'"&$G62&"'!"&ADDRESS($BB62, $BC62 + YEAR(AV$4) - YEAR($AP$4))),5) -> 1 | AW62: =ROUND(INDIRECT("'"&$G62&"'!"&ADDRESS($BA62, $BC62 + YEAR(AW$4) - YEAR($AP$4))) + INDIRECT("'"&$G62&"'!"&ADDRESS($BB62, $BC62 + YEAR(AW$4) - YEAR($AP$4))),5) -> 1 | AX62: =ROUND(INDIRECT("'"&$G62&"'!"&ADDRESS($BA62, $BC62 + YEAR(AX$4) - YEAR($AP$4))) + INDIRECT("'"&$G62&"'!"&ADDRESS($BB62, $BC62 + YEAR(AX$4) - YEAR($AP$4))),5) -> 1 | AY62: =ROUND(INDIRECT("'"&$G62&"'!"&ADDRESS($BA62, $BC62 + YEAR(AY$4) - YEAR($AP$4))) + INDIRECT("'"&$G62&"'!"&ADDRESS($BB62, $BC62 + YEAR(AY$4) - YEAR($AP$4))),5) -> 1 | BA62: =ROW(East!$AP$1166) -> 1166 | BB62: =ROW(East!$AP$706) -> 706 | BC62: =COLUMN(East!$AP$1166) -> 42
E63: Totex allocations to tax pools | G63: Wales & West | I63: =IFERROR(SUMPRODUCT((AP63:AY63 = 1) * 1) = 10,FALSE) -> TRUE | AP63: =ROUND(INDIRECT("'"&$G63&"'!"&ADDRESS($BA63, $BC63 + YEAR(AP$4) - YEAR($AP$4))) + INDIRECT("'"&$G63&"'!"&ADDRESS($BB63, $BC63 + YEAR(AP$4) - YEAR($AP$4))),5) -> 1 | AQ63: =ROUND(INDIRECT("'"&$G63&"'!"&ADDRESS($BA63, $BC63 + YEAR(AQ$4) - YEAR($AP$4))) + INDIRECT("'"&$G63&"'!"&ADDRESS($BB63, $BC63 + YEAR(AQ$4) - YEAR($AP$4))),5) -> 1 | AR63: =ROUND(INDIRECT("'"&$G63&"'!"&ADDRESS($BA63, $BC63 + YEAR(AR$4) - YEAR($AP$4))) + INDIRECT("'"&$G63&"'!"&ADDRESS($BB63, $BC63 + YEAR(AR$4) - YEAR($AP$4))),5) -> 1 | AS63: =ROUND(INDIRECT("'"&$G63&"'!"&ADDRESS($BA63, $BC63 + YEAR(AS$4) - YEAR($AP$4))) + INDIRECT("'"&$G63&"'!"&ADDRESS($BB63, $BC63 + YEAR(AS$4) - YEAR($AP$4))),5) -> 1 | AT63: =ROUND(INDIRECT("'"&$G63&"'!"&ADDRESS($BA63, $BC63 + YEAR(AT$4) - YEAR($AP$4))) + INDIRECT("'"&$G63&"'!"&ADDRESS($BB63, $BC63 + YEAR(AT$4) - YEAR($AP$4))),5) -> 1 | AU63: =ROUND(INDIRECT("'"&$G63&"'!"&ADDRESS($BA63, $BC63 + YEAR(AU$4) - YEAR($AP$4))) + INDIRECT("'"&$G63&"'!"&ADDRESS($BB63, $BC63 + YEAR(AU$4) - YEAR($AP$4))),5) -> 1 | AV63: =ROUND(INDIRECT("'"&$G63&"'!"&ADDRESS($BA63, $BC63 + YEAR(AV$4) - YEAR($AP$4))) + INDIRECT("'"&$G63&"'!"&ADDRESS($BB63, $BC63 + YEAR(AV$4) - YEAR($AP$4))),5) -> 1 | AW63: =ROUND(INDIRECT("'"&$G63&"'!"&ADDRESS($BA63, $BC63 + YEAR(AW$4) - YEAR($AP$4))) + INDIRECT("'"&$G63&"'!"&ADDRESS($BB63, $BC63 + YEAR(AW$4) - YEAR($AP$4))),5) -> 1 | AX63: =ROUND(INDIRECT("'"&$G63&"'!"&ADDRESS($BA63, $BC63 + YEAR(AX$4) - YEAR($AP$4))) + INDIRECT("'"&$G63&"'!"&ADDRESS($BB63, $BC63 + YEAR(AX$4) - YEAR($AP$4))),5) -> 1 | AY63: =ROUND(INDIRECT("'"&$G63&"'!"&ADDRESS($BA63, $BC63 + YEAR(AY$4) - YEAR($AP$4))) + INDIRECT("'"&$G63&"'!"&ADDRESS($BB63, $BC63 + YEAR(AY$4) - YEAR($AP$4))),5) -> 1 | BA63: =ROW(East!$AP$1166) -> 1166 | BB63: =ROW(East!$AP$706) -> 706 | BC63: =COLUMN(East!$AP$1166) -> 42
E64: Total non-baseline totex (in "Cost Assessment interface") | G64: East
E65: Total non-baseline totex (in "Cost Assessment interface") | G65: London
E66: Total non-baseline totex (in "Cost Assessment interface") | G66: North West
E67: Total non-baseline totex (in "Cost Assessment interface") | G67: West Midlands
E68: Total non-baseline totex (in "Cost Assessment interface") | G68: Northern
E69: Total non-baseline totex (in "Cost Assessment interface") | G69: Scotland
E70: Total non-baseline totex (in "Cost Assessment interface") | G70: Southern
E71: Total non-baseline totex (in "Cost Assessment interface") | G71: Wales & West
B73: Tax trigger deadbands
E75: Final proposals base revenue - live operator
E76: Impact of corporation tax rate change - live operator
E77: Tax trigger deadbands in operator tabs | G77: East | I77: =ABS(SUM(AP77:AT77) - 0) < 0.00000001 -> TRUE | AP77: ='TaxTrigger Deadbands'!AP70 -> 0 | AQ77: ='TaxTrigger Deadbands'!AQ70 -> 0 | AR77: ='TaxTrigger Deadbands'!AR70 -> 0 | AS77: ='TaxTrigger Deadbands'!AS70 -> 0 | AT77: ='TaxTrigger Deadbands'!AT70 -> 0
E78: Tax trigger deadbands in operator tabs | G78: London | I78: TRUE | AP78: ='TaxTrigger Deadbands'!AP71 -> 0 | AQ78: ='TaxTrigger Deadbands'!AQ71 -> 0 | AR78: ='TaxTrigger Deadbands'!AR71 -> 0 | AS78: ='TaxTrigger Deadbands'!AS71 -> 0 | AT78: ='TaxTrigger Deadbands'!AT71 -> 0
E79: Tax trigger deadbands in operator tabs | G79: North West | I79: TRUE | AP79: ='TaxTrigger Deadbands'!AP72 -> 0 | AQ79: ='TaxTrigger Deadbands'!AQ72 -> 0 | AR79: ='TaxTrigger Deadbands'!AR72 -> 0 | AS79: ='TaxTrigger Deadbands'!AS72 -> 0 | AT79: ='TaxTrigger Deadbands'!AT72 -> 0
E80: Tax trigger deadbands in operator tabs | G80: West Midlands | I80: TRUE | AP80: ='TaxTrigger Deadbands'!AP73 -> 0 | AQ80: ='TaxTrigger Deadbands'!AQ73 -> 0 | AR80: ='TaxTrigger Deadbands'!AR73 -> 0 | AS80: ='TaxTrigger Deadbands'!AS73 -> 0 | AT80: ='TaxTrigger Deadbands'!AT73 -> 0
E81: Tax trigger deadbands in operator tabs | G81: Northern | I81: TRUE | AP81: ='TaxTrigger Deadbands'!AP74 -> 0 | AQ81: ='TaxTrigger Deadbands'!AQ74 -> 0 | AR81: ='TaxTrigger Deadbands'!AR74 -> 0 | AS81: ='TaxTrigger Deadbands'!AS74 -> 0 | AT81: ='TaxTrigger Deadbands'!AT74 -> 0
E82: Tax trigger deadbands in operator tabs | G82: Scotland | I82: TRUE | AP82: ='TaxTrigger Deadbands'!AP75 -> 0 | AQ82: ='TaxTrigger Deadbands'!AQ75 -> 0 | AR82: ='TaxTrigger Deadbands'!AR75 -> 0 | AS82: ='TaxTrigger Deadbands'!AS75 -> 0 | AT82: ='TaxTrigger Deadbands'!AT75 -> 0
E83: Tax trigger deadbands in operator tabs | G83: Southern | I83: TRUE | AP83: ='TaxTrigger Deadbands'!AP76 -> 0 | AQ83: ='TaxTrigger Deadbands'!AQ76 -> 0 | AR83: ='TaxTrigger Deadbands'!AR76 -> 0 | AS83: ='TaxTrigger Deadbands'!AS76 -> 0 | AT83: ='TaxTrigger Deadbands'!AT76 -> 0
E84: Tax trigger deadbands in operator tabs | G84: Wales & West | I84: TRUE | AP84: ='TaxTrigger Deadbands'!AP77 -> 0 | AQ84: ='TaxTrigger Deadbands'!AQ77 -> 0 | AR84: ='TaxTrigger Deadbands'!AR77 -> 0 | AS84: ='TaxTrigger Deadbands'!AS77 -> 0 | AT84: ='TaxTrigger Deadbands'!AT77 -> 0
B86: RIIO-1 revenue and charges
E88: Consumers by network | I88: =#REF! -> 
E89: Consumers by company | I89: =#REF! -> 
B91: End of sheet

Sheet Scenarios
A1: Scenarios
B2: =UserInterface!G17 -> East | AP2: =AP10 -> Base case | AQ2: =AQ10 -> High interest rate | AR2: Low interest rate | AS2: High inflation | AT2: Low inflation | AU2: High CPIH inflation divergence | AV2: Low CPIH inflation divergence | AW2: High RPI inflation divergence | AX2: Low RPI inflation divergence | AY2: Totex outperformance | AZ2: Totex underperformance | BA2: High RoRE | BB2: Low RoRE | BC2: High index-linked debt | BD2: Low index-linked debt | BE2: Financeability example: BPDT | BF2: Financeability example: % dividend | BG2: Financeability example: cash flow dividend | BH2: Financeability example: User defined | BI2: Option 1 off | BJ2: Option 1 off + status quo depreciation | BK2: High totex + RoRE -2% | BL2: High totex + overspend | BM2: High totex + Low CPIH | BN2: Scenario 25 | BO2: Scenario 26 | BP2: Scenario 27 | BQ2: Scenario 28 | BR2: Scenario 29 | BS2: Scenario 30 | BT2: Scenario 31 | BU2: Scenario 32 | BV2: Scenario 33 | BW2: Scenario 34 | BX2: Scenario 35
E3: Parameter | F3: Licence condition | G3: Units | H3: Term | I3: Constant | AP3: Annual values
E4: PCFM year ending | F4: =Cover!C4 -> Model Version | I4: =UserInterface!$G$10 -> 2025-03-31 | K4: 1991-03-31 | L4: 1992-03-31 | M4: 1993-03-31 | N4: 1994-03-31 | O4: 1995-03-31 | P4: 1996-03-31 | Q4: 1997-03-31 | R4: 1998-03-31 | S4: 1999-03-31 | T4: 2000-03-31 | U4: 2001-03-31 | V4: 2002-03-31 | W4: 2003-03-31 | X4: 2004-03-31 | Y4: 2005-03-31 | Z4: 2006-03-31 | AA4: 2007-03-31 | AB4: 2008-03-31 | AC4: 2009-03-31 | AD4: 2010-03-31 | AE4: 2011-03-31 | AF4: 2012-03-31 | AG4: 2013-03-31 | AH4: 2014-03-31 | AI4: 2015-03-31 | AJ4: 2016-03-31 | AK4: 2017-03-31 | AL4: 2018-03-31 | AM4: 2019-03-31 | AN4: 2020-03-31 | AO4: 2021-03-31 | AP4: 2022-03-31 | AQ4: 2023-03-31 | AR4: 2024-03-31 | AS4: 2025-03-31 | AT4: 2026-03-31 | AU4: 2027-03-31 | AV4: 2028-03-31 | AW4: 2029-03-31 | AX4: 2030-03-31 | AY4: =EOMONTH(AX4,12) -> 2031-03-31
AP5: 2 | AQ5: 2 | AR5: 2 | AS5: 2 | AT5: 2 | AU5: 3 | AV5: 3 | AW5: 3 | AX5: 3 | AY5: 3
B7: Scenario definition
E9: Scenario number | AP9: 1 | AQ9: =AP9+1 -> 2 | AR9: =AQ9+1 -> 3 | AS9: 4 | AT9: 5 | AU9: 6 | AV9: 7 | AW9: 8 | AX9: 9 | AY9: 10 | AZ9: =AY9+1 -> 11 | BA9: 12 | BB9: 13 | BC9: 14 | BD9: 15 | BE9: 16 | BF9: =BE9+1 -> 17 | BG9: 18 | BH9: 19 | BI9: =BH9+1 -> 20 | BJ9: =BI9+1 -> 21 | BK9: =BJ9+1 -> 22 | BL9: =BK9+1 -> 23 | BM9: =BL9+1 -> 24 | BN9: =BM9+1 -> 25 | BO9: =BN9+1 -> 26 | BP9: =BO9+1 -> 27 | BQ9: =BP9+1 -> 28 | BR9: =BQ9+1 -> 29 | BS9: =BR9+1 -> 30 | BT9: =BS9+1 -> 31 | BU9: =BT9+1 -> 32 | BV9: =BU9+1 -> 33 | BW9: =BV9+1 -> 34 | BX9: 35
E10: Scenario name | AP10: Base case | AQ10: High interest rate | AR10: Low interest rate | AS10: High inflation | AT10: Low inflation | AU10: High CPIH inflation divergence | AV10: Low CPIH inflation divergence | AW10: High RPI inflation divergence | AX10: Low RPI inflation divergence | AY10: Totex outperformance | AZ10: Totex underperformance | BA10: High RoRE | BB10: Low RoRE | BC10: High index-linked debt | BD10: Low index-linked debt | BE10: Financeability example: BPDT | BF10: Financeability example: % dividend | BG10: Financeability example: cash flow dividend | BH10: Financeability example: User defined | BI10: Option 1 off | BJ10: Option 1 off + status quo depreciation | BK10: High totex + RoRE -2% | BL10: High totex + overspend | BM10: High totex + Low CPIH | BN10: Scenario 25 | BO10: Scenario 26 | BP10: Scenario 27 | BQ10: Scenario 28 | BR10: Scenario 29 | BS10: Scenario 30 | BT10: Scenario 31 | BU10: Scenario 32 | BV10: Scenario 33 | BW10: Scenario 34 | BX10: Scenario 35
C12: Notional modelling
D13: Input data selection
E14: Price base year (2024 for RIIO3, 2019 for RIIO2) | F14: =INDEX(AP14:BX14,,m_scenario) -> 2024 | G14: ="£m "&F14-2001&"/"&F14-2000&" prices" -> £m 23/24 prices | AP14: 2024 | AQ14: 2024 | AR14: 2024 | AS14: 2024 | AT14: 2024 | AU14: 2024 | AV14: 2024 | AW14: 2024 | AX14: 2024 | AY14: 2024 | AZ14: 2024 | BA14: 2024 | BB14: 2024 | BC14: 2024 | BD14: 2024 | BI14: 2024 | BJ14: 2024 | BK14: 2024 | BL14: 2024 | BM14: 2024
D16: Totex, TIM and capitalisation
E17: User multiplier for allowed totex | F17: =INDEX(AP17:BX17,,m_scenario) -> 1 | AP17: 1 | AQ17: 1 | AR17: 1 | AS17: 1 | AT17: 1 | AU17: 1 | AV17: 1 | AW17: 1 | AX17: 1 | AY17: 1 | AZ17: 1 | BA17: 1 | BB17: 1 | BC17: 1 | BD17: 1 | BI17: 1 | BJ17: 1 | BK17: 1.1 | BL17: 1.1 | BM17: 1.1
E18: User multiplier for actual totex (applied on top of allowed totex) | F18: =INDEX(AP18:BX18,,m_scenario) -> 1 | AP18: 1 | AQ18: 1 | AR18: 1 | AS18: 1 | AT18: 1 | AU18: 1 | AV18: 1 | AW18: 1 | AX18: 1 | AY18: 0.9 | AZ18: 1.1 | BA18: 1 | BB18: 1 | BC18: 1 | BD18: 1 | BI18: 1 | BJ18: 1 | BK18: 1 | BL18: 1.1 | BM18: 1
E19: TIM incentive rate | F19: =INDEX(AP19:BX19,,m_scenario) -> 0.5 | AP19: 0.5 | AQ19: 0.5 | AR19: 0.5 | AS19: 0.5 | AT19: 0.5 | AU19: 0.5 | AV19: 0.5 | AW19: 0.5 | AX19: 0.5 | AY19: 0.5 | AZ19: 0.5 | BA19: 0.5 | BB19: 0.5 | BC19: 0.5 | BD19: 0.5 | BI19: 0.5 | BJ19: 0.5 | BK19: 0.5 | BL19: 0.5 | BM19: 0.5
E20: RIIO-3 cap rates: Scenarios or Licensee inputs, or Natural? | F20: =INDEX(AP20:BX20,,m_scenario) -> Licensee inputs | AP20: Licensee inputs | AQ20: Licensee inputs | AR20: Licensee inputs | AS20: Licensee inputs | AT20: Licensee inputs | AU20: Licensee inputs | AV20: Licensee inputs | AW20: Licensee inputs | AX20: Licensee inputs | AY20: Licensee inputs | AZ20: Licensee inputs | BA20: Licensee inputs | BB20: Licensee inputs | BC20: Licensee inputs | BD20: Licensee inputs | BI20: Licensee inputs | BJ20: Licensee inputs | BK20: Licensee inputs | BL20: Licensee inputs | BM20: Licensee inputs
E21: If Scenarios, Bucket 1 cap rate | F21: =INDEX(AP21:BX21,,m_scenario) -> 0.2920853245 | AP21: =AVERAGE(TIM!$AU$143:$AY$143) -> 0.2920853245 | AQ21: =AVERAGE(TIM!$AU$143:$AY$143) -> 0.2920853245 | AR21: =AVERAGE(TIM!$AU$143:$AY$143) -> 0.2920853245 | AS21: =AVERAGE(TIM!$AU$143:$AY$143) -> 0.2920853245 | AT21: =AVERAGE(TIM!$AU$143:$AY$143) -> 0.2920853245 | AU21: =AVERAGE(TIM!$AU$143:$AY$143) -> 0.2920853245 | AV21: =AVERAGE(TIM!$AU$143:$AY$143) -> 0.2920853245 | AW21: =AVERAGE(TIM!$AU$143:$AY$143) -> 0.2920853245 | AX21: =AVERAGE(TIM!$AU$143:$AY$143) -> 0.2920853245 | AY21: =AVERAGE(TIM!$AU$143:$AY$143) -> 0.2920853245 | AZ21: =AVERAGE(TIM!$AU$143:$AY$143) -> 0.2920853245 | BA21: =AVERAGE(TIM!$AU$143:$AY$143) -> 0.2920853245 | BB21: =AVERAGE(TIM!$AU$143:$AY$143) -> 0.2920853245 | BC21: =AVERAGE(TIM!$AU$143:$AY$143) -> 0.2920853245 | BD21: =AVERAGE(TIM!$AU$143:$AY$143) -> 0.2920853245 | BI21: =AVERAGE(TIM!$AU$143:$AY$143) -> 0.2920853245 | BJ21: =AVERAGE(TIM!$AU$143:$AY$143) -> 0.2920853245 | BK21: =AVERAGE(TIM!$AU$143:$AY$143) -> 0.2920853245 | BL21: =AVERAGE(TIM!$AU$143:$AY$143) -> 0.2920853245 | BM21: =AVERAGE(TIM!$AU$143:$AY$143) -> 0.2920853245
E22: If Scenarios, Bucket 2 cap rate | F22: =INDEX(AP22:BX22,,m_scenario) -> 0.7 | AP22: 0.7 | AQ22: 0.7 | AR22: 0.7 | AS22: 0.7 | AT22: 0.7 | AU22: 0.7 | AV22: 0.7 | AW22: 0.7 | AX22: 0.7 | AY22: 0.7 | AZ22: 0.7 | BA22: 0.7 | BB22: 0.7 | BC22: 0.7 | BD22: 0.7 | BI22: 0.7 | BJ22: 0.7 | BK22: 0.7 | BL22: 0.7 | BM22: 0.7
E23: If Scenarios, Repex cap rate | F23: =INDEX(AP23:BX23,,m_scenario) -> 1 | AP23: 1 | AQ23: 1 | AR23: 1 | AS23: 1 | AT23: 1 | AU23: 1 | AV23: 1 | AW23: 1 | AX23: 1 | AY23: 1 | AZ23: 1 | BA23: 1 | BB23: 1 | BC23: 1 | BD23: 1 | BI23: 1 | BJ23: 1 | BK23: 1 | BL23: 1 | BM23: 1
D25: Depreciation
E26: Pre- and post-vesting acceleration factor option | F26: =INDEX(AP26:BX26,,m_scenario) -> Base case | AP26: Base case | AQ26: Base case | AR26: Base case | AS26: Base case | AT26: Base case | AU26: Base case | AV26: Base case | AW26: Base case | AX26: Base case | AY26: Base case | AZ26: Base case | BA26: Base case | BB26: Base case | BC26: Base case | BD26: Base case | BI26: Base case | BJ26: Base case | BK26: Base case | BL26: Base case | BM26: Base case
E27: RIIO-3 treatment: asset life input or custom profile? | F27: =INDEX(AP27:BX27,,m_scenario) -> Asset life input | AP27: Asset life input | AQ27: Asset life input | AR27: Asset life input | AS27: Asset life input | AT27: Asset life input | AU27: Asset life input | AV27: Asset life input | AW27: Asset life input | AX27: Asset life input | AY27: Asset life input | AZ27: Asset life input | BA27: Asset life input | BB27: Asset life input | BC27: Asset life input | BD27: Asset life input | BI27: Asset life input | BJ27: Asset life input | BK27: Asset life input | BL27: Asset life input | BM27: Asset life input
E28: If asset life input: Sum of Digits or Straight Line? | F28: =INDEX(AP28:BX28,,m_scenario) -> Sum of Digits | AP28: Sum of Digits | AQ28: Sum of Digits | AR28: Sum of Digits | AS28: Sum of Digits | AT28: Sum of Digits | AU28: Sum of Digits | AV28: Sum of Digits | AW28: Sum of Digits | AX28: Sum of Digits | AY28: Sum of Digits | AZ28: Sum of Digits | BA28: Sum of Digits | BB28: Sum of Digits | BC28: Sum of Digits | BD28: Sum of Digits | BI28: Sum of Digits | BJ28: Sum of Digits | BK28: Sum of Digits | BL28: Sum of Digits | BM28: Sum of Digits
E29: If asset life input: base case or terminate? | F29: =INDEX(AP29:BX29,,m_scenario) -> Terminate | AP29: Terminate | AQ29: Terminate | AR29: Terminate | AS29: Terminate | AT29: Terminate | AU29: Terminate | AV29: Terminate | AW29: Terminate | AX29: Terminate | AY29: Terminate | AZ29: Terminate | BA29: Terminate | BB29: Terminate | BC29: Terminate | BD29: Terminate | BI29: Terminate | BJ29: Base case | BK29: Terminate | BL29: Terminate | BM29: Terminate
E30: If base case, RIIO-3 additions asset life | F30: =INDEX(AP30:BX30,,m_scenario) -> 45 | AP30: 45 | AQ30: 45 | AR30: 45 | AS30: 45 | AT30: 45 | AU30: 45 | AV30: 45 | AW30: 45 | AX30: 45 | AY30: 45 | AZ30: 45 | BA30: 45 | BB30: 45 | BC30: 45 | BD30: 45 | BI30: 45 | BJ30: 45 | BK30: 45 | BL30: 45 | BM30: 45
E31: If terminate, input year of final depreciation | F31: =INDEX(AP31:BX31,,m_scenario) -> 2050 | G31: =IF(F29="Terminate", "Active", "Inactive") -> Active | AP31: 2050 | AQ31: 2050 | AR31: 2050 | AS31: 2050 | AT31: 2050 | AU31: 2050 | AV31: 2050 | AW31: 2050 | AX31: 2050 | AY31: 2050 | AZ31: 2050 | BA31: 2050 | BB31: 2050 | BC31: 2050 | BD31: 2050 | BI31: 2050 | BJ31: 2050 | BK31: 2050 | BL31: 2050 | BM31: 2050
E32: Post-vesting treatment: status quo, accelerate or terminate? | F32: =INDEX(AP32:BX32,,m_scenario) -> Status quo | AP32: Status quo | AQ32: Status quo | AR32: Status quo | AS32: Status quo | AT32: Status quo | AU32: Status quo | AV32: Status quo | AW32: Status quo | AX32: Status quo | AY32: Status quo | AZ32: Status quo | BA32: Status quo | BB32: Status quo | BC32: Status quo | BD32: Status quo | BI32: Status quo | BJ32: Status quo | BK32: Status quo | BL32: Status quo | BM32: Status quo
E33: If accelerate, pre-RIIO-3 additions accelerated asset life | F33: =INDEX(AP33:BX33,,m_scenario) -> 45 | G33: =IF(F32="Status quo", "Inactive", "Active") -> Inactive | AP33: 45 | AQ33: 45 | AR33: 45 | AS33: 45 | AT33: 45 | AU33: 45 | AV33: 45 | AW33: 45 | AX33: 45 | AY33: 45 | AZ33: 45 | BA33: 45 | BB33: 45 | BC33: 45 | BD33: 45 | BI33: 45 | BJ33: 45 | BK33: 45 | BL33: 45 | BM33: 45
E34: If terminate, input year of final depreciation | F34: =INDEX(AP34:BX34,,m_scenario) -> 2060 | G34: =IF(F32="Terminate", "Active", "Inactive") -> Inactive | AP34: 2060 | AQ34: 2060 | AR34: 2060 | AS34: 2060 | AT34: 2060 | AU34: 2060 | AV34: 2060 | AW34: 2060 | AX34: 2060 | AY34: 2060 | AZ34: 2060 | BA34: 2060 | BB34: 2060 | BC34: 2060 | BD34: 2060 | BI34: 2060 | BJ34: 2060 | BK34: 2060 | BL34: 2060 | BM34: 2060
E35: Pre-vesting treatment: status quo or terminate? | F35: =INDEX(AP35:BX35,,m_scenario) -> Status quo | AP35: Status quo | AQ35: Status quo | AR35: Status quo | AS35: Status quo | AT35: Status quo | AU35: Status quo | AV35: Status quo | AW35: Status quo | AX35: Status quo | AY35: Status quo | AZ35: Status quo | BA35: Status quo | BB35: Status quo | BC35: Status quo | BD35: Status quo | BI35: Status quo | BJ35: Status quo | BK35: Status quo | BL35: Status quo | BM35: Status quo
E36: If terminate, input year of final depreciation | F36: =INDEX(AP36:BX36,,m_scenario) -> 2060 | G36: =IF(F35="Status quo", "Inactive", "Active") -> Inactive | AP36: 2060 | AQ36: 2060 | AR36: 2060 | AS36: 2060 | AT36: 2060 | AU36: 2060 | AV36: 2060 | AW36: 2060 | AX36: 2060 | AY36: 2060 | AZ36: 2060 | BA36: 2060 | BB36: 2060 | BC36: 2060 | BD36: 2060 | BI36: 2060 | BJ36: 2060 | BK36: 2060 | BL36: 2060 | BM36: 2060
D38: Allowed Cost of capital
E39: Allowed cost of Debt input: scenario input or Licensee inputs? | F39: =INDEX(AP39:BX39,,m_scenario) -> Licensee inputs | AP39: Licensee inputs | AQ39: Scenario input | AR39: Scenario input | AS39: Licensee inputs | AT39: Licensee inputs | AU39: Licensee inputs | AV39: Licensee inputs | AW39: Licensee inputs | AX39: Licensee inputs | AY39: Licensee inputs | AZ39: Licensee inputs | BA39: Licensee inputs | BB39: Licensee inputs | BC39: Licensee inputs | BD39: Licensee inputs | BI39: Licensee inputs | BJ39: Licensee inputs | BK39: Licensee inputs | BL39: Licensee inputs | BM39: Licensee inputs
E40: If scenario input, CoD figures to use | F40: =INDEX(AP40:BX40,,m_scenario) -> Base | AP40: Base | AQ40: High (+2%) | AR40: Low (-2%) | AS40: Base | AT40: Base | AU40: Base | AV40: Base | AW40: Base | AX40: Base | AY40: Base | AZ40: Base | BA40: Base | BB40: Base | BC40: Base | BD40: Base | BI40: Base | BJ40: Base | BK40: Base | BL40: Base | BM40: Base
E41: Allowed cost of Equity input: scenario input or Licensee inputs? | F41: =INDEX(AP41:BX41,,m_scenario) -> Licensee inputs | AP41: Licensee inputs | AQ41: Scenario input | AR41: Scenario input | AS41: Licensee inputs | AT41: Licensee inputs | AU41: Licensee inputs | AV41: Licensee inputs | AW41: Licensee inputs | AX41: Licensee inputs | AY41: Licensee inputs | AZ41: Licensee inputs | BA41: Licensee inputs | BB41: Licensee inputs | BC41: Licensee inputs | BD41: Licensee inputs | BI41: Licensee inputs | BJ41: Licensee inputs | BK41: Licensee inputs | BL41: Licensee inputs | BM41: Licensee inputs
E42: If scenario input, CoE figures to use | F42: =INDEX(AP42:BX42,,m_scenario) -> Base | AP42: Base | AQ42: High (+2%) | AR42: Low (-2%) | AS42: Base | AT42: Base | AU42: Base | AV42: Base | AW42: Base | AX42: Base | AY42: Base | AZ42: Base | BA42: Base | BB42: Base | BC42: Base | BD42: Base | BI42: Base | BJ42: Base | BK42: Base | BL42: Base | BM42: Base
E43: Notional gearing | F43: =INDEX(AP43:BX43,,m_scenario) -> 0.6 | AP43: 0.6 | AQ43: 0.6 | AR43: 0.6 | AS43: 0.6 | AT43: 0.6 | AU43: 0.6 | AV43: 0.6 | AW43: 0.6 | AX43: 0.6 | AY43: 0.6 | AZ43: 0.6 | BA43: 0.6 | BB43: 0.6 | BC43: 0.6 | BD43: 0.6 | BI43: 0.6 | BJ43: 0.6 | BK43: 0.6 | BL43: 0.6 | BM43: 0.6
D45: Finance
E46: Forecast near-term RPI debt inflation | F46: =INDEX(AP46:BX46,,m_scenario) -> Mar'25 OBR (financial year) | AP46: Mar'25 OBR (financial year) | AQ46: Mar'25 OBR (financial year) | AR46: Mar'25 OBR (financial year) | AS46: High additional increment (FY) | AT46: High additional increment (FY) | AU46: Mar'25 OBR (financial year) | AV46: Mar'25 OBR (financial year) | AW46: High diverg +0.5% additional increment (FY) | AX46: Low diverg -0.5% additional increment (FY) | AY46: Mar'25 OBR (financial year) | AZ46: Mar'25 OBR (financial year) | BA46: Mar'25 OBR (financial year) | BB46: Mar'25 OBR (financial year) | BC46: Mar'25 OBR (financial year) | BD46: Mar'25 OBR (financial year) | BI46: Mar'25 OBR (financial year) | BJ46: Mar'25 OBR (financial year) | BK46: Mar'25 OBR (financial year) | BL46: Mar'25 OBR (financial year) | BM46: Mar'25 OBR (financial year)
E47: Forecast near-term CPIH debt inflation | F47: =INDEX(AP47:BX47,,m_scenario) -> Mar'25 OBR (financial year) | AP47: Mar'25 OBR (financial year) | AQ47: Mar'25 OBR (financial year) | AR47: Mar'25 OBR (financial year) | AS47: High additional increment (FY) | AT47: Low additional increment (FY) | AU47: High diverg -0.5% additional increment (FY) | AV47: Low diverg +0.5% additional increment (FY) | AW47: Mar'25 OBR (financial year) | AX47: Mar'25 OBR (financial year) | AY47: Mar'25 OBR (financial year) | AZ47: Mar'25 OBR (financial year) | BA47: Mar'25 OBR (financial year) | BB47: Mar'25 OBR (financial year) | BC47: Mar'25 OBR (financial year) | BD47: Mar'25 OBR (financial year) | BI47: Mar'25 OBR (financial year) | BJ47: Mar'25 OBR (financial year) | BK47: Mar'25 OBR (financial year) | BL47: Mar'25 OBR (financial year) | BM47: Mar'25 OBR (financial year)
E48: Minimum equity issuance threshold | F48: =INDEX(AP48:BX48,,m_scenario) -> Zero | AP48: Zero | AQ48: Zero | AR48: Zero | AS48: Zero | AT48: Zero | AU48: Zero | AV48: Zero | AW48: Zero | AX48: Zero | AY48: Zero | AZ48: Zero | BA48: Zero | BB48: Zero | BC48: Zero | BD48: Zero | BI48: Zero | BJ48: Zero | BK48: Zero | BL48: Zero | BM48: Zero
E49: Equity issuance costs | F49: =INDEX(AP49:BX49,,m_scenario) -> 0.05 | AP49: 0.05 | AQ49: 0.05 | AR49: 0.05 | AS49: 0.05 | AT49: 0.05 | AU49: 0.05 | AV49: 0.05 | AW49: 0.05 | AX49: 0.05 | AY49: 0.05 | AZ49: 0.05 | BA49: 0.05 | BB49: 0.05 | BC49: 0.05 | BD49: 0.05 | BI49: 0.05 | BJ49: 0.05 | BK49: 0.05 | BL49: 0.05 | BM49: 0.05
E50: Assumed dividends as % of equity | F50: =INDEX(AP50:BX50,,m_scenario) -> 0.03 | AP50: 0.03 | AQ50: 0.03 | AR50: 0.03 | AS50: 0.03 | AT50: 0.03 | AU50: 0.03 | AV50: 0.03 | AW50: 0.03 | AX50: 0.03 | AY50: 0.03 | AZ50: 0.03 | BA50: 0.03 | BB50: 0.03 | BC50: 0.03 | BD50: 0.03 | BI50: 0.03 | BJ50: 0.03 | BK50: 0.03 | BL50: 0.03 | BM50: 0.03
E51: Assumed return of capital as % of equity | F51: =INDEX(AP51:BX51,,m_scenario) -> Off | AP51: Off | AQ51: Off | AR51: Off | AS51: Off | AT51: Off | AU51: Off | AV51: Off | AW51: Off | AX51: Off | AY51: Off | AZ51: Off | BA51: Off | BB51: Off | BC51: Off | BD51: Off | BI51: Off | BJ51: Off | BK51: Off | BL51: Off | BM51: Off
E52: Equity issuance gearing target | F52: =INDEX(AP52:BX52,,m_scenario) -> 0.6 | AP52: 0.6 | AQ52: 0.6 | AR52: 0.6 | AS52: 0.6 | AT52: 0.6 | AU52: 0.6 | AV52: 0.6 | AW52: 0.6 | AX52: 0.6 | AY52: 0.6 | AZ52: 0.6 | BA52: 0.6 | BB52: 0.6 | BC52: 0.6 | BD52: 0.6 | BI52: 0.6 | BJ52: 0.6 | BK52: 0.6 | BL52: 0.6 | BM52: 0.6
E53: CPIH index-linked debt as a percentage of net debt | F53: =INDEX(AP53:BX53,,m_scenario) -> 0.3 | AP53: 0.3 | AQ53: 0.3 | AR53: 0.3 | AS53: 0.3 | AT53: 0.3 | AU53: 0.3 | AV53: 0.3 | AW53: 0.3 | AX53: 0.3 | AY53: 0.3 | AZ53: 0.3 | BA53: 0.3 | BB53: 0.3 | BC53: 0.4 | BD53: 0.2 | BI53: 0.3 | BJ53: 0.3 | BK53: 0.3 | BL53: 0.3 | BM53: 0.3
E54: Annual interest rate inputs for actual debt | F54: =INDEX(AP54:BX54,,m_scenario) -> Base case | AP54: Base case | AQ54: High case (+2%) | AR54: Low case (-2%) | AS54: Base case | AT54: Base case | AU54: Base case | AV54: Base case | AW54: Base case | AX54: Base case | AY54: Base case | AZ54: Base case | BA54: Base case | BB54: Base case | BC54: Base case | BD54: Base case | BI54: Base case | BJ54: Base case | BK54: Base case | BL54: Base case | BM54: Base case
E55: SSMD cost of debt inflation approach | F55: =INDEX(AP55:BX55,,m_scenario) -> Option 1 | AP55: Option 1 | AQ55: Option 1 | AR55: Option 1 | AS55: Option 1 | AT55: Option 1 | AU55: Option 1 | AV55: Option 1 | AW55: Option 1 | AX55: Option 1 | AY55: Option 1 | AZ55: Option 1 | BA55: Option 1 | BB55: Option 1 | BC55: Option 1 | BD55: Option 1 | BI55: Status quo | BJ55: Status quo | BK55: Option 1 | BL55: Option 1 | BM55: Option 1
E56: RPE Enabled? | F56: =INDEX(AP56:BX56,,m_scenario) -> TRUE | AP56: TRUE | AQ56: TRUE | AR56: TRUE | AS56: TRUE | AT56: TRUE | AU56: TRUE | AV56: TRUE | AW56: TRUE | AX56: TRUE | AY56: TRUE | AZ56: TRUE | BA56: TRUE | BB56: TRUE | BC56: TRUE | BD56: TRUE | BI56: TRUE | BJ56: TRUE | BK56: TRUE | BL56: TRUE | BM56: TRUE
E57: Equity issuance timing | F57: =INDEX(AP57:BX57,,m_scenario) -> Late | AP57: Late | AQ57: Late | AR57: Late | AS57: Late | AT57: Late | AU57: Late | AV57: Late | AW57: Late | AX57: Late | AY57: Late | AZ57: Late | BA57: Late | BB57: Late | BC57: Late | BD57: Late | BI57: Late | BJ57: Late | BK57: Late | BL57: Late | BM57: Late
E58: Constant gearing dividends | F58: =INDEX(AP58:BX58,,m_scenario) -> TRUE | AP58: TRUE | AQ58: TRUE | AR58: TRUE | AS58: TRUE | AT58: TRUE | AU58: TRUE | AV58: TRUE | AW58: TRUE | AX58: TRUE | AY58: TRUE | AZ58: TRUE | BA58: TRUE | BB58: TRUE | BC58: TRUE | BD58: TRUE | BI58: TRUE | BJ58: TRUE | BK58: TRUE | BL58: TRUE | BM58: TRUE
E59: Net off debt headroom from notional interest (delete to switch off) | F59: =INDEX(AP59:BX59,,m_scenario) -> 0
E60: Apply revenue profiling adjustments for revenues or financeability | F60: =INDEX(AP60:BX60,,m_scenario) -> Revenues | AP60: Revenues | AQ60: Off | AR60: Off | AS60: Off | AT60: Off | AU60: Off | AV60: Off | AW60: Off | AX60: Off | AY60: Off | AZ60: Off | BA60: Off | BB60: Off | BC60: Off | BD60: Off | BI60: Off | BJ60: Off | BK60: Off | BL60: Off | BM60: Off
D61: Tax
E62: Corporation tax rate | F62: =INDEX(AP62:BX62,,m_scenario) -> 0.25 | AP62: 0.25 | AQ62: 0.25 | AR62: 0.25 | AS62: 0.25 | AT62: 0.25 | AU62: 0.25 | AV62: 0.25 | AW62: 0.25 | AX62: 0.25 | AY62: 0.25 | AZ62: 0.25 | BA62: 0.25 | BB62: 0.25 | BC62: 0.25 | BD62: 0.25 | BI62: 0.25 | BJ62: 0.25 | BK62: 0.25 | BL62: 0.25 | BM62: 0.25
... 61 more rows

Sheet Extension
A1: Extension Dashboard
B2: Disclaimer: The calculations for RIIO4 and beyond are intended solely for analytical purposes. Ofgem provides no assurance of the extended model outputs.
B3: Extension
G4: Note: Please wait 30 mins after clicking the "Run RIIO Extension to New Workbook" button
C5: End Period
C6: End Year | D6: =INDEX(RIIO_End_Period,MATCH(UserInterface!$G$24,RIIO,0)) -> 2056-03-31
B9: Totex Declining Factor
C11: Scenario Model | E11: RIIO3
C13: Totex Profile | E13: Base
C15: Increase/Decrease value | E15: -0.05
C16: End Year for steady decline | E16: 2028
B22: RAV Chart
B47: Source for drop-down lists
C49: Source for "Extension Year" drop-down list | H49: Source for "Scenario RIIO Selection" drop-down list
D51: 2036-03-31 | E51: RIIO4 | I51: ScenarioModel | J51: =INDEX(J52:J53,MATCH(E11,ModelRIIO,0)) -> 3
D52: 2041-03-31 | E52: RIIO5 | I52: RIIO3 | J52: 3
D53: 2046-03-31 | E53: RIIO6 | I53: RIIO4 | J53: 4
D54: 2051-03-31 | E54: RIIO7
D55: 2056-03-31 | E55: RIIO8
D56: 2061-03-31 | E56: RIIO9
D57: 2066-03-31 | E57: RIIO10
D58: 2071-03-31 | E58: RIIO11
D59: 2076-03-31 | E59: RIIO12
D60: 2081-03-31 | E60: RIIO13 | H60: Source for "Totex Profile" drop-down list
I61: Totex Profile | K61: =INDEX(K62:K64,MATCH(E13,I62:I64,0)) -> 1
I62: Base | K62: 1
C63: Year Calculation | I63: Increase/Decrease | K63: 2
D64: No. of Years | F64: =YEAR(D6)-2031 -> 25 | I64: Steady Decline | K64: 3

Sheet InputSummary
A1: Input
B2: =UserInterface!G17 -> East
E3: Parameter | F3: Licence condition | G3: Units | H3: Term | I3: Constant | AP3: Annual values
E4: PCFM year ending | F4: =Cover!C4 -> Model Version | I4: =UserInterface!$G$10 -> 2025-03-31 | K4: 1991-03-31 | L4: 1992-03-31 | M4: 1993-03-31 | N4: 1994-03-31 | O4: 1995-03-31 | P4: 1996-03-31 | Q4: 1997-03-31 | R4: 1998-03-31 | S4: 1999-03-31 | T4: 2000-03-31 | U4: 2001-03-31 | V4: 2002-03-31 | W4: 2003-03-31 | X4: 2004-03-31 | Y4: 2005-03-31 | Z4: 2006-03-31 | AA4: 2007-03-31 | AB4: 2008-03-31 | AC4: 2009-03-31 | AD4: 2010-03-31 | AE4: 2011-03-31 | AF4: 2012-03-31 | AG4: 2013-03-31 | AH4: 2014-03-31 | AI4: 2015-03-31 | AJ4: 2016-03-31 | AK4: 2017-03-31 | AL4: 2018-03-31 | AM4: 2019-03-31 | AN4: 2020-03-31 | AO4: 2021-03-31 | AP4: 2022-03-31 | AQ4: 2023-03-31 | AR4: 2024-03-31 | AS4: 2025-03-31 | AT4: 2026-03-31 | AU4: 2027-03-31 | AV4: 2028-03-31 | AW4: 2029-03-31 | AX4: 2030-03-31 | AY4: =EOMONTH(AX4,12) -> 2031-03-31
AP5: 2 | AQ5: 2 | AR5: 2 | AS5: 2 | AT5: 2 | AU5: 3 | AV5: 3 | AW5: 3 | AX5: 3 | AY5: 3
A7: RIIO3 inputs: BPDT mirror table (£m23/24 price base)
B9: Totex allowance
C11: Non-variant allowances
E13: Non-variant allowed load related capex | G13: £m 23/24 prices | AU13: =CHOOSE(m_identity, Cadent!AU13, East!AU13, London!AU13, 'North West'!AU13, 'West Midlands'!AU13, Northern!AU13, Scotland!AU13, Southern!AU13, 'Wales & West'!AU13) -> 10.77767459 | AV13: =CHOOSE(m_identity, Cadent!AV13, East!AV13, London!AV13, 'North West'!AV13, 'West Midlands'!AV13, Northern!AV13, Scotland!AV13, Southern!AV13, 'Wales & West'!AV13) -> 9.732492795 | AW13: =CHOOSE(m_identity, Cadent!AW13, East!AW13, London!AW13, 'North West'!AW13, 'West Midlands'!AW13, Northern!AW13, Scotland!AW13, Southern!AW13, 'Wales & West'!AW13) -> 8.563437873 | AX13: =CHOOSE(m_identity, Cadent!AX13, East!AX13, London!AX13, 'North West'!AX13, 'West Midlands'!AX13, Northern!AX13, Scotland!AX13, Southern!AX13, 'Wales & West'!AX13) -> 8.393738132 | AY13: =CHOOSE(m_identity, Cadent!AY13, East!AY13, London!AY13, 'North West'!AY13, 'West Midlands'!AY13, Northern!AY13, Scotland!AY13, Southern!AY13, 'Wales & West'!AY13) -> 7.713588011
E14: Non-variant allowed non-load related capex - other | G14: £m 23/24 prices | AU14: =CHOOSE(m_identity, Cadent!AU14, East!AU14, London!AU14, 'North West'!AU14, 'West Midlands'!AU14, Northern!AU14, Scotland!AU14, Southern!AU14, 'Wales & West'!AU14) -> 83.15202287 | AV14: =CHOOSE(m_identity, Cadent!AV14, East!AV14, London!AV14, 'North West'!AV14, 'West Midlands'!AV14, Northern!AV14, Scotland!AV14, Southern!AV14, 'Wales & West'!AV14) -> 58.06858426 | AW14: =CHOOSE(m_identity, Cadent!AW14, East!AW14, London!AW14, 'North West'!AW14, 'West Midlands'!AW14, Northern!AW14, Scotland!AW14, Southern!AW14, 'Wales & West'!AW14) -> 50.75997649 | AX14: =CHOOSE(m_identity, Cadent!AX14, East!AX14, London!AX14, 'North West'!AX14, 'West Midlands'!AX14, Northern!AX14, Scotland!AX14, Southern!AX14, 'Wales & West'!AX14) -> 50.11144014 | AY14: =CHOOSE(m_identity, Cadent!AY14, East!AY14, London!AY14, 'North West'!AY14, 'West Midlands'!AY14, Northern!AY14, Scotland!AY14, Southern!AY14, 'Wales & West'!AY14) -> 36.41554123
E15: Non-variant allowed business support (opex) | G15: £m 23/24 prices | AU15: =CHOOSE(m_identity, Cadent!AU15, East!AU15, London!AU15, 'North West'!AU15, 'West Midlands'!AU15, Northern!AU15, Scotland!AU15, Southern!AU15, 'Wales & West'!AU15) -> 48.91160552 | AV15: =CHOOSE(m_identity, Cadent!AV15, East!AV15, London!AV15, 'North West'!AV15, 'West Midlands'!AV15, Northern!AV15, Scotland!AV15, Southern!AV15, 'Wales & West'!AV15) -> 46.16387148 | AW15: =CHOOSE(m_identity, Cadent!AW15, East!AW15, London!AW15, 'North West'!AW15, 'West Midlands'!AW15, Northern!AW15, Scotland!AW15, Southern!AW15, 'Wales & West'!AW15) -> 50.36071669 | AX15: =CHOOSE(m_identity, Cadent!AX15, East!AX15, London!AX15, 'North West'!AX15, 'West Midlands'!AX15, Northern!AX15, Scotland!AX15, Southern!AX15, 'Wales & West'!AX15) -> 50.01482636 | AY15: =CHOOSE(m_identity, Cadent!AY15, East!AY15, London!AY15, 'North West'!AY15, 'West Midlands'!AY15, Northern!AY15, Scotland!AY15, Southern!AY15, 'Wales & West'!AY15) -> 49.63078878
E16: Non-variant allowed directs opex | G16: £m 23/24 prices | AU16: =CHOOSE(m_identity, Cadent!AU16, East!AU16, London!AU16, 'North West'!AU16, 'West Midlands'!AU16, Northern!AU16, Scotland!AU16, Southern!AU16, 'Wales & West'!AU16) -> 144.2241657 | AV16: =CHOOSE(m_identity, Cadent!AV16, East!AV16, London!AV16, 'North West'!AV16, 'West Midlands'!AV16, Northern!AV16, Scotland!AV16, Southern!AV16, 'Wales & West'!AV16) -> 146.7608439 | AW16: =CHOOSE(m_identity, Cadent!AW16, East!AW16, London!AW16, 'North West'!AW16, 'West Midlands'!AW16, Northern!AW16, Scotland!AW16, Southern!AW16, 'Wales & West'!AW16) -> 140.9546687 | AX16: =CHOOSE(m_identity, Cadent!AX16, East!AX16, London!AX16, 'North West'!AX16, 'West Midlands'!AX16, Northern!AX16, Scotland!AX16, Southern!AX16, 'Wales & West'!AX16) -> 137.7957353 | AY16: =CHOOSE(m_identity, Cadent!AY16, East!AY16, London!AY16, 'North West'!AY16, 'West Midlands'!AY16, Northern!AY16, Scotland!AY16, Southern!AY16, 'Wales & West'!AY16) -> 137.0020186
E17: Non-variant allowed repex | G17: £m 23/24 prices | AU17: =CHOOSE(m_identity, Cadent!AU17, East!AU17, London!AU17, 'North West'!AU17, 'West Midlands'!AU17, Northern!AU17, Scotland!AU17, Southern!AU17, 'Wales & West'!AU17) -> 1.787639991 | AV17: =CHOOSE(m_identity, Cadent!AV17, East!AV17, London!AV17, 'North West'!AV17, 'West Midlands'!AV17, Northern!AV17, Scotland!AV17, Southern!AV17, 'Wales & West'!AV17) -> 1.502922253 | AW17: =CHOOSE(m_identity, Cadent!AW17, East!AW17, London!AW17, 'North West'!AW17, 'West Midlands'!AW17, Northern!AW17, Scotland!AW17, Southern!AW17, 'Wales & West'!AW17) -> 1.369714769 | AX17: =CHOOSE(m_identity, Cadent!AX17, East!AX17, London!AX17, 'North West'!AX17, 'West Midlands'!AX17, Northern!AX17, Scotland!AX17, Southern!AX17, 'Wales & West'!AX17) -> 1.407958437 | AY17: =CHOOSE(m_identity, Cadent!AY17, East!AY17, London!AY17, 'North West'!AY17, 'West Midlands'!AY17, Northern!AY17, Scotland!AY17, Southern!AY17, 'Wales & West'!AY17) -> 1.213146601
C19: Variant allowances (including Real Price Effects)
C20: Note: RPEs in the table below are calculated for information only. The calculation by totex category is detailed and then aggregated in the "Input" tab.
E22: =CHOOSE(m_identity, Cadent!E22, East!E22, London!E22, 'North West'!E22, 'West Midlands'!E22, Northern!E22, Scotland!E22, Southern!E22, 'Wales & West'!E22) -> Gas Holder demolitions Price Control Deliverable [WWU and NGN only] | F22: SpC 3.25 | G22: £m 23/24 prices | H22: GHRRt | AU22: =CHOOSE(m_identity, Cadent!AU22, East!AU22, London!AU22, 'North West'!AU22, 'West Midlands'!AU22, Northern!AU22, Scotland!AU22, Southern!AU22, 'Wales & West'!AU22) -> 0 | AV22: =CHOOSE(m_identity, Cadent!AV22, East!AV22, London!AV22, 'North West'!AV22, 'West Midlands'!AV22, Northern!AV22, Scotland!AV22, Southern!AV22, 'Wales & West'!AV22) -> 0 | AW22: =CHOOSE(m_identity, Cadent!AW22, East!AW22, London!AW22, 'North West'!AW22, 'West Midlands'!AW22, Northern!AW22, Scotland!AW22, Southern!AW22, 'Wales & West'!AW22) -> 0 | AX22: =CHOOSE(m_identity, Cadent!AX22, East!AX22, London!AX22, 'North West'!AX22, 'West Midlands'!AX22, Northern!AX22, Scotland!AX22, Southern!AX22, 'Wales & West'!AX22) -> 0 | AY22: =CHOOSE(m_identity, Cadent!AY22, East!AY22, London!AY22, 'North West'!AY22, 'West Midlands'!AY22, Northern!AY22, Scotland!AY22, Southern!AY22, 'Wales & West'!AY22) -> 0
E23: =CHOOSE(m_identity, Cadent!E23, East!E23, London!E23, 'North West'!E23, 'West Midlands'!E23, Northern!E23, Scotland!E23, Southern!E23, 'Wales & West'!E23) -> Baseline Network Risk Output | F23: SpC 3.1 | G23: £m 23/24 prices | H23: NARMt | AU23: =CHOOSE(m_identity, Cadent!AU23, East!AU23, London!AU23, 'North West'!AU23, 'West Midlands'!AU23, Northern!AU23, Scotland!AU23, Southern!AU23, 'Wales & West'!AU23) -> 0 | AV23: =CHOOSE(m_identity, Cadent!AV23, East!AV23, London!AV23, 'North West'!AV23, 'West Midlands'!AV23, Northern!AV23, Scotland!AV23, Southern!AV23, 'Wales & West'!AV23) -> 0 | AW23: =CHOOSE(m_identity, Cadent!AW23, East!AW23, London!AW23, 'North West'!AW23, 'West Midlands'!AW23, Northern!AW23, Scotland!AW23, Southern!AW23, 'Wales & West'!AW23) -> 0 | AX23: =CHOOSE(m_identity, Cadent!AX23, East!AX23, London!AX23, 'North West'!AX23, 'West Midlands'!AX23, Northern!AX23, Scotland!AX23, Southern!AX23, 'Wales & West'!AX23) -> 0 | AY23: =CHOOSE(m_identity, Cadent!AY23, East!AY23, London!AY23, 'North West'!AY23, 'West Midlands'!AY23, Northern!AY23, Scotland!AY23, Southern!AY23, 'Wales & West'!AY23) -> 0
E24: =CHOOSE(m_identity, Cadent!E24, East!E24, London!E24, 'North West'!E24, 'West Midlands'!E24, Northern!E24, Scotland!E24, Southern!E24, 'Wales & West'!E24) -> Tier 1 Mains decommissioned Price Control Deliverable | F24: SpC 3.10 | G24: £m 23/24 prices | H24: T1MDt | AU24: =CHOOSE(m_identity, Cadent!AU24, East!AU24, London!AU24, 'North West'!AU24, 'West Midlands'!AU24, Northern!AU24, Scotland!AU24, Southern!AU24, 'Wales & West'!AU24) -> 0 | AV24: =CHOOSE(m_identity, Cadent!AV24, East!AV24, London!AV24, 'North West'!AV24, 'West Midlands'!AV24, Northern!AV24, Scotland!AV24, Southern!AV24, 'Wales & West'!AV24) -> 0 | AW24: =CHOOSE(m_identity, Cadent!AW24, East!AW24, London!AW24, 'North West'!AW24, 'West Midlands'!AW24, Northern!AW24, Scotland!AW24, Southern!AW24, 'Wales & West'!AW24) -> 0 | AX24: =CHOOSE(m_identity, Cadent!AX24, East!AX24, London!AX24, 'North West'!AX24, 'West Midlands'!AX24, Northern!AX24, Scotland!AX24, Southern!AX24, 'Wales & West'!AX24) -> 0 | AY24: =CHOOSE(m_identity, Cadent!AY24, East!AY24, London!AY24, 'North West'!AY24, 'West Midlands'!AY24, Northern!AY24, Scotland!AY24, Southern!AY24, 'Wales & West'!AY24) -> 0
E25: =CHOOSE(m_identity, Cadent!E25, East!E25, London!E25, 'North West'!E25, 'West Midlands'!E25, Northern!E25, Scotland!E25, Southern!E25, 'Wales & West'!E25) -> Tier 1 Services Repex Price Control Deliverable | F25: SpC 3.11 | G25: £m 23/24 prices | H25: T1SRt | AU25: =CHOOSE(m_identity, Cadent!AU25, East!AU25, London!AU25, 'North West'!AU25, 'West Midlands'!AU25, Northern!AU25, Scotland!AU25, Southern!AU25, 'Wales & West'!AU25) -> 0 | AV25: =CHOOSE(m_identity, Cadent!AV25, East!AV25, London!AV25, 'North West'!AV25, 'West Midlands'!AV25, Northern!AV25, Scotland!AV25, Southern!AV25, 'Wales & West'!AV25) -> 0 | AW25: =CHOOSE(m_identity, Cadent!AW25, East!AW25, London!AW25, 'North West'!AW25, 'West Midlands'!AW25, Northern!AW25, Scotland!AW25, Southern!AW25, 'Wales & West'!AW25) -> 0 | AX25: =CHOOSE(m_identity, Cadent!AX25, East!AX25, London!AX25, 'North West'!AX25, 'West Midlands'!AX25, Northern!AX25, Scotland!AX25, Southern!AX25, 'Wales & West'!AX25) -> 0 | AY25: =CHOOSE(m_identity, Cadent!AY25, East!AY25, London!AY25, 'North West'!AY25, 'West Midlands'!AY25, Northern!AY25, Scotland!AY25, Southern!AY25, 'Wales & West'!AY25) -> 0
E26: =CHOOSE(m_identity, Cadent!E26, East!E26, London!E26, 'North West'!E26, 'West Midlands'!E26, Northern!E26, Scotland!E26, Southern!E26, 'Wales & West'!E26) -> Biomethane improved access rollout Price Control Deliverable [SGN only] | F26: SpC 3.30 | G26: £m 23/24 prices | H26: BMIt | AU26: =CHOOSE(m_identity, Cadent!AU26, East!AU26, London!AU26, 'North West'!AU26, 'West Midlands'!AU26, Northern!AU26, Scotland!AU26, Southern!AU26, 'Wales & West'!AU26) -> 0 | AV26: =CHOOSE(m_identity, Cadent!AV26, East!AV26, London!AV26, 'North West'!AV26, 'West Midlands'!AV26, Northern!AV26, Scotland!AV26, Southern!AV26, 'Wales & West'!AV26) -> 0 | AW26: =CHOOSE(m_identity, Cadent!AW26, East!AW26, London!AW26, 'North West'!AW26, 'West Midlands'!AW26, Northern!AW26, Scotland!AW26, Southern!AW26, 'Wales & West'!AW26) -> 0 | AX26: =CHOOSE(m_identity, Cadent!AX26, East!AX26, London!AX26, 'North West'!AX26, 'West Midlands'!AX26, Northern!AX26, Scotland!AX26, Southern!AX26, 'Wales & West'!AX26) -> 0 | AY26: =CHOOSE(m_identity, Cadent!AY26, East!AY26, London!AY26, 'North West'!AY26, 'West Midlands'!AY26, Northern!AY26, Scotland!AY26, Southern!AY26, 'Wales & West'!AY26) -> 0
E27: =CHOOSE(m_identity, Cadent!E27, East!E27, London!E27, 'North West'!E27, 'West Midlands'!E27, Northern!E27, Scotland!E27, Southern!E27, 'Wales & West'!E27) -> Remote pressure management Price Control Deliverable [SGN Southern only] | F27: SpC 3.29 | G27: £m 23/24 prices | H27: RPMt | AU27: =CHOOSE(m_identity, Cadent!AU27, East!AU27, London!AU27, 'North West'!AU27, 'West Midlands'!AU27, Northern!AU27, Scotland!AU27, Southern!AU27, 'Wales & West'!AU27) -> 0 | AV27: =CHOOSE(m_identity, Cadent!AV27, East!AV27, London!AV27, 'North West'!AV27, 'West Midlands'!AV27, Northern!AV27, Scotland!AV27, Southern!AV27, 'Wales & West'!AV27) -> 0 | AW27: =CHOOSE(m_identity, Cadent!AW27, East!AW27, London!AW27, 'North West'!AW27, 'West Midlands'!AW27, Northern!AW27, Scotland!AW27, Southern!AW27, 'Wales & West'!AW27) -> 0 | AX27: =CHOOSE(m_identity, Cadent!AX27, East!AX27, London!AX27, 'North West'!AX27, 'West Midlands'!AX27, Northern!AX27, Scotland!AX27, Southern!AX27, 'Wales & West'!AX27) -> 0 | AY27: =CHOOSE(m_identity, Cadent!AY27, East!AY27, London!AY27, 'North West'!AY27, 'West Midlands'!AY27, Northern!AY27, Scotland!AY27, Southern!AY27, 'Wales & West'!AY27) -> 0
E28: =CHOOSE(m_identity, Cadent!E28, East!E28, London!E28, 'North West'!E28, 'West Midlands'!E28, Northern!E28, Scotland!E28, Southern!E28, 'Wales & West'!E28) -> Intermediate pressure reconfigurations Price Control Deliverable [SGN Scotland only] | F28: SpC 3.28 | G28: £m 23/24 prices | H28: IPRt | AU28: =CHOOSE(m_identity, Cadent!AU28, East!AU28, London!AU28, 'North West'!AU28, 'West Midlands'!AU28, Northern!AU28, Scotland!AU28, Southern!AU28, 'Wales & West'!AU28) -> 0 | AV28: =CHOOSE(m_identity, Cadent!AV28, East!AV28, London!AV28, 'North West'!AV28, 'West Midlands'!AV28, Northern!AV28, Scotland!AV28, Southern!AV28, 'Wales & West'!AV28) -> 0 | AW28: =CHOOSE(m_identity, Cadent!AW28, East!AW28, London!AW28, 'North West'!AW28, 'West Midlands'!AW28, Northern!AW28, Scotland!AW28, Southern!AW28, 'Wales & West'!AW28) -> 0 | AX28: =CHOOSE(m_identity, Cadent!AX28, East!AX28, London!AX28, 'North West'!AX28, 'West Midlands'!AX28, Northern!AX28, Scotland!AX28, Southern!AX28, 'Wales & West'!AX28) -> 0 | AY28: =CHOOSE(m_identity, Cadent!AY28, East!AY28, London!AY28, 'North West'!AY28, 'West Midlands'!AY28, Northern!AY28, Scotland!AY28, Southern!AY28, 'Wales & West'!AY28) -> 0
E29: =CHOOSE(m_identity, Cadent!E29, East!E29, London!E29, 'North West'!E29, 'West Midlands'!E29, Northern!E29, Scotland!E29, Southern!E29, 'Wales & West'!E29) -> Capital projects Price Control Deliverable | F29: SpC 3.12 | G29: £m 23/24 prices | H29: CAPt | AU29: =CHOOSE(m_identity, Cadent!AU29, East!AU29, London!AU29, 'North West'!AU29, 'West Midlands'!AU29, Northern!AU29, Scotland!AU29, Southern!AU29, 'Wales & West'!AU29) -> 0 | AV29: =CHOOSE(m_identity, Cadent!AV29, East!AV29, London!AV29, 'North West'!AV29, 'West Midlands'!AV29, Northern!AV29, Scotland!AV29, Southern!AV29, 'Wales & West'!AV29) -> 0 | AW29: =CHOOSE(m_identity, Cadent!AW29, East!AW29, London!AW29, 'North West'!AW29, 'West Midlands'!AW29, Northern!AW29, Scotland!AW29, Southern!AW29, 'Wales & West'!AW29) -> 0 | AX29: =CHOOSE(m_identity, Cadent!AX29, East!AX29, London!AX29, 'North West'!AX29, 'West Midlands'!AX29, Northern!AX29, Scotland!AX29, Southern!AX29, 'Wales & West'!AX29) -> 0 | AY29: =CHOOSE(m_identity, Cadent!AY29, East!AY29, London!AY29, 'North West'!AY29, 'West Midlands'!AY29, Northern!AY29, Scotland!AY29, Southern!AY29, 'Wales & West'!AY29) -> 0
E30: =CHOOSE(m_identity, Cadent!E30, East!E30, London!E30, 'North West'!E30, 'West Midlands'!E30, Northern!E30, Scotland!E30, Southern!E30, 'Wales & West'!E30) -> Commercial fleet Price Control Deliverable | F30: SpC 3.13 | G30: £m 23/24 prices | H30: OTCt | AU30: =CHOOSE(m_identity, Cadent!AU30, East!AU30, London!AU30, 'North West'!AU30, 'West Midlands'!AU30, Northern!AU30, Scotland!AU30, Southern!AU30, 'Wales & West'!AU30) -> 0 | AV30: =CHOOSE(m_identity, Cadent!AV30, East!AV30, London!AV30, 'North West'!AV30, 'West Midlands'!AV30, Northern!AV30, Scotland!AV30, Southern!AV30, 'Wales & West'!AV30) -> 0 | AW30: =CHOOSE(m_identity, Cadent!AW30, East!AW30, London!AW30, 'North West'!AW30, 'West Midlands'!AW30, Northern!AW30, Scotland!AW30, Southern!AW30, 'Wales & West'!AW30) -> 0 | AX30: =CHOOSE(m_identity, Cadent!AX30, East!AX30, London!AX30, 'North West'!AX30, 'West Midlands'!AX30, Northern!AX30, Scotland!AX30, Southern!AX30, 'Wales & West'!AX30) -> 0 | AY30: =CHOOSE(m_identity, Cadent!AY30, East!AY30, London!AY30, 'North West'!AY30, 'West Midlands'!AY30, Northern!AY30, Scotland!AY30, Southern!AY30, 'Wales & West'!AY30) -> 0
E31: =CHOOSE(m_identity, Cadent!E31, East!E31, London!E31, 'North West'!E31, 'West Midlands'!E31, Northern!E31, Scotland!E31, Southern!E31, 'Wales & West'!E31) -> Gas escape reduction Price Control Deliverable [SGN only] | F31: SpC 3.31 | G31: £m 23/24 prices | H31: GERt | AU31: =CHOOSE(m_identity, Cadent!AU31, East!AU31, London!AU31, 'North West'!AU31, 'West Midlands'!AU31, Northern!AU31, Scotland!AU31, Southern!AU31, 'Wales & West'!AU31) -> 0 | AV31: =CHOOSE(m_identity, Cadent!AV31, East!AV31, London!AV31, 'North West'!AV31, 'West Midlands'!AV31, Northern!AV31, Scotland!AV31, Southern!AV31, 'Wales & West'!AV31) -> 0 | AW31: =CHOOSE(m_identity, Cadent!AW31, East!AW31, London!AW31, 'North West'!AW31, 'West Midlands'!AW31, Northern!AW31, Scotland!AW31, Southern!AW31, 'Wales & West'!AW31) -> 0 | AX31: =CHOOSE(m_identity, Cadent!AX31, East!AX31, London!AX31, 'North West'!AX31, 'West Midlands'!AX31, Northern!AX31, Scotland!AX31, Southern!AX31, 'Wales & West'!AX31) -> 0 | AY31: =CHOOSE(m_identity, Cadent!AY31, East!AY31, London!AY31, 'North West'!AY31, 'West Midlands'!AY31, Northern!AY31, Scotland!AY31, Southern!AY31, 'Wales & West'!AY31) -> 0
E32: =CHOOSE(m_identity, Cadent!E32, East!E32, London!E32, 'North West'!E32, 'West Midlands'!E32, Northern!E32, Scotland!E32, Southern!E32, 'Wales & West'!E32) -> Cyber Resilience OT Baseline | F32: SpC 3.2 | G32: £m 23/24 prices | H32: CROTt | AU32: =CHOOSE(m_identity, Cadent!AU32, East!AU32, London!AU32, 'North West'!AU32, 'West Midlands'!AU32, Northern!AU32, Scotland!AU32, Southern!AU32, 'Wales & West'!AU32) -> 0 | AV32: =CHOOSE(m_identity, Cadent!AV32, East!AV32, London!AV32, 'North West'!AV32, 'West Midlands'!AV32, Northern!AV32, Scotland!AV32, Southern!AV32, 'Wales & West'!AV32) -> 0 | AW32: =CHOOSE(m_identity, Cadent!AW32, East!AW32, London!AW32, 'North West'!AW32, 'West Midlands'!AW32, Northern!AW32, Scotland!AW32, Southern!AW32, 'Wales & West'!AW32) -> 0 | AX32: =CHOOSE(m_identity, Cadent!AX32, East!AX32, London!AX32, 'North West'!AX32, 'West Midlands'!AX32, Northern!AX32, Scotland!AX32, Southern!AX32, 'Wales & West'!AX32) -> 0 | AY32: =CHOOSE(m_identity, Cadent!AY32, East!AY32, London!AY32, 'North West'!AY32, 'West Midlands'!AY32, Northern!AY32, Scotland!AY32, Southern!AY32, 'Wales & West'!AY32) -> 0
E33: =CHOOSE(m_identity, Cadent!E33, East!E33, London!E33, 'North West'!E33, 'West Midlands'!E33, Northern!E33, Scotland!E33, Southern!E33, 'Wales & West'!E33) -> Cyber Resilience IT Baseline | F33: SpC 3.3 | G33: £m 23/24 prices | H33: CRITt | AU33: =CHOOSE(m_identity, Cadent!AU33, East!AU33, London!AU33, 'North West'!AU33, 'West Midlands'!AU33, Northern!AU33, Scotland!AU33, Southern!AU33, 'Wales & West'!AU33) -> 0 | AV33: =CHOOSE(m_identity, Cadent!AV33, East!AV33, London!AV33, 'North West'!AV33, 'West Midlands'!AV33, Northern!AV33, Scotland!AV33, Southern!AV33, 'Wales & West'!AV33) -> 0 | AW33: =CHOOSE(m_identity, Cadent!AW33, East!AW33, London!AW33, 'North West'!AW33, 'West Midlands'!AW33, Northern!AW33, Scotland!AW33, Southern!AW33, 'Wales & West'!AW33) -> 0 | AX33: =CHOOSE(m_identity, Cadent!AX33, East!AX33, London!AX33, 'North West'!AX33, 'West Midlands'!AX33, Northern!AX33, Scotland!AX33, Southern!AX33, 'Wales & West'!AX33) -> 0 | AY33: =CHOOSE(m_identity, Cadent!AY33, East!AY33, London!AY33, 'North West'!AY33, 'West Midlands'!AY33, Northern!AY33, Scotland!AY33, Southern!AY33, 'Wales & West'!AY33) -> 0
E34: =CHOOSE(m_identity, Cadent!E34, East!E34, London!E34, 'North West'!E34, 'West Midlands'!E34, Northern!E34, Scotland!E34, Southern!E34, 'Wales & West'!E34) -> Physical security Price Control Deliverable | F34: SpC 3.4 | G34: £m 23/24 prices | H34: PSUPt | AU34: =CHOOSE(m_identity, Cadent!AU34, East!AU34, London!AU34, 'North West'!AU34, 'West Midlands'!AU34, Northern!AU34, Scotland!AU34, Southern!AU34, 'Wales & West'!AU34) -> 0 | AV34: =CHOOSE(m_identity, Cadent!AV34, East!AV34, London!AV34, 'North West'!AV34, 'West Midlands'!AV34, Northern!AV34, Scotland!AV34, Southern!AV34, 'Wales & West'!AV34) -> 0 | AW34: =CHOOSE(m_identity, Cadent!AW34, East!AW34, London!AW34, 'North West'!AW34, 'West Midlands'!AW34, Northern!AW34, Scotland!AW34, Southern!AW34, 'Wales & West'!AW34) -> 0 | AX34: =CHOOSE(m_identity, Cadent!AX34, East!AX34, London!AX34, 'North West'!AX34, 'West Midlands'!AX34, Northern!AX34, Scotland!AX34, Southern!AX34, 'Wales & West'!AX34) -> 0 | AY34: =CHOOSE(m_identity, Cadent!AY34, East!AY34, London!AY34, 'North West'!AY34, 'West Midlands'!AY34, Northern!AY34, Scotland!AY34, Southern!AY34, 'Wales & West'!AY34) -> 0
E35: =CHOOSE(m_identity, Cadent!E35, East!E35, London!E35, 'North West'!E35, 'West Midlands'!E35, Northern!E35, Scotland!E35, Southern!E35, 'Wales & West'!E35) -> London Medium Pressure Price Control Deliverable [Cadent London only] | F35: SpC 3.27 | G35: £m 23/24 prices | H35: LMPt | AU35: =CHOOSE(m_identity, Cadent!AU35, East!AU35, London!AU35, 'North West'!AU35, 'West Midlands'!AU35, Northern!AU35, Scotland!AU35, Southern!AU35, 'Wales & West'!AU35) -> 0 | AV35: =CHOOSE(m_identity, Cadent!AV35, East!AV35, London!AV35, 'North West'!AV35, 'West Midlands'!AV35, Northern!AV35, Scotland!AV35, Southern!AV35, 'Wales & West'!AV35) -> 0 | AW35: =CHOOSE(m_identity, Cadent!AW35, East!AW35, London!AW35, 'North West'!AW35, 'West Midlands'!AW35, Northern!AW35, Scotland!AW35, Southern!AW35, 'Wales & West'!AW35) -> 0 | AX35: =CHOOSE(m_identity, Cadent!AX35, East!AX35, London!AX35, 'North West'!AX35, 'West Midlands'!AX35, Northern!AX35, Scotland!AX35, Southern!AX35, 'Wales & West'!AX35) -> 0 | AY35: =CHOOSE(m_identity, Cadent!AY35, East!AY35, London!AY35, 'North West'!AY35, 'West Midlands'!AY35, Northern!AY35, Scotland!AY35, Southern!AY35, 'Wales & West'!AY35) -> 0
E36: =CHOOSE(m_identity, Cadent!E36, East!E36, London!E36, 'North West'!E36, 'West Midlands'!E36, Northern!E36, Scotland!E36, Southern!E36, 'Wales & West'!E36) -> Personalising welfare facilities Price Control Deliverable [Cadent only] | F36: SpC 3.26 | G36: £m 23/24 prices | H36: PWFt | AU36: =CHOOSE(m_identity, Cadent!AU36, East!AU36, London!AU36, 'North West'!AU36, 'West Midlands'!AU36, Northern!AU36, Scotland!AU36, Southern!AU36, 'Wales & West'!AU36) -> 0 | AV36: =CHOOSE(m_identity, Cadent!AV36, East!AV36, London!AV36, 'North West'!AV36, 'West Midlands'!AV36, Northern!AV36, Scotland!AV36, Southern!AV36, 'Wales & West'!AV36) -> 0 | AW36: =CHOOSE(m_identity, Cadent!AW36, East!AW36, London!AW36, 'North West'!AW36, 'West Midlands'!AW36, Northern!AW36, Scotland!AW36, Southern!AW36, 'Wales & West'!AW36) -> 0 | AX36: =CHOOSE(m_identity, Cadent!AX36, East!AX36, London!AX36, 'North West'!AX36, 'West Midlands'!AX36, Northern!AX36, Scotland!AX36, Southern!AX36, 'Wales & West'!AX36) -> 0 | AY36: =CHOOSE(m_identity, Cadent!AY36, East!AY36, London!AY36, 'North West'!AY36, 'West Midlands'!AY36, Northern!AY36, Scotland!AY36, Southern!AY36, 'Wales & West'!AY36) -> 0
E37: =CHOOSE(m_identity, Cadent!E37, East!E37, London!E37, 'North West'!E37, 'West Midlands'!E37, Northern!E37, Scotland!E37, Southern!E37, 'Wales & West'!E37) -> Net zero and Re-opener development fund use it or lose it allowance | F37: SpC 3.5 | G37: £m 23/24 prices | H37: RDFt | AU37: =CHOOSE(m_identity, Cadent!AU37, East!AU37, London!AU37, 'North West'!AU37, 'West Midlands'!AU37, Northern!AU37, Scotland!AU37, Southern!AU37, 'Wales & West'!AU37) -> 0 | AV37: =CHOOSE(m_identity, Cadent!AV37, East!AV37, London!AV37, 'North West'!AV37, 'West Midlands'!AV37, Northern!AV37, Scotland!AV37, Southern!AV37, 'Wales & West'!AV37) -> 0 | AW37: =CHOOSE(m_identity, Cadent!AW37, East!AW37, London!AW37, 'North West'!AW37, 'West Midlands'!AW37, Northern!AW37, Scotland!AW37, Southern!AW37, 'Wales & West'!AW37) -> 0 | AX37: =CHOOSE(m_identity, Cadent!AX37, East!AX37, London!AX37, 'North West'!AX37, 'West Midlands'!AX37, Northern!AX37, Scotland!AX37, Southern!AX37, 'Wales & West'!AX37) -> 0 | AY37: =CHOOSE(m_identity, Cadent!AY37, East!AY37, London!AY37, 'North West'!AY37, 'West Midlands'!AY37, Northern!AY37, Scotland!AY37, Southern!AY37, 'Wales & West'!AY37) -> 0
E38: =CHOOSE(m_identity, Cadent!E38, East!E38, London!E38, 'North West'!E38, 'West Midlands'!E38, Northern!E38, Scotland!E38, Southern!E38, 'Wales & West'!E38) -> Spare PCD 1 | G38: £m 23/24 prices | AU38: =CHOOSE(m_identity, Cadent!AU38, East!AU38, London!AU38, 'North West'!AU38, 'West Midlands'!AU38, Northern!AU38, Scotland!AU38, Southern!AU38, 'Wales & West'!AU38) -> 0 | AV38: =CHOOSE(m_identity, Cadent!AV38, East!AV38, London!AV38, 'North West'!AV38, 'West Midlands'!AV38, Northern!AV38, Scotland!AV38, Southern!AV38, 'Wales & West'!AV38) -> 0 | AW38: =CHOOSE(m_identity, Cadent!AW38, East!AW38, London!AW38, 'North West'!AW38, 'West Midlands'!AW38, Northern!AW38, Scotland!AW38, Southern!AW38, 'Wales & West'!AW38) -> 0 | AX38: =CHOOSE(m_identity, Cadent!AX38, East!AX38, London!AX38, 'North West'!AX38, 'West Midlands'!AX38, Northern!AX38, Scotland!AX38, Southern!AX38, 'Wales & West'!AX38) -> 0 | AY38: =CHOOSE(m_identity, Cadent!AY38, East!AY38, London!AY38, 'North West'!AY38, 'West Midlands'!AY38, Northern!AY38, Scotland!AY38, Southern!AY38, 'Wales & West'!AY38) -> 0
E39: =CHOOSE(m_identity, Cadent!E39, East!E39, London!E39, 'North West'!E39, 'West Midlands'!E39, Northern!E39, Scotland!E39, Southern!E39, 'Wales & West'!E39) -> Spare PCD 2 | G39: £m 23/24 prices | AU39: =CHOOSE(m_identity, Cadent!AU39, East!AU39, London!AU39, 'North West'!AU39, 'West Midlands'!AU39, Northern!AU39, Scotland!AU39, Southern!AU39, 'Wales & West'!AU39) -> 0 | AV39: =CHOOSE(m_identity, Cadent!AV39, East!AV39, London!AV39, 'North West'!AV39, 'West Midlands'!AV39, Northern!AV39, Scotland!AV39, Southern!AV39, 'Wales & West'!AV39) -> 0 | AW39: =CHOOSE(m_identity, Cadent!AW39, East!AW39, London!AW39, 'North West'!AW39, 'West Midlands'!AW39, Northern!AW39, Scotland!AW39, Southern!AW39, 'Wales & West'!AW39) -> 0 | AX39: =CHOOSE(m_identity, Cadent!AX39, East!AX39, London!AX39, 'North West'!AX39, 'West Midlands'!AX39, Northern!AX39, Scotland!AX39, Southern!AX39, 'Wales & West'!AX39) -> 0 | AY39: =CHOOSE(m_identity, Cadent!AY39, East!AY39, London!AY39, 'North West'!AY39, 'West Midlands'!AY39, Northern!AY39, Scotland!AY39, Southern!AY39, 'Wales & West'!AY39) -> 0
E40: =CHOOSE(m_identity, Cadent!E40, East!E40, London!E40, 'North West'!E40, 'West Midlands'!E40, Northern!E40, Scotland!E40, Southern!E40, 'Wales & West'!E40) -> Spare PCD 3 | G40: £m 23/24 prices | AU40: =CHOOSE(m_identity, Cadent!AU40, East!AU40, London!AU40, 'North West'!AU40, 'West Midlands'!AU40, Northern!AU40, Scotland!AU40, Southern!AU40, 'Wales & West'!AU40) -> 0 | AV40: =CHOOSE(m_identity, Cadent!AV40, East!AV40, London!AV40, 'North West'!AV40, 'West Midlands'!AV40, Northern!AV40, Scotland!AV40, Southern!AV40, 'Wales & West'!AV40) -> 0 | AW40: =CHOOSE(m_identity, Cadent!AW40, East!AW40, London!AW40, 'North West'!AW40, 'West Midlands'!AW40, Northern!AW40, Scotland!AW40, Southern!AW40, 'Wales & West'!AW40) -> 0 | AX40: =CHOOSE(m_identity, Cadent!AX40, East!AX40, London!AX40, 'North West'!AX40, 'West Midlands'!AX40, Northern!AX40, Scotland!AX40, Southern!AX40, 'Wales & West'!AX40) -> 0 | AY40: =CHOOSE(m_identity, Cadent!AY40, East!AY40, London!AY40, 'North West'!AY40, 'West Midlands'!AY40, Northern!AY40, Scotland!AY40, Southern!AY40, 'Wales & West'!AY40) -> 0
E41: =CHOOSE(m_identity, Cadent!E41, East!E41, London!E41, 'North West'!E41, 'West Midlands'!E41, Northern!E41, Scotland!E41, Southern!E41, 'Wales & West'!E41) -> Tier 2A mains and services replacement volume driver | F41: SpC 3.16 | G41: £m 23/24 prices | H41: REt | AU41: =CHOOSE(m_identity, Cadent!AU41, East!AU41, London!AU41, 'North West'!AU41, 'West Midlands'!AU41, Northern!AU41, Scotland!AU41, Southern!AU41, 'Wales & West'!AU41) -> 0 | AV41: =CHOOSE(m_identity, Cadent!AV41, East!AV41, London!AV41, 'North West'!AV41, 'West Midlands'!AV41, Northern!AV41, Scotland!AV41, Southern!AV41, 'Wales & West'!AV41) -> 0 | AW41: =CHOOSE(m_identity, Cadent!AW41, East!AW41, London!AW41, 'North West'!AW41, 'West Midlands'!AW41, Northern!AW41, Scotland!AW41, Southern!AW41, 'Wales & West'!AW41) -> 0 | AX41: =CHOOSE(m_identity, Cadent!AX41, East!AX41, London!AX41, 'North West'!AX41, 'West Midlands'!AX41, Northern!AX41, Scotland!AX41, Southern!AX41, 'Wales & West'!AX41) -> 0 | AY41: =CHOOSE(m_identity, Cadent!AY41, East!AY41, London!AY41, 'North West'!AY41, 'West Midlands'!AY41, Northern!AY41, Scotland!AY41, Southern!AY41, 'Wales & West'!AY41) -> 0
E42: =CHOOSE(m_identity, Cadent!E42, East!E42, London!E42, 'North West'!E42, 'West Midlands'!E42, Northern!E42, Scotland!E42, Southern!E42, 'Wales & West'!E42) -> HSE policy Re-opener | F42: SpC 3.17 | G42: £m 23/24 prices | H42: REPt | AU42: =CHOOSE(m_identity, Cadent!AU42, East!AU42, London!AU42, 'North West'!AU42, 'West Midlands'!AU42, Northern!AU42, Scotland!AU42, Southern!AU42, 'Wales & West'!AU42) -> 0 | AV42: =CHOOSE(m_identity, Cadent!AV42, East!AV42, London!AV42, 'North West'!AV42, 'West Midlands'!AV42, Northern!AV42, Scotland!AV42, Southern!AV42, 'Wales & West'!AV42) -> 0 | AW42: =CHOOSE(m_identity, Cadent!AW42, East!AW42, London!AW42, 'North West'!AW42, 'West Midlands'!AW42, Northern!AW42, Scotland!AW42, Southern!AW42, 'Wales & West'!AW42) -> 0 | AX42: =CHOOSE(m_identity, Cadent!AX42, East!AX42, London!AX42, 'North West'!AX42, 'West Midlands'!AX42, Northern!AX42, Scotland!AX42, Southern!AX42, 'Wales & West'!AX42) -> 0 | AY42: =CHOOSE(m_identity, Cadent!AY42, East!AY42, London!AY42, 'North West'!AY42, 'West Midlands'!AY42, Northern!AY42, Scotland!AY42, Southern!AY42, 'Wales & West'!AY42) -> 0
E43: =CHOOSE(m_identity, Cadent!E43, East!E43, London!E43, 'North West'!E43, 'West Midlands'!E43, Northern!E43, Scotland!E43, Southern!E43, 'Wales & West'!E43) -> Coordinated adjustment mechanism Re-opener | F43: SpC 3.8 | G43: £m 23/24 prices | H43: CAMt | AU43: =CHOOSE(m_identity, Cadent!AU43, East!AU43, London!AU43, 'North West'!AU43, 'West Midlands'!AU43, Northern!AU43, Scotland!AU43, Southern!AU43, 'Wales & West'!AU43) -> 0 | AV43: =CHOOSE(m_identity, Cadent!AV43, East!AV43, London!AV43, 'North West'!AV43, 'West Midlands'!AV43, Northern!AV43, Scotland!AV43, Southern!AV43, 'Wales & West'!AV43) -> 0 | AW43: =CHOOSE(m_identity, Cadent!AW43, East!AW43, London!AW43, 'North West'!AW43, 'West Midlands'!AW43, Northern!AW43, Scotland!AW43, Southern!AW43, 'Wales & West'!AW43) -> 0 | AX43: =CHOOSE(m_identity, Cadent!AX43, East!AX43, London!AX43, 'North West'!AX43, 'West Midlands'!AX43, Northern!AX43, Scotland!AX43, Southern!AX43, 'Wales & West'!AX43) -> 0 | AY43: =CHOOSE(m_identity, Cadent!AY43, East!AY43, London!AY43, 'North West'!AY43, 'West Midlands'!AY43, Northern!AY43, Scotland!AY43, Southern!AY43, 'Wales & West'!AY43) -> 0
E44: =CHOOSE(m_identity, Cadent!E44, East!E44, London!E44, 'North West'!E44, 'West Midlands'!E44, Northern!E44, Scotland!E44, Southern!E44, 'Wales & West'!E44) -> Heat policy and energy efficiency Re-opener | F44: SpC 3.19 | G44: £m 23/24 prices | H44: HPRAt | AU44: =CHOOSE(m_identity, Cadent!AU44, East!AU44, London!AU44, 'North West'!AU44, 'West Midlands'!AU44, Northern!AU44, Scotland!AU44, Southern!AU44, 'Wales & West'!AU44) -> 0 | AV44: =CHOOSE(m_identity, Cadent!AV44, East!AV44, London!AV44, 'North West'!AV44, 'West Midlands'!AV44, Northern!AV44, Scotland!AV44, Southern!AV44, 'Wales & West'!AV44) -> 0 | AW44: =CHOOSE(m_identity, Cadent!AW44, East!AW44, London!AW44, 'North West'!AW44, 'West Midlands'!AW44, Northern!AW44, Scotland!AW44, Southern!AW44, 'Wales & West'!AW44) -> 0 | AX44: =CHOOSE(m_identity, Cadent!AX44, East!AX44, London!AX44, 'North West'!AX44, 'West Midlands'!AX44, Northern!AX44, Scotland!AX44, Southern!AX44, 'Wales & West'!AX44) -> 0 | AY44: =CHOOSE(m_identity, Cadent!AY44, East!AY44, London!AY44, 'North West'!AY44, 'West Midlands'!AY44, Northern!AY44, Scotland!AY44, Southern!AY44, 'Wales & West'!AY44) -> 0
E45: =CHOOSE(m_identity, Cadent!E45, East!E45, London!E45, 'North West'!E45, 'West Midlands'!E45, Northern!E45, Scotland!E45, Southern!E45, 'Wales & West'!E45) -> Fuel Poor Network Extension Scheme volume driver | F45: SpC 3.14 | G45: £m 23/24 prices | H45: FPAt | AU45: =CHOOSE(m_identity, Cadent!AU45, East!AU45, London!AU45, 'North West'!AU45, 'West Midlands'!AU45, Northern!AU45, Scotland!AU45, Southern!AU45, 'Wales & West'!AU45) -> 0 | AV45: =CHOOSE(m_identity, Cadent!AV45, East!AV45, London!AV45, 'North West'!AV45, 'West Midlands'!AV45, Northern!AV45, Scotland!AV45, Southern!AV45, 'Wales & West'!AV45) -> 0 | AW45: =CHOOSE(m_identity, Cadent!AW45, East!AW45, London!AW45, 'North West'!AW45, 'West Midlands'!AW45, Northern!AW45, Scotland!AW45, Southern!AW45, 'Wales & West'!AW45) -> 0 | AX45: =CHOOSE(m_identity, Cadent!AX45, East!AX45, London!AX45, 'North West'!AX45, 'West Midlands'!AX45, Northern!AX45, Scotland!AX45, Southern!AX45, 'Wales & West'!AX45) -> 0 | AY45: =CHOOSE(m_identity, Cadent!AY45, East!AY45, London!AY45, 'North West'!AY45, 'West Midlands'!AY45, Northern!AY45, Scotland!AY45, Southern!AY45, 'Wales & West'!AY45) -> 0
E46: =CHOOSE(m_identity, Cadent!E46, East!E46, London!E46, 'North West'!E46, 'West Midlands'!E46, Northern!E46, Scotland!E46, Southern!E46, 'Wales & West'!E46) -> Net zero Re-opener | F46: SpC 3.6 | G46: £m 23/24 prices | H46: NZt | AU46: =CHOOSE(m_identity, Cadent!AU46, East!AU46, London!AU46, 'North West'!AU46, 'West Midlands'!AU46, Northern!AU46, Scotland!AU46, Southern!AU46, 'Wales & West'!AU46) -> 0 | AV46: =CHOOSE(m_identity, Cadent!AV46, East!AV46, London!AV46, 'North West'!AV46, 'West Midlands'!AV46, Northern!AV46, Scotland!AV46, Southern!AV46, 'Wales & West'!AV46) -> 0 | AW46: =CHOOSE(m_identity, Cadent!AW46, East!AW46, London!AW46, 'North West'!AW46, 'West Midlands'!AW46, Northern!AW46, Scotland!AW46, Southern!AW46, 'Wales & West'!AW46) -> 0 | AX46: =CHOOSE(m_identity, Cadent!AX46, East!AX46, London!AX46, 'North West'!AX46, 'West Midlands'!AX46, Northern!AX46, Scotland!AX46, Southern!AX46, 'Wales & West'!AX46) -> 0 | AY46: =CHOOSE(m_identity, Cadent!AY46, East!AY46, London!AY46, 'North West'!AY46, 'West Midlands'!AY46, Northern!AY46, Scotland!AY46, Southern!AY46, 'Wales & West'!AY46) -> 0
E47: =CHOOSE(m_identity, Cadent!E47, East!E47, London!E47, 'North West'!E47, 'West Midlands'!E47, Northern!E47, Scotland!E47, Southern!E47, 'Wales & West'!E47) -> Smart Metering Roll-out Costs Re-opener | F47: SpC 3.23 | G47: £m 23/24 prices | H47: SMRt | AU47: =CHOOSE(m_identity, Cadent!AU47, East!AU47, London!AU47, 'North West'!AU47, 'West Midlands'!AU47, Northern!AU47, Scotland!AU47, Southern!AU47, 'Wales & West'!AU47) -> 0 | AV47: =CHOOSE(m_identity, Cadent!AV47, East!AV47, London!AV47, 'North West'!AV47, 'West Midlands'!AV47, Northern!AV47, Scotland!AV47, Southern!AV47, 'Wales & West'!AV47) -> 0 | AW47: =CHOOSE(m_identity, Cadent!AW47, East!AW47, London!AW47, 'North West'!AW47, 'West Midlands'!AW47, Northern!AW47, Scotland!AW47, Southern!AW47, 'Wales & West'!AW47) -> 0 | AX47: =CHOOSE(m_identity, Cadent!AX47, East!AX47, London!AX47, 'North West'!AX47, 'West Midlands'!AX47, Northern!AX47, Scotland!AX47, Southern!AX47, 'Wales & West'!AX47) -> 0 | AY47: =CHOOSE(m_identity, Cadent!AY47, East!AY47, London!AY47, 'North West'!AY47, 'West Midlands'!AY47, Northern!AY47, Scotland!AY47, Southern!AY47, 'Wales & West'!AY47) -> 0
E48: =CHOOSE(m_identity, Cadent!E48, East!E48, London!E48, 'North West'!E48, 'West Midlands'!E48, Northern!E48, Scotland!E48, Southern!E48, 'Wales & West'!E48) -> Specified Streetworks Costs Re-opener | F48: SpC 3.24 | G48: £m 23/24 prices | H48: STWt | AU48: =CHOOSE(m_identity, Cadent!AU48, East!AU48, London!AU48, 'North West'!AU48, 'West Midlands'!AU48, Northern!AU48, Scotland!AU48, Southern!AU48, 'Wales & West'!AU48) -> 0 | AV48: =CHOOSE(m_identity, Cadent!AV48, East!AV48, London!AV48, 'North West'!AV48, 'West Midlands'!AV48, Northern!AV48, Scotland!AV48, Southern!AV48, 'Wales & West'!AV48) -> 0 | AW48: =CHOOSE(m_identity, Cadent!AW48, East!AW48, London!AW48, 'North West'!AW48, 'West Midlands'!AW48, Northern!AW48, Scotland!AW48, Southern!AW48, 'Wales & West'!AW48) -> 0 | AX48: =CHOOSE(m_identity, Cadent!AX48, East!AX48, London!AX48, 'North West'!AX48, 'West Midlands'!AX48, Northern!AX48, Scotland!AX48, Southern!AX48, 'Wales & West'!AX48) -> 0 | AY48: =CHOOSE(m_identity, Cadent!AY48, East!AY48, London!AY48, 'North West'!AY48, 'West Midlands'!AY48, Northern!AY48, Scotland!AY48, Southern!AY48, 'Wales & West'!AY48) -> 0
E49: =CHOOSE(m_identity, Cadent!E49, East!E49, London!E49, 'North West'!E49, 'West Midlands'!E49, Northern!E49, Scotland!E49, Southern!E49, 'Wales & West'!E49) -> New Large Load Connections Re-opener | F49: SpC 3.22 | G49: £m 23/24 prices | H49: NLLRt | AU49: =CHOOSE(m_identity, Cadent!AU49, East!AU49, London!AU49, 'North West'!AU49, 'West Midlands'!AU49, Northern!AU49, Scotland!AU49, Southern!AU49, 'Wales & West'!AU49) -> 0 | AV49: =CHOOSE(m_identity, Cadent!AV49, East!AV49, London!AV49, 'North West'!AV49, 'West Midlands'!AV49, Northern!AV49, Scotland!AV49, Southern!AV49, 'Wales & West'!AV49) -> 0 | AW49: =CHOOSE(m_identity, Cadent!AW49, East!AW49, London!AW49, 'North West'!AW49, 'West Midlands'!AW49, Northern!AW49, Scotland!AW49, Southern!AW49, 'Wales & West'!AW49) -> 0 | AX49: =CHOOSE(m_identity, Cadent!AX49, East!AX49, London!AX49, 'North West'!AX49, 'West Midlands'!AX49, Northern!AX49, Scotland!AX49, Southern!AX49, 'Wales & West'!AX49) -> 0 | AY49: =CHOOSE(m_identity, Cadent!AY49, East!AY49, London!AY49, 'North West'!AY49, 'West Midlands'!AY49, Northern!AY49, Scotland!AY49, Southern!AY49, 'Wales & West'!AY49) -> 0
E50: =CHOOSE(m_identity, Cadent!E50, East!E50, London!E50, 'North West'!E50, 'West Midlands'!E50, Northern!E50, Scotland!E50, Southern!E50, 'Wales & West'!E50) -> Domestic Connections volume driver | F50: SpC 3.15 | G50: £m 23/24 prices | H50: CAt | AU50: =CHOOSE(m_identity, Cadent!AU50, East!AU50, London!AU50, 'North West'!AU50, 'West Midlands'!AU50, Northern!AU50, Scotland!AU50, Southern!AU50, 'Wales & West'!AU50) -> 0 | AV50: =CHOOSE(m_identity, Cadent!AV50, East!AV50, London!AV50, 'North West'!AV50, 'West Midlands'!AV50, Northern!AV50, Scotland!AV50, Southern!AV50, 'Wales & West'!AV50) -> 0 | AW50: =CHOOSE(m_identity, Cadent!AW50, East!AW50, London!AW50, 'North West'!AW50, 'West Midlands'!AW50, Northern!AW50, Scotland!AW50, Southern!AW50, 'Wales & West'!AW50) -> 0 | AX50: =CHOOSE(m_identity, Cadent!AX50, East!AX50, London!AX50, 'North West'!AX50, 'West Midlands'!AX50, Northern!AX50, Scotland!AX50, Southern!AX50, 'Wales & West'!AX50) -> 0 | AY50: =CHOOSE(m_identity, Cadent!AY50, East!AY50, London!AY50, 'North West'!AY50, 'West Midlands'!AY50, Northern!AY50, Scotland!AY50, Southern!AY50, 'Wales & West'!AY50) -> 0
E51: =CHOOSE(m_identity, Cadent!E51, East!E51, London!E51, 'North West'!E51, 'West Midlands'!E51, Northern!E51, Scotland!E51, Southern!E51, 'Wales & West'!E51) -> Tier 1 Stubs Repex policy Re-opener | F51: SpC 3.18 | G51: £m 23/24 prices | H51: STUBt | AU51: =CHOOSE(m_identity, Cadent!AU51, East!AU51, London!AU51, 'North West'!AU51, 'West Midlands'!AU51, Northern!AU51, Scotland!AU51, Southern!AU51, 'Wales & West'!AU51) -> 0 | AV51: =CHOOSE(m_identity, Cadent!AV51, East!AV51, London!AV51, 'North West'!AV51, 'West Midlands'!AV51, Northern!AV51, Scotland!AV51, Southern!AV51, 'Wales & West'!AV51) -> 0 | AW51: =CHOOSE(m_identity, Cadent!AW51, East!AW51, London!AW51, 'North West'!AW51, 'West Midlands'!AW51, Northern!AW51, Scotland!AW51, Southern!AW51, 'Wales & West'!AW51) -> 0 | AX51: =CHOOSE(m_identity, Cadent!AX51, East!AX51, London!AX51, 'North West'!AX51, 'West Midlands'!AX51, Northern!AX51, Scotland!AX51, Southern!AX51, 'Wales & West'!AX51) -> 0 | AY51: =CHOOSE(m_identity, Cadent!AY51, East!AY51, London!AY51, 'North West'!AY51, 'West Midlands'!AY51, Northern!AY51, Scotland!AY51, Southern!AY51, 'Wales & West'!AY51) -> 0
E52: =CHOOSE(m_identity, Cadent!E52, East!E52, London!E52, 'North West'!E52, 'West Midlands'!E52, Northern!E52, Scotland!E52, Southern!E52, 'Wales & West'!E52) -> Diversions and Loss of Development Claims policy Re-opener | F52: SpC 3.20 | G52: £m 23/24 prices | H52: DIVt | AU52: =CHOOSE(m_identity, Cadent!AU52, East!AU52, London!AU52, 'North West'!AU52, 'West Midlands'!AU52, Northern!AU52, Scotland!AU52, Southern!AU52, 'Wales & West'!AU52) -> 0 | AV52: =CHOOSE(m_identity, Cadent!AV52, East!AV52, London!AV52, 'North West'!AV52, 'West Midlands'!AV52, Northern!AV52, Scotland!AV52, Southern!AV52, 'Wales & West'!AV52) -> 0 | AW52: =CHOOSE(m_identity, Cadent!AW52, East!AW52, London!AW52, 'North West'!AW52, 'West Midlands'!AW52, Northern!AW52, Scotland!AW52, Southern!AW52, 'Wales & West'!AW52) -> 0 | AX52: =CHOOSE(m_identity, Cadent!AX52, East!AX52, London!AX52, 'North West'!AX52, 'West Midlands'!AX52, Northern!AX52, Scotland!AX52, Southern!AX52, 'Wales & West'!AX52) -> 0 | AY52: =CHOOSE(m_identity, Cadent!AY52, East!AY52, London!AY52, 'North West'!AY52, 'West Midlands'!AY52, Northern!AY52, Scotland!AY52, Southern!AY52, 'Wales & West'!AY52) -> 0
E53: =CHOOSE(m_identity, Cadent!E53, East!E53, London!E53, 'North West'!E53, 'West Midlands'!E53, Northern!E53, Scotland!E53, Southern!E53, 'Wales & West'!E53) -> Multiple Occupancy Buildings safety Re-opener | F53: SpC 3.21 | G53: £m 23/24 prices | H53: MOBSt | AU53: =CHOOSE(m_identity, Cadent!AU53, East!AU53, London!AU53, 'North West'!AU53, 'West Midlands'!AU53, Northern!AU53, Scotland!AU53, Southern!AU53, 'Wales & West'!AU53) -> 0 | AV53: =CHOOSE(m_identity, Cadent!AV53, East!AV53, London!AV53, 'North West'!AV53, 'West Midlands'!AV53, Northern!AV53, Scotland!AV53, Southern!AV53, 'Wales & West'!AV53) -> 0 | AW53: =CHOOSE(m_identity, Cadent!AW53, East!AW53, London!AW53, 'North West'!AW53, 'West Midlands'!AW53, Northern!AW53, Scotland!AW53, Southern!AW53, 'Wales & West'!AW53) -> 0 | AX53: =CHOOSE(m_identity, Cadent!AX53, East!AX53, London!AX53, 'North West'!AX53, 'West Midlands'!AX53, Northern!AX53, Scotland!AX53, Southern!AX53, 'Wales & West'!AX53) -> 0 | AY53: =CHOOSE(m_identity, Cadent!AY53, East!AY53, London!AY53, 'North West'!AY53, 'West Midlands'!AY53, Northern!AY53, Scotland!AY53, Southern!AY53, 'Wales & West'!AY53) -> 0
E54: =CHOOSE(m_identity, Cadent!E54, East!E54, London!E54, 'North West'!E54, 'West Midlands'!E54, Northern!E54, Scotland!E54, Southern!E54, 'Wales & West'!E54) -> Non-operational IT Capex Re-opener | F54: SpC 3.7 | G54: £m 23/24 prices | H54: NOITREt | AU54: =CHOOSE(m_identity, Cadent!AU54, East!AU54, London!AU54, 'North West'!AU54, 'West Midlands'!AU54, Northern!AU54, Scotland!AU54, Southern!AU54, 'Wales & West'!AU54) -> 0 | AV54: =CHOOSE(m_identity, Cadent!AV54, East!AV54, London!AV54, 'North West'!AV54, 'West Midlands'!AV54, Northern!AV54, Scotland!AV54, Southern!AV54, 'Wales & West'!AV54) -> 0 | AW54: =CHOOSE(m_identity, Cadent!AW54, East!AW54, London!AW54, 'North West'!AW54, 'West Midlands'!AW54, Northern!AW54, Scotland!AW54, Southern!AW54, 'Wales & West'!AW54) -> 0 | AX54: =CHOOSE(m_identity, Cadent!AX54, East!AX54, London!AX54, 'North West'!AX54, 'West Midlands'!AX54, Northern!AX54, Scotland!AX54, Southern!AX54, 'Wales & West'!AX54) -> 0 | AY54: =CHOOSE(m_identity, Cadent!AY54, East!AY54, London!AY54, 'North West'!AY54, 'West Midlands'!AY54, Northern!AY54, Scotland!AY54, Southern!AY54, 'Wales & West'!AY54) -> 0
E55: =CHOOSE(m_identity, Cadent!E55, East!E55, London!E55, 'North West'!E55, 'West Midlands'!E55, Northern!E55, Scotland!E55, Southern!E55, 'Wales & West'!E55) -> Net zero pre-construction works and small net zero projects re-opener | F55: SpC 3.9 | G55: £m 23/24 prices | H55: NZPt | AU55: =CHOOSE(m_identity, Cadent!AU55, East!AU55, London!AU55, 'North West'!AU55, 'West Midlands'!AU55, Northern!AU55, Scotland!AU55, Southern!AU55, 'Wales & West'!AU55) -> 0 | AV55: =CHOOSE(m_identity, Cadent!AV55, East!AV55, London!AV55, 'North West'!AV55, 'West Midlands'!AV55, Northern!AV55, Scotland!AV55, Southern!AV55, 'Wales & West'!AV55) -> 0 | AW55: =CHOOSE(m_identity, Cadent!AW55, East!AW55, London!AW55, 'North West'!AW55, 'West Midlands'!AW55, Northern!AW55, Scotland!AW55, Southern!AW55, 'Wales & West'!AW55) -> 0 | AX55: =CHOOSE(m_identity, Cadent!AX55, East!AX55, London!AX55, 'North West'!AX55, 'West Midlands'!AX55, Northern!AX55, Scotland!AX55, Southern!AX55, 'Wales & West'!AX55) -> 0 | AY55: =CHOOSE(m_identity, Cadent!AY55, East!AY55, London!AY55, 'North West'!AY55, 'West Midlands'!AY55, Northern!AY55, Scotland!AY55, Southern!AY55, 'Wales & West'!AY55) -> 0
E56: =CHOOSE(m_identity, Cadent!E56, East!E56, London!E56, 'North West'!E56, 'West Midlands'!E56, Northern!E56, Scotland!E56, Southern!E56, 'Wales & West'!E56) -> Cyber Resilience OT Non-Baseline | F56: SpC 3.2 | G56: £m 23/24 prices | H56: CROTREt | AU56: =CHOOSE(m_identity, Cadent!AU56, East!AU56, London!AU56, 'North West'!AU56, 'West Midlands'!AU56, Northern!AU56, Scotland!AU56, Southern!AU56, 'Wales & West'!AU56) -> 0 | AV56: =CHOOSE(m_identity, Cadent!AV56, East!AV56, London!AV56, 'North West'!AV56, 'West Midlands'!AV56, Northern!AV56, Scotland!AV56, Southern!AV56, 'Wales & West'!AV56) -> 0 | AW56: =CHOOSE(m_identity, Cadent!AW56, East!AW56, London!AW56, 'North West'!AW56, 'West Midlands'!AW56, Northern!AW56, Scotland!AW56, Southern!AW56, 'Wales & West'!AW56) -> 0 | AX56: =CHOOSE(m_identity, Cadent!AX56, East!AX56, London!AX56, 'North West'!AX56, 'West Midlands'!AX56, Northern!AX56, Scotland!AX56, Southern!AX56, 'Wales & West'!AX56) -> 0 | AY56: =CHOOSE(m_identity, Cadent!AY56, East!AY56, London!AY56, 'North West'!AY56, 'West Midlands'!AY56, Northern!AY56, Scotland!AY56, Southern!AY56, 'Wales & West'!AY56) -> 0
E57: =CHOOSE(m_identity, Cadent!E57, East!E57, London!E57, 'North West'!E57, 'West Midlands'!E57, Northern!E57, Scotland!E57, Southern!E57, 'Wales & West'!E57) -> Cyber Resilience IT Non-Baseline | F57: SpC 3.3 | G57: £m 23/24 prices | H57: CRITREt | AU57: =CHOOSE(m_identity, Cadent!AU57, East!AU57, London!AU57, 'North West'!AU57, 'West Midlands'!AU57, Northern!AU57, Scotland!AU57, Southern!AU57, 'Wales & West'!AU57) -> 0 | AV57: =CHOOSE(m_identity, Cadent!AV57, East!AV57, London!AV57, 'North West'!AV57, 'West Midlands'!AV57, Northern!AV57, Scotland!AV57, Southern!AV57, 'Wales & West'!AV57) -> 0 | AW57: =CHOOSE(m_identity, Cadent!AW57, East!AW57, London!AW57, 'North West'!AW57, 'West Midlands'!AW57, Northern!AW57, Scotland!AW57, Southern!AW57, 'Wales & West'!AW57) -> 0 | AX57: =CHOOSE(m_identity, Cadent!AX57, East!AX57, London!AX57, 'North West'!AX57, 'West Midlands'!AX57, Northern!AX57, Scotland!AX57, Southern!AX57, 'Wales & West'!AX57) -> 0 | AY57: =CHOOSE(m_identity, Cadent!AY57, East!AY57, London!AY57, 'North West'!AY57, 'West Midlands'!AY57, Northern!AY57, Scotland!AY57, Southern!AY57, 'Wales & West'!AY57) -> 0
E58: =CHOOSE(m_identity, Cadent!E58, East!E58, London!E58, 'North West'!E58, 'West Midlands'!E58, Northern!E58, Scotland!E58, Southern!E58, 'Wales & West'!E58) -> Physical Security Re-Opener | F58: SpC 3.4 | G58: £m 23/24 prices | H58: PSUPREt | AU58: =CHOOSE(m_identity, Cadent!AU58, East!AU58, London!AU58, 'North West'!AU58, 'West Midlands'!AU58, Northern!AU58, Scotland!AU58, Southern!AU58, 'Wales & West'!AU58) -> 0 | AV58: =CHOOSE(m_identity, Cadent!AV58, East!AV58, London!AV58, 'North West'!AV58, 'West Midlands'!AV58, Northern!AV58, Scotland!AV58, Southern!AV58, 'Wales & West'!AV58) -> 0 | AW58: =CHOOSE(m_identity, Cadent!AW58, East!AW58, London!AW58, 'North West'!AW58, 'West Midlands'!AW58, Northern!AW58, Scotland!AW58, Southern!AW58, 'Wales & West'!AW58) -> 0 | AX58: =CHOOSE(m_identity, Cadent!AX58, East!AX58, London!AX58, 'North West'!AX58, 'West Midlands'!AX58, Northern!AX58, Scotland!AX58, Southern!AX58, 'Wales & West'!AX58) -> 0 | AY58: =CHOOSE(m_identity, Cadent!AY58, East!AY58, London!AY58, 'North West'!AY58, 'West Midlands'!AY58, Northern!AY58, Scotland!AY58, Southern!AY58, 'Wales & West'!AY58) -> 0
E59: =CHOOSE(m_identity, Cadent!E59, East!E59, London!E59, 'North West'!E59, 'West Midlands'!E59, Northern!E59, Scotland!E59, Southern!E59, 'Wales & West'!E59) -> Spare UM TIM 1 | G59: £m 23/24 prices | AU59: =CHOOSE(m_identity, Cadent!AU59, East!AU59, London!AU59, 'North West'!AU59, 'West Midlands'!AU59, Northern!AU59, Scotland!AU59, Southern!AU59, 'Wales & West'!AU59) -> 0 | AV59: =CHOOSE(m_identity, Cadent!AV59, East!AV59, London!AV59, 'North West'!AV59, 'West Midlands'!AV59, Northern!AV59, Scotland!AV59, Southern!AV59, 'Wales & West'!AV59) -> 0 | AW59: =CHOOSE(m_identity, Cadent!AW59, East!AW59, London!AW59, 'North West'!AW59, 'West Midlands'!AW59, Northern!AW59, Scotland!AW59, Southern!AW59, 'Wales & West'!AW59) -> 0 | AX59: =CHOOSE(m_identity, Cadent!AX59, East!AX59, London!AX59, 'North West'!AX59, 'West Midlands'!AX59, Northern!AX59, Scotland!AX59, Southern!AX59, 'Wales & West'!AX59) -> 0 | AY59: =CHOOSE(m_identity, Cadent!AY59, East!AY59, London!AY59, 'North West'!AY59, 'West Midlands'!AY59, Northern!AY59, Scotland!AY59, Southern!AY59, 'Wales & West'!AY59) -> 0
E60: =CHOOSE(m_identity, Cadent!E60, East!E60, London!E60, 'North West'!E60, 'West Midlands'!E60, Northern!E60, Scotland!E60, Southern!E60, 'Wales & West'!E60) -> Spare UM TIM 2 | G60: £m 23/24 prices | AU60: =CHOOSE(m_identity, Cadent!AU60, East!AU60, London!AU60, 'North West'!AU60, 'West Midlands'!AU60, Northern!AU60, Scotland!AU60, Southern!AU60, 'Wales & West'!AU60) -> 0 | AV60: =CHOOSE(m_identity, Cadent!AV60, East!AV60, London!AV60, 'North West'!AV60, 'West Midlands'!AV60, Northern!AV60, Scotland!AV60, Southern!AV60, 'Wales & West'!AV60) -> 0 | AW60: =CHOOSE(m_identity, Cadent!AW60, East!AW60, London!AW60, 'North West'!AW60, 'West Midlands'!AW60, Northern!AW60, Scotland!AW60, Southern!AW60, 'Wales & West'!AW60) -> 0 | AX60: =CHOOSE(m_identity, Cadent!AX60, East!AX60, London!AX60, 'North West'!AX60, 'West Midlands'!AX60, Northern!AX60, Scotland!AX60, Southern!AX60, 'Wales & West'!AX60) -> 0 | AY60: =CHOOSE(m_identity, Cadent!AY60, East!AY60, London!AY60, 'North West'!AY60, 'West Midlands'!AY60, Northern!AY60, Scotland!AY60, Southern!AY60, 'Wales & West'!AY60) -> 0
E61: =CHOOSE(m_identity, Cadent!E61, East!E61, London!E61, 'North West'!E61, 'West Midlands'!E61, Northern!E61, Scotland!E61, Southern!E61, 'Wales & West'!E61) -> Spare UM TIM 3 | G61: £m 23/24 prices | AU61: =CHOOSE(m_identity, Cadent!AU61, East!AU61, London!AU61, 'North West'!AU61, 'West Midlands'!AU61, Northern!AU61, Scotland!AU61, Southern!AU61, 'Wales & West'!AU61) -> 0 | AV61: =CHOOSE(m_identity, Cadent!AV61, East!AV61, London!AV61, 'North West'!AV61, 'West Midlands'!AV61, Northern!AV61, Scotland!AV61, Southern!AV61, 'Wales & West'!AV61) -> 0 | AW61: =CHOOSE(m_identity, Cadent!AW61, East!AW61, London!AW61, 'North West'!AW61, 'West Midlands'!AW61, Northern!AW61, Scotland!AW61, Southern!AW61, 'Wales & West'!AW61) -> 0 | AX61: =CHOOSE(m_identity, Cadent!AX61, East!AX61, London!AX61, 'North West'!AX61, 'West Midlands'!AX61, Northern!AX61, Scotland!AX61, Southern!AX61, 'Wales & West'!AX61) -> 0 | AY61: =CHOOSE(m_identity, Cadent!AY61, East!AY61, London!AY61, 'North West'!AY61, 'West Midlands'!AY61, Northern!AY61, Scotland!AY61, Southern!AY61, 'Wales & West'!AY61) -> 0
E62: =CHOOSE(m_identity, Cadent!E62, East!E62, London!E62, 'North West'!E62, 'West Midlands'!E62, Northern!E62, Scotland!E62, Southern!E62, 'Wales & West'!E62) -> PCD_Baseline Network Risk Output | G62: £m 23/24 prices | AU62: =CHOOSE(m_identity, Cadent!AU62, East!AU62, London!AU62, 'North West'!AU62, 'West Midlands'!AU62, Northern!AU62, Scotland!AU62, Southern!AU62, 'Wales & West'!AU62) -> 45.16277614 | AV62: =CHOOSE(m_identity, Cadent!AV62, East!AV62, London!AV62, 'North West'!AV62, 'West Midlands'!AV62, Northern!AV62, Scotland!AV62, Southern!AV62, 'Wales & West'!AV62) -> 40.23552019 | AW62: =CHOOSE(m_identity, Cadent!AW62, East!AW62, London!AW62, 'North West'!AW62, 'West Midlands'!AW62, Northern!AW62, Scotland!AW62, Southern!AW62, 'Wales & West'!AW62) -> 45.25433673 | AX62: =CHOOSE(m_identity, Cadent!AX62, East!AX62, London!AX62, 'North West'!AX62, 'West Midlands'!AX62, Northern!AX62, Scotland!AX62, Southern!AX62, 'Wales & West'!AX62) -> 45.92948594 | AY62: =CHOOSE(m_identity, Cadent!AY62, East!AY62, London!AY62, 'North West'!AY62, 'West Midlands'!AY62, Northern!AY62, Scotland!AY62, Southern!AY62, 'Wales & West'!AY62) -> 39.92937265
... 65 more rows

Sheet MainInputs
A1: Input
B2: =UserInterface!G17 -> East
E3: Parameter | F3: Licence condition | G3: Units | H3: Term | I3: Constant | AP3: Annual values
E4: PCFM year ending | F4: =Cover!C4 -> Model Version | I4: =UserInterface!$G$10 -> 2025-03-31 | K4: 1991-03-31 | L4: 1992-03-31 | M4: 1993-03-31 | N4: 1994-03-31 | O4: 1995-03-31 | P4: 1996-03-31 | Q4: 1997-03-31 | R4: 1998-03-31 | S4: 1999-03-31 | T4: 2000-03-31 | U4: 2001-03-31 | V4: 2002-03-31 | W4: 2003-03-31 | X4: 2004-03-31 | Y4: 2005-03-31 | Z4: 2006-03-31 | AA4: 2007-03-31 | AB4: 2008-03-31 | AC4: 2009-03-31 | AD4: 2010-03-31 | AE4: 2011-03-31 | AF4: 2012-03-31 | AG4: 2013-03-31 | AH4: 2014-03-31 | AI4: 2015-03-31 | AJ4: 2016-03-31 | AK4: 2017-03-31 | AL4: 2018-03-31 | AM4: 2019-03-31 | AN4: 2020-03-31 | AO4: 2021-03-31 | AP4: 2022-03-31 | AQ4: 2023-03-31 | AR4: 2024-03-31 | AS4: 2025-03-31 | AT4: 2026-03-31 | AU4: 2027-03-31 | AV4: 2028-03-31 | AW4: 2029-03-31 | AX4: 2030-03-31 | AY4: =EOMONTH(AX4,12) -> 2031-03-31
AP5: 2 | AQ5: 2 | AR5: 2 | AS5: 2 | AT5: 2 | AU5: 3 | AV5: 3 | AW5: 3 | AX5: 3 | AY5: 3
C7: Price control timeline
E9: Pre-RIIO-2 year | G9: flag | K9: =Scenarios!K$119 -> 1 | L9: =Scenarios!L$119 -> 1 | M9: =Scenarios!M$119 -> 1 | N9: =Scenarios!N$119 -> 1 | O9: =Scenarios!O$119 -> 1 | P9: =Scenarios!P$119 -> 1 | Q9: =Scenarios!Q$119 -> 1 | R9: =Scenarios!R$119 -> 1 | S9: =Scenarios!S$119 -> 1 | T9: =Scenarios!T$119 -> 1 | U9: =Scenarios!U$119 -> 1 | V9: =Scenarios!V$119 -> 1 | W9: =Scenarios!W$119 -> 1 | X9: =Scenarios!X$119 -> 1 | Y9: =Scenarios!Y$119 -> 1 | Z9: =Scenarios!Z$119 -> 1 | AA9: =Scenarios!AA$119 -> 1 | AB9: =Scenarios!AB$119 -> 1 | AC9: =Scenarios!AC$119 -> 1 | AD9: =Scenarios!AD$119 -> 1 | AE9: =Scenarios!AE$119 -> 1 | AF9: =Scenarios!AF$119 -> 1 | AG9: =Scenarios!AG$119 -> 1 | AH9: =Scenarios!AH$119 -> 1 | AI9: =Scenarios!AI$119 -> 1 | AJ9: =Scenarios!AJ$119 -> 1 | AK9: =Scenarios!AK$119 -> 1 | AL9: =Scenarios!AL$119 -> 1 | AM9: =Scenarios!AM$119 -> 1 | AN9: =Scenarios!AN$119 -> 1 | AO9: =Scenarios!AO$119 -> 1 | AP9: =Scenarios!AP$119 -> 0 | AQ9: =Scenarios!AQ$119 -> 0 | AR9: =Scenarios!AR$119 -> 0 | AS9: =Scenarios!AS$119 -> 0 | AT9: =Scenarios!AT$119 -> 0 | AU9: =Scenarios!AU$119 -> 0 | AV9: =Scenarios!AV$119 -> 0 | AW9: =Scenarios!AW$119 -> 0 | AX9: =Scenarios!AX$119 -> 0 | AY9: =Scenarios!AY$119 -> 0
E10: RIIO-2 year | G10: flag | K10: =Scenarios!K$120 -> 0 | L10: =Scenarios!L$120 -> 0 | M10: =Scenarios!M$120 -> 0 | N10: =Scenarios!N$120 -> 0 | O10: =Scenarios!O$120 -> 0 | P10: =Scenarios!P$120 -> 0 | Q10: =Scenarios!Q$120 -> 0 | R10: =Scenarios!R$120 -> 0 | S10: =Scenarios!S$120 -> 0 | T10: =Scenarios!T$120 -> 0 | U10: =Scenarios!U$120 -> 0 | V10: =Scenarios!V$120 -> 0 | W10: =Scenarios!W$120 -> 0 | X10: =Scenarios!X$120 -> 0 | Y10: =Scenarios!Y$120 -> 0 | Z10: =Scenarios!Z$120 -> 0 | AA10: =Scenarios!AA$120 -> 0 | AB10: =Scenarios!AB$120 -> 0 | AC10: =Scenarios!AC$120 -> 0 | AD10: =Scenarios!AD$120 -> 0 | AE10: =Scenarios!AE$120 -> 0 | AF10: =Scenarios!AF$120 -> 0 | AG10: =Scenarios!AG$120 -> 0 | AH10: =Scenarios!AH$120 -> 0 | AI10: =Scenarios!AI$120 -> 0 | AJ10: =Scenarios!AJ$120 -> 0 | AK10: =Scenarios!AK$120 -> 0 | AL10: =Scenarios!AL$120 -> 0 | AM10: =Scenarios!AM$120 -> 0 | AN10: =Scenarios!AN$120 -> 0 | AO10: =Scenarios!AO$120 -> 0 | AP10: =Scenarios!AP$120 -> 1 | AQ10: =Scenarios!AQ$120 -> 1 | AR10: =Scenarios!AR$120 -> 1 | AS10: =Scenarios!AS$120 -> 1 | AT10: =Scenarios!AT$120 -> 1 | AU10: =Scenarios!AU$120 -> 0 | AV10: =Scenarios!AV$120 -> 0 | AW10: =Scenarios!AW$120 -> 0 | AX10: =Scenarios!AX$120 -> 0 | AY10: =Scenarios!AY$120 -> 0
E11: RIIO-3 year | G11: flag | K11: =Scenarios!K$121 -> 0 | L11: =Scenarios!L$121 -> 0 | M11: =Scenarios!M$121 -> 0 | N11: =Scenarios!N$121 -> 0 | O11: =Scenarios!O$121 -> 0 | P11: =Scenarios!P$121 -> 0 | Q11: =Scenarios!Q$121 -> 0 | R11: =Scenarios!R$121 -> 0 | S11: =Scenarios!S$121 -> 0 | T11: =Scenarios!T$121 -> 0 | U11: =Scenarios!U$121 -> 0 | V11: =Scenarios!V$121 -> 0 | W11: =Scenarios!W$121 -> 0 | X11: =Scenarios!X$121 -> 0 | Y11: =Scenarios!Y$121 -> 0 | Z11: =Scenarios!Z$121 -> 0 | AA11: =Scenarios!AA$121 -> 0 | AB11: =Scenarios!AB$121 -> 0 | AC11: =Scenarios!AC$121 -> 0 | AD11: =Scenarios!AD$121 -> 0 | AE11: =Scenarios!AE$121 -> 0 | AF11: =Scenarios!AF$121 -> 0 | AG11: =Scenarios!AG$121 -> 0 | AH11: =Scenarios!AH$121 -> 0 | AI11: =Scenarios!AI$121 -> 0 | AJ11: =Scenarios!AJ$121 -> 0 | AK11: =Scenarios!AK$121 -> 0 | AL11: =Scenarios!AL$121 -> 0 | AM11: =Scenarios!AM$121 -> 0 | AN11: =Scenarios!AN$121 -> 0 | AO11: =Scenarios!AO$121 -> 0 | AP11: =Scenarios!AP$121 -> 0 | AQ11: =Scenarios!AQ$121 -> 0 | AR11: =Scenarios!AR$121 -> 0 | AS11: =Scenarios!AS$121 -> 0 | AT11: =Scenarios!AT$121 -> 0 | AU11: =Scenarios!AU$121 -> 1 | AV11: =Scenarios!AV$121 -> 1 | AW11: =Scenarios!AW$121 -> 1 | AX11: =Scenarios!AX$121 -> 1 | AY11: =Scenarios!AY$121 -> 1
E13: Price conversion: RIIO2 inputs to base price | G13: scalar | I13: =INDEX('Annual Inflation'!$AH$41:$AY$41,,MATCH('Annual Inflation'!$I$22,'Annual Inflation'!$AH$4:$AY$4,0))/'Annual Inflation'!AM41 -> 1.245415245
E14: Price conversion: RIIO3 inputs to base price | G14: scalar | I14: =INDEX('Annual Inflation'!$AH$41:$AY$41,,MATCH('Annual Inflation'!$I$22,'Annual Inflation'!$AH$4:$AY$4,0))/'Annual Inflation'!AR41 -> 1
C16: Scenario operators
E18: Allowed cost of debt input | G18: % | I18: =Scenarios!F39 -> Licensee inputs | AU18: =Scenarios!AU137 -> 0.02943603764 | AV18: =Scenarios!AV137 -> 0.03037696394 | AW18: =Scenarios!AW137 -> 0.03128527444 | AX18: =Scenarios!AX137 -> 0.03249896211 | AY18: =Scenarios!AY137 -> 0.03379126065
E19: Allowed cost of equity input | G19: % | I19: =Scenarios!F41 -> Licensee inputs | AU19: =Scenarios!AU144 -> 0.06118 | AV19: =Scenarios!AV144 -> 0.06118 | AW19: =Scenarios!AW144 -> 0.06118 | AX19: =Scenarios!AX144 -> 0.06118 | AY19: =Scenarios!AY144 -> 0.06118
E20: Notional gearing | G20: % | AU20: =Scenarios!$F43 -> 0.6 | AV20: =Scenarios!$F43 -> 0.6 | AW20: =Scenarios!$F43 -> 0.6 | AX20: =Scenarios!$F43 -> 0.6 | AY20: =Scenarios!$F43 -> 0.6
E22: Minimum equity issuance threshold | G22: % | AU22: =Scenarios!AU168 -> 0 | AV22: =Scenarios!AV168 -> 0 | AW22: =Scenarios!AW168 -> 0 | AX22: =Scenarios!AX168 -> 0 | AY22: =Scenarios!AY168 -> 0
E23: Equity issuance costs | G23: % | AU23: =Scenarios!AU182 -> 0.05 | AV23: =Scenarios!AV182 -> 0.05 | AW23: =Scenarios!AW182 -> 0.05 | AX23: =Scenarios!AX182 -> 0.05 | AY23: =Scenarios!AY182 -> 0.05
E24: Assumed dividends as % of equity | G24: % | AU24: =Scenarios!AU173 -> 0.03 | AV24: =Scenarios!AV173 -> 0.03 | AW24: =Scenarios!AW173 -> 0.03 | AX24: =Scenarios!AX173 -> 0.03 | AY24: =Scenarios!AY173 -> 0.03
E25: Assumed return of capital as % of equity | G25: % | AU25: =Scenarios!AU178 -> 0 | AV25: =Scenarios!AV178 -> 0 | AW25: =Scenarios!AW178 -> 0 | AX25: =Scenarios!AX178 -> 0 | AY25: =Scenarios!AY178 -> 0
E26: Equity issuance gearing target | G26: % | AU26: =Scenarios!AU184 -> 0.6 | AV26: =Scenarios!AV184 -> 0.6 | AW26: =Scenarios!AW184 -> 0.6 | AX26: =Scenarios!AX184 -> 0.6 | AY26: =Scenarios!AY184 -> 0.6
E27: CPIH index-linked debt as a percentage of net debt | G27: % | AU27: =Scenarios!AU185 -> 0.3 | AV27: =Scenarios!AV185 -> 0.3 | AW27: =Scenarios!AW185 -> 0.3 | AX27: =Scenarios!AX185 -> 0.3 | AY27: =Scenarios!AY185 -> 0.3
E29: RIIO-3 Funding Adjustment Rate ('sharing factor') | G29: % | I29: =Scenarios!$F19 -> 0.5
E31: Corporation tax rate | G31: % | AU31: =Scenarios!$F62 -> 0.25 | AV31: =Scenarios!$F62 -> 0.25 | AW31: =Scenarios!$F62 -> 0.25 | AX31: =Scenarios!$F62 -> 0.25 | AY31: =Scenarios!$F62 -> 0.25
E33: Incentive revenue based on Scenario input of % RoRE performance | G33: =price_label -> £m 23/24 prices | AU33: =Scenarios!AU257 -> 0 | AV33: =Scenarios!AV257 -> 0 | AW33: =Scenarios!AW257 -> 0 | AX33: =Scenarios!AX257 -> 0 | AY33: =Scenarios!AY257 -> 0
B35: Totex allowance
C37: Non-variant allowances (net of disposals)
C38: Note: Disposals net sales proceeds are deducted from non-variant "other capex".
E40: Non-variant allowed load related capex | G40: =price_label -> £m 23/24 prices | AP40: =AP$10*$I$13*InputSummary!AP1004+AP$11*$I$14*InputSummary!AP13 -> 21.1688092 | AQ40: =AQ$10*$I$13*InputSummary!AQ1004+AQ$11*$I$14*InputSummary!AQ13 -> 23.80311728 | AR40: =AR$10*$I$13*InputSummary!AR1004+AR$11*$I$14*InputSummary!AR13 -> 21.17861706 | AS40: =AS$10*$I$13*InputSummary!AS1004+AS$11*$I$14*InputSummary!AS13 -> 22.06931856 | AT40: =AT$10*$I$13*InputSummary!AT1004+AT$11*$I$14*InputSummary!AT13 -> 20.97181697 | AU40: =AU$10*$I$13*InputSummary!AU1004+AU$11*$I$14*InputSummary!AU13 -> 10.77767459 | AV40: =AV$10*$I$13*InputSummary!AV1004+AV$11*$I$14*InputSummary!AV13 -> 9.732492795 | AW40: =AW$10*$I$13*InputSummary!AW1004+AW$11*$I$14*InputSummary!AW13 -> 8.563437873 | AX40: =AX$10*$I$13*InputSummary!AX1004+AX$11*$I$14*InputSummary!AX13 -> 8.393738132 | AY40: =AY$10*$I$13*InputSummary!AY1004+AY$11*$I$14*InputSummary!AY13 -> 7.713588011
E41: Non-variant allowed non-load related capex - other (net of disposals) | G41: £m 23/24 prices | AP41: =AP$10*($I$13*InputSummary!AP1005-AP1495) + AP$11*$I$14*InputSummary!AP14 -> 33.94664083 | AQ41: =AQ$10*($I$13*InputSummary!AQ1005-AQ1495) + AQ$11*$I$14*InputSummary!AQ14 -> 30.13465931 | AR41: =AR$10*($I$13*InputSummary!AR1005-AR1495) + AR$11*$I$14*InputSummary!AR14 -> 32.18078911 | AS41: =AS$10*($I$13*InputSummary!AS1005-AS1495) + AS$11*$I$14*InputSummary!AS14 -> 29.2646407 | AT41: =AT$10*($I$13*InputSummary!AT1005-AT1495) + AT$11*$I$14*InputSummary!AT14 -> 18.2021634 | AU41: =AU$10*($I$13*InputSummary!AU1005-AU1495) + AU$11*$I$14*InputSummary!AU14 -> 83.15202287 | AV41: =AV$10*($I$13*InputSummary!AV1005-AV1495) + AV$11*$I$14*InputSummary!AV14 -> 58.06858426 | AW41: =AW$10*($I$13*InputSummary!AW1005-AW1495) + AW$11*$I$14*InputSummary!AW14 -> 50.75997649 | AX41: =AX$10*($I$13*InputSummary!AX1005-AX1495) + AX$11*$I$14*InputSummary!AX14 -> 50.11144014 | AY41: =AY$10*($I$13*InputSummary!AY1005-AY1495) + AY$11*$I$14*InputSummary!AY14 -> 36.41554123
E42: Non-variant allowed business support (opex) | G42: £m 23/24 prices | AP42: =AP$10*$I$13*InputSummary!AP1006+AP$11*$I$14*InputSummary!AP15 -> 31.64480598 | AQ42: =AQ$10*$I$13*InputSummary!AQ1006+AQ$11*$I$14*InputSummary!AQ15 -> 30.7485087 | AR42: =AR$10*$I$13*InputSummary!AR1006+AR$11*$I$14*InputSummary!AR15 -> 30.37785779 | AS42: =AS$10*$I$13*InputSummary!AS1006+AS$11*$I$14*InputSummary!AS15 -> 29.44629629 | AT42: =AT$10*$I$13*InputSummary!AT1006+AT$11*$I$14*InputSummary!AT15 -> 27.70279707 | AU42: =AU$10*$I$13*InputSummary!AU1006+AU$11*$I$14*InputSummary!AU15 -> 48.91160552 | AV42: =AV$10*$I$13*InputSummary!AV1006+AV$11*$I$14*InputSummary!AV15 -> 46.16387148 | AW42: =AW$10*$I$13*InputSummary!AW1006+AW$11*$I$14*InputSummary!AW15 -> 50.36071669 | AX42: =AX$10*$I$13*InputSummary!AX1006+AX$11*$I$14*InputSummary!AX15 -> 50.01482636 | AY42: =AY$10*$I$13*InputSummary!AY1006+AY$11*$I$14*InputSummary!AY15 -> 49.63078878
E43: Non-variant allowed directs opex | G43: £m 23/24 prices | AP43: =AP$10*$I$13*InputSummary!AP1007+AP$11*$I$14*InputSummary!AP16 -> 125.8242032 | AQ43: =AQ$10*$I$13*InputSummary!AQ1007+AQ$11*$I$14*InputSummary!AQ16 -> 120.8783592 | AR43: =AR$10*$I$13*InputSummary!AR1007+AR$11*$I$14*InputSummary!AR16 -> 125.6928118 | AS43: =AS$10*$I$13*InputSummary!AS1007+AS$11*$I$14*InputSummary!AS16 -> 115.6213737 | AT43: =AT$10*$I$13*InputSummary!AT1007+AT$11*$I$14*InputSummary!AT16 -> 117.9824137 | AU43: =AU$10*$I$13*InputSummary!AU1007+AU$11*$I$14*InputSummary!AU16 -> 144.2241657 | AV43: =AV$10*$I$13*InputSummary!AV1007+AV$11*$I$14*InputSummary!AV16 -> 146.7608439 | AW43: =AW$10*$I$13*InputSummary!AW1007+AW$11*$I$14*InputSummary!AW16 -> 140.9546687 | AX43: =AX$10*$I$13*InputSummary!AX1007+AX$11*$I$14*InputSummary!AX16 -> 137.7957353 | AY43: =AY$10*$I$13*InputSummary!AY1007+AY$11*$I$14*InputSummary!AY16 -> 137.0020186
E44: Non-variant allowed repex | G44: £m 23/24 prices | AP44: =AP$10*$I$13*InputSummary!AP1008+AP$11*$I$14*InputSummary!AP17 -> 4.867314232 | AQ44: =AQ$10*$I$13*InputSummary!AQ1008+AQ$11*$I$14*InputSummary!AQ17 -> 5.084308992 | AR44: =AR$10*$I$13*InputSummary!AR1008+AR$11*$I$14*InputSummary!AR17 -> 5.263806357 | AS44: =AS$10*$I$13*InputSummary!AS1008+AS$11*$I$14*InputSummary!AS17 -> 4.5643719 | AT44: =AT$10*$I$13*InputSummary!AT1008+AT$11*$I$14*InputSummary!AT17 -> 4.494432626 | AU44: =AU$10*$I$13*InputSummary!AU1008+AU$11*$I$14*InputSummary!AU17 -> 1.787639991 | AV44: =AV$10*$I$13*InputSummary!AV1008+AV$11*$I$14*InputSummary!AV17 -> 1.502922253 | AW44: =AW$10*$I$13*InputSummary!AW1008+AW$11*$I$14*InputSummary!AW17 -> 1.369714769 | AX44: =AX$10*$I$13*InputSummary!AX1008+AX$11*$I$14*InputSummary!AX17 -> 1.407958437 | AY44: =AY$10*$I$13*InputSummary!AY1008+AY$11*$I$14*InputSummary!AY17 -> 1.213146601
E45: Total | G45: £m 23/24 prices | AP45: =SUM(AP40:AP44) -> 217.4517735 | AQ45: =SUM(AQ40:AQ44) -> 210.6489535 | AR45: =SUM(AR40:AR44) -> 214.6938821 | AS45: =SUM(AS40:AS44) -> 200.9660011 | AT45: =SUM(AT40:AT44) -> 189.3536238 | AU45: =SUM(AU40:AU44) -> 288.8531086 | AV45: 262.2287146 | AW45: 252.0085145 | AX45: 247.7236984 | AY45: 231.9750833
C47: Variant allowances (including Real Price Effects)
C48: Note: In the table below RPEs are aggregated in three groups: RPE non-variant allowances, PCDs and UMs. This allows to apply the correct capitalisation rate to each group.
E50: =InputSummary!E22 -> Gas Holder demolitions Price Control Deliverable [WWU and NGN only] | F50: SpC 3.25 | G50: =price_label -> £m 23/24 prices | H50: GHRRt | I50: PCD | AP50: =AP$10*$I$13*InputSummary!AP1013 + AP$11*$I$14*InputSummary!AP22 -> 0 | AQ50: =AQ$10*$I$13*InputSummary!AQ1013 + AQ$11*$I$14*InputSummary!AQ22 -> 0 | AR50: =AR$10*$I$13*InputSummary!AR1013 + AR$11*$I$14*InputSummary!AR22 -> 0 | AS50: =AS$10*$I$13*InputSummary!AS1013 + AS$11*$I$14*InputSummary!AS22 -> 0 | AT50: =AT$10*$I$13*InputSummary!AT1013 + AT$11*$I$14*InputSummary!AT22 -> 0 | AU50: =AU$10*$I$13*InputSummary!AU1013 + AU$11*$I$14*InputSummary!AU22 -> 0 | AV50: =AV$10*$I$13*InputSummary!AV1013 + AV$11*$I$14*InputSummary!AV22 -> 0 | AW50: =AW$10*$I$13*InputSummary!AW1013 + AW$11*$I$14*InputSummary!AW22 -> 0 | AX50: =AX$10*$I$13*InputSummary!AX1013 + AX$11*$I$14*InputSummary!AX22 -> 0 | AY50: =AY$10*$I$13*InputSummary!AY1013 + AY$11*$I$14*InputSummary!AY22 -> 0
E51: =InputSummary!E23 -> Baseline Network Risk Output | F51: SpC 3.1 | G51: £m 23/24 prices | H51: NARMt | I51: PCD | AP51: =AP$10*$I$13*InputSummary!AP1014 + AP$11*$I$14*InputSummary!AP23 -> 29.52879546 | AQ51: =AQ$10*$I$13*InputSummary!AQ1014 + AQ$11*$I$14*InputSummary!AQ23 -> 31.63354722 | AR51: =AR$10*$I$13*InputSummary!AR1014 + AR$11*$I$14*InputSummary!AR23 -> 30.94856884 | AS51: =AS$10*$I$13*InputSummary!AS1014 + AS$11*$I$14*InputSummary!AS23 -> 27.49876861 | AT51: =AT$10*$I$13*InputSummary!AT1014 + AT$11*$I$14*InputSummary!AT23 -> 26.53979887 | AU51: =AU$10*$I$13*InputSummary!AU1014 + AU$11*$I$14*InputSummary!AU23 -> 0 | AV51: =AV$10*$I$13*InputSummary!AV1014 + AV$11*$I$14*InputSummary!AV23 -> 0 | AW51: =AW$10*$I$13*InputSummary!AW1014 + AW$11*$I$14*InputSummary!AW23 -> 0 | AX51: =AX$10*$I$13*InputSummary!AX1014 + AX$11*$I$14*InputSummary!AX23 -> 0 | AY51: =AY$10*$I$13*InputSummary!AY1014 + AY$11*$I$14*InputSummary!AY23 -> 0
E52: =InputSummary!E24 -> Tier 1 Mains decommissioned Price Control Deliverable | F52: SpC 3.10 | G52: £m 23/24 prices | H52: T1MDt | I52: PCD | AP52: =AP$10*$I$13*InputSummary!AP1015 + AP$11*$I$14*InputSummary!AP24 -> 91.16494728 | AQ52: =AQ$10*$I$13*InputSummary!AQ1015 + AQ$11*$I$14*InputSummary!AQ24 -> 89.51156515 | AR52: =AR$10*$I$13*InputSummary!AR1015 + AR$11*$I$14*InputSummary!AR24 -> 88.64671911 | AS52: =AS$10*$I$13*InputSummary!AS1015 + AS$11*$I$14*InputSummary!AS24 -> 87.75643642 | AT52: =AT$10*$I$13*InputSummary!AT1015 + AT$11*$I$14*InputSummary!AT24 -> 86.85343541 | AU52: =AU$10*$I$13*InputSummary!AU1015 + AU$11*$I$14*InputSummary!AU24 -> 0 | AV52: =AV$10*$I$13*InputSummary!AV1015 + AV$11*$I$14*InputSummary!AV24 -> 0 | AW52: =AW$10*$I$13*InputSummary!AW1015 + AW$11*$I$14*InputSummary!AW24 -> 0 | AX52: =AX$10*$I$13*InputSummary!AX1015 + AX$11*$I$14*InputSummary!AX24 -> 0 | AY52: =AY$10*$I$13*InputSummary!AY1015 + AY$11*$I$14*InputSummary!AY24 -> 0
E53: =InputSummary!E25 -> Tier 1 Services Repex Price Control Deliverable | F53: SpC 3.11 | G53: £m 23/24 prices | H53: T1SRt | I53: PCD | AP53: =AP$10*$I$13*InputSummary!AP1016 + AP$11*$I$14*InputSummary!AP25 -> 44.12896265 | AQ53: =AQ$10*$I$13*InputSummary!AQ1016 + AQ$11*$I$14*InputSummary!AQ25 -> 43.66401541 | AR53: =AR$10*$I$13*InputSummary!AR1016 + AR$11*$I$14*InputSummary!AR25 -> 43.33581736 | AS53: =AS$10*$I$13*InputSummary!AS1016 + AS$11*$I$14*InputSummary!AS25 -> 42.85719521 | AT53: =AT$10*$I$13*InputSummary!AT1016 + AT$11*$I$14*InputSummary!AT25 -> 42.40592289 | AU53: =AU$10*$I$13*InputSummary!AU1016 + AU$11*$I$14*InputSummary!AU25 -> 0 | AV53: =AV$10*$I$13*InputSummary!AV1016 + AV$11*$I$14*InputSummary!AV25 -> 0 | AW53: =AW$10*$I$13*InputSummary!AW1016 + AW$11*$I$14*InputSummary!AW25 -> 0 | AX53: =AX$10*$I$13*InputSummary!AX1016 + AX$11*$I$14*InputSummary!AX25 -> 0 | AY53: =AY$10*$I$13*InputSummary!AY1016 + AY$11*$I$14*InputSummary!AY25 -> 0
E54: =InputSummary!E26 -> Biomethane improved access rollout Price Control Deliverable [SGN only] | F54: SpC 3.30 | G54: £m 23/24 prices | H54: BMIt | I54: PCD | AP54: =AP$10*$I$13*InputSummary!AP1017 + AP$11*$I$14*InputSummary!AP26 -> 0 | AQ54: =AQ$10*$I$13*InputSummary!AQ1017 + AQ$11*$I$14*InputSummary!AQ26 -> 0 | AR54: =AR$10*$I$13*InputSummary!AR1017 + AR$11*$I$14*InputSummary!AR26 -> 0 | AS54: =AS$10*$I$13*InputSummary!AS1017 + AS$11*$I$14*InputSummary!AS26 -> 0 | AT54: =AT$10*$I$13*InputSummary!AT1017 + AT$11*$I$14*InputSummary!AT26 -> 0 | AU54: =AU$10*$I$13*InputSummary!AU1017 + AU$11*$I$14*InputSummary!AU26 -> 0 | AV54: =AV$10*$I$13*InputSummary!AV1017 + AV$11*$I$14*InputSummary!AV26 -> 0 | AW54: =AW$10*$I$13*InputSummary!AW1017 + AW$11*$I$14*InputSummary!AW26 -> 0 | AX54: =AX$10*$I$13*InputSummary!AX1017 + AX$11*$I$14*InputSummary!AX26 -> 0 | AY54: =AY$10*$I$13*InputSummary!AY1017 + AY$11*$I$14*InputSummary!AY26 -> 0
E55: =InputSummary!E27 -> Remote pressure management Price Control Deliverable [SGN Southern only] | F55: SpC 3.29 | G55: £m 23/24 prices | H55: RPMt | I55: PCD | AP55: =AP$10*$I$13*InputSummary!AP1018 + AP$11*$I$14*InputSummary!AP27 -> 0 | AQ55: =AQ$10*$I$13*InputSummary!AQ1018 + AQ$11*$I$14*InputSummary!AQ27 -> 0 | AR55: =AR$10*$I$13*InputSummary!AR1018 + AR$11*$I$14*InputSummary!AR27 -> 0 | AS55: =AS$10*$I$13*InputSummary!AS1018 + AS$11*$I$14*InputSummary!AS27 -> 0 | AT55: =AT$10*$I$13*InputSummary!AT1018 + AT$11*$I$14*InputSummary!AT27 -> 0 | AU55: =AU$10*$I$13*InputSummary!AU1018 + AU$11*$I$14*InputSummary!AU27 -> 0 | AV55: =AV$10*$I$13*InputSummary!AV1018 + AV$11*$I$14*InputSummary!AV27 -> 0 | AW55: =AW$10*$I$13*InputSummary!AW1018 + AW$11*$I$14*InputSummary!AW27 -> 0 | AX55: =AX$10*$I$13*InputSummary!AX1018 + AX$11*$I$14*InputSummary!AX27 -> 0 | AY55: =AY$10*$I$13*InputSummary!AY1018 + AY$11*$I$14*InputSummary!AY27 -> 0
E56: =InputSummary!E28 -> Intermediate pressure reconfigurations Price Control Deliverable [SGN Scotland only] | F56: SpC 3.28 | G56: £m 23/24 prices | H56: IPRt | I56: PCD | AP56: =AP$10*$I$13*InputSummary!AP1019 + AP$11*$I$14*InputSummary!AP28 -> 0 | AQ56: =AQ$10*$I$13*InputSummary!AQ1019 + AQ$11*$I$14*InputSummary!AQ28 -> 0 | AR56: =AR$10*$I$13*InputSummary!AR1019 + AR$11*$I$14*InputSummary!AR28 -> 0 | AS56: =AS$10*$I$13*InputSummary!AS1019 + AS$11*$I$14*InputSummary!AS28 -> 0 | AT56: =AT$10*$I$13*InputSummary!AT1019 + AT$11*$I$14*InputSummary!AT28 -> 0 | AU56: =AU$10*$I$13*InputSummary!AU1019 + AU$11*$I$14*InputSummary!AU28 -> 0 | AV56: =AV$10*$I$13*InputSummary!AV1019 + AV$11*$I$14*InputSummary!AV28 -> 0 | AW56: =AW$10*$I$13*InputSummary!AW1019 + AW$11*$I$14*InputSummary!AW28 -> 0 | AX56: =AX$10*$I$13*InputSummary!AX1019 + AX$11*$I$14*InputSummary!AX28 -> 0 | AY56: =AY$10*$I$13*InputSummary!AY1019 + AY$11*$I$14*InputSummary!AY28 -> 0
E57: =InputSummary!E29 -> Capital projects Price Control Deliverable | F57: SpC 3.12 | G57: £m 23/24 prices | H57: CAPt | I57: PCD | AP57: =AP$10*$I$13*InputSummary!AP1020 + AP$11*$I$14*InputSummary!AP29 -> 5.529643688 | AQ57: =AQ$10*$I$13*InputSummary!AQ1020 + AQ$11*$I$14*InputSummary!AQ29 -> 9.228526965 | AR57: =AR$10*$I$13*InputSummary!AR1020 + AR$11*$I$14*InputSummary!AR29 -> 5.03147759 | AS57: =AS$10*$I$13*InputSummary!AS1020 + AS$11*$I$14*InputSummary!AS29 -> 2.328926508 | AT57: =AT$10*$I$13*InputSummary!AT1020 + AT$11*$I$14*InputSummary!AT29 -> 2.291564051 | AU57: =AU$10*$I$13*InputSummary!AU1020 + AU$11*$I$14*InputSummary!AU29 -> 0 | AV57: =AV$10*$I$13*InputSummary!AV1020 + AV$11*$I$14*InputSummary!AV29 -> 0 | AW57: =AW$10*$I$13*InputSummary!AW1020 + AW$11*$I$14*InputSummary!AW29 -> 0 | AX57: =AX$10*$I$13*InputSummary!AX1020 + AX$11*$I$14*InputSummary!AX29 -> 0 | AY57: =AY$10*$I$13*InputSummary!AY1020 + AY$11*$I$14*InputSummary!AY29 -> 0
E58: =InputSummary!E30 -> Commercial fleet Price Control Deliverable | F58: SpC 3.13 | G58: £m 23/24 prices | H58: OTCt | I58: PCD | AP58: =AP$10*$I$13*InputSummary!AP1021 + AP$11*$I$14*InputSummary!AP30 -> -0.001782498849 | AQ58: =AQ$10*$I$13*InputSummary!AQ1021 + AQ$11*$I$14*InputSummary!AQ30 -> 0.1633462232 | AR58: =AR$10*$I$13*InputSummary!AR1021 + AR$11*$I$14*InputSummary!AR30 -> 0.9846111504 | AS58: =AS$10*$I$13*InputSummary!AS1021 + AS$11*$I$14*InputSummary!AS30 -> 0.9278509034 | AT58: =AT$10*$I$13*InputSummary!AT1021 + AT$11*$I$14*InputSummary!AT30 -> 1.917939477 | AU58: =AU$10*$I$13*InputSummary!AU1021 + AU$11*$I$14*InputSummary!AU30 -> 0 | AV58: =AV$10*$I$13*InputSummary!AV1021 + AV$11*$I$14*InputSummary!AV30 -> 0 | AW58: =AW$10*$I$13*InputSummary!AW1021 + AW$11*$I$14*InputSummary!AW30 -> 0 | AX58: =AX$10*$I$13*InputSummary!AX1021 + AX$11*$I$14*InputSummary!AX30 -> 0 | AY58: =AY$10*$I$13*InputSummary!AY1021 + AY$11*$I$14*InputSummary!AY30 -> 0
E59: =InputSummary!E31 -> Gas escape reduction Price Control Deliverable [SGN only] | F59: SpC 3.31 | G59: £m 23/24 prices | H59: GERt | I59: PCD | AP59: =AP$10*$I$13*InputSummary!AP1022 + AP$11*$I$14*InputSummary!AP31 -> 0 | AQ59: =AQ$10*$I$13*InputSummary!AQ1022 + AQ$11*$I$14*InputSummary!AQ31 -> 0 | AR59: =AR$10*$I$13*InputSummary!AR1022 + AR$11*$I$14*InputSummary!AR31 -> 0 | AS59: =AS$10*$I$13*InputSummary!AS1022 + AS$11*$I$14*InputSummary!AS31 -> 0 | AT59: =AT$10*$I$13*InputSummary!AT1022 + AT$11*$I$14*InputSummary!AT31 -> 0 | AU59: =AU$10*$I$13*InputSummary!AU1022 + AU$11*$I$14*InputSummary!AU31 -> 0 | AV59: =AV$10*$I$13*InputSummary!AV1022 + AV$11*$I$14*InputSummary!AV31 -> 0 | AW59: =AW$10*$I$13*InputSummary!AW1022 + AW$11*$I$14*InputSummary!AW31 -> 0 | AX59: =AX$10*$I$13*InputSummary!AX1022 + AX$11*$I$14*InputSummary!AX31 -> 0 | AY59: =AY$10*$I$13*InputSummary!AY1022 + AY$11*$I$14*InputSummary!AY31 -> 0
E60: =InputSummary!E32 -> Cyber Resilience OT Baseline | F60: SpC 3.2 | G60: £m 23/24 prices | H60: CROTt | I60: PCD | AP60: =AP$10*$I$13*InputSummary!AP1023 + AP$11*$I$14*InputSummary!AP32 -> 0.1369956769 | AQ60: =AQ$10*$I$13*InputSummary!AQ1023 + AQ$11*$I$14*InputSummary!AQ32 -> 0.1992664392 | AR60: =AR$10*$I$13*InputSummary!AR1023 + AR$11*$I$14*InputSummary!AR32 -> 0.3860787259 | AS60: =AS$10*$I$13*InputSummary!AS1023 + AS$11*$I$14*InputSummary!AS32 -> 0 | AT60: =AT$10*$I$13*InputSummary!AT1023 + AT$11*$I$14*InputSummary!AT32 -> 0 | AU60: =AU$10*$I$13*InputSummary!AU1023 + AU$11*$I$14*InputSummary!AU32 -> 0 | AV60: =AV$10*$I$13*InputSummary!AV1023 + AV$11*$I$14*InputSummary!AV32 -> 0 | AW60: =AW$10*$I$13*InputSummary!AW1023 + AW$11*$I$14*InputSummary!AW32 -> 0 | AX60: =AX$10*$I$13*InputSummary!AX1023 + AX$11*$I$14*InputSummary!AX32 -> 0 | AY60: =AY$10*$I$13*InputSummary!AY1023 + AY$11*$I$14*InputSummary!AY32 -> 0
E61: =InputSummary!E33 -> Cyber Resilience IT Baseline | F61: SpC 3.3 | G61: £m 23/24 prices | H61: CRITt | I61: PCD | AP61: =AP$10*$I$13*InputSummary!AP1024 + AP$11*$I$14*InputSummary!AP33 -> 0 | AQ61: =AQ$10*$I$13*InputSummary!AQ1024 + AQ$11*$I$14*InputSummary!AQ33 -> 0 | AR61: =AR$10*$I$13*InputSummary!AR1024 + AR$11*$I$14*InputSummary!AR33 -> 0 | AS61: =AS$10*$I$13*InputSummary!AS1024 + AS$11*$I$14*InputSummary!AS33 -> 0 | AT61: =AT$10*$I$13*InputSummary!AT1024 + AT$11*$I$14*InputSummary!AT33 -> 0 | AU61: =AU$10*$I$13*InputSummary!AU1024 + AU$11*$I$14*InputSummary!AU33 -> 0 | AV61: =AV$10*$I$13*InputSummary!AV1024 + AV$11*$I$14*InputSummary!AV33 -> 0 | AW61: =AW$10*$I$13*InputSummary!AW1024 + AW$11*$I$14*InputSummary!AW33 -> 0 | AX61: =AX$10*$I$13*InputSummary!AX1024 + AX$11*$I$14*InputSummary!AX33 -> 0 | AY61: =AY$10*$I$13*InputSummary!AY1024 + AY$11*$I$14*InputSummary!AY33 -> 0
E62: =InputSummary!E34 -> Physical security Price Control Deliverable | F62: SpC 3.4 | G62: £m 23/24 prices | H62: PSUPt | I62: PCD | AP62: =AP$10*$I$13*InputSummary!AP1025 + AP$11*$I$14*InputSummary!AP34 -> 0 | AQ62: =AQ$10*$I$13*InputSummary!AQ1025 + AQ$11*$I$14*InputSummary!AQ34 -> 0 | AR62: =AR$10*$I$13*InputSummary!AR1025 + AR$11*$I$14*InputSummary!AR34 -> 0 | AS62: =AS$10*$I$13*InputSummary!AS1025 + AS$11*$I$14*InputSummary!AS34 -> 0 | AT62: =AT$10*$I$13*InputSummary!AT1025 + AT$11*$I$14*InputSummary!AT34 -> 0 | AU62: =AU$10*$I$13*InputSummary!AU1025 + AU$11*$I$14*InputSummary!AU34 -> 0 | AV62: =AV$10*$I$13*InputSummary!AV1025 + AV$11*$I$14*InputSummary!AV34 -> 0 | AW62: =AW$10*$I$13*InputSummary!AW1025 + AW$11*$I$14*InputSummary!AW34 -> 0 | AX62: =AX$10*$I$13*InputSummary!AX1025 + AX$11*$I$14*InputSummary!AX34 -> 0 | AY62: =AY$10*$I$13*InputSummary!AY1025 + AY$11*$I$14*InputSummary!AY34 -> 0
... 74 more rows

Sheet Totex
A1: Totex
B2: =UserInterface!G17 -> East
E3: Parameter | G3: Units | I3: Constant | AP3: Annual values
E4: PCFM year ending | I4: =UserInterface!$G$10 -> 2025-03-31 | K4: 1991-03-31 | L4: 1992-03-31 | M4: 1993-03-31 | N4: 1994-03-31 | O4: 1995-03-31 | P4: 1996-03-31 | Q4: 1997-03-31 | R4: 1998-03-31 | S4: 1999-03-31 | T4: 2000-03-31 | U4: 2001-03-31 | V4: 2002-03-31 | W4: 2003-03-31 | X4: 2004-03-31 | Y4: 2005-03-31 | Z4: 2006-03-31 | AA4: 2007-03-31 | AB4: 2008-03-31 | AC4: 2009-03-31 | AD4: 2010-03-31 | AE4: 2011-03-31 | AF4: 2012-03-31 | AG4: 2013-03-31 | AH4: 2014-03-31 | AI4: 2015-03-31 | AJ4: 2016-03-31 | AK4: 2017-03-31 | AL4: 2018-03-31 | AM4: 2019-03-31 | AN4: 2020-03-31 | AO4: 2021-03-31 | AP4: 2022-03-31 | AQ4: 2023-03-31 | AR4: 2024-03-31 | AS4: 2025-03-31 | AT4: 2026-03-31 | AU4: 2027-03-31 | AV4: 2028-03-31 | AW4: 2029-03-31 | AX4: 2030-03-31 | AY4: =EOMONTH(AX4,12) -> 2031-03-31
AP5: 2 | AQ5: 2 | AR5: 2 | AS5: 2 | AT5: 2 | AU5: 3 | AV5: 3 | AW5: 3 | AX5: 3 | AY5: 3
C7: Price control timeline
E9: Pre-RIIO-2 year | G9: flag | K9: =Scenarios!K$119 -> 1 | L9: =Scenarios!L$119 -> 1 | M9: =Scenarios!M$119 -> 1 | N9: =Scenarios!N$119 -> 1 | O9: =Scenarios!O$119 -> 1 | P9: =Scenarios!P$119 -> 1 | Q9: =Scenarios!Q$119 -> 1 | R9: =Scenarios!R$119 -> 1 | S9: =Scenarios!S$119 -> 1 | T9: =Scenarios!T$119 -> 1 | U9: =Scenarios!U$119 -> 1 | V9: =Scenarios!V$119 -> 1 | W9: =Scenarios!W$119 -> 1 | X9: =Scenarios!X$119 -> 1 | Y9: =Scenarios!Y$119 -> 1 | Z9: =Scenarios!Z$119 -> 1 | AA9: =Scenarios!AA$119 -> 1 | AB9: =Scenarios!AB$119 -> 1 | AC9: =Scenarios!AC$119 -> 1 | AD9: =Scenarios!AD$119 -> 1 | AE9: =Scenarios!AE$119 -> 1 | AF9: =Scenarios!AF$119 -> 1 | AG9: =Scenarios!AG$119 -> 1 | AH9: =Scenarios!AH$119 -> 1 | AI9: =Scenarios!AI$119 -> 1 | AJ9: =Scenarios!AJ$119 -> 1 | AK9: =Scenarios!AK$119 -> 1 | AL9: =Scenarios!AL$119 -> 1 | AM9: =Scenarios!AM$119 -> 1 | AN9: =Scenarios!AN$119 -> 1 | AO9: =Scenarios!AO$119 -> 1 | AP9: =Scenarios!AP$119 -> 0 | AQ9: =Scenarios!AQ$119 -> 0 | AR9: =Scenarios!AR$119 -> 0 | AS9: =Scenarios!AS$119 -> 0 | AT9: =Scenarios!AT$119 -> 0 | AU9: =Scenarios!AU$119 -> 0 | AV9: =Scenarios!AV$119 -> 0 | AW9: =Scenarios!AW$119 -> 0 | AX9: =Scenarios!AX$119 -> 0 | AY9: =Scenarios!AY$119 -> 0
E10: RIIO-2 year | G10: flag | K10: =Scenarios!K$120 -> 0 | L10: =Scenarios!L$120 -> 0 | M10: =Scenarios!M$120 -> 0 | N10: =Scenarios!N$120 -> 0 | O10: =Scenarios!O$120 -> 0 | P10: =Scenarios!P$120 -> 0 | Q10: =Scenarios!Q$120 -> 0 | R10: =Scenarios!R$120 -> 0 | S10: =Scenarios!S$120 -> 0 | T10: =Scenarios!T$120 -> 0 | U10: =Scenarios!U$120 -> 0 | V10: =Scenarios!V$120 -> 0 | W10: =Scenarios!W$120 -> 0 | X10: =Scenarios!X$120 -> 0 | Y10: =Scenarios!Y$120 -> 0 | Z10: =Scenarios!Z$120 -> 0 | AA10: =Scenarios!AA$120 -> 0 | AB10: =Scenarios!AB$120 -> 0 | AC10: =Scenarios!AC$120 -> 0 | AD10: =Scenarios!AD$120 -> 0 | AE10: =Scenarios!AE$120 -> 0 | AF10: =Scenarios!AF$120 -> 0 | AG10: =Scenarios!AG$120 -> 0 | AH10: =Scenarios!AH$120 -> 0 | AI10: =Scenarios!AI$120 -> 0 | AJ10: =Scenarios!AJ$120 -> 0 | AK10: =Scenarios!AK$120 -> 0 | AL10: =Scenarios!AL$120 -> 0 | AM10: =Scenarios!AM$120 -> 0 | AN10: =Scenarios!AN$120 -> 0 | AO10: =Scenarios!AO$120 -> 0 | AP10: =Scenarios!AP$120 -> 1 | AQ10: =Scenarios!AQ$120 -> 1 | AR10: =Scenarios!AR$120 -> 1 | AS10: =Scenarios!AS$120 -> 1 | AT10: =Scenarios!AT$120 -> 1 | AU10: =Scenarios!AU$120 -> 0 | AV10: =Scenarios!AV$120 -> 0 | AW10: =Scenarios!AW$120 -> 0 | AX10: =Scenarios!AX$120 -> 0 | AY10: =Scenarios!AY$120 -> 0
E11: RIIO-3 year | G11: flag | K11: =Scenarios!K$121 -> 0 | L11: =Scenarios!L$121 -> 0 | M11: =Scenarios!M$121 -> 0 | N11: =Scenarios!N$121 -> 0 | O11: =Scenarios!O$121 -> 0 | P11: =Scenarios!P$121 -> 0 | Q11: =Scenarios!Q$121 -> 0 | R11: =Scenarios!R$121 -> 0 | S11: =Scenarios!S$121 -> 0 | T11: =Scenarios!T$121 -> 0 | U11: =Scenarios!U$121 -> 0 | V11: =Scenarios!V$121 -> 0 | W11: =Scenarios!W$121 -> 0 | X11: =Scenarios!X$121 -> 0 | Y11: =Scenarios!Y$121 -> 0 | Z11: =Scenarios!Z$121 -> 0 | AA11: =Scenarios!AA$121 -> 0 | AB11: =Scenarios!AB$121 -> 0 | AC11: =Scenarios!AC$121 -> 0 | AD11: =Scenarios!AD$121 -> 0 | AE11: =Scenarios!AE$121 -> 0 | AF11: =Scenarios!AF$121 -> 0 | AG11: =Scenarios!AG$121 -> 0 | AH11: =Scenarios!AH$121 -> 0 | AI11: =Scenarios!AI$121 -> 0 | AJ11: =Scenarios!AJ$121 -> 0 | AK11: =Scenarios!AK$121 -> 0 | AL11: =Scenarios!AL$121 -> 0 | AM11: =Scenarios!AM$121 -> 0 | AN11: =Scenarios!AN$121 -> 0 | AO11: =Scenarios!AO$121 -> 0 | AP11: =Scenarios!AP$121 -> 0 | AQ11: =Scenarios!AQ$121 -> 0 | AR11: =Scenarios!AR$121 -> 0 | AS11: =Scenarios!AS$121 -> 0 | AT11: =Scenarios!AT$121 -> 0 | AU11: =Scenarios!AU$121 -> 1 | AV11: =Scenarios!AV$121 -> 1 | AW11: =Scenarios!AW$121 -> 1 | AX11: =Scenarios!AX$121 -> 1 | AY11: =Scenarios!AY$121 -> 1
C13: Scenario operators
E15: User multiplier for allowed totex | G15: % | AP15: =Scenarios!AP130 -> 0 | AQ15: =Scenarios!AQ130 -> 0 | AR15: =Scenarios!AR130 -> 0 | AS15: =Scenarios!AS130 -> 0 | AT15: =Scenarios!AT130 -> 0 | AU15: =Scenarios!AU130 -> 1 | AV15: =Scenarios!AV130 -> 1 | AW15: =Scenarios!AW130 -> 1 | AX15: =Scenarios!AX130 -> 1 | AY15: =Scenarios!AY130 -> 1
E16: User multiplier for actual totex | G16: % | AP16: =Scenarios!AP131 -> 0 | AQ16: =Scenarios!AQ131 -> 0 | AR16: =Scenarios!AR131 -> 0 | AS16: =Scenarios!AS131 -> 0 | AT16: =Scenarios!AT131 -> 0 | AU16: =Scenarios!AU131 -> 1 | AV16: =Scenarios!AV131 -> 1 | AW16: =Scenarios!AW131 -> 1 | AX16: =Scenarios!AX131 -> 1 | AY16: =Scenarios!AY131 -> 1
B18: Totex
C20: Allowed totex aggregated by sub-category
C21: Note: Totex is the sum of a number of cost categories, with all totex allowances falling under one (or more) of them. They have significance in the model as each sub-category can have its own set of tax pool allocation rules.
D23: Capitalisation rate 1 totex
E25: Load related capex | G25: =price_label -> £m 23/24 prices | AP25: =(MainInputs!AP40 + SUMPRODUCT((MainInputs!AP$1006:AP$1470) * (MainInputs!$H$1006:$H$1470 = $E25) * (MainInputs!$BD$1006:$BD$1470 = "CapRate 1 (Baseline excl. Repex)")))*(AP$10+AP$11*AP$15) -> 34.68781712 | AQ25: =(MainInputs!AQ40 + SUMPRODUCT((MainInputs!AQ$1006:AQ$1470) * (MainInputs!$H$1006:$H$1470 = $E25) * (MainInputs!$BD$1006:$BD$1470 = "CapRate 1 (Baseline excl. Repex)")))*(AQ$10+AQ$11*AQ$15) -> 40.93480049 | AR25: =(MainInputs!AR40 + SUMPRODUCT((MainInputs!AR$1006:AR$1470) * (MainInputs!$H$1006:$H$1470 = $E25) * (MainInputs!$BD$1006:$BD$1470 = "CapRate 1 (Baseline excl. Repex)")))*(AR$10+AR$11*AR$15) -> 33.65098193 | AS25: =(MainInputs!AS40 + SUMPRODUCT((MainInputs!AS$1006:AS$1470) * (MainInputs!$H$1006:$H$1470 = $E25) * (MainInputs!$BD$1006:$BD$1470 = "CapRate 1 (Baseline excl. Repex)")))*(AS$10+AS$11*AS$15) -> 31.5113423 | AT25: =(MainInputs!AT40 + SUMPRODUCT((MainInputs!AT$1006:AT$1470) * (MainInputs!$H$1006:$H$1470 = $E25) * (MainInputs!$BD$1006:$BD$1470 = "CapRate 1 (Baseline excl. Repex)")))*(AT$10+AT$11*AT$15) -> 29.9918822 | AU25: =(MainInputs!AU40 + SUMPRODUCT((MainInputs!AU$1006:AU$1470) * (MainInputs!$H$1006:$H$1470 = $E25) * (MainInputs!$BD$1006:$BD$1470 = "CapRate 1 (Baseline excl. Repex)")))*(AU$10+AU$11*AU$15) -> 11.00315244 | AV25: =(MainInputs!AV40 + SUMPRODUCT((MainInputs!AV$1006:AV$1470) * (MainInputs!$H$1006:$H$1470 = $E25) * (MainInputs!$BD$1006:$BD$1470 = "CapRate 1 (Baseline excl. Repex)")))*(AV$10+AV$11*AV$15) -> 9.980817048 | AW25: =(MainInputs!AW40 + SUMPRODUCT((MainInputs!AW$1006:AW$1470) * (MainInputs!$H$1006:$H$1470 = $E25) * (MainInputs!$BD$1006:$BD$1470 = "CapRate 1 (Baseline excl. Repex)")))*(AW$10+AW$11*AW$15) -> 8.831112555 | AX25: =(MainInputs!AX40 + SUMPRODUCT((MainInputs!AX$1006:AX$1470) * (MainInputs!$H$1006:$H$1470 = $E25) * (MainInputs!$BD$1006:$BD$1470 = "CapRate 1 (Baseline excl. Repex)")))*(AX$10+AX$11*AX$15) -> 8.717566734 | AY25: =(MainInputs!AY40 + SUMPRODUCT((MainInputs!AY$1006:AY$1470) * (MainInputs!$H$1006:$H$1470 = $E25) * (MainInputs!$BD$1006:$BD$1470 = "CapRate 1 (Baseline excl. Repex)")))*(AY$10+AY$11*AY$15) -> 8.091288334
E26: Non-load related capex - other | G26: =price_label -> £m 23/24 prices | AP26: =(MainInputs!AP41 + SUMPRODUCT((MainInputs!AP$1006:AP$1470) * (MainInputs!$H$1006:$H$1470 = $E26) * (MainInputs!$BD$1006:$BD$1470 = "CapRate 1 (Baseline excl. Repex)")))*(AP$10+AP$11*AP$15) -> 35.08759619 | AQ26: =(MainInputs!AQ41 + SUMPRODUCT((MainInputs!AQ$1006:AQ$1470) * (MainInputs!$H$1006:$H$1470 = $E26) * (MainInputs!$BD$1006:$BD$1470 = "CapRate 1 (Baseline excl. Repex)")))*(AQ$10+AQ$11*AQ$15) -> 31.09593124 | AR26: =(MainInputs!AR41 + SUMPRODUCT((MainInputs!AR$1006:AR$1470) * (MainInputs!$H$1006:$H$1470 = $E26) * (MainInputs!$BD$1006:$BD$1470 = "CapRate 1 (Baseline excl. Repex)")))*(AR$10+AR$11*AR$15) -> 33.57694704 | AS26: =(MainInputs!AS41 + SUMPRODUCT((MainInputs!AS$1006:AS$1470) * (MainInputs!$H$1006:$H$1470 = $E26) * (MainInputs!$BD$1006:$BD$1470 = "CapRate 1 (Baseline excl. Repex)")))*(AS$10+AS$11*AS$15) -> 30.4618462 | AT26: =(MainInputs!AT41 + SUMPRODUCT((MainInputs!AT$1006:AT$1470) * (MainInputs!$H$1006:$H$1470 = $E26) * (MainInputs!$BD$1006:$BD$1470 = "CapRate 1 (Baseline excl. Repex)")))*(AT$10+AT$11*AT$15) -> 20.21271171 | AU26: =(MainInputs!AU41 + SUMPRODUCT((MainInputs!AU$1006:AU$1470) * (MainInputs!$H$1006:$H$1470 = $E26) * (MainInputs!$BD$1006:$BD$1470 = "CapRate 1 (Baseline excl. Repex)")))*(AU$10+AU$11*AU$15) -> 105.2992875 | AV26: =(MainInputs!AV41 + SUMPRODUCT((MainInputs!AV$1006:AV$1470) * (MainInputs!$H$1006:$H$1470 = $E26) * (MainInputs!$BD$1006:$BD$1470 = "CapRate 1 (Baseline excl. Repex)")))*(AV$10+AV$11*AV$15) -> 79.73271414 | AW26: =(MainInputs!AW41 + SUMPRODUCT((MainInputs!AW$1006:AW$1470) * (MainInputs!$H$1006:$H$1470 = $E26) * (MainInputs!$BD$1006:$BD$1470 = "CapRate 1 (Baseline excl. Repex)")))*(AW$10+AW$11*AW$15) -> 75.59311247 | AX26: =(MainInputs!AX41 + SUMPRODUCT((MainInputs!AX$1006:AX$1470) * (MainInputs!$H$1006:$H$1470 = $E26) * (MainInputs!$BD$1006:$BD$1470 = "CapRate 1 (Baseline excl. Repex)")))*(AX$10+AX$11*AX$15) -> 76.725728 | AY26: =(MainInputs!AY41 + SUMPRODUCT((MainInputs!AY$1006:AY$1470) * (MainInputs!$H$1006:$H$1470 = $E26) * (MainInputs!$BD$1006:$BD$1470 = "CapRate 1 (Baseline excl. Repex)")))*(AY$10+AY$11*AY$15) -> 56.44838681
E27: Business support (opex) | G27: =price_label -> £m 23/24 prices | AP27: =(MainInputs!AP42 + SUMPRODUCT((MainInputs!AP$1006:AP$1470) * (MainInputs!$H$1006:$H$1470 = $E27) * (MainInputs!$BD$1006:$BD$1470 = "CapRate 1 (Baseline excl. Repex)")))*(AP$10+AP$11*AP$15) -> 32.58240059 | AQ27: =(MainInputs!AQ42 + SUMPRODUCT((MainInputs!AQ$1006:AQ$1470) * (MainInputs!$H$1006:$H$1470 = $E27) * (MainInputs!$BD$1006:$BD$1470 = "CapRate 1 (Baseline excl. Repex)")))*(AQ$10+AQ$11*AQ$15) -> 31.35606948 | AR27: =(MainInputs!AR42 + SUMPRODUCT((MainInputs!AR$1006:AR$1470) * (MainInputs!$H$1006:$H$1470 = $E27) * (MainInputs!$BD$1006:$BD$1470 = "CapRate 1 (Baseline excl. Repex)")))*(AR$10+AR$11*AR$15) -> 30.40118526 | AS27: =(MainInputs!AS42 + SUMPRODUCT((MainInputs!AS$1006:AS$1470) * (MainInputs!$H$1006:$H$1470 = $E27) * (MainInputs!$BD$1006:$BD$1470 = "CapRate 1 (Baseline excl. Repex)")))*(AS$10+AS$11*AS$15) -> 29.7089939 | AT27: =(MainInputs!AT42 + SUMPRODUCT((MainInputs!AT$1006:AT$1470) * (MainInputs!$H$1006:$H$1470 = $E27) * (MainInputs!$BD$1006:$BD$1470 = "CapRate 1 (Baseline excl. Repex)")))*(AT$10+AT$11*AT$15) -> 27.83030753 | AU27: =(MainInputs!AU42 + SUMPRODUCT((MainInputs!AU$1006:AU$1470) * (MainInputs!$H$1006:$H$1470 = $E27) * (MainInputs!$BD$1006:$BD$1470 = "CapRate 1 (Baseline excl. Repex)")))*(AU$10+AU$11*AU$15) -> 59.04789386 | AV27: =(MainInputs!AV42 + SUMPRODUCT((MainInputs!AV$1006:AV$1470) * (MainInputs!$H$1006:$H$1470 = $E27) * (MainInputs!$BD$1006:$BD$1470 = "CapRate 1 (Baseline excl. Repex)")))*(AV$10+AV$11*AV$15) -> 56.07593791 | AW27: =(MainInputs!AW42 + SUMPRODUCT((MainInputs!AW$1006:AW$1470) * (MainInputs!$H$1006:$H$1470 = $E27) * (MainInputs!$BD$1006:$BD$1470 = "CapRate 1 (Baseline excl. Repex)")))*(AW$10+AW$11*AW$15) -> 58.37264903 | AX27: =(MainInputs!AX42 + SUMPRODUCT((MainInputs!AX$1006:AX$1470) * (MainInputs!$H$1006:$H$1470 = $E27) * (MainInputs!$BD$1006:$BD$1470 = "CapRate 1 (Baseline excl. Repex)")))*(AX$10+AX$11*AX$15) -> 58.14427604 | AY27: =(MainInputs!AY42 + SUMPRODUCT((MainInputs!AY$1006:AY$1470) * (MainInputs!$H$1006:$H$1470 = $E27) * (MainInputs!$BD$1006:$BD$1470 = "CapRate 1 (Baseline excl. Repex)")))*(AY$10+AY$11*AY$15) -> 58.15381571
E28: Directs opex | G28: =price_label -> £m 23/24 prices | AP28: =(MainInputs!AP43 + SUMPRODUCT((MainInputs!AP$1006:AP$1470) * (MainInputs!$H$1006:$H$1470 = $E28) * (MainInputs!$BD$1006:$BD$1470 = "CapRate 1 (Baseline excl. Repex)")))*(AP$10+AP$11*AP$15) -> 132.5374245 | AQ28: =(MainInputs!AQ43 + SUMPRODUCT((MainInputs!AQ$1006:AQ$1470) * (MainInputs!$H$1006:$H$1470 = $E28) * (MainInputs!$BD$1006:$BD$1470 = "CapRate 1 (Baseline excl. Repex)")))*(AQ$10+AQ$11*AQ$15) -> 126.2408262 | AR28: =(MainInputs!AR43 + SUMPRODUCT((MainInputs!AR$1006:AR$1470) * (MainInputs!$H$1006:$H$1470 = $E28) * (MainInputs!$BD$1006:$BD$1470 = "CapRate 1 (Baseline excl. Repex)")))*(AR$10+AR$11*AR$15) -> 128.741837 | AS28: =(MainInputs!AS43 + SUMPRODUCT((MainInputs!AS$1006:AS$1470) * (MainInputs!$H$1006:$H$1470 = $E28) * (MainInputs!$BD$1006:$BD$1470 = "CapRate 1 (Baseline excl. Repex)")))*(AS$10+AS$11*AS$15) -> 119.614605 | AT28: =(MainInputs!AT43 + SUMPRODUCT((MainInputs!AT$1006:AT$1470) * (MainInputs!$H$1006:$H$1470 = $E28) * (MainInputs!$BD$1006:$BD$1470 = "CapRate 1 (Baseline excl. Repex)")))*(AT$10+AT$11*AT$15) -> 121.4823139 | AU28: =(MainInputs!AU43 + SUMPRODUCT((MainInputs!AU$1006:AU$1470) * (MainInputs!$H$1006:$H$1470 = $E28) * (MainInputs!$BD$1006:$BD$1470 = "CapRate 1 (Baseline excl. Repex)")))*(AU$10+AU$11*AU$15) -> 154.5571041 | AV28: =(MainInputs!AV43 + SUMPRODUCT((MainInputs!AV$1006:AV$1470) * (MainInputs!$H$1006:$H$1470 = $E28) * (MainInputs!$BD$1006:$BD$1470 = "CapRate 1 (Baseline excl. Repex)")))*(AV$10+AV$11*AV$15) -> 157.7805269 | AW28: =(MainInputs!AW43 + SUMPRODUCT((MainInputs!AW$1006:AW$1470) * (MainInputs!$H$1006:$H$1470 = $E28) * (MainInputs!$BD$1006:$BD$1470 = "CapRate 1 (Baseline excl. Repex)")))*(AW$10+AW$11*AW$15) -> 152.6032759 | AX28: =(MainInputs!AX43 + SUMPRODUCT((MainInputs!AX$1006:AX$1470) * (MainInputs!$H$1006:$H$1470 = $E28) * (MainInputs!$BD$1006:$BD$1470 = "CapRate 1 (Baseline excl. Repex)")))*(AX$10+AX$11*AX$15) -> 150.3330138 | AY28: =(MainInputs!AY43 + SUMPRODUCT((MainInputs!AY$1006:AY$1470) * (MainInputs!$H$1006:$H$1470 = $E28) * (MainInputs!$BD$1006:$BD$1470 = "CapRate 1 (Baseline excl. Repex)")))*(AY$10+AY$11*AY$15) -> 150.9308289
E29: Repex | G29: =price_label -> £m 23/24 prices | AP29: =(MainInputs!AP44 + SUMPRODUCT((MainInputs!AP$1006:AP$1470) * (MainInputs!$H$1006:$H$1470 = $E29) * (MainInputs!$BD$1006:$BD$1470 = "CapRate 1 (Baseline excl. Repex)")))*(AP$10+AP$11*AP$15) -> 167.5193914 | AQ29: =(MainInputs!AQ44 + SUMPRODUCT((MainInputs!AQ$1006:AQ$1470) * (MainInputs!$H$1006:$H$1470 = $E29) * (MainInputs!$BD$1006:$BD$1470 = "CapRate 1 (Baseline excl. Repex)")))*(AQ$10+AQ$11*AQ$15) -> 165.9998838 | AR29: =(MainInputs!AR44 + SUMPRODUCT((MainInputs!AR$1006:AR$1470) * (MainInputs!$H$1006:$H$1470 = $E29) * (MainInputs!$BD$1006:$BD$1470 = "CapRate 1 (Baseline excl. Repex)")))*(AR$10+AR$11*AR$15) -> 160.9033099 | AS29: =(MainInputs!AS44 + SUMPRODUCT((MainInputs!AS$1006:AS$1470) * (MainInputs!$H$1006:$H$1470 = $E29) * (MainInputs!$BD$1006:$BD$1470 = "CapRate 1 (Baseline excl. Repex)")))*(AS$10+AS$11*AS$15) -> 157.2326168 | AT29: =(MainInputs!AT44 + SUMPRODUCT((MainInputs!AT$1006:AT$1470) * (MainInputs!$H$1006:$H$1470 = $E29) * (MainInputs!$BD$1006:$BD$1470 = "CapRate 1 (Baseline excl. Repex)")))*(AT$10+AT$11*AT$15) -> 154.4099648 | AU29: =(MainInputs!AU44 + SUMPRODUCT((MainInputs!AU$1006:AU$1470) * (MainInputs!$H$1006:$H$1470 = $E29) * (MainInputs!$BD$1006:$BD$1470 = "CapRate 1 (Baseline excl. Repex)")))*(AU$10+AU$11*AU$15) -> 194.9692055 | AV29: =(MainInputs!AV44 + SUMPRODUCT((MainInputs!AV$1006:AV$1470) * (MainInputs!$H$1006:$H$1470 = $E29) * (MainInputs!$BD$1006:$BD$1470 = "CapRate 1 (Baseline excl. Repex)")))*(AV$10+AV$11*AV$15) -> 195.3391638 | AW29: =(MainInputs!AW44 + SUMPRODUCT((MainInputs!AW$1006:AW$1470) * (MainInputs!$H$1006:$H$1470 = $E29) * (MainInputs!$BD$1006:$BD$1470 = "CapRate 1 (Baseline excl. Repex)")))*(AW$10+AW$11*AW$15) -> 198.1701037 | AX29: =(MainInputs!AX44 + SUMPRODUCT((MainInputs!AX$1006:AX$1470) * (MainInputs!$H$1006:$H$1470 = $E29) * (MainInputs!$BD$1006:$BD$1470 = "CapRate 1 (Baseline excl. Repex)")))*(AX$10+AX$11*AX$15) -> 201.3073458 | AY29: =(MainInputs!AY44 + SUMPRODUCT((MainInputs!AY$1006:AY$1470) * (MainInputs!$H$1006:$H$1470 = $E29) * (MainInputs!$BD$1006:$BD$1470 = "CapRate 1 (Baseline excl. Repex)")))*(AY$10+AY$11*AY$15) -> 200.4234858
D31: Capitalisation rate 2 totex
E33: Load related capex | G33: =price_label -> £m 23/24 prices | AP33: =(SUMPRODUCT((MainInputs!AP$1006:AP$1470) * (MainInputs!$H$1006:$H$1470 = $E33) * (MainInputs!$BD$1006:$BD$1470 = "CapRate 2 (UM excl. Repex)")))*(AP$10+AP$11*AP$15) -> 16.27833619 | AQ33: =(SUMPRODUCT((MainInputs!AQ$1006:AQ$1470) * (MainInputs!$H$1006:$H$1470 = $E33) * (MainInputs!$BD$1006:$BD$1470 = "CapRate 2 (UM excl. Repex)")))*(AQ$10+AQ$11*AQ$15) -> 8.944503882 | AR33: =(SUMPRODUCT((MainInputs!AR$1006:AR$1470) * (MainInputs!$H$1006:$H$1470 = $E33) * (MainInputs!$BD$1006:$BD$1470 = "CapRate 2 (UM excl. Repex)")))*(AR$10+AR$11*AR$15) -> 6.95449414 | AS33: =(SUMPRODUCT((MainInputs!AS$1006:AS$1470) * (MainInputs!$H$1006:$H$1470 = $E33) * (MainInputs!$BD$1006:$BD$1470 = "CapRate 2 (UM excl. Repex)")))*(AS$10+AS$11*AS$15) -> 13.12222755 | AT33: =(SUMPRODUCT((MainInputs!AT$1006:AT$1470) * (MainInputs!$H$1006:$H$1470 = $E33) * (MainInputs!$BD$1006:$BD$1470 = "CapRate 2 (UM excl. Repex)")))*(AT$10+AT$11*AT$15) -> 7.295443456 | AU33: =(SUMPRODUCT((MainInputs!AU$1006:AU$1470) * (MainInputs!$H$1006:$H$1470 = $E33) * (MainInputs!$BD$1006:$BD$1470 = "CapRate 2 (UM excl. Repex)")))*(AU$10+AU$11*AU$15) -> 4 | AV33: =(SUMPRODUCT((MainInputs!AV$1006:AV$1470) * (MainInputs!$H$1006:$H$1470 = $E33) * (MainInputs!$BD$1006:$BD$1470 = "CapRate 2 (UM excl. Repex)")))*(AV$10+AV$11*AV$15) -> 4 | AW33: =(SUMPRODUCT((MainInputs!AW$1006:AW$1470) * (MainInputs!$H$1006:$H$1470 = $E33) * (MainInputs!$BD$1006:$BD$1470 = "CapRate 2 (UM excl. Repex)")))*(AW$10+AW$11*AW$15) -> 4 | AX33: =(SUMPRODUCT((MainInputs!AX$1006:AX$1470) * (MainInputs!$H$1006:$H$1470 = $E33) * (MainInputs!$BD$1006:$BD$1470 = "CapRate 2 (UM excl. Repex)")))*(AX$10+AX$11*AX$15) -> 4 | AY33: =(SUMPRODUCT((MainInputs!AY$1006:AY$1470) * (MainInputs!$H$1006:$H$1470 = $E33) * (MainInputs!$BD$1006:$BD$1470 = "CapRate 2 (UM excl. Repex)")))*(AY$10+AY$11*AY$15) -> 4
E34: Non-load related capex - other | G34: =price_label -> £m 23/24 prices | AP34: =(SUMPRODUCT((MainInputs!AP$1006:AP$1470) * (MainInputs!$H$1006:$H$1470 = $E34) * (MainInputs!$BD$1006:$BD$1470 = "CapRate 2 (UM excl. Repex)")))*(AP$10+AP$11*AP$15) -> 0.1228020794 | AQ34: =(SUMPRODUCT((MainInputs!AQ$1006:AQ$1470) * (MainInputs!$H$1006:$H$1470 = $E34) * (MainInputs!$BD$1006:$BD$1470 = "CapRate 2 (UM excl. Repex)")))*(AQ$10+AQ$11*AQ$15) -> 0.4539905579 | AR34: =(SUMPRODUCT((MainInputs!AR$1006:AR$1470) * (MainInputs!$H$1006:$H$1470 = $E34) * (MainInputs!$BD$1006:$BD$1470 = "CapRate 2 (UM excl. Repex)")))*(AR$10+AR$11*AR$15) -> 1.628983239 | AS34: =(SUMPRODUCT((MainInputs!AS$1006:AS$1470) * (MainInputs!$H$1006:$H$1470 = $E34) * (MainInputs!$BD$1006:$BD$1470 = "CapRate 2 (UM excl. Repex)")))*(AS$10+AS$11*AS$15) -> 11.55724074 | AT34: =(SUMPRODUCT((MainInputs!AT$1006:AT$1470) * (MainInputs!$H$1006:$H$1470 = $E34) * (MainInputs!$BD$1006:$BD$1470 = "CapRate 2 (UM excl. Repex)")))*(AT$10+AT$11*AT$15) -> 14.90925592 | AU34: =(SUMPRODUCT((MainInputs!AU$1006:AU$1470) * (MainInputs!$H$1006:$H$1470 = $E34) * (MainInputs!$BD$1006:$BD$1470 = "CapRate 2 (UM excl. Repex)")))*(AU$10+AU$11*AU$15) -> 0.5141208117 | AV34: =(SUMPRODUCT((MainInputs!AV$1006:AV$1470) * (MainInputs!$H$1006:$H$1470 = $E34) * (MainInputs!$BD$1006:$BD$1470 = "CapRate 2 (UM excl. Repex)")))*(AV$10+AV$11*AV$15) -> 0.4864962236 | AW34: =(SUMPRODUCT((MainInputs!AW$1006:AW$1470) * (MainInputs!$H$1006:$H$1470 = $E34) * (MainInputs!$BD$1006:$BD$1470 = "CapRate 2 (UM excl. Repex)")))*(AW$10+AW$11*AW$15) -> 0.4786099346 | AX34: =(SUMPRODUCT((MainInputs!AX$1006:AX$1470) * (MainInputs!$H$1006:$H$1470 = $E34) * (MainInputs!$BD$1006:$BD$1470 = "CapRate 2 (UM excl. Repex)")))*(AX$10+AX$11*AX$15) -> 3.895205493 | AY34: =(SUMPRODUCT((MainInputs!AY$1006:AY$1470) * (MainInputs!$H$1006:$H$1470 = $E34) * (MainInputs!$BD$1006:$BD$1470 = "CapRate 2 (UM excl. Repex)")))*(AY$10+AY$11*AY$15) -> 3.870292946
E35: Business support (opex) | G35: =price_label -> £m 23/24 prices | AP35: =(SUMPRODUCT((MainInputs!AP$1006:AP$1470) * (MainInputs!$H$1006:$H$1470 = $E35) * (MainInputs!$BD$1006:$BD$1470 = "CapRate 2 (UM excl. Repex)")))*(AP$10+AP$11*AP$15) -> 0 | AQ35: =(SUMPRODUCT((MainInputs!AQ$1006:AQ$1470) * (MainInputs!$H$1006:$H$1470 = $E35) * (MainInputs!$BD$1006:$BD$1470 = "CapRate 2 (UM excl. Repex)")))*(AQ$10+AQ$11*AQ$15) -> 0.03717071304 | AR35: =(SUMPRODUCT((MainInputs!AR$1006:AR$1470) * (MainInputs!$H$1006:$H$1470 = $E35) * (MainInputs!$BD$1006:$BD$1470 = "CapRate 2 (UM excl. Repex)")))*(AR$10+AR$11*AR$15) -> 1.351177672 | AS35: =(SUMPRODUCT((MainInputs!AS$1006:AS$1470) * (MainInputs!$H$1006:$H$1470 = $E35) * (MainInputs!$BD$1006:$BD$1470 = "CapRate 2 (UM excl. Repex)")))*(AS$10+AS$11*AS$15) -> 8.507702621 | AT35: =(SUMPRODUCT((MainInputs!AT$1006:AT$1470) * (MainInputs!$H$1006:$H$1470 = $E35) * (MainInputs!$BD$1006:$BD$1470 = "CapRate 2 (UM excl. Repex)")))*(AT$10+AT$11*AT$15) -> 20.58567978 | AU35: =(SUMPRODUCT((MainInputs!AU$1006:AU$1470) * (MainInputs!$H$1006:$H$1470 = $E35) * (MainInputs!$BD$1006:$BD$1470 = "CapRate 2 (UM excl. Repex)")))*(AU$10+AU$11*AU$15) -> 7.023471928 | AV35: =(SUMPRODUCT((MainInputs!AV$1006:AV$1470) * (MainInputs!$H$1006:$H$1470 = $E35) * (MainInputs!$BD$1006:$BD$1470 = "CapRate 2 (UM excl. Repex)")))*(AV$10+AV$11*AV$15) -> 6.758216145 | AW35: =(SUMPRODUCT((MainInputs!AW$1006:AW$1470) * (MainInputs!$H$1006:$H$1470 = $E35) * (MainInputs!$BD$1006:$BD$1470 = "CapRate 2 (UM excl. Repex)")))*(AW$10+AW$11*AW$15) -> 0.1467999958 | AX35: =(SUMPRODUCT((MainInputs!AX$1006:AX$1470) * (MainInputs!$H$1006:$H$1470 = $E35) * (MainInputs!$BD$1006:$BD$1470 = "CapRate 2 (UM excl. Repex)")))*(AX$10+AX$11*AX$15) -> 3.499408633 | AY35: =(SUMPRODUCT((MainInputs!AY$1006:AY$1470) * (MainInputs!$H$1006:$H$1470 = $E35) * (MainInputs!$BD$1006:$BD$1470 = "CapRate 2 (UM excl. Repex)")))*(AY$10+AY$11*AY$15) -> 3.498598283
E36: Directs opex | G36: =price_label -> £m 23/24 prices | AP36: =(SUMPRODUCT((MainInputs!AP$1006:AP$1470) * (MainInputs!$H$1006:$H$1470 = $E36) * (MainInputs!$BD$1006:$BD$1470 = "CapRate 2 (UM excl. Repex)")))*(AP$10+AP$11*AP$15) -> 0.3487162686 | AQ36: =(SUMPRODUCT((MainInputs!AQ$1006:AQ$1470) * (MainInputs!$H$1006:$H$1470 = $E36) * (MainInputs!$BD$1006:$BD$1470 = "CapRate 2 (UM excl. Repex)")))*(AQ$10+AQ$11*AQ$15) -> 0.3748699887 | AR36: =(SUMPRODUCT((MainInputs!AR$1006:AR$1470) * (MainInputs!$H$1006:$H$1470 = $E36) * (MainInputs!$BD$1006:$BD$1470 = "CapRate 2 (UM excl. Repex)")))*(AR$10+AR$11*AR$15) -> 0.2304018203 | AS36: =(SUMPRODUCT((MainInputs!AS$1006:AS$1470) * (MainInputs!$H$1006:$H$1470 = $E36) * (MainInputs!$BD$1006:$BD$1470 = "CapRate 2 (UM excl. Repex)")))*(AS$10+AS$11*AS$15) -> 0.9402885099 | AT36: =(SUMPRODUCT((MainInputs!AT$1006:AT$1470) * (MainInputs!$H$1006:$H$1470 = $E36) * (MainInputs!$BD$1006:$BD$1470 = "CapRate 2 (UM excl. Repex)")))*(AT$10+AT$11*AT$15) -> 16.42204542 | AU36: =(SUMPRODUCT((MainInputs!AU$1006:AU$1470) * (MainInputs!$H$1006:$H$1470 = $E36) * (MainInputs!$BD$1006:$BD$1470 = "CapRate 2 (UM excl. Repex)")))*(AU$10+AU$11*AU$15) -> 6.360638333 | AV36: =(SUMPRODUCT((MainInputs!AV$1006:AV$1470) * (MainInputs!$H$1006:$H$1470 = $E36) * (MainInputs!$BD$1006:$BD$1470 = "CapRate 2 (UM excl. Repex)")))*(AV$10+AV$11*AV$15) -> 6.250139981 | AW36: =(SUMPRODUCT((MainInputs!AW$1006:AW$1470) * (MainInputs!$H$1006:$H$1470 = $E36) * (MainInputs!$BD$1006:$BD$1470 = "CapRate 2 (UM excl. Repex)")))*(AW$10+AW$11*AW$15) -> 1.914439739 | AX36: =(SUMPRODUCT((MainInputs!AX$1006:AX$1470) * (MainInputs!$H$1006:$H$1470 = $E36) * (MainInputs!$BD$1006:$BD$1470 = "CapRate 2 (UM excl. Repex)")))*(AX$10+AX$11*AX$15) -> 1.907327442 | AY36: =(SUMPRODUCT((MainInputs!AY$1006:AY$1470) * (MainInputs!$H$1006:$H$1470 = $E36) * (MainInputs!$BD$1006:$BD$1470 = "CapRate 2 (UM excl. Repex)")))*(AY$10+AY$11*AY$15) -> 1.807677254
E37: Repex | G37: =price_label -> £m 23/24 prices | AP37: =(SUMPRODUCT((MainInputs!AP$1006:AP$1470) * (MainInputs!$H$1006:$H$1470 = $E37) * (MainInputs!$BD$1006:$BD$1470 = "CapRate 2 (UM excl. Repex)")))*(AP$10+AP$11*AP$15) -> 4.737392562 | AQ37: =(SUMPRODUCT((MainInputs!AQ$1006:AQ$1470) * (MainInputs!$H$1006:$H$1470 = $E37) * (MainInputs!$BD$1006:$BD$1470 = "CapRate 2 (UM excl. Repex)")))*(AQ$10+AQ$11*AQ$15) -> 4.394616129 | AR37: =(SUMPRODUCT((MainInputs!AR$1006:AR$1470) * (MainInputs!$H$1006:$H$1470 = $E37) * (MainInputs!$BD$1006:$BD$1470 = "CapRate 2 (UM excl. Repex)")))*(AR$10+AR$11*AR$15) -> 5.97482076 | AS37: =(SUMPRODUCT((MainInputs!AS$1006:AS$1470) * (MainInputs!$H$1006:$H$1470 = $E37) * (MainInputs!$BD$1006:$BD$1470 = "CapRate 2 (UM excl. Repex)")))*(AS$10+AS$11*AS$15) -> 7.212707872 | AT37: =(SUMPRODUCT((MainInputs!AT$1006:AT$1470) * (MainInputs!$H$1006:$H$1470 = $E37) * (MainInputs!$BD$1006:$BD$1470 = "CapRate 2 (UM excl. Repex)")))*(AT$10+AT$11*AT$15) -> 9.078981632 | AU37: =(SUMPRODUCT((MainInputs!AU$1006:AU$1470) * (MainInputs!$H$1006:$H$1470 = $E37) * (MainInputs!$BD$1006:$BD$1470 = "CapRate 2 (UM excl. Repex)")))*(AU$10+AU$11*AU$15) -> 0 | AV37: =(SUMPRODUCT((MainInputs!AV$1006:AV$1470) * (MainInputs!$H$1006:$H$1470 = $E37) * (MainInputs!$BD$1006:$BD$1470 = "CapRate 2 (UM excl. Repex)")))*(AV$10+AV$11*AV$15) -> 0 | AW37: =(SUMPRODUCT((MainInputs!AW$1006:AW$1470) * (MainInputs!$H$1006:$H$1470 = $E37) * (MainInputs!$BD$1006:$BD$1470 = "CapRate 2 (UM excl. Repex)")))*(AW$10+AW$11*AW$15) -> 0 | AX37: =(SUMPRODUCT((MainInputs!AX$1006:AX$1470) * (MainInputs!$H$1006:$H$1470 = $E37) * (MainInputs!$BD$1006:$BD$1470 = "CapRate 2 (UM excl. Repex)")))*(AX$10+AX$11*AX$15) -> 0 | AY37: =(SUMPRODUCT((MainInputs!AY$1006:AY$1470) * (MainInputs!$H$1006:$H$1470 = $E37) * (MainInputs!$BD$1006:$BD$1470 = "CapRate 2 (UM excl. Repex)")))*(AY$10+AY$11*AY$15) -> 0
D39: Allowance
E41: Allowed load related capex | G41: =price_label -> £m 23/24 prices | AP41: =AP25 + AP33 -> 50.96615332 | AQ41: 49.87930438 | AR41: 40.60547607 | AS41: 44.63356985 | AT41: 37.28732565 | AU41: =AU25 + AU33 -> 15.00315244 | AV41: 13.98081705 | AW41: 12.83111255 | AX41: 12.71756673 | AY41: 12.09128833
E42: Allowed non-load related capex - other | G42: £m 23/24 prices | AP42: =AP26 + AP34 -> 35.21039827 | AQ42: 31.5499218 | AR42: 35.20593027 | AS42: 42.01908693 | AT42: 35.12196763 | AU42: =AU26 + AU34 -> 105.8134083 | AV42: 80.21921037 | AW42: 76.0717224 | AX42: 80.6209335 | AY42: 60.31867976
E43: Allowed business support (opex) | G43: £m 23/24 prices | AP43: =AP27 + AP35 -> 32.58240059 | AQ43: 31.39324019 | AR43: 31.75236293 | AS43: 38.21669652 | AT43: 48.41598731 | AU43: 66.07136579 | AV43: 62.83415406 | AW43: 58.51944902 | AX43: 61.64368468 | AY43: 61.65241399
E44: Allowed directs opex | G44: £m 23/24 prices | AP44: =AP28 + AP36 -> 132.8861408 | AQ44: 126.6156962 | AR44: 128.9722388 | AS44: 120.5548935 | AT44: 137.9043594 | AU44: =AU28 + AU36 -> 160.9177425 | AV44: 164.0306669 | AW44: 154.5177156 | AX44: 152.2403413 | AY44: 152.7385062
E45: Allowed repex | G45: £m 23/24 prices | AP45: =AP29 + AP37 -> 172.256784 | AQ45: 170.3944999 | AR45: 166.8781307 | AS45: 164.4453247 | AT45: 163.4889465 | AU45: =AU29 + AU37 -> 194.9692055 | AV45: 195.3391638 | AW45: 198.1701037 | AX45: 201.3073458 | AY45: 200.4234858
E46: Allowed totex | G46: £m 23/24 prices | AP46: =SUM(AP41:AP45) -> 423.901877 | AQ46: 409.8326624 | AR46: 403.4141388 | AS46: 409.8695715 | AT46: 422.2185864 | AU46: 542.7748745 | AV46: =SUM(AV41:AV45) -> 516.4040121 | AW46: 500.1101033 | AX46: 508.529872 | AY46: 487.2243741
AU47: =SUM(AU46:AY46) -> 2555.043236
C48: Actual totex
D50: Source of actuals
D51: Note: If the actual totex inputs are zero, the model will use allowances as the forecast.
E53: Historic totex (FYI only) | G53: flag | AP53: =IF(MainInputs!AP250+MainInputs!AP258<>0,1,0) -> 1 | AQ53: =IF(MainInputs!AQ250+MainInputs!AQ258<>0,1,0) -> 1 | AR53: =IF(MainInputs!AR250+MainInputs!AR258<>0,1,0) -> 1 | AS53: =IF(MainInputs!AS250+MainInputs!AS258<>0,1,0) -> 1 | AT53: =IF(MainInputs!AT250+MainInputs!AT258<>0,1,0) -> 1 | AU53: =IF(MainInputs!AU250+MainInputs!AU258<>0,1,0) -> 0 | AV53: =IF(MainInputs!AV250+MainInputs!AV258<>0,1,0) -> 0 | AW53: =IF(MainInputs!AW250+MainInputs!AW258<>0,1,0) -> 0 | AX53: =IF(MainInputs!AX250+MainInputs!AX258<>0,1,0) -> 0 | AY53: =IF(MainInputs!AY250+MainInputs!AY258<>0,1,0) -> 0
E54: Forecasted totex (FYI only) | G54: flag | AP54: =1-AP53 -> 0 | AQ54: =1-AQ53 -> 0 | AR54: 0 | AS54: 0 | AT54: 0 | AU54: 1 | AV54: 1 | AW54: 1 | AX54: 1 | AY54: 1
D56: Actual totex (historic and forecasted)
D57: Note: Actuals are exported both to identify performance against the allowance and to generate writing down allowances used in the tax calculation.
E59: Capitalisation rate 1 totex
E61: Load related capex | G61: =price_label -> £m 23/24 prices | AP61: =(MainInputs!AP245*AP$53 + AP25*AP$54)*(AP$10+AP$11*AP$16) -> 16.51865969 | AQ61: =(MainInputs!AQ245*AQ$53 + AQ25*AQ$54)*(AQ$10+AQ$11*AQ$16) -> 14.91823075 | AR61: =(MainInputs!AR245*AR$53 + AR25*AR$54)*(AR$10+AR$11*AR$16) -> 17.04886725 | AS61: =(MainInputs!AS245*AS$53 + AS25*AS$54)*(AS$10+AS$11*AS$16) -> 11.92437264 | AT61: =(MainInputs!AT245*AT$53 + AT25*AT$54)*(AT$10+AT$11*AT$16) -> 31.33848499 | AU61: =(MainInputs!AU245*AU$53 + AU25*AU$54)*(AU$10+AU$11*AU$16) -> 11.00315244 | AV61: =(MainInputs!AV245*AV$53 + AV25*AV$54)*(AV$10+AV$11*AV$16) -> 9.980817048 | AW61: =(MainInputs!AW245*AW$53 + AW25*AW$54)*(AW$10+AW$11*AW$16) -> 8.831112555 | AX61: =(MainInputs!AX245*AX$53 + AX25*AX$54)*(AX$10+AX$11*AX$16) -> 8.717566734 | AY61: =(MainInputs!AY245*AY$53 + AY25*AY$54)*(AY$10+AY$11*AY$16) -> 8.091288334
E62: Non-load related capex - other (net of disposals) | G62: =price_label -> £m 23/24 prices | AP62: =(MainInputs!AP246*AP$53 + AP26*AP$54)*(AP$10+AP$11*AP$16)-MainInputs!AP1495*AP11 -> 55.25026759 | AQ62: =(MainInputs!AQ246*AQ$53 + AQ26*AQ$54)*(AQ$10+AQ$11*AQ$16)-MainInputs!AQ1495*AQ11 -> 66.44103874 | AR62: =(MainInputs!AR246*AR$53 + AR26*AR$54)*(AR$10+AR$11*AR$16)-MainInputs!AR1495*AR11 -> 81.08067479 | AS62: =(MainInputs!AS246*AS$53 + AS26*AS$54)*(AS$10+AS$11*AS$16)-MainInputs!AS1495*AS11 -> 47.30347406 | AT62: =(MainInputs!AT246*AT$53 + AT26*AT$54)*(AT$10+AT$11*AT$16)-MainInputs!AT1495*AT11 -> 58.95218535 | AU62: =(MainInputs!AU246*AU$53 + AU26*AU$54)*(AU$10+AU$11*AU$16)-MainInputs!AU1495*AU11 -> 105.2992875 | AV62: =(MainInputs!AV246*AV$53 + AV26*AV$54)*(AV$10+AV$11*AV$16)-MainInputs!AV1495*AV11 -> 79.73271414 | AW62: =(MainInputs!AW246*AW$53 + AW26*AW$54)*(AW$10+AW$11*AW$16)-MainInputs!AW1495*AW11 -> 75.59311247 | AX62: =(MainInputs!AX246*AX$53 + AX26*AX$54)*(AX$10+AX$11*AX$16)-MainInputs!AX1495*AX11 -> 76.725728 | AY62: =(MainInputs!AY246*AY$53 + AY26*AY$54)*(AY$10+AY$11*AY$16)-MainInputs!AY1495*AY11 -> 56.44838681
E63: Business support (opex) | G63: =price_label -> £m 23/24 prices | AP63: =(MainInputs!AP247*AP$53 + AP27*AP$54)*(AP$10+AP$11*AP$16) -> 51.42810125 | AQ63: =(MainInputs!AQ247*AQ$53 + AQ27*AQ$54)*(AQ$10+AQ$11*AQ$16) -> 53.57529789 | AR63: =(MainInputs!AR247*AR$53 + AR27*AR$54)*(AR$10+AR$11*AR$16) -> 60.91831887 | AS63: =(MainInputs!AS247*AS$53 + AS27*AS$54)*(AS$10+AS$11*AS$16) -> 65.34913457 | AT63: =(MainInputs!AT247*AT$53 + AT27*AT$54)*(AT$10+AT$11*AT$16) -> 72.60463063 | AU63: =(MainInputs!AU247*AU$53 + AU27*AU$54)*(AU$10+AU$11*AU$16) -> 59.04789386 | AV63: =(MainInputs!AV247*AV$53 + AV27*AV$54)*(AV$10+AV$11*AV$16) -> 56.07593791 | AW63: =(MainInputs!AW247*AW$53 + AW27*AW$54)*(AW$10+AW$11*AW$16) -> 58.37264903 | AX63: =(MainInputs!AX247*AX$53 + AX27*AX$54)*(AX$10+AX$11*AX$16) -> 58.14427604 | AY63: =(MainInputs!AY247*AY$53 + AY27*AY$54)*(AY$10+AY$11*AY$16) -> 58.15381571
E64: Directs opex | G64: =price_label -> £m 23/24 prices | AP64: =(MainInputs!AP248*AP$53 + AP28*AP$54)*(AP$10+AP$11*AP$16) -> 115.9131334 | AQ64: =(MainInputs!AQ248*AQ$53 + AQ28*AQ$54)*(AQ$10+AQ$11*AQ$16) -> 129.2738743 | AR64: =(MainInputs!AR248*AR$53 + AR28*AR$54)*(AR$10+AR$11*AR$16) -> 116.9161022 | AS64: =(MainInputs!AS248*AS$53 + AS28*AS$54)*(AS$10+AS$11*AS$16) -> 122.6942297 | AT64: =(MainInputs!AT248*AT$53 + AT28*AT$54)*(AT$10+AT$11*AT$16) -> 110.9546882 | AU64: =(MainInputs!AU248*AU$53 + AU28*AU$54)*(AU$10+AU$11*AU$16) -> 154.5571041 | AV64: =(MainInputs!AV248*AV$53 + AV28*AV$54)*(AV$10+AV$11*AV$16) -> 157.7805269 | AW64: =(MainInputs!AW248*AW$53 + AW28*AW$54)*(AW$10+AW$11*AW$16) -> 152.6032759 | AX64: =(MainInputs!AX248*AX$53 + AX28*AX$54)*(AX$10+AX$11*AX$16) -> 150.3330138 | AY64: =(MainInputs!AY248*AY$53 + AY28*AY$54)*(AY$10+AY$11*AY$16) -> 150.9308289
E65: Repex | G65: =price_label -> £m 23/24 prices | AP65: =(MainInputs!AP249*AP$53 + AP29*AP$54)*(AP$10+AP$11*AP$16) -> 154.4827928 | AQ65: =(MainInputs!AQ249*AQ$53 + AQ29*AQ$54)*(AQ$10+AQ$11*AQ$16) -> 186.5077803 | AR65: =(MainInputs!AR249*AR$53 + AR29*AR$54)*(AR$10+AR$11*AR$16) -> 189.4204849 | AS65: =(MainInputs!AS249*AS$53 + AS29*AS$54)*(AS$10+AS$11*AS$16) -> 177.0573586 | AT65: =(MainInputs!AT249*AT$53 + AT29*AT$54)*(AT$10+AT$11*AT$16) -> 165.3816888 | AU65: =(MainInputs!AU249*AU$53 + AU29*AU$54)*(AU$10+AU$11*AU$16) -> 194.9692055 | AV65: =(MainInputs!AV249*AV$53 + AV29*AV$54)*(AV$10+AV$11*AV$16) -> 195.3391638 | AW65: =(MainInputs!AW249*AW$53 + AW29*AW$54)*(AW$10+AW$11*AW$16) -> 198.1701037 | AX65: =(MainInputs!AX249*AX$53 + AX29*AX$54)*(AX$10+AX$11*AX$16) -> 201.3073458 | AY65: =(MainInputs!AY249*AY$53 + AY29*AY$54)*(AY$10+AY$11*AY$16) -> 200.4234858
E67: Capitalisation rate 2 totex
E69: Load related capex | G69: =price_label -> £m 23/24 prices | AP69: =(MainInputs!AP253*AP$53 + AP33*AP$54)*(AP$10+AP$11*AP$16) -> 14.81680888 | AQ69: =(MainInputs!AQ253*AQ$53 + AQ33*AQ$54)*(AQ$10+AQ$11*AQ$16) -> 8.231524182 | AR69: =(MainInputs!AR253*AR$53 + AR33*AR$54)*(AR$10+AR$11*AR$16) -> 5.853286677 | AS69: =(MainInputs!AS253*AS$53 + AS33*AS$54)*(AS$10+AS$11*AS$16) -> 11.77603026 | AT69: =(MainInputs!AT253*AT$53 + AT33*AT$54)*(AT$10+AT$11*AT$16) -> 5.480405797 | AU69: =(MainInputs!AU253*AU$53 + AU33*AU$54)*(AU$10+AU$11*AU$16) -> 4 | AV69: =(MainInputs!AV253*AV$53 + AV33*AV$54)*(AV$10+AV$11*AV$16) -> 4 | AW69: =(MainInputs!AW253*AW$53 + AW33*AW$54)*(AW$10+AW$11*AW$16) -> 4 | AX69: =(MainInputs!AX253*AX$53 + AX33*AX$54)*(AX$10+AX$11*AX$16) -> 4 | AY69: =(MainInputs!AY253*AY$53 + AY33*AY$54)*(AY$10+AY$11*AY$16) -> 4
E70: Non-load related capex - other | G70: =price_label -> £m 23/24 prices | AP70: =(MainInputs!AP254*AP$53 + AP34*AP$54)*(AP$10+AP$11*AP$16) -> 0 | AQ70: =(MainInputs!AQ254*AQ$53 + AQ34*AQ$54)*(AQ$10+AQ$11*AQ$16) -> 0.05084788932 | AR70: =(MainInputs!AR254*AR$53 + AR34*AR$54)*(AR$10+AR$11*AR$16) -> 2.668172989 | AS70: =(MainInputs!AS254*AS$53 + AS34*AS$54)*(AS$10+AS$11*AS$16) -> 19.4682707 | AT70: =(MainInputs!AT254*AT$53 + AT34*AT$54)*(AT$10+AT$11*AT$16) -> 22.7780431 | AU70: =(MainInputs!AU254*AU$53 + AU34*AU$54)*(AU$10+AU$11*AU$16) -> 0.5141208117 | AV70: =(MainInputs!AV254*AV$53 + AV34*AV$54)*(AV$10+AV$11*AV$16) -> 0.4864962236 | AW70: =(MainInputs!AW254*AW$53 + AW34*AW$54)*(AW$10+AW$11*AW$16) -> 0.4786099346 | AX70: =(MainInputs!AX254*AX$53 + AX34*AX$54)*(AX$10+AX$11*AX$16) -> 3.895205493 | AY70: =(MainInputs!AY254*AY$53 + AY34*AY$54)*(AY$10+AY$11*AY$16) -> 3.870292946
E71: Business support (opex) | G71: =price_label -> £m 23/24 prices | AP71: =(MainInputs!AP255*AP$53 + AP35*AP$54)*(AP$10+AP$11*AP$16) -> 0.1228020794 | AQ71: =(MainInputs!AQ255*AQ$53 + AQ35*AQ$54)*(AQ$10+AQ$11*AQ$16) -> 0.4403133816 | AR71: =(MainInputs!AR255*AR$53 + AR35*AR$54)*(AR$10+AR$11*AR$16) -> 0.3119879211 | AS71: =(MainInputs!AS255*AS$53 + AS35*AS$54)*(AS$10+AS$11*AS$16) -> 0.5966726562 | AT71: =(MainInputs!AT255*AT$53 + AT35*AT$54)*(AT$10+AT$11*AT$16) -> 0.5143140232 | AU71: =(MainInputs!AU255*AU$53 + AU35*AU$54)*(AU$10+AU$11*AU$16) -> 7.023471928 | AV71: =(MainInputs!AV255*AV$53 + AV35*AV$54)*(AV$10+AV$11*AV$16) -> 6.758216145 | AW71: =(MainInputs!AW255*AW$53 + AW35*AW$54)*(AW$10+AW$11*AW$16) -> 0.1467999958 | AX71: =(MainInputs!AX255*AX$53 + AX35*AX$54)*(AX$10+AX$11*AX$16) -> 3.499408633 | AY71: =(MainInputs!AY255*AY$53 + AY35*AY$54)*(AY$10+AY$11*AY$16) -> 3.498598283
E72: Directs opex | G72: =price_label -> £m 23/24 prices | AP72: =(MainInputs!AP256*AP$53 + AP36*AP$54)*(AP$10+AP$11*AP$16) -> 0 | AQ72: =(MainInputs!AQ256*AQ$53 + AQ36*AQ$54)*(AQ$10+AQ$11*AQ$16) -> 0 | AR72: =(MainInputs!AR256*AR$53 + AR36*AR$54)*(AR$10+AR$11*AR$16) -> 0 | AS72: =(MainInputs!AS256*AS$53 + AS36*AS$54)*(AS$10+AS$11*AS$16) -> 0 | AT72: =(MainInputs!AT256*AT$53 + AT36*AT$54)*(AT$10+AT$11*AT$16) -> 20.33763095 | AU72: =(MainInputs!AU256*AU$53 + AU36*AU$54)*(AU$10+AU$11*AU$16) -> 6.360638333 | AV72: =(MainInputs!AV256*AV$53 + AV36*AV$54)*(AV$10+AV$11*AV$16) -> 6.250139981 | AW72: =(MainInputs!AW256*AW$53 + AW36*AW$54)*(AW$10+AW$11*AW$16) -> 1.914439739 | AX72: =(MainInputs!AX256*AX$53 + AX36*AX$54)*(AX$10+AX$11*AX$16) -> 1.907327442 | AY72: =(MainInputs!AY256*AY$53 + AY36*AY$54)*(AY$10+AY$11*AY$16) -> 1.807677254
E73: Repex | G73: =price_label -> £m 23/24 prices | AP73: =(MainInputs!AP257*AP$53 + AP37*AP$54)*(AP$10+AP$11*AP$16) -> 6.161390824 | AQ73: =(MainInputs!AQ257*AQ$53 + AQ37*AQ$54)*(AQ$10+AQ$11*AQ$16) -> 5.309488962 | AR73: =(MainInputs!AR257*AR$53 + AR37*AR$54)*(AR$10+AR$11*AR$16) -> 7.301519494 | AS73: =(MainInputs!AS257*AS$53 + AS37*AS$54)*(AS$10+AS$11*AS$16) -> 9.453207659 | AT73: =(MainInputs!AT257*AT$53 + AT37*AT$54)*(AT$10+AT$11*AT$16) -> 19.1594559 | AU73: =(MainInputs!AU257*AU$53 + AU37*AU$54)*(AU$10+AU$11*AU$16) -> 0 | AV73: =(MainInputs!AV257*AV$53 + AV37*AV$54)*(AV$10+AV$11*AV$16) -> 0 | AW73: =(MainInputs!AW257*AW$53 + AW37*AW$54)*(AW$10+AW$11*AW$16) -> 0 | AX73: =(MainInputs!AX257*AX$53 + AX37*AX$54)*(AX$10+AX$11*AX$16) -> 0 | AY73: =(MainInputs!AY257*AY$53 + AY37*AY$54)*(AY$10+AY$11*AY$16) -> 0
E75: Total actual
E77: Actual load related capex | G77: =price_label -> £m 23/24 prices | AP77: =SUM(AP61, AP69) -> 31.33546856 | AQ77: =SUM(AQ61, AQ69) -> 23.14975493 | AR77: 22.90215393 | AS77: 23.7004029 | AT77: 36.81889078 | AU77: =SUM(AU61, AU69) -> 15.00315244 | AV77: 13.98081705 | AW77: 12.83111255 | AX77: 12.71756673 | AY77: 12.09128833
E78: Actual non-load related capex - other | G78: £m 23/24 prices | AP78: =SUM(AP62, AP70) -> 55.25026759 | AQ78: 66.49188663 | AR78: 83.74884778 | AS78: 66.77174476 | AT78: 81.73022845 | AU78: =SUM(AU62, AU70) -> 105.8134083 | AV78: 80.21921037 | AW78: 76.0717224 | AX78: 80.6209335 | AY78: 60.31867976
E79: Actual business support (opex) | G79: £m 23/24 prices | AP79: =SUM(AP63, AP71) -> 51.55090333 | AQ79: 54.01561127 | AR79: 61.23030679 | AS79: 65.94580722 | AT79: 73.11894465 | AU79: =SUM(AU63, AU71) -> 66.07136579 | AV79: 62.83415406 | AW79: 58.51944902 | AX79: 61.64368468 | AY79: 61.65241399
E80: Actual directs opex | G80: £m 23/24 prices | AP80: =SUM(AP64, AP72) -> 115.9131334 | AQ80: =SUM(AQ64, AQ72) -> 129.2738743 | AR80: 116.9161022 | AS80: 122.6942297 | AT80: 131.2923192 | AU80: =SUM(AU64, AU72) -> 160.9177425 | AV80: 164.0306669 | AW80: 154.5177156 | AX80: 152.2403413 | AY80: 152.7385062
E81: Actual repex | G81: £m 23/24 prices | AP81: =SUM(AP65, AP73) -> 160.6441836 | AQ81: 191.8172693 | AR81: 196.7220043 | AS81: 186.5105663 | AT81: 184.5411447 | AU81: =SUM(AU65, AU73) -> 194.9692055 | AV81: 195.3391638 | AW81: 198.1701037 | AX81: 201.3073458 | AY81: 200.4234858
E82: Actual totex | G82: £m 23/24 prices | AP82: =SUM(AP77:AP81) -> 414.6939565 | AQ82: =SUM(AQ77:AQ81) -> 464.7483964 | AR82: =SUM(AR77:AR81) -> 481.5194151 | AS82: =SUM(AS77:AS81) -> 465.6227508 | AT82: =SUM(AT77:AT81) -> 507.5015278 | AU82: =SUM(AU77:AU81) -> 542.7748745 | AV82: 516.4040121 | AW82: 500.1101033 | AX82: 508.529872 | AY82: 487.2243741
B84: End of sheet

Sheet TIM
A1: Totex Incentive Mechanism (TIM)
B2: =UserInterface!G17 -> East
E3: Parameter | G3: Units | I3: Constant | AP3: Annual values
E4: PCFM year ending | I4: =UserInterface!$G$10 -> 2025-03-31 | K4: 1991-03-31 | L4: 1992-03-31 | M4: 1993-03-31 | N4: 1994-03-31 | O4: 1995-03-31 | P4: 1996-03-31 | Q4: 1997-03-31 | R4: 1998-03-31 | S4: 1999-03-31 | T4: 2000-03-31 | U4: 2001-03-31 | V4: 2002-03-31 | W4: 2003-03-31 | X4: 2004-03-31 | Y4: 2005-03-31 | Z4: 2006-03-31 | AA4: 2007-03-31 | AB4: 2008-03-31 | AC4: 2009-03-31 | AD4: 2010-03-31 | AE4: 2011-03-31 | AF4: 2012-03-31 | AG4: 2013-03-31 | AH4: 2014-03-31 | AI4: 2015-03-31 | AJ4: 2016-03-31 | AK4: 2017-03-31 | AL4: 2018-03-31 | AM4: 2019-03-31 | AN4: 2020-03-31 | AO4: 2021-03-31 | AP4: 2022-03-31 | AQ4: 2023-03-31 | AR4: 2024-03-31 | AS4: 2025-03-31 | AT4: 2026-03-31 | AU4: 2027-03-31 | AV4: 2028-03-31 | AW4: 2029-03-31 | AX4: 2030-03-31 | AY4: =EOMONTH(AX4,12) -> 2031-03-31
AP5: 2 | AQ5: 2 | AR5: 2 | AS5: 2 | AT5: 2 | AU5: 3 | AV5: 3 | AW5: 3 | AX5: 3 | AY5: 3
C7: Price control timeline
E9: Pre-RIIO-2 year | G9: flag | K9: =Scenarios!K$119 -> 1 | L9: =Scenarios!L$119 -> 1 | M9: =Scenarios!M$119 -> 1 | N9: =Scenarios!N$119 -> 1 | O9: =Scenarios!O$119 -> 1 | P9: =Scenarios!P$119 -> 1 | Q9: =Scenarios!Q$119 -> 1 | R9: =Scenarios!R$119 -> 1 | S9: =Scenarios!S$119 -> 1 | T9: =Scenarios!T$119 -> 1 | U9: =Scenarios!U$119 -> 1 | V9: =Scenarios!V$119 -> 1 | W9: =Scenarios!W$119 -> 1 | X9: =Scenarios!X$119 -> 1 | Y9: =Scenarios!Y$119 -> 1 | Z9: =Scenarios!Z$119 -> 1 | AA9: =Scenarios!AA$119 -> 1 | AB9: =Scenarios!AB$119 -> 1 | AC9: =Scenarios!AC$119 -> 1 | AD9: =Scenarios!AD$119 -> 1 | AE9: =Scenarios!AE$119 -> 1 | AF9: =Scenarios!AF$119 -> 1 | AG9: =Scenarios!AG$119 -> 1 | AH9: =Scenarios!AH$119 -> 1 | AI9: =Scenarios!AI$119 -> 1 | AJ9: =Scenarios!AJ$119 -> 1 | AK9: =Scenarios!AK$119 -> 1 | AL9: =Scenarios!AL$119 -> 1 | AM9: =Scenarios!AM$119 -> 1 | AN9: =Scenarios!AN$119 -> 1 | AO9: =Scenarios!AO$119 -> 1 | AP9: =Scenarios!AP$119 -> 0 | AQ9: =Scenarios!AQ$119 -> 0 | AR9: =Scenarios!AR$119 -> 0 | AS9: =Scenarios!AS$119 -> 0 | AT9: =Scenarios!AT$119 -> 0 | AU9: =Scenarios!AU$119 -> 0 | AV9: =Scenarios!AV$119 -> 0 | AW9: =Scenarios!AW$119 -> 0 | AX9: =Scenarios!AX$119 -> 0 | AY9: =Scenarios!AY$119 -> 0
E10: RIIO-2 year | G10: flag | K10: =Scenarios!K$120 -> 0 | L10: =Scenarios!L$120 -> 0 | M10: =Scenarios!M$120 -> 0 | N10: =Scenarios!N$120 -> 0 | O10: =Scenarios!O$120 -> 0 | P10: =Scenarios!P$120 -> 0 | Q10: =Scenarios!Q$120 -> 0 | R10: =Scenarios!R$120 -> 0 | S10: =Scenarios!S$120 -> 0 | T10: =Scenarios!T$120 -> 0 | U10: =Scenarios!U$120 -> 0 | V10: =Scenarios!V$120 -> 0 | W10: =Scenarios!W$120 -> 0 | X10: =Scenarios!X$120 -> 0 | Y10: =Scenarios!Y$120 -> 0 | Z10: =Scenarios!Z$120 -> 0 | AA10: =Scenarios!AA$120 -> 0 | AB10: =Scenarios!AB$120 -> 0 | AC10: =Scenarios!AC$120 -> 0 | AD10: =Scenarios!AD$120 -> 0 | AE10: =Scenarios!AE$120 -> 0 | AF10: =Scenarios!AF$120 -> 0 | AG10: =Scenarios!AG$120 -> 0 | AH10: =Scenarios!AH$120 -> 0 | AI10: =Scenarios!AI$120 -> 0 | AJ10: =Scenarios!AJ$120 -> 0 | AK10: =Scenarios!AK$120 -> 0 | AL10: =Scenarios!AL$120 -> 0 | AM10: =Scenarios!AM$120 -> 0 | AN10: =Scenarios!AN$120 -> 0 | AO10: =Scenarios!AO$120 -> 0 | AP10: =Scenarios!AP$120 -> 1 | AQ10: =Scenarios!AQ$120 -> 1 | AR10: =Scenarios!AR$120 -> 1 | AS10: =Scenarios!AS$120 -> 1 | AT10: =Scenarios!AT$120 -> 1 | AU10: =Scenarios!AU$120 -> 0 | AV10: =Scenarios!AV$120 -> 0 | AW10: =Scenarios!AW$120 -> 0 | AX10: =Scenarios!AX$120 -> 0 | AY10: =Scenarios!AY$120 -> 0
E11: RIIO-3 year | G11: flag | K11: =Scenarios!K$121 -> 0 | L11: =Scenarios!L$121 -> 0 | M11: =Scenarios!M$121 -> 0 | N11: =Scenarios!N$121 -> 0 | O11: =Scenarios!O$121 -> 0 | P11: =Scenarios!P$121 -> 0 | Q11: =Scenarios!Q$121 -> 0 | R11: =Scenarios!R$121 -> 0 | S11: =Scenarios!S$121 -> 0 | T11: =Scenarios!T$121 -> 0 | U11: =Scenarios!U$121 -> 0 | V11: =Scenarios!V$121 -> 0 | W11: =Scenarios!W$121 -> 0 | X11: =Scenarios!X$121 -> 0 | Y11: =Scenarios!Y$121 -> 0 | Z11: =Scenarios!Z$121 -> 0 | AA11: =Scenarios!AA$121 -> 0 | AB11: =Scenarios!AB$121 -> 0 | AC11: =Scenarios!AC$121 -> 0 | AD11: =Scenarios!AD$121 -> 0 | AE11: =Scenarios!AE$121 -> 0 | AF11: =Scenarios!AF$121 -> 0 | AG11: =Scenarios!AG$121 -> 0 | AH11: =Scenarios!AH$121 -> 0 | AI11: =Scenarios!AI$121 -> 0 | AJ11: =Scenarios!AJ$121 -> 0 | AK11: =Scenarios!AK$121 -> 0 | AL11: =Scenarios!AL$121 -> 0 | AM11: =Scenarios!AM$121 -> 0 | AN11: =Scenarios!AN$121 -> 0 | AO11: =Scenarios!AO$121 -> 0 | AP11: =Scenarios!AP$121 -> 0 | AQ11: =Scenarios!AQ$121 -> 0 | AR11: =Scenarios!AR$121 -> 0 | AS11: =Scenarios!AS$121 -> 0 | AT11: =Scenarios!AT$121 -> 0 | AU11: =Scenarios!AU$121 -> 1 | AV11: =Scenarios!AV$121 -> 1 | AW11: =Scenarios!AW$121 -> 1 | AX11: =Scenarios!AX$121 -> 1 | AY11: =Scenarios!AY$121 -> 1
C13: Scenario operators
E15: GD3 Funding Adjustment Rate (often referred to as 'sharing factor') | G15: % | AP15: =AP$11*MainInputs!$I509 -> 0 | AQ15: =AQ$11*MainInputs!$I509 -> 0 | AR15: =AR$11*MainInputs!$I509 -> 0 | AS15: =AS$11*MainInputs!$I509 -> 0 | AT15: =AT$11*MainInputs!$I509 -> 0 | AU15: =AU$11*MainInputs!$I509 -> 0.5 | AV15: =AV$11*MainInputs!$I509 -> 0.5 | AW15: =AW$11*MainInputs!$I509 -> 0.5 | AX15: =AX$11*MainInputs!$I509 -> 0.5 | AY15: =AY$11*MainInputs!$I509 -> 0.5
E16: RIIO-3 cap rates from Scenarios or Licenseee inputs or Natural? | G16: text | I16: =Scenarios!F20 -> Licensee inputs
E17: Capitalisation rate 1 | G17: % | AP17: =IF($I$16="Scenarios",Scenarios!$F21,IF($I$16="Licensee inputs",MainInputs!AP504,AP143))*AP$11 -> 0 | AQ17: =IF($I$16="Scenarios",Scenarios!$F21,IF($I$16="Licensee inputs",MainInputs!AQ504,AQ143))*AQ$11 -> 0 | AR17: =IF($I$16="Scenarios",Scenarios!$F21,IF($I$16="Licensee inputs",MainInputs!AR504,AR143))*AR$11 -> 0 | AS17: =IF($I$16="Scenarios",Scenarios!$F21,IF($I$16="Licensee inputs",MainInputs!AS504,AS143))*AS$11 -> 0 | AT17: =IF($I$16="Scenarios",Scenarios!$F21,IF($I$16="Licensee inputs",MainInputs!AT504,AT143))*AT$11 -> 0 | AU17: =IF($I$16="Scenarios",Scenarios!$F21,IF($I$16="Licensee inputs",MainInputs!AU504,AU143))*AU$11 -> 0.29 | AV17: =IF($I$16="Scenarios",Scenarios!$F21,IF($I$16="Licensee inputs",MainInputs!AV504,AV143))*AV$11 -> 0.29 | AW17: =IF($I$16="Scenarios",Scenarios!$F21,IF($I$16="Licensee inputs",MainInputs!AW504,AW143))*AW$11 -> 0.29 | AX17: =IF($I$16="Scenarios",Scenarios!$F21,IF($I$16="Licensee inputs",MainInputs!AX504,AX143))*AX$11 -> 0.29 | AY17: =IF($I$16="Scenarios",Scenarios!$F21,IF($I$16="Licensee inputs",MainInputs!AY504,AY143))*AY$11 -> 0.29
E18: Capitalisation rate 2 | G18: % | AP18: =IF($I$16="Scenarios",Scenarios!$F22,IF($I$16="Licensee inputs",MainInputs!AP505,AP144))*AP$11 -> 0 | AQ18: =IF($I$16="Scenarios",Scenarios!$F22,IF($I$16="Licensee inputs",MainInputs!AQ505,AQ144))*AQ$11 -> 0 | AR18: =IF($I$16="Scenarios",Scenarios!$F22,IF($I$16="Licensee inputs",MainInputs!AR505,AR144))*AR$11 -> 0 | AS18: =IF($I$16="Scenarios",Scenarios!$F22,IF($I$16="Licensee inputs",MainInputs!AS505,AS144))*AS$11 -> 0 | AT18: =IF($I$16="Scenarios",Scenarios!$F22,IF($I$16="Licensee inputs",MainInputs!AT505,AT144))*AT$11 -> 0 | AU18: =IF($I$16="Scenarios",Scenarios!$F22,IF($I$16="Licensee inputs",MainInputs!AU505,AU144))*AU$11 -> 0.7 | AV18: =IF($I$16="Scenarios",Scenarios!$F22,IF($I$16="Licensee inputs",MainInputs!AV505,AV144))*AV$11 -> 0.7 | AW18: =IF($I$16="Scenarios",Scenarios!$F22,IF($I$16="Licensee inputs",MainInputs!AW505,AW144))*AW$11 -> 0.7 | AX18: =IF($I$16="Scenarios",Scenarios!$F22,IF($I$16="Licensee inputs",MainInputs!AX505,AX144))*AX$11 -> 0.7 | AY18: =IF($I$16="Scenarios",Scenarios!$F22,IF($I$16="Licensee inputs",MainInputs!AY505,AY144))*AY$11 -> 0.7
E19: Capitalisation rate repex | G19: % | AP19: =IF($I$16="Scenarios",Scenarios!$F23,IF($I$16="Licensee inputs",MainInputs!AP506,AP145))*AP$11 -> 0 | AQ19: =IF($I$16="Scenarios",Scenarios!$F23,IF($I$16="Licensee inputs",MainInputs!AQ506,AQ145))*AQ$11 -> 0 | AR19: =IF($I$16="Scenarios",Scenarios!$F23,IF($I$16="Licensee inputs",MainInputs!AR506,AR145))*AR$11 -> 0 | AS19: =IF($I$16="Scenarios",Scenarios!$F23,IF($I$16="Licensee inputs",MainInputs!AS506,AS145))*AS$11 -> 0 | AT19: =IF($I$16="Scenarios",Scenarios!$F23,IF($I$16="Licensee inputs",MainInputs!AT506,AT145))*AT$11 -> 0 | AU19: =IF($I$16="Scenarios",Scenarios!$F23,IF($I$16="Licensee inputs",MainInputs!AU506,AU145))*AU$11 -> 1 | AV19: =IF($I$16="Scenarios",Scenarios!$F23,IF($I$16="Licensee inputs",MainInputs!AV506,AV145))*AV$11 -> 1 | AW19: =IF($I$16="Scenarios",Scenarios!$F23,IF($I$16="Licensee inputs",MainInputs!AW506,AW145))*AW$11 -> 1 | AX19: =IF($I$16="Scenarios",Scenarios!$F23,IF($I$16="Licensee inputs",MainInputs!AX506,AX145))*AX$11 -> 1 | AY19: =IF($I$16="Scenarios",Scenarios!$F23,IF($I$16="Licensee inputs",MainInputs!AY506,AY145))*AY$11 -> 1
B21: Efficiency incentive
C23: Post-TIM overspend (underspend)
C24: Note: Totex overspend (underspend) is identified and subject to the "efficiency incentive rate." Repex is separated at this stage in order to apply the repex capitalisation rate to any overspend (underspend)
D26: Capitalisation 1 totex (excluding repex)
E28: Actual totex | G28: =price_label -> £m 23/24 prices | AP28: =SUM(Totex!AP61:AP65) - Totex!AP65 -> 239.1101619 | AQ28: =SUM(Totex!AQ61:AQ65) - Totex!AQ65 -> 264.2084417 | AR28: =SUM(Totex!AR61:AR65) - Totex!AR65 -> 275.9639631 | AS28: =SUM(Totex!AS61:AS65) - Totex!AS65 -> 247.2712109 | AT28: =SUM(Totex!AT61:AT65) - Totex!AT65 -> 273.8499892 | AU28: =SUM(Totex!AU61:AU65) - Totex!AU65 -> 329.9074379 | AV28: =SUM(Totex!AV61:AV65) - Totex!AV65 -> 303.569996 | AW28: =SUM(Totex!AW61:AW65) - Totex!AW65 -> 295.4001499 | AX28: =SUM(Totex!AX61:AX65) - Totex!AX65 -> 293.9205846 | AY28: =SUM(Totex!AY61:AY65) - Totex!AY65 -> 273.6243198
E29: Less allowed totex | G29: =price_label -> £m 23/24 prices | AP29: =- (SUM(Totex!AP25:AP29) - Totex!AP29) -> -234.8952385 | AQ29: =- (SUM(Totex!AQ25:AQ29) - Totex!AQ29) -> -229.6276274 | AR29: =- (SUM(Totex!AR25:AR29) - Totex!AR29) -> -226.3709512 | AS29: =- (SUM(Totex!AS25:AS29) - Totex!AS29) -> -211.2967874 | AT29: =- (SUM(Totex!AT25:AT29) - Totex!AT29) -> -199.5172154 | AU29: =- (SUM(Totex!AU25:AU29) - Totex!AU29) -> -329.9074379 | AV29: =- (SUM(Totex!AV25:AV29) - Totex!AV29) -> -303.569996 | AW29: =- (SUM(Totex!AW25:AW29) - Totex!AW29) -> -295.4001499 | AX29: =- (SUM(Totex!AX25:AX29) - Totex!AX29) -> -293.9205846 | AY29: =- (SUM(Totex!AY25:AY29) - Totex!AY29) -> -273.6243198
E30: Pre-TIM overspend (underspend) | G30: =price_label -> £m 23/24 prices | AP30: =SUM(AP28:AP29) -> 4.214923446 | AQ30: =SUM(AQ28:AQ29) -> 34.58081424 | AR30: =SUM(AR28:AR29) -> 49.5930119 | AS30: =SUM(AS28:AS29) -> 35.97442353 | AT30: =SUM(AT28:AT29) -> 74.33277382 | AU30: =SUM(AU28:AU29) -> 0 | AV30: 0 | AW30: 0 | AX30: 0 | AY30: 0
E32: TIM rate for allowance, Inverse of Sharing Factor | G32: % | AP32: =MainInputs!$I$508*AP10 + AP15*AP11 -> 0.5 | AQ32: =MainInputs!$I$508*AQ10 + AQ15*AQ11 -> 0.5 | AR32: =MainInputs!$I$508*AR10 + AR15*AR11 -> 0.5 | AS32: =MainInputs!$I$508*AS10 + AS15*AS11 -> 0.5 | AT32: =MainInputs!$I$508*AT10 + AT15*AT11 -> 0.5 | AU32: =MainInputs!$I$508*AU10 + AU15*AU11 -> 0.5 | AV32: =MainInputs!$I$508*AV10 + AV15*AV11 -> 0.5 | AW32: =MainInputs!$I$508*AW10 + AW15*AW11 -> 0.5 | AX32: =MainInputs!$I$508*AX10 + AX15*AX11 -> 0.5 | AY32: =MainInputs!$I$508*AY10 + AY15*AY11 -> 0.5
E34: Post-TIM overspend (underspend) | G34: =price_label -> £m 23/24 prices | AP34: =AP$32 * AP30 -> 2.107461723 | AQ34: =AQ$32 * AQ30 -> 17.29040712 | AR34: =AR$32 * AR30 -> 24.79650595 | AS34: =AS$32 * AS30 -> 17.98721177 | AT34: =AT$32 * AT30 -> 37.16638691 | AU34: =AU$32 * AU30 -> 0 | AV34: 0 | AW34: 0 | AX34: 0 | AY34: 0
D36: Capitalisation 2 totex (excluding repex)
E38: Actual totex | G38: =price_label -> £m 23/24 prices | AP38: =SUM(Totex!AP69:AP73) - Totex!AP73 -> 14.93961095 | AQ38: =SUM(Totex!AQ69:AQ73) - Totex!AQ73 -> 8.722685453 | AR38: =SUM(Totex!AR69:AR73) - Totex!AR73 -> 8.833447588 | AS38: =SUM(Totex!AS69:AS73) - Totex!AS73 -> 31.84097362 | AT38: =SUM(Totex!AT69:AT73) - Totex!AT73 -> 49.11039387 | AU38: =SUM(Totex!AU69:AU73) - Totex!AU73 -> 17.89823107 | AV38: =SUM(Totex!AV69:AV73) - Totex!AV73 -> 17.49485235 | AW38: =SUM(Totex!AW69:AW73) - Totex!AW73 -> 6.539849669 | AX38: =SUM(Totex!AX69:AX73) - Totex!AX73 -> 13.30194157 | AY38: =SUM(Totex!AY69:AY73) - Totex!AY73 -> 13.17656848
E39: Less allowed totex | G39: =price_label -> £m 23/24 prices | AP39: =- (SUM(Totex!AP33:AP37) - Totex!AP37) -> -16.74985454 | AQ39: =- (SUM(Totex!AQ33:AQ37) - Totex!AQ37) -> -9.810535142 | AR39: =- (SUM(Totex!AR33:AR37) - Totex!AR37) -> -10.16505687 | AS39: =- (SUM(Totex!AS33:AS37) - Totex!AS37) -> -34.12745942 | AT39: =- (SUM(Totex!AT33:AT37) - Totex!AT37) -> -59.21242457 | AU39: =- (SUM(Totex!AU33:AU37) - Totex!AU37) -> -17.89823107 | AV39: =- (SUM(Totex!AV33:AV37) - Totex!AV37) -> -17.49485235 | AW39: =- (SUM(Totex!AW33:AW37) - Totex!AW37) -> -6.539849669 | AX39: =- (SUM(Totex!AX33:AX37) - Totex!AX37) -> -13.30194157 | AY39: =- (SUM(Totex!AY33:AY37) - Totex!AY37) -> -13.17656848
E40: Pre-TIM overspend (underspend) | G40: =price_label -> £m 23/24 prices | AP40: =SUM(AP38:AP39) -> -1.810243587 | AQ40: =SUM(AQ38:AQ39) -> -1.087849689 | AR40: =SUM(AR38:AR39) -> -1.331609283 | AS40: =SUM(AS38:AS39) -> -2.286485798 | AT40: =SUM(AT38:AT39) -> -10.1020307 | AU40: =SUM(AU38:AU39) -> 0 | AV40: 0 | AW40: 0 | AX40: 0 | AY40: 0
E42: TIM rate for allowance, Inverse of Sharing Factor | G42: % | AP42: =AP32 -> 0.5 | AQ42: =AQ32 -> 0.5 | AR42: 0.5 | AS42: 0.5 | AT42: 0.5 | AU42: =AU32 -> 0.5 | AV42: 0.5 | AW42: 0.5 | AX42: 0.5 | AY42: 0.5
E44: Post-TIM overspend (underspend) | G44: =price_label -> £m 23/24 prices | AP44: =AP$42 * AP40 -> -0.9051217935 | AQ44: =AQ$42 * AQ40 -> -0.5439248447 | AR44: -0.6658046414 | AS44: -1.143242899 | AT44: -5.051015349 | AU44: =AU$42 * AU40 -> 0 | AV44: 0 | AW44: 0 | AX44: 0 | AY44: 0
D46: Repex
E48: Actual repex | G48: =price_label -> £m 23/24 prices | AP48: =Totex!AP81 -> 160.6441836 | AQ48: =Totex!AQ81 -> 191.8172693 | AR48: =Totex!AR81 -> 196.7220043 | AS48: =Totex!AS81 -> 186.5105663 | AT48: =Totex!AT81 -> 184.5411447 | AU48: =Totex!AU81 -> 194.9692055 | AV48: =Totex!AV81 -> 195.3391638 | AW48: =Totex!AW81 -> 198.1701037 | AX48: =Totex!AX81 -> 201.3073458 | AY48: =Totex!AY81 -> 200.4234858
E49: Less allowed repex | G49: =price_label -> £m 23/24 prices | AP49: =- Totex!AP45 -> -172.256784 | AQ49: =- Totex!AQ45 -> -170.3944999 | AR49: =- Totex!AR45 -> -166.8781307 | AS49: =- Totex!AS45 -> -164.4453247 | AT49: =- Totex!AT45 -> -163.4889465 | AU49: =- Totex!AU45 -> -194.9692055 | AV49: =- Totex!AV45 -> -195.3391638 | AW49: =- Totex!AW45 -> -198.1701037 | AX49: =- Totex!AX45 -> -201.3073458 | AY49: =- Totex!AY45 -> -200.4234858
E50: Pre-TIM repex overspend (underspend) | G50: =price_label -> £m 23/24 prices | AP50: =SUM(AP48:AP49) -> -11.61260035 | AQ50: =SUM(AQ48:AQ49) -> 21.4227694 | AR50: =SUM(AR48:AR49) -> 29.84387364 | AS50: =SUM(AS48:AS49) -> 22.06524155 | AT50: =SUM(AT48:AT49) -> 21.05219823 | AU50: =SUM(AU48:AU49) -> 0 | AV50: 0 | AW50: 0 | AX50: 0 | AY50: 0
E52: Funding Adjustment Rate (often referred to as 'sharing factor') | G52: % | AP52: =AP$32 -> 0.5 | AQ52: =AQ$32 -> 0.5 | AR52: =AR$32 -> 0.5 | AS52: =AS$32 -> 0.5 | AT52: =AT$32 -> 0.5 | AU52: =AU$32 -> 0.5 | AV52: 0.5 | AW52: 0.5 | AX52: 0.5 | AY52: 0.5
E54: Post-TIM repex overspend (underspend) | G54: =price_label -> £m 23/24 prices | AP54: =AP$52 * AP50 -> -5.806300175 | AQ54: =AQ$52 * AQ50 -> 10.7113847 | AR54: =AR$52 * AR50 -> 14.92193682 | AS54: =AS$52 * AS50 -> 11.03262077 | AT54: =AT$52 * AT50 -> 10.52609911 | AU54: =AU$52 * AU50 -> 0 | AV54: 0 | AW54: 0 | AX54: 0 | AY54: 0
C56: Post-TIM totex
C57: Note: "Post-TIM overspend (underspend)" is added to the allowed totex value to give the Post-TIM totex allowance to be split into fast and slow money.
D59: Capitalisation 1 totex (excluding repex)
E61: Allowed totex | G61: =price_label -> £m 23/24 prices | AP61: =-AP29 -> 234.8952385 | AQ61: =-AQ29 -> 229.6276274 | AR61: =-AR29 -> 226.3709512 | AS61: =-AS29 -> 211.2967874 | AT61: =-AT29 -> 199.5172154 | AU61: =-AU29 -> 329.9074379 | AV61: 303.569996 | AW61: 295.4001499 | AX61: 293.9205846 | AY61: 273.6243198
E62: Post-TIM overspend (underspend) | G62: =price_label -> £m 23/24 prices | AP62: =AP34 -> 2.107461723 | AQ62: =AQ34 -> 17.29040712 | AR62: =AR34 -> 24.79650595 | AS62: =AS34 -> 17.98721177 | AT62: =AT34 -> 37.16638691 | AU62: =AU34 -> 0 | AV62: 0 | AW62: 0 | AX62: 0 | AY62: 0
... 52 more rows

Sheet Depn
A1: Regulatory Depreciation
B2: =UserInterface!G17 -> East
E3: Parameter | G3: Units | I3: Constant | AP3: Annual values
E4: PCFM year ending | I4: =UserInterface!$G$10 -> 2025-03-31 | K4: 1991-03-31 | L4: 1992-03-31 | M4: 1993-03-31 | N4: 1994-03-31 | O4: 1995-03-31 | P4: 1996-03-31 | Q4: 1997-03-31 | R4: 1998-03-31 | S4: 1999-03-31 | T4: 2000-03-31 | U4: 2001-03-31 | V4: 2002-03-31 | W4: 2003-03-31 | X4: 2004-03-31 | Y4: 2005-03-31 | Z4: 2006-03-31 | AA4: 2007-03-31 | AB4: 2008-03-31 | AC4: 2009-03-31 | AD4: 2010-03-31 | AE4: 2011-03-31 | AF4: 2012-03-31 | AG4: 2013-03-31 | AH4: 2014-03-31 | AI4: 2015-03-31 | AJ4: 2016-03-31 | AK4: 2017-03-31 | AL4: 2018-03-31 | AM4: 2019-03-31 | AN4: 2020-03-31 | AO4: 2021-03-31 | AP4: 2022-03-31 | AQ4: 2023-03-31 | AR4: 2024-03-31 | AS4: 2025-03-31 | AT4: 2026-03-31 | AU4: 2027-03-31 | AV4: 2028-03-31 | AW4: 2029-03-31 | AX4: 2030-03-31 | AY4: =EOMONTH(AX4,12) -> 2031-03-31 | AZ4: =EOMONTH(AY4,12) -> 2032-03-31 | BA4: 2033-03-31 | BB4: 2034-03-31 | BC4: 2035-03-31 | BD4: 2036-03-31 | BE4: 2037-03-31 | BF4: 2038-03-31 | BG4: 2039-03-31 | BH4: 2040-03-31 | BI4: 2041-03-31 | BJ4: 2042-03-31 | BK4: 2043-03-31 | BL4: 2044-03-31 | BM4: 2045-03-31 | BN4: 2046-03-31 | BO4: 2047-03-31 | BP4: 2048-03-31 | BQ4: 2049-03-31 | BR4: 2050-03-31 | BS4: 2051-03-31 | BT4: 2052-03-31 | BU4: 2053-03-31 | BV4: 2054-03-31 | BW4: 2055-03-31 | BX4: 2056-03-31 | BY4: =EOMONTH(BX4,12) -> 2057-03-31 | BZ4: =EOMONTH(BY4,12) -> 2058-03-31 | CA4: =EOMONTH(BZ4,12) -> 2059-03-31 | CB4: =EOMONTH(CA4,12) -> 2060-03-31 | CC4: =EOMONTH(CB4,12) -> 2061-03-31 | CD4: =EOMONTH(CC4,12) -> 2062-03-31 | CE4: =EOMONTH(CD4,12) -> 2063-03-31 | CF4: =EOMONTH(CE4,12) -> 2064-03-31 | CG4: =EOMONTH(CF4,12) -> 2065-03-31 | CH4: =EOMONTH(CG4,12) -> 2066-03-31 | CI4: =EOMONTH(CH4,12) -> 2067-03-31 | CJ4: =EOMONTH(CI4,12) -> 2068-03-31 | CK4: =EOMONTH(CJ4,12) -> 2069-03-31 | CL4: =EOMONTH(CK4,12) -> 2070-03-31 | CM4: =EOMONTH(CL4,12) -> 2071-03-31 | CN4: =EOMONTH(CM4,12) -> 2072-03-31 | CO4: =EOMONTH(CN4,12) -> 2073-03-31 | CP4: =EOMONTH(CO4,12) -> 2074-03-31 | CQ4: =EOMONTH(CP4,12) -> 2075-03-31 | CR4: =EOMONTH(CQ4,12) -> 2076-03-31 | CS4: =EOMONTH(CR4,12) -> 2077-03-31 | CT4: =EOMONTH(CS4,12) -> 2078-03-31 | CU4: =EOMONTH(CT4,12) -> 2079-03-31 | CV4: =EOMONTH(CU4,12) -> 2080-03-31 | CW4: 2081-03-31
AU5: =ROUNDUP(SUM($AU11:AU11)/5,0)+2 -> 3 | AV5: =ROUNDUP(SUM($AU11:AV11)/5,0)+2 -> 3 | AW5: =ROUNDUP(SUM($AU11:AW11)/5,0)+2 -> 3 | AX5: =ROUNDUP(SUM($AU11:AX11)/5,0)+2 -> 3 | AY5: =ROUNDUP(SUM($AU11:AY11)/5,0)+2 -> 3 | AZ5: =ROUNDUP(SUM($AU11:AZ11)/5,0)+2 -> 4 | BA5: =ROUNDUP(SUM($AU11:BA11)/5,0)+2 -> 4 | BB5: =ROUNDUP(SUM($AU11:BB11)/5,0)+2 -> 4 | BC5: =ROUNDUP(SUM($AU11:BC11)/5,0)+2 -> 4 | BD5: =ROUNDUP(SUM($AU11:BD11)/5,0)+2 -> 4 | BE5: =ROUNDUP(SUM($AU11:BE11)/5,0)+2 -> 5 | BF5: =ROUNDUP(SUM($AU11:BF11)/5,0)+2 -> 5 | BG5: =ROUNDUP(SUM($AU11:BG11)/5,0)+2 -> 5 | BH5: =ROUNDUP(SUM($AU11:BH11)/5,0)+2 -> 5 | BI5: =ROUNDUP(SUM($AU11:BI11)/5,0)+2 -> 5 | BJ5: =ROUNDUP(SUM($AU11:BJ11)/5,0)+2 -> 6 | BK5: =ROUNDUP(SUM($AU11:BK11)/5,0)+2 -> 6 | BL5: =ROUNDUP(SUM($AU11:BL11)/5,0)+2 -> 6 | BM5: =ROUNDUP(SUM($AU11:BM11)/5,0)+2 -> 6 | BN5: =ROUNDUP(SUM($AU11:BN11)/5,0)+2 -> 6 | BO5: =ROUNDUP(SUM($AU11:BO11)/5,0)+2 -> 7 | BP5: =ROUNDUP(SUM($AU11:BP11)/5,0)+2 -> 7 | BQ5: =ROUNDUP(SUM($AU11:BQ11)/5,0)+2 -> 7 | BR5: =ROUNDUP(SUM($AU11:BR11)/5,0)+2 -> 7 | BS5: =ROUNDUP(SUM($AU11:BS11)/5,0)+2 -> 7 | BT5: =ROUNDUP(SUM($AU11:BT11)/5,0)+2 -> 8 | BU5: =ROUNDUP(SUM($AU11:BU11)/5,0)+2 -> 8 | BV5: =ROUNDUP(SUM($AU11:BV11)/5,0)+2 -> 8 | BW5: =ROUNDUP(SUM($AU11:BW11)/5,0)+2 -> 8 | BX5: =ROUNDUP(SUM($AU11:BX11)/5,0)+2 -> 8 | BY5: =ROUNDUP(SUM($AU11:BY11)/5,0)+2 -> 9 | BZ5: =ROUNDUP(SUM($AU11:BZ11)/5,0)+2 -> 9 | CA5: =ROUNDUP(SUM($AU11:CA11)/5,0)+2 -> 9 | CB5: =ROUNDUP(SUM($AU11:CB11)/5,0)+2 -> 9 | CC5: =ROUNDUP(SUM($AU11:CC11)/5,0)+2 -> 9 | CD5: =ROUNDUP(SUM($AU11:CD11)/5,0)+2 -> 10 | CE5: =ROUNDUP(SUM($AU11:CE11)/5,0)+2 -> 10 | CF5: =ROUNDUP(SUM($AU11:CF11)/5,0)+2 -> 10 | CG5: =ROUNDUP(SUM($AU11:CG11)/5,0)+2 -> 10 | CH5: =ROUNDUP(SUM($AU11:CH11)/5,0)+2 -> 10 | CI5: =ROUNDUP(SUM($AU11:CI11)/5,0)+2 -> 11 | CJ5: =ROUNDUP(SUM($AU11:CJ11)/5,0)+2 -> 11 | CK5: =ROUNDUP(SUM($AU11:CK11)/5,0)+2 -> 11 | CL5: =ROUNDUP(SUM($AU11:CL11)/5,0)+2 -> 11 | CM5: =ROUNDUP(SUM($AU11:CM11)/5,0)+2 -> 11 | CN5: =ROUNDUP(SUM($AU11:CN11)/5,0)+2 -> 12 | CO5: =ROUNDUP(SUM($AU11:CO11)/5,0)+2 -> 12 | CP5: =ROUNDUP(SUM($AU11:CP11)/5,0)+2 -> 12 | CQ5: =ROUNDUP(SUM($AU11:CQ11)/5,0)+2 -> 12 | CR5: =ROUNDUP(SUM($AU11:CR11)/5,0)+2 -> 12 | CS5: =ROUNDUP(SUM($AU11:CS11)/5,0)+2 -> 13 | CT5: =ROUNDUP(SUM($AU11:CT11)/5,0)+2 -> 13 | CU5: =ROUNDUP(SUM($AU11:CU11)/5,0)+2 -> 13 | CV5: =ROUNDUP(SUM($AU11:CV11)/5,0)+2 -> 13 | CW5: =ROUNDUP(SUM($AU11:CW11)/5,0)+2 -> 13
C7: Price control timeline
E9: Pre-RIIO-2 year | G9: flag | K9: =Scenarios!K$119 -> 1 | L9: =Scenarios!L$119 -> 1 | M9: =Scenarios!M$119 -> 1 | N9: =Scenarios!N$119 -> 1 | O9: =Scenarios!O$119 -> 1 | P9: =Scenarios!P$119 -> 1 | Q9: =Scenarios!Q$119 -> 1 | R9: =Scenarios!R$119 -> 1 | S9: =Scenarios!S$119 -> 1 | T9: =Scenarios!T$119 -> 1 | U9: =Scenarios!U$119 -> 1 | V9: =Scenarios!V$119 -> 1 | W9: =Scenarios!W$119 -> 1 | X9: =Scenarios!X$119 -> 1 | Y9: =Scenarios!Y$119 -> 1 | Z9: =Scenarios!Z$119 -> 1 | AA9: =Scenarios!AA$119 -> 1 | AB9: =Scenarios!AB$119 -> 1 | AC9: =Scenarios!AC$119 -> 1 | AD9: =Scenarios!AD$119 -> 1 | AE9: =Scenarios!AE$119 -> 1 | AF9: =Scenarios!AF$119 -> 1 | AG9: =Scenarios!AG$119 -> 1 | AH9: =Scenarios!AH$119 -> 1 | AI9: =Scenarios!AI$119 -> 1 | AJ9: =Scenarios!AJ$119 -> 1 | AK9: =Scenarios!AK$119 -> 1 | AL9: =Scenarios!AL$119 -> 1 | AM9: =Scenarios!AM$119 -> 1 | AN9: =Scenarios!AN$119 -> 1 | AO9: =Scenarios!AO$119 -> 1 | AP9: =Scenarios!AP$119 -> 0 | AQ9: =Scenarios!AQ$119 -> 0 | AR9: =Scenarios!AR$119 -> 0 | AS9: =Scenarios!AS$119 -> 0 | AT9: =Scenarios!AT$119 -> 0 | AU9: =Scenarios!AU$119 -> 0 | AV9: =Scenarios!AV$119 -> 0 | AW9: =Scenarios!AW$119 -> 0 | AX9: =Scenarios!AX$119 -> 0 | AY9: =Scenarios!AY$119 -> 0
E10: RIIO-2 year | G10: flag | K10: =Scenarios!K$120 -> 0 | L10: =Scenarios!L$120 -> 0 | M10: =Scenarios!M$120 -> 0 | N10: =Scenarios!N$120 -> 0 | O10: =Scenarios!O$120 -> 0 | P10: =Scenarios!P$120 -> 0 | Q10: =Scenarios!Q$120 -> 0 | R10: =Scenarios!R$120 -> 0 | S10: =Scenarios!S$120 -> 0 | T10: =Scenarios!T$120 -> 0 | U10: =Scenarios!U$120 -> 0 | V10: =Scenarios!V$120 -> 0 | W10: =Scenarios!W$120 -> 0 | X10: =Scenarios!X$120 -> 0 | Y10: =Scenarios!Y$120 -> 0 | Z10: =Scenarios!Z$120 -> 0 | AA10: =Scenarios!AA$120 -> 0 | AB10: =Scenarios!AB$120 -> 0 | AC10: =Scenarios!AC$120 -> 0 | AD10: =Scenarios!AD$120 -> 0 | AE10: =Scenarios!AE$120 -> 0 | AF10: =Scenarios!AF$120 -> 0 | AG10: =Scenarios!AG$120 -> 0 | AH10: =Scenarios!AH$120 -> 0 | AI10: =Scenarios!AI$120 -> 0 | AJ10: =Scenarios!AJ$120 -> 0 | AK10: =Scenarios!AK$120 -> 0 | AL10: =Scenarios!AL$120 -> 0 | AM10: =Scenarios!AM$120 -> 0 | AN10: =Scenarios!AN$120 -> 0 | AO10: =Scenarios!AO$120 -> 0 | AP10: =Scenarios!AP$120 -> 1 | AQ10: =Scenarios!AQ$120 -> 1 | AR10: =Scenarios!AR$120 -> 1 | AS10: =Scenarios!AS$120 -> 1 | AT10: =Scenarios!AT$120 -> 1 | AU10: =Scenarios!AU$120 -> 0 | AV10: =Scenarios!AV$120 -> 0 | AW10: =Scenarios!AW$120 -> 0 | AX10: =Scenarios!AX$120 -> 0 | AY10: =Scenarios!AY$120 -> 0
E11: RIIO-3 year | G11: flag | K11: =Scenarios!K$121 -> 0 | L11: =Scenarios!L$121 -> 0 | M11: =Scenarios!M$121 -> 0 | N11: =Scenarios!N$121 -> 0 | O11: =Scenarios!O$121 -> 0 | P11: =Scenarios!P$121 -> 0 | Q11: =Scenarios!Q$121 -> 0 | R11: =Scenarios!R$121 -> 0 | S11: =Scenarios!S$121 -> 0 | T11: =Scenarios!T$121 -> 0 | U11: =Scenarios!U$121 -> 0 | V11: =Scenarios!V$121 -> 0 | W11: =Scenarios!W$121 -> 0 | X11: =Scenarios!X$121 -> 0 | Y11: =Scenarios!Y$121 -> 0 | Z11: =Scenarios!Z$121 -> 0 | AA11: =Scenarios!AA$121 -> 0 | AB11: =Scenarios!AB$121 -> 0 | AC11: =Scenarios!AC$121 -> 0 | AD11: =Scenarios!AD$121 -> 0 | AE11: =Scenarios!AE$121 -> 0 | AF11: =Scenarios!AF$121 -> 0 | AG11: =Scenarios!AG$121 -> 0 | AH11: =Scenarios!AH$121 -> 0 | AI11: =Scenarios!AI$121 -> 0 | AJ11: =Scenarios!AJ$121 -> 0 | AK11: =Scenarios!AK$121 -> 0 | AL11: =Scenarios!AL$121 -> 0 | AM11: =Scenarios!AM$121 -> 0 | AN11: =Scenarios!AN$121 -> 0 | AO11: =Scenarios!AO$121 -> 0 | AP11: =Scenarios!AP$121 -> 0 | AQ11: =Scenarios!AQ$121 -> 0 | AR11: =Scenarios!AR$121 -> 0 | AS11: =Scenarios!AS$121 -> 0 | AT11: =Scenarios!AT$121 -> 0 | AU11: =Scenarios!AU$121 -> 1 | AV11: =Scenarios!AV$121 -> 1 | AW11: =Scenarios!AW$121 -> 1 | AX11: =Scenarios!AX$121 -> 1 | AY11: =Scenarios!AY$121 -> 1 | AZ11: 1 | BA11: 1 | BB11: 1 | BC11: 1 | BD11: 1 | BE11: 1 | BF11: 1 | BG11: 1 | BH11: 1 | BI11: 1 | BJ11: 1 | BK11: 1 | BL11: 1 | BM11: 1 | BN11: 1 | BO11: 1 | BP11: 1 | BQ11: 1 | BR11: 1 | BS11: 1 | BT11: 1 | BU11: 1 | BV11: 1 | BW11: 1 | BX11: 1 | BY11: 1 | BZ11: 1 | CA11: 1 | CB11: 1 | CC11: 1 | CD11: 1 | CE11: 1 | CF11: 1 | CG11: 1 | CH11: 1 | CI11: 1 | CJ11: 1 | CK11: 1 | CL11: 1 | CM11: 1 | CN11: 1 | CO11: 1 | CP11: 1 | CQ11: 1 | CR11: 1 | CS11: 1 | CT11: 1 | CU11: 1 | CV11: 1 | CW11: 1
C13: Scenario operators
E15: Profile of depreciation factors | G15: scalar | I15: =Scenarios!F245 -> Base case | AU15: =IFERROR(INDEX(Scenarios!$AT$245:$AX$245,,MATCH(AU5,Scenarios!$AT$244:$AX$244,0)),1) -> 1 | AV15: =IFERROR(INDEX(Scenarios!$AT$245:$AX$245,,MATCH(AV5,Scenarios!$AT$244:$AX$244,0)),1) -> 1 | AW15: =IFERROR(INDEX(Scenarios!$AT$245:$AX$245,,MATCH(AW5,Scenarios!$AT$244:$AX$244,0)),1) -> 1 | AX15: =IFERROR(INDEX(Scenarios!$AT$245:$AX$245,,MATCH(AX5,Scenarios!$AT$244:$AX$244,0)),1) -> 1 | AY15: =IFERROR(INDEX(Scenarios!$AT$245:$AX$245,,MATCH(AY5,Scenarios!$AT$244:$AX$244,0)),1) -> 1 | AZ15: =IFERROR(INDEX(Scenarios!$AT$245:$AX$245,,MATCH(AZ5,Scenarios!$AT$244:$AX$244,0)),1) -> 1 | BA15: =IFERROR(INDEX(Scenarios!$AT$245:$AX$245,,MATCH(BA5,Scenarios!$AT$244:$AX$244,0)),1) -> 1 | BB15: =IFERROR(INDEX(Scenarios!$AT$245:$AX$245,,MATCH(BB5,Scenarios!$AT$244:$AX$244,0)),1) -> 1 | BC15: =IFERROR(INDEX(Scenarios!$AT$245:$AX$245,,MATCH(BC5,Scenarios!$AT$244:$AX$244,0)),1) -> 1 | BD15: =IFERROR(INDEX(Scenarios!$AT$245:$AX$245,,MATCH(BD5,Scenarios!$AT$244:$AX$244,0)),1) -> 1 | BE15: =IFERROR(INDEX(Scenarios!$AT$245:$AX$245,,MATCH(BE5,Scenarios!$AT$244:$AX$244,0)),1) -> 1 | BF15: =IFERROR(INDEX(Scenarios!$AT$245:$AX$245,,MATCH(BF5,Scenarios!$AT$244:$AX$244,0)),1) -> 1 | BG15: =IFERROR(INDEX(Scenarios!$AT$245:$AX$245,,MATCH(BG5,Scenarios!$AT$244:$AX$244,0)),1) -> 1 | BH15: =IFERROR(INDEX(Scenarios!$AT$245:$AX$245,,MATCH(BH5,Scenarios!$AT$244:$AX$244,0)),1) -> 1 | BI15: =IFERROR(INDEX(Scenarios!$AT$245:$AX$245,,MATCH(BI5,Scenarios!$AT$244:$AX$244,0)),1) -> 1 | BJ15: =IFERROR(INDEX(Scenarios!$AT$245:$AX$245,,MATCH(BJ5,Scenarios!$AT$244:$AX$244,0)),1) -> 1 | BK15: =IFERROR(INDEX(Scenarios!$AT$245:$AX$245,,MATCH(BK5,Scenarios!$AT$244:$AX$244,0)),1) -> 1 | BL15: =IFERROR(INDEX(Scenarios!$AT$245:$AX$245,,MATCH(BL5,Scenarios!$AT$244:$AX$244,0)),1) -> 1 | BM15: =IFERROR(INDEX(Scenarios!$AT$245:$AX$245,,MATCH(BM5,Scenarios!$AT$244:$AX$244,0)),1) -> 1 | BN15: =IFERROR(INDEX(Scenarios!$AT$245:$AX$245,,MATCH(BN5,Scenarios!$AT$244:$AX$244,0)),1) -> 1 | BO15: =IFERROR(INDEX(Scenarios!$AT$245:$AX$245,,MATCH(BO5,Scenarios!$AT$244:$AX$244,0)),1) -> 1 | BP15: =IFERROR(INDEX(Scenarios!$AT$245:$AX$245,,MATCH(BP5,Scenarios!$AT$244:$AX$244,0)),1) -> 1 | BQ15: =IFERROR(INDEX(Scenarios!$AT$245:$AX$245,,MATCH(BQ5,Scenarios!$AT$244:$AX$244,0)),1) -> 1 | BR15: =IFERROR(INDEX(Scenarios!$AT$245:$AX$245,,MATCH(BR5,Scenarios!$AT$244:$AX$244,0)),1) -> 1 | BS15: =IFERROR(INDEX(Scenarios!$AT$245:$AX$245,,MATCH(BS5,Scenarios!$AT$244:$AX$244,0)),1) -> 1 | BT15: =IFERROR(INDEX(Scenarios!$AT$245:$AX$245,,MATCH(BT5,Scenarios!$AT$244:$AX$244,0)),1) -> 1 | BU15: =IFERROR(INDEX(Scenarios!$AT$245:$AX$245,,MATCH(BU5,Scenarios!$AT$244:$AX$244,0)),1) -> 1 | BV15: =IFERROR(INDEX(Scenarios!$AT$245:$AX$245,,MATCH(BV5,Scenarios!$AT$244:$AX$244,0)),1) -> 1 | BW15: =IFERROR(INDEX(Scenarios!$AT$245:$AX$245,,MATCH(BW5,Scenarios!$AT$244:$AX$244,0)),1) -> 1 | BX15: =IFERROR(INDEX(Scenarios!$AT$245:$AX$245,,MATCH(BX5,Scenarios!$AT$244:$AX$244,0)),1) -> 1 | BY15: =IFERROR(INDEX(Scenarios!$AT$245:$AX$245,,MATCH(BY5,Scenarios!$AT$244:$AX$244,0)),1) -> 1 | BZ15: =IFERROR(INDEX(Scenarios!$AT$245:$AX$245,,MATCH(BZ5,Scenarios!$AT$244:$AX$244,0)),1) -> 1 | CA15: =IFERROR(INDEX(Scenarios!$AT$245:$AX$245,,MATCH(CA5,Scenarios!$AT$244:$AX$244,0)),1) -> 1 | CB15: =IFERROR(INDEX(Scenarios!$AT$245:$AX$245,,MATCH(CB5,Scenarios!$AT$244:$AX$244,0)),1) -> 1 | CC15: =IFERROR(INDEX(Scenarios!$AT$245:$AX$245,,MATCH(CC5,Scenarios!$AT$244:$AX$244,0)),1) -> 1 | CD15: =IFERROR(INDEX(Scenarios!$AT$245:$AX$245,,MATCH(CD5,Scenarios!$AT$244:$AX$244,0)),1) -> 1 | CE15: =IFERROR(INDEX(Scenarios!$AT$245:$AX$245,,MATCH(CE5,Scenarios!$AT$244:$AX$244,0)),1) -> 1 | CF15: =IFERROR(INDEX(Scenarios!$AT$245:$AX$245,,MATCH(CF5,Scenarios!$AT$244:$AX$244,0)),1) -> 1 | CG15: =IFERROR(INDEX(Scenarios!$AT$245:$AX$245,,MATCH(CG5,Scenarios!$AT$244:$AX$244,0)),1) -> 1 | CH15: =IFERROR(INDEX(Scenarios!$AT$245:$AX$245,,MATCH(CH5,Scenarios!$AT$244:$AX$244,0)),1) -> 1 | CI15: =IFERROR(INDEX(Scenarios!$AT$245:$AX$245,,MATCH(CI5,Scenarios!$AT$244:$AX$244,0)),1) -> 1 | CJ15: =IFERROR(INDEX(Scenarios!$AT$245:$AX$245,,MATCH(CJ5,Scenarios!$AT$244:$AX$244,0)),1) -> 1 | CK15: =IFERROR(INDEX(Scenarios!$AT$245:$AX$245,,MATCH(CK5,Scenarios!$AT$244:$AX$244,0)),1) -> 1 | CL15: =IFERROR(INDEX(Scenarios!$AT$245:$AX$245,,MATCH(CL5,Scenarios!$AT$244:$AX$244,0)),1) -> 1 | CM15: =IFERROR(INDEX(Scenarios!$AT$245:$AX$245,,MATCH(CM5,Scenarios!$AT$244:$AX$244,0)),1) -> 1 | CN15: =IFERROR(INDEX(Scenarios!$AT$245:$AX$245,,MATCH(CN5,Scenarios!$AT$244:$AX$244,0)),1) -> 1 | CO15: =IFERROR(INDEX(Scenarios!$AT$245:$AX$245,,MATCH(CO5,Scenarios!$AT$244:$AX$244,0)),1) -> 1 | CP15: =IFERROR(INDEX(Scenarios!$AT$245:$AX$245,,MATCH(CP5,Scenarios!$AT$244:$AX$244,0)),1) -> 1 | CQ15: =IFERROR(INDEX(Scenarios!$AT$245:$AX$245,,MATCH(CQ5,Scenarios!$AT$244:$AX$244,0)),1) -> 1 | CR15: =IFERROR(INDEX(Scenarios!$AT$245:$AX$245,,MATCH(CR5,Scenarios!$AT$244:$AX$244,0)),1) -> 1 | CS15: =IFERROR(INDEX(Scenarios!$AT$245:$AX$245,,MATCH(CS5,Scenarios!$AT$244:$AX$244,0)),1) -> 1 | CT15: =IFERROR(INDEX(Scenarios!$AT$245:$AX$245,,MATCH(CT5,Scenarios!$AT$244:$AX$244,0)),1) -> 1 | CU15: =IFERROR(INDEX(Scenarios!$AT$245:$AX$245,,MATCH(CU5,Scenarios!$AT$244:$AX$244,0)),1) -> 1 | CV15: =IFERROR(INDEX(Scenarios!$AT$245:$AX$245,,MATCH(CV5,Scenarios!$AT$244:$AX$244,0)),1) -> 1 | CW15: =IFERROR(INDEX(Scenarios!$AT$245:$AX$245,,MATCH(CW5,Scenarios!$AT$244:$AX$244,0)),1) -> 1
E16: RIIO-3 treatment: asset life input or custom profile? | G16: text | I16: =Scenarios!F27 -> Asset life input
E17: If asset life input: Sum of Digits or Straight Line? | G17: text | I17: =Scenarios!F28 -> Sum of Digits
E18: If asset life input: base case or terminate? | G18: text | I18: =Scenarios!F29 -> Terminate
E19: If base case, RIIO-3 additions asset life | G19: years | I19: =Scenarios!F30 -> 45
E20: If terminate, year of final depreciation | G20: year | I20: =IF(I18="Terminate",Scenarios!F31,9999) -> 2050
E21: Post-vesting treatment: status quo, accelerate or terminate? | G21: text | I21: =Scenarios!F32 -> Status quo
E22: If accelerate, pre-RIIO-3 additions accelerated asset life | G22: years | I22: =IF(I21="Status quo", MainInputs!I1486,Scenarios!F33) -> 45
E23: If terminate or RIIO3 reset, year of final depreciation | G23: year | I23: =IF(OR(I21="Terminate",I21="RIIO3 reset"),Scenarios!F34,9999) -> 9999
E24: Pre-vesting treatment: status quo or terminate? | G24: text | I24: =Scenarios!F35 -> Status quo
E25: If terminate, input year of final depreciation | G25: year | I25: =Scenarios!F36 -> 2060
E27: SSMC cost of debt inflation approach: additions | G27: =price_label -> £m 23/24 prices | I27: =Scenarios!F55 -> Option 1 | AT27: ='Return&RAV'!AT65*AT11 -> 0 | AU27: ='Return&RAV'!AU65*AU11 -> 304.5693438 | AV27: ='Return&RAV'!AV65*AV11 -> 299.5879774 | AW27: ='Return&RAV'!AW65*AW11 -> 294.7841185 | AX27: ='Return&RAV'!AX65*AX11 -> 305.0045207 | AY27: ='Return&RAV'!AY65*AY11 -> 300.515625
B29: Regulatory depreciation
C31: Net RAV additions (after disposals)
C32: Note: Additions to RAV are combined before feeding into the depreciation calculations. Disposals are treated as negative additions. Pre-RIIO values are used to build up the post-vesting RAV from vesting.
E34: Slow money | G34: =price_label -> £m 23/24 prices | AP34: =TIM!AP109*AP10 + AP27*AP11 -> 246.2725798 | AQ34: =TIM!AQ109*AQ10 + AQ27*AQ11 -> 259.1987418 | AR34: =TIM!AR109*AR10 + AR27*AR11 -> 261.2881067 | AS34: =TIM!AS109*AS10 + AS27*AS11 -> 265.0592568 | AT34: =TIM!AT109*AT10 + AT27*AT11 -> 280.5662767 | AU34: =TIM!AU109*AU10 + AU27*AU11 -> 304.5693438 | AV34: =TIM!AV109*AV10 + AV27*AV11 -> 299.5879774 | AW34: =TIM!AW109*AW10 + AW27*AW11 -> 294.7841185 | AX34: =TIM!AX109*AX10 + AX27*AX11 -> 305.0045207 | AY34: =TIM!AY109*AY10 + AY27*AY11 -> 300.515625
E35: Net adjustments | G35: £m 23/24 prices | AP35: =SUM(MainInputs!AP1492:AP1492) -> 0 | AQ35: =SUM(MainInputs!AQ1492:AQ1492) -> 0 | AR35: =SUM(MainInputs!AR1492:AR1492) -> 0 | AS35: =SUM(MainInputs!AS1492:AS1492) -> 0 | AT35: =SUM(MainInputs!AT1492:AT1492) -> 0 | AU35: =SUM(MainInputs!AU1492:AU1492) -> 0 | AV35: =SUM(MainInputs!AV1492:AV1492) -> 0 | AW35: =SUM(MainInputs!AW1492:AW1492) -> 0 | AX35: =SUM(MainInputs!AX1492:AX1492) -> 0 | AY35: =SUM(MainInputs!AY1492:AY1492) -> 0
E36: Pre-RIIO net RAV additions (after disposals) | G36: £m 23/24 prices | W36: =MainInputs!W1489 -> 133.9298333 | X36: =MainInputs!X1489 -> 96.10790222 | Y36: =MainInputs!Y1489 -> 98.30047793 | Z36: =MainInputs!Z1489 -> 98.36117955 | AA36: =MainInputs!AA1489 -> 91.93152446 | AB36: =MainInputs!AB1489 -> 211.472998 | AC36: =MainInputs!AC1489 -> 175.7594318 | AD36: =MainInputs!AD1489 -> 200.3473303 | AE36: =MainInputs!AE1489 -> 258.3471867 | AF36: =MainInputs!AF1489 -> 248.9841891 | AG36: =MainInputs!AG1489 -> 181.4134632
E37: RIIO-1 net RAV additions (after disposals) | G37: £m 23/24 prices | AH37: =MainInputs!AH1491 -> 168.9566848 | AI37: =MainInputs!AI1491 -> 164.301292 | AJ37: =MainInputs!AJ1491 -> 176.8416384 | AK37: =MainInputs!AK1491 -> 185.53643 | AL37: =MainInputs!AL1491 -> 201.996472 | AM37: =MainInputs!AM1491 -> 197.286444 | AN37: =MainInputs!AN1491 -> 237.4417891 | AO37: =MainInputs!AO1491 -> 268.5120681
E38: RIIO-1 disposals true-up | G38: £m 23/24 prices | AP38: =MainInputs!AP1496 -> 5.812588928 | AQ38: =MainInputs!AQ1496 -> -0.2299039931 | AR38: =MainInputs!AR1496 -> -0.4312928105 | AS38: =MainInputs!AS1496 -> -1.171918286 | AT38: =MainInputs!AT1496 -> 0.3064115628 | AU38: =MainInputs!AU1496 -> 0 | AV38: =MainInputs!AV1496 -> 0 | AW38: =MainInputs!AW1496 -> 0 | AX38: =MainInputs!AX1496 -> 0 | AY38: =MainInputs!AY1496 -> 0
E39: Net RAV additions (after disposals) | G39: £m 23/24 prices | J39: > | W39: =SUM(W34:W38) -> 133.9298333 | X39: =SUM(X34:X38) -> 96.10790222 | Y39: 98.30047793 | Z39: 98.36117955 | AA39: 91.93152446 | AB39: 211.472998 | AC39: 175.7594318 | AD39: 200.3473303 | AE39: 258.3471867 | AF39: 248.9841891 | AG39: 181.4134632 | AH39: 168.9566848 | AI39: 164.301292 | AJ39: 176.8416384 | AK39: 185.53643 | AL39: 201.996472 | AM39: 197.286444 | AN39: 237.4417891 | AO39: 268.5120681 | AP39: =SUM(AP34:AP38) -> 252.0851687 | AQ39: 258.9688378 | AR39: 260.8568139 | AS39: 263.8873385 | AT39: 280.8726883 | AU39: =SUM(AU34:AU38) -> 304.5693438 | AV39: 299.5879774 | AW39: 294.7841185 | AX39: 305.0045207 | AY39: 300.515625 | AZ39: 0 | BA39: 0 | BB39: 0 | BC39: 0 | BD39: 0 | BE39: 0 | BF39: 0 | BG39: 0 | BH39: 0 | BI39: 0 | BJ39: 0 | BK39: 0 | BL39: 0 | BM39: 0 | BN39: 0 | BO39: 0 | BP39: 0 | BQ39: 0 | BR39: 0 | BS39: 0 | BT39: 0 | BU39: 0 | BV39: 0 | BW39: 0 | BX39: 0 | BY39: 0 | BZ39: 0 | CA39: 0 | CB39: 0 | CC39: 0 | CD39: 0 | CE39: 0 | CF39: 0 | CG39: 0 | CH39: 0 | CI39: 0 | CJ39: 0 | CK39: 0 | CL39: 0 | CM39: 0 | CN39: 0 | CO39: 0 | CP39: 0 | CQ39: 0 | CR39: 0 | CS39: 0 | CT39: 0 | CU39: 0 | CV39: 0 | CW39: =SUM(CW34:CW38) -> 0
C41: Net depreciation additions (after disposals)
C42: Note:
E44: Pre-RIIO transfers to depreciation | G44: =price_label -> £m 23/24 prices | J44: > | V44: =MainInputs!V1490 -> 0 | W44: =MainInputs!W1490 -> 0 | X44: =MainInputs!X1490 -> 0 | Y44: =MainInputs!Y1490 -> 0 | Z44: =MainInputs!Z1490 -> 0 | AA44: =MainInputs!AA1490 -> 0 | AB44: =MainInputs!AB1490 -> 3.292678757 | AC44: =MainInputs!AC1490 -> 3.390713081 | AD44: =MainInputs!AD1490 -> 2.814686558 | AE44: =MainInputs!AE1490 -> 7.113122388 | AF44: =MainInputs!AF1490 -> 6.42737046 | AG44: =MainInputs!AG1490 -> 0
C46: Net depreciation additions (after disposals)
E48: Total calculated depreciation | G48: =price_label -> £m 23/24 prices | X48: =X760 -> 2.976218518 | Y48: =Y760 -> 5.111949679 | Z48: 7.296404744 | AA48: 9.482208734 | AB48: 11.5251315 | AC48: 16.22453146 | AD48: 20.13029661 | AE48: 24.5824595 | AF48: 30.3235081 | AG48: 35.85649008 | AH48: 91.53559833 | AI48: 97.14728461 | AJ48: 85.22402789 | AK48: 87.42269156 | AL48: 100.130103 | AM48: 116.8077646 | AN48: 133.0854766 | AO48: 154.3523165 | AP48: 121.7988932 | AQ48: 129.4781243 | AR48: 137.2130849 | AS48: 144.77992 | AT48: 152.2264814 | AU48: 160.1565727 | AV48: 180.984212 | AW48: 201.3786891 | AX48: 221.3364517 | AY48: 242.2675859 | AZ48: 262.7498306 | BA48: 251.5988516 | BB48: 240.4478726 | BC48: 229.2968935 | BD48: 218.1459145 | BE48: 206.9949355 | BF48: 195.8439565 | BG48: 184.6929775 | BH48: 173.5419985 | BI48: 162.3910195 | BJ48: 151.2400405 | BK48: 140.0890614 | BL48: 128.9380824 | BM48: 117.7871034 | BN48: 106.6361244 | BO48: 95.48514539 | BP48: 84.33416637 | BQ48: 73.18318736 | BR48: 62.16160915 | BS48: 51.23288882 | BT48: 46.9969845 | BU48: 42.85611514 | BV48: 38.80406851 | BW48: 34.95634361 | BX48: 31.2784346 | BY48: 27.79409788 | BZ48: 24.55937197 | CA48: 21.56521049 | CB48: 18.74632772 | CC48: 16.09068812 | CD48: 13.59379374 | CE48: 11.26776084 | CF48: 9.120990193 | CG48: 7.169385218 | CH48: 5.408395166 | CI48: 3.87681747 | CJ48: 2.604671724 | CK48: =CK760 -> 1.576086527 | CL48: 0.7977127682 | CM48: 0.271374578 | CN48: 0 | CO48: 0 | CP48: 0 | CQ48: 0 | CR48: 0 | CS48: 0 | CT48: 0 | CU48: 0 | CV48: 0 | CW48: 0
E49: Override depreciation profile input | G49: =price_label -> £m 23/24 prices | AU49: =MainInputs!AU1498 -> 0 | AV49: =MainInputs!AV1498 -> 0 | AW49: =MainInputs!AW1498 -> 0 | AX49: =MainInputs!AX1498 -> 0 | AY49: =MainInputs!AY1498 -> 0 | AZ49: =MainInputs!AZ1498 -> 0 | BA49: =MainInputs!BA1498 -> 0 | BB49: =MainInputs!BB1498 -> 0 | BC49: =MainInputs!BC1498 -> 0 | BD49: =MainInputs!BD1498 -> 0 | BE49: =MainInputs!BE1498 -> 0 | BF49: =MainInputs!BF1498 -> 0 | BG49: =MainInputs!BG1498 -> 0 | BH49: =MainInputs!BH1498 -> 0 | BI49: =MainInputs!BI1498 -> 0 | BJ49: =MainInputs!BJ1498 -> 0 | BK49: =MainInputs!BK1498 -> 0 | BL49: =MainInputs!BL1498 -> 0 | BM49: =MainInputs!BM1498 -> 0 | BN49: =MainInputs!BN1498 -> 0 | BO49: =MainInputs!BO1498 -> 0 | BP49: =MainInputs!BP1498 -> 0 | BQ49: =MainInputs!BQ1498 -> 0 | BR49: =MainInputs!BR1498 -> 0 | BS49: =MainInputs!BS1498 -> 0 | BT49: =MainInputs!BT1498 -> 0 | BU49: =MainInputs!BU1498 -> 0 | BV49: =MainInputs!BV1498 -> 0 | BW49: =MainInputs!BW1498 -> 0 | BX49: =MainInputs!BX1498 -> 0 | BY49: =MainInputs!BY1498 -> 0 | BZ49: =MainInputs!BZ1498 -> 0 | CA49: =MainInputs!CA1498 -> 0 | CB49: =MainInputs!CB1498 -> 0 | CC49: =MainInputs!CC1498 -> 0 | CD49: =MainInputs!CD1498 -> 0 | CE49: =MainInputs!CE1498 -> 0 | CF49: =MainInputs!CF1498 -> 0 | CG49: =MainInputs!CG1498 -> 0 | CH49: =MainInputs!CH1498 -> 0 | CI49: =MainInputs!CI1498 -> 0 | CJ49: =MainInputs!CJ1498 -> 0 | CK49: =MainInputs!CK1498 -> 0 | CL49: =MainInputs!CL1498 -> 0 | CM49: =MainInputs!CM1498 -> 0 | CN49: =MainInputs!CN1498 -> 0 | CO49: =MainInputs!CO1498 -> 0 | CP49: =MainInputs!CP1498 -> 0 | CQ49: =MainInputs!CQ1498 -> 0 | CR49: =MainInputs!CR1498 -> 0 | CS49: =MainInputs!CS1498 -> 0 | CT49: =MainInputs!CT1498 -> 0 | CU49: =MainInputs!CU1498 -> 0 | CV49: =MainInputs!CV1498 -> 0 | CW49: =MainInputs!CW1498 -> 0
E50: Selected depreciation for Return & RAV tab | G50: =price_label -> £m 23/24 prices | I50: =I16 -> Asset life input | X50: =X48*(X9+X10)+IF($I50="Asset life input",X48,X49)*X11 -> 2.976218518 | Y50: 5.111949679 | Z50: 7.296404744 | AA50: 9.482208734 | AB50: 11.5251315 | AC50: 16.22453146 | AD50: 20.13029661 | AE50: 24.5824595 | AF50: 30.3235081 | AG50: 35.85649008 | AH50: 91.53559833 | AI50: 97.14728461 | AJ50: 85.22402789 | AK50: 87.42269156 | AL50: 100.130103 | AM50: 116.8077646 | AN50: 133.0854766 | AO50: 154.3523165 | AP50: 121.7988932 | AQ50: 129.4781243 | AR50: 137.2130849 | AS50: 144.77992 | AT50: 152.2264814 | AU50: 160.1565727 | AV50: 180.984212 | AW50: 201.3786891 | AX50: 221.3364517 | AY50: 242.2675859 | AZ50: 262.7498306 | BA50: 251.5988516 | BB50: 240.4478726 | BC50: 229.2968935 | BD50: =BD48*(BD9+BD10)+IF($I50="Asset life input",BD48,BD49)*BD11 -> 218.1459145 | BE50: 206.9949355 | BF50: 195.8439565 | BG50: 184.6929775 | BH50: 173.5419985 | BI50: 162.3910195 | BJ50: 151.2400405 | BK50: 140.0890614 | BL50: 128.9380824 | BM50: 117.7871034 | BN50: 106.6361244 | BO50: 95.48514539 | BP50: 84.33416637 | BQ50: 73.18318736 | BR50: 62.16160915 | BS50: 51.23288882 | BT50: 46.9969845 | BU50: 42.85611514 | BV50: 38.80406851 | BW50: 34.95634361 | BX50: 31.2784346 | BY50: 27.79409788 | BZ50: 24.55937197 | CA50: 21.56521049 | CB50: 18.74632772 | CC50: 16.09068812 | CD50: 13.59379374 | CE50: 11.26776084 | CF50: 9.120990193 | CG50: 7.169385218 | CH50: 5.408395166 | CI50: 3.87681747 | CJ50: =CJ48*(CJ9+CJ10)+IF($I50="Asset life input",CJ48,CJ49)*CJ11 -> 2.604671724 | CK50: 1.576086527 | CL50: 0.7977127682 | CM50: 0.271374578 | CN50: 0 | CO50: 0 | CP50: 0 | CQ50: 0 | CR50: 0 | CS50: 0 | CT50: 0 | CU50: 0 | CV50: 0 | CW50: 0
B52: Detailed depreciation calculation
C54: Pre-vesting depreciation
C55: Note: The following depreciation factor is used to depreciate the pre-vesting balance on the "Return&RAV" sheet.
E57: Pre-vesting asset life | G57: years | I57: =MainInputs!I1479 -> 56
E58: Sum of digits | G58: integer | I58: =I57 * (1 + I57) / 2 -> 1596
E59: Asset remaining at start of RIIO-1 | G59: integer | I59: =1-((I57-AH64)*(I57+AH64+1)/2)/I58 -> 0.6484962406
E60: Asset life outstanding at end of RIIO-2 | G60: years | I60: =MainInputs!AT1481 -> 33
E61: Scenario-driven asset life at start of RIIO-3 | G61: years | I61: =IF(I24="Status quo",I60-1,I25-YEAR(AT4)) -> 32
E62: Sum of digits for remaining asset life RIIO-3 onwards | I62: =I61 * (1 + I61) / 2 -> 528
... 70 more rows

Sheet FuelPoor
A1: Fuel Poor calculations
B2: =UserInterface!G17 -> East
E3: Parameter | G3: Units | I3: Constant | AP3: Annual values
E4: PCFM year ending | I4: =UserInterface!$G$10 -> 2025-03-31 | K4: 1991-03-31 | L4: 1992-03-31 | M4: 1993-03-31 | N4: 1994-03-31 | O4: 1995-03-31 | P4: 1996-03-31 | Q4: 1997-03-31 | R4: 1998-03-31 | S4: 1999-03-31 | T4: 2000-03-31 | U4: 2001-03-31 | V4: 2002-03-31 | W4: 2003-03-31 | X4: 2004-03-31 | Y4: 2005-03-31 | Z4: 2006-03-31 | AA4: 2007-03-31 | AB4: 2008-03-31 | AC4: 2009-03-31 | AD4: 2010-03-31 | AE4: 2011-03-31 | AF4: 2012-03-31 | AG4: 2013-03-31 | AH4: 2014-03-31 | AI4: 2015-03-31 | AJ4: 2016-03-31 | AK4: 2017-03-31 | AL4: 2018-03-31 | AM4: 2019-03-31 | AN4: 2020-03-31 | AO4: 2021-03-31 | AP4: 2022-03-31 | AQ4: 2023-03-31 | AR4: 2024-03-31 | AS4: 2025-03-31 | AT4: 2026-03-31 | AU4: 2027-03-31 | AV4: 2028-03-31 | AW4: 2029-03-31 | AX4: 2030-03-31 | AY4: =EOMONTH(AX4,12) -> 2031-03-31 | BB4: =EOMONTH(AY4,12) -> 2032-03-31 | BC4: =EOMONTH(BB4,12) -> 2033-03-31 | BD4: 2034-03-31 | BE4: 2035-03-31 | BF4: 2036-03-31 | BG4: 2037-03-31 | BH4: 2038-03-31 | BI4: 2039-03-31 | BJ4: 2040-03-31 | BK4: 2041-03-31 | BL4: 2042-03-31 | BM4: 2043-03-31 | BN4: 2044-03-31 | BO4: 2045-03-31 | BP4: 2046-03-31 | BQ4: 2047-03-31 | BR4: 2048-03-31 | BS4: 2049-03-31 | BT4: 2050-03-31 | BU4: 2051-03-31 | BV4: 2052-03-31 | BW4: 2053-03-31 | BX4: 2054-03-31 | BY4: 2055-03-31 | BZ4: 2056-03-31 | CA4: 2057-03-31 | CB4: 2058-03-31 | CC4: 2059-03-31 | CD4: 2060-03-31 | CE4: 2061-03-31 | CF4: 2062-03-31 | CG4: 2063-03-31 | CH4: 2064-03-31 | CI4: 2065-03-31 | CJ4: 2066-03-31 | CK4: 2067-03-31 | CL4: 2068-03-31 | CM4: 2069-03-31 | CN4: 2070-03-31 | CO4: 2071-03-31 | CP4: 2072-03-31
AP5: 2 | AQ5: 2 | AR5: 2 | AS5: 2 | AT5: 2 | AU5: 3 | AV5: 3 | AW5: 3 | AX5: 3 | AY5: 3
C7: Price control timeline
E9: Pre-RIIO-2 year | G9: flag | K9: =Scenarios!K$119 -> 1 | L9: =Scenarios!L$119 -> 1 | M9: =Scenarios!M$119 -> 1 | N9: =Scenarios!N$119 -> 1 | O9: =Scenarios!O$119 -> 1 | P9: =Scenarios!P$119 -> 1 | Q9: =Scenarios!Q$119 -> 1 | R9: =Scenarios!R$119 -> 1 | S9: =Scenarios!S$119 -> 1 | T9: =Scenarios!T$119 -> 1 | U9: =Scenarios!U$119 -> 1 | V9: =Scenarios!V$119 -> 1 | W9: =Scenarios!W$119 -> 1 | X9: =Scenarios!X$119 -> 1 | Y9: =Scenarios!Y$119 -> 1 | Z9: =Scenarios!Z$119 -> 1 | AA9: =Scenarios!AA$119 -> 1 | AB9: =Scenarios!AB$119 -> 1 | AC9: =Scenarios!AC$119 -> 1 | AD9: =Scenarios!AD$119 -> 1 | AE9: =Scenarios!AE$119 -> 1 | AF9: =Scenarios!AF$119 -> 1 | AG9: =Scenarios!AG$119 -> 1 | AH9: =Scenarios!AH$119 -> 1 | AI9: =Scenarios!AI$119 -> 1 | AJ9: =Scenarios!AJ$119 -> 1 | AK9: =Scenarios!AK$119 -> 1 | AL9: =Scenarios!AL$119 -> 1 | AM9: =Scenarios!AM$119 -> 1 | AN9: =Scenarios!AN$119 -> 1 | AO9: =Scenarios!AO$119 -> 1 | AP9: =Scenarios!AP$119 -> 0 | AQ9: =Scenarios!AQ$119 -> 0 | AR9: =Scenarios!AR$119 -> 0 | AS9: =Scenarios!AS$119 -> 0 | AT9: =Scenarios!AT$119 -> 0 | AU9: =Scenarios!AU$119 -> 0 | AV9: =Scenarios!AV$119 -> 0 | AW9: =Scenarios!AW$119 -> 0 | AX9: =Scenarios!AX$119 -> 0 | AY9: =Scenarios!AY$119 -> 0 | BB9: =Scenarios!AZ$119 -> 0 | BC9: =Scenarios!BA$119 -> 0 | BD9: =Scenarios!BB$119 -> 0 | BE9: =Scenarios!BC$119 -> 0 | BF9: =Scenarios!BD$119 -> 0 | BG9: =Scenarios!BE$119 -> 0 | BH9: =Scenarios!BF$119 -> 0 | BI9: =Scenarios!BG$119 -> 0 | BJ9: =Scenarios!BH$119 -> 0 | BK9: =Scenarios!BI$119 -> 0 | BL9: =Scenarios!BY$119 -> 0 | BM9: =Scenarios!BZ$119 -> 0 | BN9: =Scenarios!CA$119 -> 0 | BO9: =Scenarios!CB$119 -> 0 | BP9: =Scenarios!CC$119 -> 0 | BQ9: =Scenarios!CD$119 -> 0 | BR9: =Scenarios!CE$119 -> 0 | BS9: =Scenarios!CF$119 -> 0 | BT9: =Scenarios!CG$119 -> 0 | BU9: =Scenarios!CH$119 -> 0 | BV9: =Scenarios!CI$119 -> 0 | BW9: =Scenarios!CJ$119 -> 0 | BX9: =Scenarios!CK$119 -> 0 | BY9: =Scenarios!CL$119 -> 0 | BZ9: =Scenarios!CM$119 -> 0 | CA9: =Scenarios!CN$119 -> 0 | CB9: =Scenarios!CO$119 -> 0 | CC9: =Scenarios!CP$119 -> 0 | CD9: =Scenarios!CQ$119 -> 0 | CE9: =Scenarios!CR$119 -> 0 | CF9: =Scenarios!CS$119 -> 0 | CG9: =Scenarios!CT$119 -> 0 | CH9: =Scenarios!CU$119 -> 0 | CI9: =Scenarios!CV$119 -> 0 | CJ9: =Scenarios!CW$119 -> 0 | CK9: =Scenarios!CX$119 -> 0 | CL9: =Scenarios!CY$119 -> 0 | CM9: =Scenarios!CZ$119 -> 0 | CN9: =Scenarios!DA$119 -> 0 | CO9: =Scenarios!DB$119 -> 0 | CP9: =Scenarios!DC$119 -> 0
E10: RIIO-2 year | G10: flag | K10: =Scenarios!K$120 -> 0 | L10: =Scenarios!L$120 -> 0 | M10: =Scenarios!M$120 -> 0 | N10: =Scenarios!N$120 -> 0 | O10: =Scenarios!O$120 -> 0 | P10: =Scenarios!P$120 -> 0 | Q10: =Scenarios!Q$120 -> 0 | R10: =Scenarios!R$120 -> 0 | S10: =Scenarios!S$120 -> 0 | T10: =Scenarios!T$120 -> 0 | U10: =Scenarios!U$120 -> 0 | V10: =Scenarios!V$120 -> 0 | W10: =Scenarios!W$120 -> 0 | X10: =Scenarios!X$120 -> 0 | Y10: =Scenarios!Y$120 -> 0 | Z10: =Scenarios!Z$120 -> 0 | AA10: =Scenarios!AA$120 -> 0 | AB10: =Scenarios!AB$120 -> 0 | AC10: =Scenarios!AC$120 -> 0 | AD10: =Scenarios!AD$120 -> 0 | AE10: =Scenarios!AE$120 -> 0 | AF10: =Scenarios!AF$120 -> 0 | AG10: =Scenarios!AG$120 -> 0 | AH10: =Scenarios!AH$120 -> 0 | AI10: =Scenarios!AI$120 -> 0 | AJ10: =Scenarios!AJ$120 -> 0 | AK10: =Scenarios!AK$120 -> 0 | AL10: =Scenarios!AL$120 -> 0 | AM10: =Scenarios!AM$120 -> 0 | AN10: =Scenarios!AN$120 -> 0 | AO10: =Scenarios!AO$120 -> 0 | AP10: =Scenarios!AP$120 -> 1 | AQ10: =Scenarios!AQ$120 -> 1 | AR10: =Scenarios!AR$120 -> 1 | AS10: =Scenarios!AS$120 -> 1 | AT10: =Scenarios!AT$120 -> 1 | AU10: =Scenarios!AU$120 -> 0 | AV10: =Scenarios!AV$120 -> 0 | AW10: =Scenarios!AW$120 -> 0 | AX10: =Scenarios!AX$120 -> 0 | AY10: =Scenarios!AY$120 -> 0 | BB10: =Scenarios!AZ$120 -> 0 | BC10: =Scenarios!BA$120 -> 0 | BD10: =Scenarios!BB$120 -> 0 | BE10: =Scenarios!BC$120 -> 0 | BF10: =Scenarios!BD$120 -> 0 | BG10: =Scenarios!BE$120 -> 0 | BH10: =Scenarios!BF$120 -> 0 | BI10: =Scenarios!BG$120 -> 0 | BJ10: =Scenarios!BH$120 -> 0 | BK10: =Scenarios!BI$120 -> 0 | BL10: =Scenarios!BY$120 -> 0 | BM10: =Scenarios!BZ$120 -> 0 | BN10: =Scenarios!CA$120 -> 0 | BO10: =Scenarios!CB$120 -> 0 | BP10: =Scenarios!CC$120 -> 0 | BQ10: =Scenarios!CD$120 -> 0 | BR10: =Scenarios!CE$120 -> 0 | BS10: =Scenarios!CF$120 -> 0 | BT10: =Scenarios!CG$120 -> 0 | BU10: =Scenarios!CH$120 -> 0 | BV10: =Scenarios!CI$120 -> 0 | BW10: =Scenarios!CJ$120 -> 0 | BX10: =Scenarios!CK$120 -> 0 | BY10: =Scenarios!CL$120 -> 0 | BZ10: =Scenarios!CM$120 -> 0 | CA10: =Scenarios!CN$120 -> 0 | CB10: =Scenarios!CO$120 -> 0 | CC10: =Scenarios!CP$120 -> 0 | CD10: =Scenarios!CQ$120 -> 0 | CE10: =Scenarios!CR$120 -> 0 | CF10: =Scenarios!CS$120 -> 0 | CG10: =Scenarios!CT$120 -> 0 | CH10: =Scenarios!CU$120 -> 0 | CI10: =Scenarios!CV$120 -> 0 | CJ10: =Scenarios!CW$120 -> 0 | CK10: =Scenarios!CX$120 -> 0 | CL10: =Scenarios!CY$120 -> 0 | CM10: =Scenarios!CZ$120 -> 0 | CN10: =Scenarios!DA$120 -> 0 | CO10: =Scenarios!DB$120 -> 0 | CP10: =Scenarios!DC$120 -> 0
E11: RIIO-3 year | G11: flag | K11: =Scenarios!K$121 -> 0 | L11: =Scenarios!L$121 -> 0 | M11: =Scenarios!M$121 -> 0 | N11: =Scenarios!N$121 -> 0 | O11: =Scenarios!O$121 -> 0 | P11: =Scenarios!P$121 -> 0 | Q11: =Scenarios!Q$121 -> 0 | R11: =Scenarios!R$121 -> 0 | S11: =Scenarios!S$121 -> 0 | T11: =Scenarios!T$121 -> 0 | U11: =Scenarios!U$121 -> 0 | V11: =Scenarios!V$121 -> 0 | W11: =Scenarios!W$121 -> 0 | X11: =Scenarios!X$121 -> 0 | Y11: =Scenarios!Y$121 -> 0 | Z11: =Scenarios!Z$121 -> 0 | AA11: =Scenarios!AA$121 -> 0 | AB11: =Scenarios!AB$121 -> 0 | AC11: =Scenarios!AC$121 -> 0 | AD11: =Scenarios!AD$121 -> 0 | AE11: =Scenarios!AE$121 -> 0 | AF11: =Scenarios!AF$121 -> 0 | AG11: =Scenarios!AG$121 -> 0 | AH11: =Scenarios!AH$121 -> 0 | AI11: =Scenarios!AI$121 -> 0 | AJ11: =Scenarios!AJ$121 -> 0 | AK11: =Scenarios!AK$121 -> 0 | AL11: =Scenarios!AL$121 -> 0 | AM11: =Scenarios!AM$121 -> 0 | AN11: =Scenarios!AN$121 -> 0 | AO11: =Scenarios!AO$121 -> 0 | AP11: =Scenarios!AP$121 -> 0 | AQ11: =Scenarios!AQ$121 -> 0 | AR11: =Scenarios!AR$121 -> 0 | AS11: =Scenarios!AS$121 -> 0 | AT11: =Scenarios!AT$121 -> 0 | AU11: =Scenarios!AU$121 -> 1 | AV11: =Scenarios!AV$121 -> 1 | AW11: =Scenarios!AW$121 -> 1 | AX11: =Scenarios!AX$121 -> 1 | AY11: =Scenarios!AY$121 -> 1 | BB11: 1 | BC11: 1 | BD11: 1 | BE11: 1 | BF11: 1 | BG11: 1 | BH11: 1 | BI11: 1 | BJ11: 1 | BK11: 1 | BL11: 1 | BM11: 1 | BN11: 1 | BO11: 1 | BP11: 1 | BQ11: 1 | BR11: 1 | BS11: 1 | BT11: 1 | BU11: 1 | BV11: 1 | BW11: 1 | BX11: 1 | BY11: 1 | BZ11: 1 | CA11: 1 | CB11: 1 | CC11: 1 | CD11: 1 | CE11: 1 | CF11: 1 | CG11: 1 | CH11: 1 | CI11: 1 | CJ11: 1 | CK11: 1 | CL11: 1 | CM11: 1 | CN11: 1 | CO11: 1 | CP11: 1 | CQ11: 1 | CR11: 1 | CS11: 1 | CT11: 1 | CU11: 1 | CV11: 1 | CW11: 1 | CX11: 1
C13: Scenario operators
E15: Post-vesting treatment: status quo, accelerate or terminate? | G15: text | I15: =Scenarios!F32 -> Status quo
E16: If accelerate, RIIO-2 additions accelerated asset life | G16: years | I16: =Scenarios!F33 -> 45
E17: If terminate, input year of final depreciation | G17: year | I17: =IF(I15="Terminate",Scenarios!F34,9999) -> 9999
E18: Start of RIIO-3 | G18: date | I18: =Scenarios!I116 -> 2027-03-31
B20: Fuel Poor RAV
C22: Exported values
E24: Opening Cost | G24: =price_label -> £m 23/24 prices | J24: > | AD24: =AC28 -> 0 | AE24: 3.245808011 | AF24: 6.288073486 | AG24: 10.11022894 | AH24: 12.34182449 | AI24: 12.34182449 | AJ24: 12.34182449 | AK24: 12.34182449 | AL24: 12.34182449 | AM24: 12.34182449 | AN24: 12.34182449 | AO24: 12.34182449 | AP24: =AO28 -> 12.34182449 | AQ24: =AP28 -> 12.34182449 | AR24: =AQ28 -> 12.34182449 | AS24: =AR28 -> 12.34182449 | AT24: =AS28 -> 12.34182449 | AU24: =AT28 -> 12.34182449 | AV24: 12.34182449 | AW24: 12.34182449 | AX24: 12.34182449 | AY24: =AX28 -> 12.34182449 | BB24: =AY28 -> 12.34182449 | BC24: =BB28 -> 12.34182449 | BD24: =BC28 -> 12.34182449 | BE24: =BD28 -> 12.34182449 | BF24: =BE28 -> 12.34182449 | BG24: =BF28 -> 12.34182449 | BH24: =BG28 -> 12.34182449 | BI24: =BH28 -> 12.34182449 | BJ24: =BI28 -> 12.34182449 | BK24: =BJ28 -> 12.34182449 | BL24: =BK28 -> 12.34182449 | BM24: =BL28 -> 12.34182449 | BN24: =BM28 -> 12.34182449 | BO24: =BN28 -> 12.34182449 | BP24: =BO28 -> 12.34182449 | BQ24: =BP28 -> 12.34182449 | BR24: =BQ28 -> 12.34182449 | BS24: =BR28 -> 12.34182449 | BT24: =BS28 -> 12.34182449 | BU24: =BT28 -> 12.34182449 | BV24: =BU28 -> 12.34182449 | BW24: =BV28 -> 12.34182449 | BX24: =BW28 -> 12.34182449 | BY24: =BX28 -> 12.34182449 | BZ24: =BY28 -> 12.34182449 | CA24: =BZ28 -> 12.34182449 | CB24: =CA28 -> 12.34182449 | CC24: =CB28 -> 12.34182449 | CD24: =CC28 -> 12.34182449 | CE24: =CD28 -> 12.34182449 | CF24: =CE28 -> 12.34182449 | CG24: =CF28 -> 12.34182449 | CH24: =CG28 -> 12.34182449 | CI24: =CH28 -> 12.34182449 | CJ24: =CI28 -> 12.34182449 | CK24: =CJ28 -> 12.34182449 | CL24: =CK28 -> 12.34182449 | CM24: =CL28 -> 12.34182449 | CN24: =CM28 -> 12.34182449 | CO24: =CN28 -> 12.34182449 | CP24: =CO28 -> 12.34182449
E25: Community based scheme - Actual capex | G25: =price_label -> £m 23/24 prices | J25: > | AC25: =AC67+AC98+AC129+AC160+AC191 -> 0 | AD25: =AD67+AD98+AD129+AD160+AD191 -> 0.7164902769 | AE25: 0.9852916135 | AF25: 2.244735108 | AG25: 2.231595552 | AH25: 0 | AI25: 0 | AJ25: 0 | AK25: 0 | AL25: 0 | AM25: 0 | AN25: 0 | AO25: 0 | AP25: =AP67+AP98+AP129+AP160+AP191 -> 0 | AQ25: 0 | AR25: 0 | AS25: 0 | AT25: 0 | AU25: =AU67+AU98+AU129+AU160+AU191 -> 0 | AV25: 0 | AW25: 0 | AX25: 0 | AY25: =AY67+AY98+AY129+AY160+AY191 -> 0 | BB25: =BB67+BB98+BB129+BB160+BB191 -> 0 | BC25: 0 | BD25: 0 | BE25: 0 | BF25: 0 | BG25: 0 | BH25: 0 | BI25: 0 | BJ25: 0 | BK25: 0 | BL25: 0 | BM25: 0 | BN25: 0 | BO25: 0 | BP25: 0 | BQ25: 0 | BR25: 0 | BS25: 0 | BT25: 0 | BU25: 0 | BV25: 0 | BW25: 0 | BX25: 0 | BY25: 0 | BZ25: 0 | CA25: 0 | CB25: 0 | CC25: 0 | CD25: 0 | CE25: 0 | CF25: 0 | CG25: 0 | CH25: 0 | CI25: 0 | CJ25: 0 | CK25: 0 | CL25: 0 | CM25: 0 | CN25: 0 | CO25: 0 | CP25: 0
E26: Community based scheme - Additional customer discount | G26: =price_label -> £m 23/24 prices | J26: > | AC26: =AC68+AC99+AC130+AC161+AC192 -> 0 | AD26: =AD68+AD99+AD130+AD161+AD192 -> 0 | AE26: 0 | AF26: 0 | AG26: 0 | AH26: 0 | AI26: 0 | AJ26: 0 | AK26: 0 | AL26: 0 | AM26: 0 | AN26: 0 | AO26: 0 | AP26: 0 | AQ26: 0 | AR26: 0 | AS26: 0 | AT26: 0 | AU26: =AU68+AU99+AU130+AU161+AU192 -> 0 | AV26: 0 | AW26: 0 | AX26: 0 | AY26: =AY68+AY99+AY130+AY161+AY192 -> 0 | BB26: =BB68+BB99+BB130+BB161+BB192 -> 0 | BC26: 0 | BD26: 0 | BE26: 0 | BF26: 0 | BG26: 0 | BH26: 0 | BI26: 0 | BJ26: 0 | BK26: 0 | BL26: 0 | BM26: 0 | BN26: 0 | BO26: 0 | BP26: 0 | BQ26: 0 | BR26: 0 | BS26: 0 | BT26: 0 | BU26: 0 | BV26: 0 | BW26: 0 | BX26: 0 | BY26: 0 | BZ26: 0 | CA26: 0 | CB26: 0 | CC26: 0 | CD26: 0 | CE26: 0 | CF26: 0 | CG26: 0 | CH26: 0 | CI26: 0 | CJ26: 0 | CK26: 0 | CL26: 0 | CM26: 0 | CN26: 0 | CO26: 0 | CP26: 0
E27: One off schemes - Actual capex | G27: =price_label -> £m 23/24 prices | J27: > | AC27: =AC69+AC100+AC131+AC162+AC193 -> 0 | AD27: =AD69+AD100+AD131+AD162+AD193 -> 2.529317734 | AE27: =AE69+AE100+AE131+AE162+AE193 -> 2.056973862 | AF27: 1.577420343 | AG27: 0 | AH27: 0 | AI27: 0 | AJ27: 0 | AK27: 0 | AL27: 0 | AM27: 0 | AN27: 0 | AO27: 0 | AP27: 0 | AQ27: 0 | AR27: 0 | AS27: 0 | AT27: 0 | AU27: =AU69+AU100+AU131+AU162+AU193 -> 0 | AV27: 0 | AW27: 0 | AX27: 0 | AY27: =AY69+AY100+AY131+AY162+AY193 -> 0 | BB27: =BB69+BB100+BB131+BB162+BB193 -> 0 | BC27: 0 | BD27: 0 | BE27: 0 | BF27: 0 | BG27: 0 | BH27: 0 | BI27: 0 | BJ27: 0 | BK27: 0 | BL27: 0 | BM27: 0 | BN27: 0 | BO27: 0 | BP27: 0 | BQ27: 0 | BR27: 0 | BS27: 0 | BT27: 0 | BU27: 0 | BV27: 0 | BW27: 0 | BX27: 0 | BY27: 0 | BZ27: 0 | CA27: 0 | CB27: 0 | CC27: 0 | CD27: 0 | CE27: 0 | CF27: 0 | CG27: 0 | CH27: 0 | CI27: 0 | CJ27: 0 | CK27: 0 | CL27: 0 | CM27: 0 | CN27: 0 | CO27: 0 | CP27: 0
E28: Closing Cost | G28: =price_label -> £m 23/24 prices | J28: > | AC28: =SUM(AC24:AC27) -> 0 | AD28: =SUM(AD24:AD27) -> 3.245808011 | AE28: =SUM(AE24:AE27) -> 6.288073486 | AF28: 10.11022894 | AG28: 12.34182449 | AH28: 12.34182449 | AI28: 12.34182449 | AJ28: 12.34182449 | AK28: 12.34182449 | AL28: 12.34182449 | AM28: 12.34182449 | AN28: 12.34182449 | AO28: 12.34182449 | AP28: =SUM(AP24:AP27) -> 12.34182449 | AQ28: =SUM(AQ24:AQ27) -> 12.34182449 | AR28: =SUM(AR24:AR27) -> 12.34182449 | AS28: =SUM(AS24:AS27) -> 12.34182449 | AT28: =SUM(AT24:AT27) -> 12.34182449 | AU28: =SUM(AU24:AU27) -> 12.34182449 | AV28: 12.34182449 | AW28: 12.34182449 | AX28: 12.34182449 | AY28: =SUM(AY24:AY27) -> 12.34182449 | BB28: =SUM(BB24:BB27) -> 12.34182449 | BC28: 12.34182449 | BD28: 12.34182449 | BE28: 12.34182449 | BF28: 12.34182449 | BG28: 12.34182449 | BH28: 12.34182449 | BI28: 12.34182449 | BJ28: 12.34182449 | BK28: 12.34182449 | BL28: 12.34182449 | BM28: 12.34182449 | BN28: 12.34182449 | BO28: 12.34182449 | BP28: 12.34182449 | BQ28: 12.34182449 | BR28: 12.34182449 | BS28: 12.34182449 | BT28: 12.34182449 | BU28: 12.34182449 | BV28: 12.34182449 | BW28: 12.34182449 | BX28: 12.34182449 | BY28: 12.34182449 | BZ28: 12.34182449 | CA28: 12.34182449 | CB28: 12.34182449 | CC28: 12.34182449 | CD28: 12.34182449 | CE28: 12.34182449 | CF28: 12.34182449 | CG28: 12.34182449 | CH28: 12.34182449 | CI28: 12.34182449 | CJ28: 12.34182449 | CK28: 12.34182449 | CL28: 12.34182449 | CM28: 12.34182449 | CN28: 12.34182449 | CO28: 12.34182449 | CP28: 12.34182449
E30: Opening Depreciation | G30: =price_label -> £m 23/24 prices | J30: > | AD30: =AC34 -> 0 | AE30: =AD34 -> 0 | AF30: 0.1411220874 | AG30: 0.4113805404 | AH30: 0.8417442319 | AI30: 1.35936548 | AJ30: 1.865062259 | AK30: 2.358834571 | AL30: 2.840682415 | AM30: 3.31060579 | AN30: 3.768604697 | AO30: 4.214679137 | AP30: =AO34 -> 4.648829108 | AQ30: =AP34 -> 5.071054611 | AR30: =AQ34 -> 5.481355646 | AS30: =AR34 -> 5.879732213 | AT30: =AS34 -> 6.266184311 | AU30: =AT34 -> 6.640711942 | AV30: 7.003315104 | AW30: 7.353993799 | AX30: 7.692748025 | AY30: =AX34 -> 8.019577783 | BB30: =AY34 -> 8.334483073 | BC30: =BB34 -> 8.637463895 | BD30: =BC34 -> 8.928520249 | BE30: =BD34 -> 9.207652135 | BF30: =BE34 -> 9.474859553 | BG30: =BF34 -> 9.730142502 | BH30: =BG34 -> 9.973500984 | BI30: =BH34 -> 10.204935 | BJ30: =BI34 -> 10.42444454 | BK30: =BJ34 -> 10.63202962 | BL30: =BK34 -> 10.82769023 | BM30: =BL34 -> 11.01142637 | BN30: =BM34 -> 11.18323804 | BO30: =BN34 -> 11.34312525 | BP30: =BO34 -> 11.49108798 | BQ30: =BP34 -> 11.62712625 | BR30: =BQ34 -> 11.75124005 | BS30: =BR34 -> 11.86342938 | BT30: =BS34 -> 11.96369425 | BU30: =BT34 -> 12.05203465 | BV30: =BU34 -> 12.12845057 | BW30: =BV34 -> 12.19294203 | BX30: =BW34 -> 12.24550902 | BY30: =BX34 -> 12.28615155 | BZ30: =BY34 -> 12.3148696 | CA30: =BZ34 -> 12.33166319 | CB30: =CA34 -> 12.33966836 | CC30: =CB34 -> 12.34182449 | CD30: =CC34 -> 12.34182449 | CE30: =CD34 -> 12.34182449 | CF30: =CE34 -> 12.34182449 | CG30: =CF34 -> 12.34182449 | CH30: =CG34 -> 12.34182449 | CI30: =CH34 -> 12.34182449 | CJ30: =CI34 -> 12.34182449 | CK30: =CJ34 -> 12.34182449 | CL30: =CK34 -> 12.34182449 | CM30: =CL34 -> 12.34182449 | CN30: =CM34 -> 12.34182449 | CO30: =CN34 -> 12.34182449 | CP30: =CO34 -> 12.34182449
E31: Depreciation Community based scheme - Actual capex | G31: =price_label -> £m 23/24 prices | J31: > | AC31: =AC75 +AC78 + AC106 + AC109 + AC137 + AC140 + AC168 + AC171 + AC199 + AC202 -> 0 | AD31: =AD75 +AD78 + AD106 + AD109 + AD137 + AD140 + AD168 + AD171 + AD199 + AD202 -> 0 | AE31: 0.03115175117 | AF31: 0.07329825584 | AG31: 0.1692512007 | AH31: 0.2624640344 | AI31: 0.2564948435 | AJ31: 0.2505256526 | AK31: 0.2445564618 | AL31: 0.2385872709 | AM31: 0.23261808 | AN31: 0.2266488892 | AO31: 0.2206796983 | AP31: 0.2147105074 | AQ31: 0.2087413166 | AR31: 0.2027721257 | AS31: 0.1968029348 | AT31: 0.1908337439 | AU31: 0.1848645531 | AV31: 0.1788953622 | AW31: 0.1729261713 | AX31: 0.1669569805 | AY31: =AY75 +AY78 + AY106 + AY109 + AY137 + AY140 + AY168 + AY171 + AY199 + AY202 -> 0.1609877896 | BB31: 0.1550185987 | BC31: 0.1490494079 | BD31: 0.143080217 | BE31: 0.1371110261 | BF31: 0.1311418352 | BG31: 0.1251726444 | BH31: 0.1192034535 | BI31: 0.1132342626 | BJ31: 0.1072650718 | BK31: 0.1012958809 | BL31: 0.09532669003 | BM31: 0.08935749916 | BN31: 0.08338830829 | BO31: 0.07741911742 | BP31: 0.07144992655 | BQ31: 0.06548073568 | BR31: 0.05951154482 | BS31: 0.05354235395 | BT31: 0.04757316308 | BU31: 0.04160397221 | BV31: 0.03563478134 | BW31: 0.02966559047 | BX31: 0.0236963996 | BY31: 0.01772720873 | BZ31: 0.01175801786 | CA31: 0.006481088127 | CB31: 0.002156130968 | CC31: 0 | CD31: 0 | CE31: 0 | CF31: 0 | CG31: 0 | CH31: 0 | CI31: 0 | CJ31: 0 | CK31: 0 | CL31: 0 | CM31: 0 | CN31: 0 | CO31: 0 | CP31: 0
E32: Depreciation Community based scheme - Additional customer discount | G32: =price_label -> £m 23/24 prices | J32: > | AC32: =AC76 +AC79 + AC107 + AC110 + AC138 + AC141 + AC169 + AC172 + AC200 + AC203 -> 0 | AD32: =AD76 +AD79 + AD107 + AD110 + AD138 + AD141 + AD169 + AD172 + AD200 + AD203 -> 0 | AE32: 0 | AF32: 0 | AG32: 0 | AH32: 0 | AI32: 0 | AJ32: 0 | AK32: 0 | AL32: 0 | AM32: 0 | AN32: 0 | AO32: 0 | AP32: 0 | AQ32: 0 | AR32: 0 | AS32: 0 | AT32: 0 | AU32: 0 | AV32: 0 | AW32: 0 | AX32: 0 | AY32: =AY76 +AY79 + AY107 + AY110 + AY138 + AY141 + AY169 + AY172 + AY200 + AY203 -> 0 | BB32: 0 | BC32: 0 | BD32: 0 | BE32: 0 | BF32: 0 | BG32: 0 | BH32: 0 | BI32: 0 | BJ32: 0 | BK32: 0 | BL32: 0 | BM32: 0 | BN32: 0 | BO32: 0 | BP32: 0 | BQ32: 0 | BR32: 0 | BS32: 0 | BT32: 0 | BU32: 0 | BV32: 0 | BW32: 0 | BX32: 0 | BY32: 0 | BZ32: 0 | CA32: 0 | CB32: 0 | CC32: 0 | CD32: 0 | CE32: 0 | CF32: 0 | CG32: 0 | CH32: 0 | CI32: 0 | CJ32: 0 | CK32: 0 | CL32: 0 | CM32: 0 | CN32: 0 | CO32: 0 | CP32: 0
E33: Depreciation One off schemes - Actual capex | G33: =price_label -> £m 23/24 prices | J33: > | AC33: 0 | AD33: =AD77 +AD80 + AD108 + AD111 + AD139 + AD142 + AD170 + AD173 + AD201 + AD204 -> 0 | AE33: 0.1099703363 | AF33: 0.1969601972 | AG33: 0.2611124907 | AH33: 0.2551572135 | AI33: 0.2492019363 | AJ33: 0.243246659 | AK33: 0.2372913818 | AL33: 0.2313361045 | AM33: 0.2253808273 | AN33: 0.2194255501 | AO33: 0.2134702728 | AP33: 0.2075149956 | AQ33: 0.2015597184 | AR33: 0.1956044411 | AS33: 0.1896491639 | AT33: 0.1836938867 | AU33: 0.1777386094 | AV33: 0.1717833322 | AW33: 0.165828055 | AX33: 0.1598727777 | AY33: =AY77 +AY80 + AY108 + AY111 + AY139 + AY142 + AY170 + AY173 + AY201 + AY204 -> 0.1539175005 | BB33: 0.1479622233 | BC33: 0.142006946 | BD33: 0.1360516688 | BE33: 0.1300963915 | BF33: 0.1241411143 | BG33: 0.1181858371 | BH33: 0.1122305598 | BI33: 0.1062752826 | BJ33: 0.1003200054 | BK33: 0.09436472814 | BL33: 0.0884094509 | BM33: 0.08245417367 | BN33: 0.07649889643 | BO33: 0.0705436192 | BP33: 0.06458834196 | BQ33: 0.05863306473 | BR33: 0.05267778749 | BS33: 0.04672251026 | BT33: 0.04076723302 | BU33: 0.03481195579 | BV33: 0.02885667855 | BW33: 0.02290140132 | BX33: 0.01694612408 | BY33: 0.01099084685 | BZ33: 0.005035569611 | CA33: 0.001524077626 | CB33: 0 | CC33: 0 | CD33: 0 | CE33: 0 | CF33: 0 | CG33: 0 | CH33: 0 | CI33: 0 | CJ33: 0 | CK33: 0 | CL33: 0 | CM33: 0 | CN33: 0 | CO33: 0 | CP33: 0
E34: Closing depreciation | G34: =price_label -> £m 23/24 prices | J34: > | AC34: =SUM(AC30:AC33) -> 0 | AD34: =SUM(AD30:AD33) -> 0 | AE34: =SUM(AE30:AE33) -> 0.1411220874 | AF34: 0.4113805404 | AG34: 0.8417442319 | AH34: 1.35936548 | AI34: 1.865062259 | AJ34: 2.358834571 | AK34: 2.840682415 | AL34: 3.31060579 | AM34: 3.768604697 | AN34: 4.214679137 | AO34: 4.648829108 | AP34: =SUM(AP30:AP33) -> 5.071054611 | AQ34: =SUM(AQ30:AQ33) -> 5.481355646 | AR34: =SUM(AR30:AR33) -> 5.879732213 | AS34: =SUM(AS30:AS33) -> 6.266184311 | AT34: =SUM(AT30:AT33) -> 6.640711942 | AU34: =SUM(AU30:AU33) -> 7.003315104 | AV34: 7.353993799 | AW34: 7.692748025 | AX34: 8.019577783 | AY34: =SUM(AY30:AY33) -> 8.334483073 | BB34: =SUM(BB30:BB33) -> 8.637463895 | BC34: 8.928520249 | BD34: 9.207652135 | BE34: 9.474859553 | BF34: 9.730142502 | BG34: 9.973500984 | BH34: 10.204935 | BI34: 10.42444454 | BJ34: 10.63202962 | BK34: 10.82769023 | BL34: 11.01142637 | BM34: 11.18323804 | BN34: 11.34312525 | BO34: 11.49108798 | BP34: 11.62712625 | BQ34: 11.75124005 | BR34: 11.86342938 | BS34: 11.96369425 | BT34: 12.05203465 | BU34: 12.12845057 | BV34: 12.19294203 | BW34: 12.24550902 | BX34: 12.28615155 | BY34: 12.3148696 | BZ34: 12.33166319 | CA34: 12.33966836 | CB34: 12.34182449 | CC34: 12.34182449 | CD34: 12.34182449 | CE34: 12.34182449 | CF34: 12.34182449 | CG34: 12.34182449 | CH34: 12.34182449 | CI34: 12.34182449 | CJ34: 12.34182449 | CK34: 12.34182449 | CL34: 12.34182449 | CM34: 12.34182449 | CN34: 12.34182449 | CO34: 12.34182449 | CP34: 12.34182449
E36: Net value after regulatory depreciation | G36: =price_label -> £m 23/24 prices | J36: > | AC36: =AC28 - AC34 -> 0 | AD36: =AD28 - AD34 -> 3.245808011 | AE36: 6.146951398 | AF36: 9.698848396 | AG36: 11.50008026 | AH36: 10.98245901 | AI36: 10.47676223 | AJ36: 9.982989917 | AK36: 9.501142074 | AL36: 9.031218698 | AM36: 8.573219791 | AN36: 8.127145352 | AO36: 7.69299538 | AP36: =AP28 - AP34 -> 7.270769877 | AQ36: =AQ28 - AQ34 -> 6.860468842 | AR36: =AR28 - AR34 -> 6.462092276 | AS36: =AS28 - AS34 -> 6.075640177 | AT36: =AT28 - AT34 -> 5.701112546 | AU36: =AU28 - AU34 -> 5.338509384 | AV36: 4.987830689 | AW36: 4.649076463 | AX36: 4.322246705 | AY36: =AY28 - AY34 -> 4.007341415 | BB36: =BB28 - BB34 -> 3.704360593 | BC36: 3.413304239 | BD36: 3.134172353 | BE36: 2.866964936 | BF36: 2.611681986 | BG36: 2.368323505 | BH36: 2.136889491 | BI36: 1.917379946 | BJ36: 1.709794869 | BK36: 1.51413426 | BL36: 1.330398119 | BM36: 1.158586446 | BN36: 0.9986992413 | BO36: 0.8507365046 | BP36: 0.7146982361 | BQ36: 0.5905844357 | BR36: 0.4783951034 | BS36: 0.3781302392 | BT36: 0.2897898431 | BU36: 0.2133739151 | BV36: 0.1488824552 | BW36: 0.09631546345 | BX36: 0.05567293977 | BY36: 0.02695488419 | BZ36: 0.01016129672 | CA36: 0.002156130968 | CB36: 0 | CC36: 0 | CD36: 0 | CE36: 0 | CF36: 0 | CG36: 0 | CH36: 0 | CI36: 0 | CJ36: 0 | CK36: 0 | CL36: 0 | CM36: 0 | CN36: 0 | CO36: 0 | CP36: 0
C38: Fuel poor additions to RAV
E40: NPV of future transportation revenue | G40: =price_label -> £m 23/24 prices | J40: > | AC40: =MainInputs!AC1505 -> 0 | AD40: =MainInputs!AD1505 -> 0 | AE40: =MainInputs!AE1505 -> 0 | AF40: =MainInputs!AF1505 -> 0 | AG40: =MainInputs!AG1505 -> 0 | AH40: =MainInputs!AH1505 -> 0 | AI40: =MainInputs!AI1505 -> 0 | AJ40: =MainInputs!AJ1505 -> 0 | AK40: =MainInputs!AK1505 -> 0 | AL40: =MainInputs!AL1505 -> 0 | AM40: =MainInputs!AM1505 -> 0 | AN40: =MainInputs!AN1505 -> 0 | AO40: =MainInputs!AO1505 -> 0 | AP40: =MainInputs!AP1505 -> 0 | AQ40: =MainInputs!AQ1505 -> 0 | AR40: =MainInputs!AR1505 -> 0 | AS40: =MainInputs!AS1505 -> 0 | AT40: =MainInputs!AT1505 -> 0 | AU40: =MainInputs!AU1505 -> 0 | AV40: =MainInputs!AV1505 -> 0 | AW40: =MainInputs!AW1505 -> 0 | AX40: =MainInputs!AX1505 -> 0 | AY40: =MainInputs!AY1505 -> 0 | BB40: =MainInputs!AZ1505 -> 0 | BC40: =MainInputs!BA1505 -> 0 | BD40: =MainInputs!BB1505 -> 0 | BE40: =MainInputs!BC1505 -> 0 | BF40: =MainInputs!BD1505 -> 0 | BG40: =MainInputs!BE1505 -> 0 | BH40: =MainInputs!BF1505 -> 0 | BI40: =MainInputs!BG1505 -> 0 | BJ40: =MainInputs!BH1505 -> 0 | BK40: =MainInputs!BI1505 -> 0 | BL40: =MainInputs!BJ1505 -> 0 | BM40: =MainInputs!BK1505 -> 0 | BN40: =MainInputs!BL1505 -> 0 | BO40: =MainInputs!BM1505 -> 0 | BP40: =MainInputs!BN1505 -> 0 | BQ40: =MainInputs!BO1505 -> 0 | BR40: =MainInputs!BP1505 -> 0 | BS40: =MainInputs!BQ1505 -> 0 | BT40: =MainInputs!BR1505 -> 0 | BU40: =MainInputs!BS1505 -> 0 | BV40: =MainInputs!BT1505 -> 0 | BW40: =MainInputs!BU1505 -> 0 | BX40: =MainInputs!BV1505 -> 0 | BY40: =MainInputs!BW1505 -> 0 | BZ40: =MainInputs!BX1505 -> 0 | CA40: =MainInputs!BY1505 -> 0 | CB40: =MainInputs!BZ1505 -> 0 | CC40: =MainInputs!CA1505 -> 0 | CD40: =MainInputs!CB1505 -> 0 | CE40: =MainInputs!CC1505 -> 0 | CF40: =MainInputs!CD1505 -> 0 | CG40: =MainInputs!CE1505 -> 0 | CH40: =MainInputs!CF1505 -> 0 | CI40: =MainInputs!CG1505 -> 0 | CJ40: =MainInputs!CH1505 -> 0 | CK40: =MainInputs!CI1505 -> 0 | CL40: =MainInputs!CJ1505 -> 0 | CM40: =MainInputs!CK1505 -> 0 | CN40: =MainInputs!CL1505 -> 0 | CO40: =MainInputs!CM1505 -> 0 | CP40: =MainInputs!CN1505 -> 0
E41: Community based schemes actual capex spend | G41: =price_label -> £m 23/24 prices | J41: > | AC41: =MainInputs!AC1506 -> 0 | AD41: =MainInputs!AD1506 -> 0.7164902769 | AE41: =MainInputs!AE1506 -> 0.9852916135 | AF41: =MainInputs!AF1506 -> 2.244735108 | AG41: =MainInputs!AG1506 -> 2.231595552 | AH41: =MainInputs!AH1506 -> 0 | AI41: =MainInputs!AI1506 -> 0 | AJ41: =MainInputs!AJ1506 -> 0 | AK41: =MainInputs!AK1506 -> 0 | AL41: =MainInputs!AL1506 -> 0 | AM41: =MainInputs!AM1506 -> 0 | AN41: =MainInputs!AN1506 -> 0 | AO41: =MainInputs!AO1506 -> 0 | AP41: =MainInputs!AP1506 -> 0 | AQ41: =MainInputs!AQ1506 -> 0 | AR41: =MainInputs!AR1506 -> 0 | AS41: =MainInputs!AS1506 -> 0 | AT41: =MainInputs!AT1506 -> 0 | AU41: =MainInputs!AU1506 -> 0 | AV41: =MainInputs!AV1506 -> 0 | AW41: =MainInputs!AW1506 -> 0 | AX41: =MainInputs!AX1506 -> 0 | AY41: =MainInputs!AY1506 -> 0 | BB41: =MainInputs!AZ1506 -> 0 | BC41: =MainInputs!BA1506 -> 0 | BD41: =MainInputs!BB1506 -> 0 | BE41: =MainInputs!BC1506 -> 0 | BF41: =MainInputs!BD1506 -> 0 | BG41: =MainInputs!BE1506 -> 0 | BH41: =MainInputs!BF1506 -> 0 | BI41: =MainInputs!BG1506 -> 0 | BJ41: =MainInputs!BH1506 -> 0 | BK41: =MainInputs!BI1506 -> 0 | BL41: =MainInputs!BJ1506 -> 0 | BM41: =MainInputs!BK1506 -> 0 | BN41: =MainInputs!BL1506 -> 0 | BO41: =MainInputs!BM1506 -> 0 | BP41: =MainInputs!BN1506 -> 0 | BQ41: =MainInputs!BO1506 -> 0 | BR41: =MainInputs!BP1506 -> 0 | BS41: =MainInputs!BQ1506 -> 0 | BT41: =MainInputs!BR1506 -> 0 | BU41: =MainInputs!BS1506 -> 0 | BV41: =MainInputs!BT1506 -> 0 | BW41: =MainInputs!BU1506 -> 0 | BX41: =MainInputs!BV1506 -> 0 | BY41: =MainInputs!BW1506 -> 0 | BZ41: =MainInputs!BX1506 -> 0 | CA41: =MainInputs!BY1506 -> 0 | CB41: =MainInputs!BZ1506 -> 0 | CC41: =MainInputs!CA1506 -> 0 | CD41: =MainInputs!CB1506 -> 0 | CE41: =MainInputs!CC1506 -> 0 | CF41: =MainInputs!CD1506 -> 0 | CG41: =MainInputs!CE1506 -> 0 | CH41: =MainInputs!CF1506 -> 0 | CI41: =MainInputs!CG1506 -> 0 | CJ41: =MainInputs!CH1506 -> 0 | CK41: =MainInputs!CI1506 -> 0 | CL41: =MainInputs!CJ1506 -> 0 | CM41: =MainInputs!CK1506 -> 0 | CN41: =MainInputs!CL1506 -> 0 | CO41: =MainInputs!CM1506 -> 0 | CP41: =MainInputs!CN1506 -> 0
E42: Community based schemes additional customer discount | G42: =price_label -> £m 23/24 prices | J42: > | AC42: =IF(AC40>=AC41,AC40-AC41,0) -> 0 | AD42: =IF(AD40>=AD41,AD40-AD41,0) -> 0 | AE42: =IF(AE40>=AE41,AE40-AE41,0) -> 0 | AF42: =IF(AF40>=AF41,AF40-AF41,0) -> 0 | AG42: =IF(AG40>=AG41,AG40-AG41,0) -> 0 | AH42: =IF(AH40>=AH41,AH40-AH41,0) -> 0 | AI42: 0 | AJ42: 0 | AK42: 0 | AL42: 0 | AM42: 0 | AN42: 0 | AO42: 0 | AP42: 0 | AQ42: 0 | AR42: 0 | AS42: 0 | AT42: 0 | AU42: =IF(AU40>=AU41,AU40-AU41,0) -> 0 | AV42: 0 | AW42: 0 | AX42: 0 | AY42: =IF(AY40>=AY41,AY40-AY41,0) -> 0 | BB42: =IF(BB40>=BB41,BB40-BB41,0) -> 0 | BC42: 0 | BD42: 0 | BE42: 0 | BF42: 0 | BG42: 0 | BH42: 0 | BI42: 0 | BJ42: 0 | BK42: 0 | BL42: 0 | BM42: 0 | BN42: 0 | BO42: 0 | BP42: 0 | BQ42: 0 | BR42: 0 | BS42: 0 | BT42: 0 | BU42: 0 | BV42: 0 | BW42: 0 | BX42: 0 | BY42: 0 | BZ42: 0 | CA42: 0 | CB42: 0 | CC42: 0 | CD42: 0 | CE42: 0 | CF42: 0 | CG42: 0 | CH42: 0 | CI42: 0 | CJ42: 0 | CK42: 0 | CL42: 0 | CM42: 0 | CN42: 0 | CO42: 0 | CP42: 0
E43: One off schemes actual capex spend | G43: =price_label -> £m 23/24 prices | J43: > | AC43: =MainInputs!AC1508 -> 0 | AD43: =MainInputs!AD1508 -> 2.529317734 | AE43: =MainInputs!AE1508 -> 2.056973862 | AF43: =MainInputs!AF1508 -> 1.577420343 | AG43: =MainInputs!AG1508 -> 0 | AH43: =MainInputs!AH1508 -> 0 | AI43: =MainInputs!AI1508 -> 0 | AJ43: =MainInputs!AJ1508 -> 0 | AK43: =MainInputs!AK1508 -> 0 | AL43: =MainInputs!AL1508 -> 0 | AM43: =MainInputs!AM1508 -> 0 | AN43: =MainInputs!AN1508 -> 0 | AO43: =MainInputs!AO1508 -> 0 | AP43: =MainInputs!AP1508 -> 0 | AQ43: =MainInputs!AQ1508 -> 0 | AR43: =MainInputs!AR1508 -> 0 | AS43: =MainInputs!AS1508 -> 0 | AT43: =MainInputs!AT1508 -> 0 | AU43: =MainInputs!AU1508 -> 0 | AV43: =MainInputs!AV1508 -> 0 | AW43: =MainInputs!AW1508 -> 0 | AX43: =MainInputs!AX1508 -> 0 | AY43: =MainInputs!AY1508 -> 0 | BB43: =MainInputs!AZ1508 -> 0 | BC43: =MainInputs!BA1508 -> 0 | BD43: =MainInputs!BB1508 -> 0 | BE43: =MainInputs!BC1508 -> 0 | BF43: =MainInputs!BD1508 -> 0 | BG43: =MainInputs!BE1508 -> 0 | BH43: =MainInputs!BF1508 -> 0 | BI43: =MainInputs!BG1508 -> 0 | BJ43: =MainInputs!BH1508 -> 0 | BK43: =MainInputs!BI1508 -> 0 | BL43: =MainInputs!BJ1508 -> 0 | BM43: =MainInputs!BK1508 -> 0 | BN43: =MainInputs!BL1508 -> 0 | BO43: =MainInputs!BM1508 -> 0 | BP43: =MainInputs!BN1508 -> 0 | BQ43: =MainInputs!BO1508 -> 0 | BR43: =MainInputs!BP1508 -> 0 | BS43: =MainInputs!BQ1508 -> 0 | BT43: =MainInputs!BR1508 -> 0 | BU43: =MainInputs!BS1508 -> 0 | BV43: =MainInputs!BT1508 -> 0 | BW43: =MainInputs!BU1508 -> 0 | BX43: =MainInputs!BV1508 -> 0 | BY43: =MainInputs!BW1508 -> 0 | BZ43: =MainInputs!BX1508 -> 0 | CA43: =MainInputs!BY1508 -> 0 | CB43: =MainInputs!BZ1508 -> 0 | CC43: =MainInputs!CA1508 -> 0 | CD43: =MainInputs!CB1508 -> 0 | CE43: =MainInputs!CC1508 -> 0 | CF43: =MainInputs!CD1508 -> 0 | CG43: =MainInputs!CE1508 -> 0 | CH43: =MainInputs!CF1508 -> 0 | CI43: =MainInputs!CG1508 -> 0 | CJ43: =MainInputs!CH1508 -> 0 | CK43: =MainInputs!CI1508 -> 0 | CL43: =MainInputs!CJ1508 -> 0 | CM43: =MainInputs!CK1508 -> 0 | CN43: =MainInputs!CL1508 -> 0 | CO43: =MainInputs!CM1508 -> 0 | CP43: =MainInputs!CN1508 -> 0
C45: Common inputs
D47: RIIO-2 treatment
E48: Pre-vesting asset life | G48: years | I48: =MainInputs!I1502 -> 45
E49: Sum of digits | G49: integer | I49: =I48 * (1 + I48) / 2 -> 1035
D50: RIIO-3 treatment
E51: Post-vesting treatment option | G51: text | I51: =I15 -> Status quo
E52: If accelerate, RIIO-2 additions accelerated asset life | G52: years | I52: =IF(I51="Status quo",I48,I16) -> 45
E53: If terminate, input year of final depreciation | G53: year | I53: =I17 -> 9999
E54: Years additional customer discount applied | G54: years | I54: =MainInputs!I1503 -> 5
B56: 2009 Schemes
C58: Input
E60: Scheme year | G60: year ending | I60: 2009-03-31
C62: RAV
... 53 more rows

Sheet Return&RAV
A1: Return & RAV
B2: =UserInterface!G17 -> East
E3: Parameter | G3: Units | I3: Constant | AP3: Annual values
E4: PCFM year ending | I4: =UserInterface!$G$10 -> 2025-03-31 | K4: 1991-03-31 | L4: 1992-03-31 | M4: 1993-03-31 | N4: 1994-03-31 | O4: 1995-03-31 | P4: 1996-03-31 | Q4: 1997-03-31 | R4: 1998-03-31 | S4: 1999-03-31 | T4: 2000-03-31 | U4: 2001-03-31 | V4: 2002-03-31 | W4: 2003-03-31 | X4: 2004-03-31 | Y4: 2005-03-31 | Z4: 2006-03-31 | AA4: 2007-03-31 | AB4: 2008-03-31 | AC4: 2009-03-31 | AD4: 2010-03-31 | AE4: 2011-03-31 | AF4: 2012-03-31 | AG4: 2013-03-31 | AH4: 2014-03-31 | AI4: 2015-03-31 | AJ4: 2016-03-31 | AK4: 2017-03-31 | AL4: 2018-03-31 | AM4: 2019-03-31 | AN4: 2020-03-31 | AO4: 2021-03-31 | AP4: 2022-03-31 | AQ4: 2023-03-31 | AR4: 2024-03-31 | AS4: 2025-03-31 | AT4: 2026-03-31 | AU4: 2027-03-31 | AV4: 2028-03-31 | AW4: 2029-03-31 | AX4: 2030-03-31 | AY4: =EOMONTH(AX4,12) -> 2031-03-31
AP5: 2 | AQ5: 2 | AR5: 2 | AS5: 2 | AT5: 2 | AU5: 3 | AV5: 3 | AW5: 3 | AX5: 3 | AY5: 3
C7: Price control timeline
E9: Pre-RIIO-2 year | G9: flag | K9: =Scenarios!K$119 -> 1 | L9: =Scenarios!L$119 -> 1 | M9: =Scenarios!M$119 -> 1 | N9: =Scenarios!N$119 -> 1 | O9: =Scenarios!O$119 -> 1 | P9: =Scenarios!P$119 -> 1 | Q9: =Scenarios!Q$119 -> 1 | R9: =Scenarios!R$119 -> 1 | S9: =Scenarios!S$119 -> 1 | T9: =Scenarios!T$119 -> 1 | U9: =Scenarios!U$119 -> 1 | V9: =Scenarios!V$119 -> 1 | W9: =Scenarios!W$119 -> 1 | X9: =Scenarios!X$119 -> 1 | Y9: =Scenarios!Y$119 -> 1 | Z9: =Scenarios!Z$119 -> 1 | AA9: =Scenarios!AA$119 -> 1 | AB9: =Scenarios!AB$119 -> 1 | AC9: =Scenarios!AC$119 -> 1 | AD9: =Scenarios!AD$119 -> 1 | AE9: =Scenarios!AE$119 -> 1 | AF9: =Scenarios!AF$119 -> 1 | AG9: =Scenarios!AG$119 -> 1 | AH9: =Scenarios!AH$119 -> 1 | AI9: =Scenarios!AI$119 -> 1 | AJ9: =Scenarios!AJ$119 -> 1 | AK9: =Scenarios!AK$119 -> 1 | AL9: =Scenarios!AL$119 -> 1 | AM9: =Scenarios!AM$119 -> 1 | AN9: =Scenarios!AN$119 -> 1 | AO9: =Scenarios!AO$119 -> 1 | AP9: =Scenarios!AP$119 -> 0 | AQ9: =Scenarios!AQ$119 -> 0 | AR9: =Scenarios!AR$119 -> 0 | AS9: =Scenarios!AS$119 -> 0 | AT9: =Scenarios!AT$119 -> 0 | AU9: =Scenarios!AU$119 -> 0 | AV9: =Scenarios!AV$119 -> 0 | AW9: =Scenarios!AW$119 -> 0 | AX9: =Scenarios!AX$119 -> 0 | AY9: =Scenarios!AY$119 -> 0
E10: RIIO-2 year | G10: flag | K10: =Scenarios!K$120 -> 0 | L10: =Scenarios!L$120 -> 0 | M10: =Scenarios!M$120 -> 0 | N10: =Scenarios!N$120 -> 0 | O10: =Scenarios!O$120 -> 0 | P10: =Scenarios!P$120 -> 0 | Q10: =Scenarios!Q$120 -> 0 | R10: =Scenarios!R$120 -> 0 | S10: =Scenarios!S$120 -> 0 | T10: =Scenarios!T$120 -> 0 | U10: =Scenarios!U$120 -> 0 | V10: =Scenarios!V$120 -> 0 | W10: =Scenarios!W$120 -> 0 | X10: =Scenarios!X$120 -> 0 | Y10: =Scenarios!Y$120 -> 0 | Z10: =Scenarios!Z$120 -> 0 | AA10: =Scenarios!AA$120 -> 0 | AB10: =Scenarios!AB$120 -> 0 | AC10: =Scenarios!AC$120 -> 0 | AD10: =Scenarios!AD$120 -> 0 | AE10: =Scenarios!AE$120 -> 0 | AF10: =Scenarios!AF$120 -> 0 | AG10: =Scenarios!AG$120 -> 0 | AH10: =Scenarios!AH$120 -> 0 | AI10: =Scenarios!AI$120 -> 0 | AJ10: =Scenarios!AJ$120 -> 0 | AK10: =Scenarios!AK$120 -> 0 | AL10: =Scenarios!AL$120 -> 0 | AM10: =Scenarios!AM$120 -> 0 | AN10: =Scenarios!AN$120 -> 0 | AO10: =Scenarios!AO$120 -> 0 | AP10: =Scenarios!AP$120 -> 1 | AQ10: =Scenarios!AQ$120 -> 1 | AR10: =Scenarios!AR$120 -> 1 | AS10: =Scenarios!AS$120 -> 1 | AT10: =Scenarios!AT$120 -> 1 | AU10: =Scenarios!AU$120 -> 0 | AV10: =Scenarios!AV$120 -> 0 | AW10: =Scenarios!AW$120 -> 0 | AX10: =Scenarios!AX$120 -> 0 | AY10: =Scenarios!AY$120 -> 0
E11: RIIO-3 year | G11: flag | K11: =Scenarios!K$121 -> 0 | L11: =Scenarios!L$121 -> 0 | M11: =Scenarios!M$121 -> 0 | N11: =Scenarios!N$121 -> 0 | O11: =Scenarios!O$121 -> 0 | P11: =Scenarios!P$121 -> 0 | Q11: =Scenarios!Q$121 -> 0 | R11: =Scenarios!R$121 -> 0 | S11: =Scenarios!S$121 -> 0 | T11: =Scenarios!T$121 -> 0 | U11: =Scenarios!U$121 -> 0 | V11: =Scenarios!V$121 -> 0 | W11: =Scenarios!W$121 -> 0 | X11: =Scenarios!X$121 -> 0 | Y11: =Scenarios!Y$121 -> 0 | Z11: =Scenarios!Z$121 -> 0 | AA11: =Scenarios!AA$121 -> 0 | AB11: =Scenarios!AB$121 -> 0 | AC11: =Scenarios!AC$121 -> 0 | AD11: =Scenarios!AD$121 -> 0 | AE11: =Scenarios!AE$121 -> 0 | AF11: =Scenarios!AF$121 -> 0 | AG11: =Scenarios!AG$121 -> 0 | AH11: =Scenarios!AH$121 -> 0 | AI11: =Scenarios!AI$121 -> 0 | AJ11: =Scenarios!AJ$121 -> 0 | AK11: =Scenarios!AK$121 -> 0 | AL11: =Scenarios!AL$121 -> 0 | AM11: =Scenarios!AM$121 -> 0 | AN11: =Scenarios!AN$121 -> 0 | AO11: =Scenarios!AO$121 -> 0 | AP11: =Scenarios!AP$121 -> 0 | AQ11: =Scenarios!AQ$121 -> 0 | AR11: =Scenarios!AR$121 -> 0 | AS11: =Scenarios!AS$121 -> 0 | AT11: =Scenarios!AT$121 -> 0 | AU11: =Scenarios!AU$121 -> 1 | AV11: =Scenarios!AV$121 -> 1 | AW11: =Scenarios!AW$121 -> 1 | AX11: =Scenarios!AX$121 -> 1 | AY11: =Scenarios!AY$121 -> 1
E13: Price control base year | G13: flag | I13: =Scenarios!F14 -> 2024 | K13: =IF(YEAR(K4)=$I13,1,0) -> 0 | L13: 0 | M13: 0 | N13: 0 | O13: 0 | P13: 0 | Q13: 0 | R13: 0 | S13: 0 | T13: 0 | U13: 0 | V13: 0 | W13: 0 | X13: 0 | Y13: 0 | Z13: 0 | AA13: 0 | AB13: 0 | AC13: 0 | AD13: 0 | AE13: 0 | AF13: 0 | AG13: 0 | AH13: 0 | AI13: 0 | AJ13: 0 | AK13: 0 | AL13: 0 | AM13: 0 | AN13: 0 | AO13: 0 | AP13: 0 | AQ13: 0 | AR13: 1 | AS13: 0 | AT13: 0 | AU13: 0 | AV13: 0 | AW13: 0 | AX13: 0 | AY13: 0
C15: Scenario operators
E17: Override depreciation profile flag | G17: flag | I17: =Scenarios!F27 -> Asset life input | AP17: =IF($I17="Custom profile", 1,0) * AP11 -> 0 | AQ17: =IF($I17="Custom profile", 1,0) * AQ11 -> 0 | AR17: 0 | AS17: 0 | AT17: 0 | AU17: 0 | AV17: 0 | AW17: 0 | AX17: 0 | AY17: 0
C19: New proposed cost of capital arrangements
D21: Inflation
E23: Combined RPI-CPIH price index (financial year average, FYE for 25/26) | G23: index value | I23: =Scenarios!F55 -> Option 1 | AG23: =IF($I$23="Option 1", IF(AND(AH11=1,AG10=1),'Annual Inflation'!AG51,'Annual Inflation'!AG37), MainInputs!AG398) -> 244.675 | AH23: =IF($I$23="Option 1", IF(AND(AI11=1,AH10=1),'Annual Inflation'!AH51,'Annual Inflation'!AH37), MainInputs!AH398) -> 251.7333333 | AI23: =IF($I$23="Option 1", IF(AND(AJ11=1,AI10=1),'Annual Inflation'!AI51,'Annual Inflation'!AI37), MainInputs!AI398) -> 256.6666667 | AJ23: =IF($I$23="Option 1", IF(AND(AK11=1,AJ10=1),'Annual Inflation'!AJ51,'Annual Inflation'!AJ37), MainInputs!AJ398) -> 259.4333333 | AK23: =IF($I$23="Option 1", IF(AND(AL11=1,AK10=1),'Annual Inflation'!AK51,'Annual Inflation'!AK37), MainInputs!AK398) -> 264.9916667 | AL23: =IF($I$23="Option 1", IF(AND(AM11=1,AL10=1),'Annual Inflation'!AL51,'Annual Inflation'!AL37), MainInputs!AL398) -> 274.9083333 | AM23: =IF($I$23="Option 1", IF(AND(AN11=1,AM10=1),'Annual Inflation'!AM51,'Annual Inflation'!AM37), MainInputs!AM398) -> 283.3083333 | AN23: =IF($I$23="Option 1", IF(AND(AO11=1,AN10=1),'Annual Inflation'!AN51,'Annual Inflation'!AN37), MainInputs!AN398) -> 290.6416667 | AO23: =IF($I$23="Option 1", IF(AND(AP11=1,AO10=1),'Annual Inflation'!AO51,'Annual Inflation'!AO37), MainInputs!AO398) -> 294.1666667 | AP23: =IF($I$23="Option 1", IF(AND(AQ11=1,AP10=1),'Annual Inflation'!AP51,'Annual Inflation'!AP37), MainInputs!AP398) -> 307.328214 | AQ23: =IF($I$23="Option 1", IF(AND(AR11=1,AQ10=1),'Annual Inflation'!AQ51,'Annual Inflation'!AQ37), MainInputs!AQ398) -> 334.2935818 | AR23: =IF($I$23="Option 1", IF(AND(AS11=1,AR10=1),'Annual Inflation'!AR51,'Annual Inflation'!AR37), MainInputs!AR398) -> 352.8365174 | AS23: =IF($I$23="Option 1", IF(AND(AT11=1,AS10=1),'Annual Inflation'!AS51,'Annual Inflation'!AS37), MainInputs!AS398) -> 364.1796318 | AT23: =IF($I$23="Option 1", IF(AND(AU11=1,AT10=1),'Annual Inflation'!AT51,'Annual Inflation'!AT37), MainInputs!AT398) -> 381.9870893 | AU23: =IF($I$23="Option 1", IF(AND(AV11=1,AU10=1),'Annual Inflation'!AU51,'Annual Inflation'!AU37), MainInputs!AU398) -> 386.2085403 | AV23: =IF($I$23="Option 1", IF(AND(AW11=1,AV10=1),'Annual Inflation'!AV51,'Annual Inflation'!AV37), MainInputs!AV398) -> 394.3691688 | AW23: =IF($I$23="Option 1", IF(AND(AX11=1,AW10=1),'Annual Inflation'!AW51,'Annual Inflation'!AW37), MainInputs!AW398) -> 402.4954241 | AX23: =IF($I$23="Option 1", IF(AND(AY11=1,AX10=1),'Annual Inflation'!AX51,'Annual Inflation'!AX37), MainInputs!AX398) -> 410.8810239 | AY23: =IF($I$23="Option 1", IF(AND(AZ11=1,AY10=1),'Annual Inflation'!AY51,'Annual Inflation'!AY37), MainInputs!AY398) -> 419.4575059
E24: Combined RPI-CPIH inflation (financial year average, FYE for 25/26) | G24: annual % | AH24: =AH23/AG23-1 -> 0.02884779129 | AI24: =AI23/AH23-1 -> 0.01959745763 | AJ24: 0.01077922078 | AK24: 0.02142490042 | AL24: 0.03742256046 | AM24: 0.03055563976 | AN24: 0.02588463688 | AO24: 0.01212833673 | AP24: 0.04474180389 | AQ24: 0.08774127008 | AR24: 0.05546901456 | AS24: 0.03214835729 | AT24: 0.04889745588 | AU24: 0.01105129256 | AV24: 0.02113010877 | AW24: 0.02060570636 | AX24: 0.02083402526 | AY24: 0.02087339517
E25: Combined RPI-CPIH real to nominal prices conversion factor (FYE for 25/26) | G25: scalar | AG25: =AG23/SUMPRODUCT($AG$13:$AY$13,$AG$23:$AY$23) -> 0.6934514654 | AH25: =AH23/SUMPRODUCT($AG$13:$AY$13,$AG$23:$AY$23) -> 0.7134560085 | AI25: 0.7274379324 | AJ25: 0.7352791465 | AK25: 0.751032429 | AL25: 0.7791379855 | AM25: 0.8029450451 | AN25: 0.823728986 | AO25: 0.8337194485 | AP25: 0.8710215606 | AQ25: 0.9474460986 | AR25: 1 | AS25: 1.032148357 | AT25: 1.082617786 | AU25: 1.094582112 | AV25: 1.117710751 | AW25: 1.140741971 | AX25: 1.164508218 | AY25: 1.188815458
E27: CPIH inflation (financial year average) | G27: annual % | AH27: =MainInputs!AH396 -> 0.02088006903 | AI27: =MainInputs!AI396 -> 0.01140973631 | AJ27: =MainInputs!AJ396 -> 0.004428845993 | AK27: =MainInputs!AK396 -> 0.01372712146 | AL27: =MainInputs!AL396 -> 0.02634386541 | AM27: =MainInputs!AM396 -> 0.0212697905 | AN27: =MainInputs!AN396 -> 0.01699029126 | AO27: =MainInputs!AO396 -> 0.008006774963 | AP27: =MainInputs!AP396 -> 0.03673718781 | AQ27: =MainInputs!AQ396 -> 0.08774127008 | AR27: =MainInputs!AR396 -> 0.05546901456 | AS27: =MainInputs!AS396 -> 0.03214835729 | AT27: =MainInputs!AT396 -> 0.03777928836 | AU27: =MainInputs!AU396 -> 0.02188311179 | AV27: =MainInputs!AV396 -> 0.02113010877 | AW27: =MainInputs!AW396 -> 0.02060570636 | AX27: =MainInputs!AX396 -> 0.02083402526 | AY27: =MainInputs!AY396 -> 0.02087339517
E28: Forecast debt inflation (CPIH long term) | G28: annual % | AH28: =MainInputs!AH401 -> 0 | AI28: =MainInputs!AI401 -> 0 | AJ28: =MainInputs!AJ401 -> 0 | AK28: =MainInputs!AK401 -> 0 | AL28: =MainInputs!AL401 -> 0 | AM28: =MainInputs!AM401 -> 0 | AN28: =MainInputs!AN401 -> 0 | AO28: =MainInputs!AO401 -> 0 | AP28: =MainInputs!AP401 -> 0.02 | AQ28: =MainInputs!AQ401 -> 0.02 | AR28: =MainInputs!AR401 -> 0.02 | AS28: =MainInputs!AS401 -> 0.016 | AT28: =MainInputs!AT401 -> 0.02 | AU28: =MainInputs!AU401 -> 0.0208 | AV28: =MainInputs!AV401 -> 0.0208 | AW28: =MainInputs!AW401 -> 0.0208 | AX28: =MainInputs!AX401 -> 0.0208 | AY28: =MainInputs!AY401 -> 0.0208
D30: Notional structure
E32: Equity | G32: % | AP32: =(1-MainInputs!AP381) -> 0.4 | AQ32: =(1-MainInputs!AQ381) -> 0.4 | AR32: =(1-MainInputs!AR381) -> 0.4 | AS32: =(1-MainInputs!AS381) -> 0.4 | AT32: =(1-MainInputs!AT381) -> 0.4 | AU32: =(1-MainInputs!AU381) -> 0.4 | AV32: =(1-MainInputs!AV381) -> 0.4 | AW32: =(1-MainInputs!AW381) -> 0.4 | AX32: =(1-MainInputs!AX381) -> 0.4 | AY32: =(1-MainInputs!AY381) -> 0.4
E33: Inflation linked debt | G33: % | AP33: =MainInputs!AP500*(1-AP32) -> 0.18 | AQ33: =MainInputs!AQ500*(1-AQ32) -> 0.18 | AR33: =MainInputs!AR500*(1-AR32) -> 0.18 | AS33: =MainInputs!AS500*(1-AS32) -> 0.18 | AT33: =MainInputs!AT500*(1-AT32) -> 0.18 | AU33: =MainInputs!AU500*(1-AU32) -> 0.18 | AV33: =MainInputs!AV500*(1-AV32) -> 0.18 | AW33: =MainInputs!AW500*(1-AW32) -> 0.18 | AX33: =MainInputs!AX500*(1-AX32) -> 0.18 | AY33: =MainInputs!AY500*(1-AY32) -> 0.18
E34: Fixed rate debt | G34: % | AP34: =1-(AP32+AP33) -> 0.42 | AQ34: =1-(AQ32+AQ33) -> 0.42 | AR34: 0.42 | AS34: 0.42 | AT34: 0.42 | AU34: 0.42 | AV34: 0.42 | AW34: 0.42 | AX34: 0.42 | AY34: 0.42
D36: Real WACC elements
E38: Equity | G38: annual real % | AP38: =MainInputs!AP380 -> 0.045181881 | AQ38: =MainInputs!AQ380 -> 0.045568105 | AR38: =MainInputs!AR380 -> 0.052833944 | AS38: =MainInputs!AS380 -> 0.055875458 | AT38: =MainInputs!AT380 -> 0.054475396 | AU38: =MainInputs!AU380 -> 0.06118 | AV38: =MainInputs!AV380 -> 0.06118 | AW38: =MainInputs!AW380 -> 0.06118 | AX38: =MainInputs!AX380 -> 0.06118 | AY38: =MainInputs!AY380 -> 0.06118
E39: Inflation linked debt | G39: annual real % | AP39: =MainInputs!AP379 -> 0.0205 | AQ39: =MainInputs!AQ379 -> 0.019 | AR39: =MainInputs!AR379 -> 0.0192 | AS39: =MainInputs!AS379 -> 0.0211 | AT39: =MainInputs!AT379 -> 0.0226 | AU39: =MainInputs!AU379 -> 0.02943603764 | AV39: =MainInputs!AV379 -> 0.03037696394 | AW39: =MainInputs!AW379 -> 0.03128527444 | AX39: =MainInputs!AX379 -> 0.03249896211 | AY39: =MainInputs!AY379 -> 0.03379126065
E41: Vanilla WACC (current approach) | G41: annual real % | AP41: =AP38*AP32 + AP39*(1-AP32) -> 0.0303727524 | AQ41: 0.029627242 | AR41: 0.0326535776 | AS41: 0.0350101832 | AT41: 0.0353501584 | AU41: 0.04213362259 | AV41: 0.04269817836 | AW41: 0.04324316467 | AX41: 0.04397137727 | AY41: 0.04474675639
E42: Check: equal to MainInputs' CAPM calculated Vanilla allowed return on capital | AP42: =AP41-MainInputs!AP383 -> 0 | AQ42: =AQ41-MainInputs!AQ383 -> 0 | AR42: =AR41-MainInputs!AR383 -> 0 | AS42: =AS41-MainInputs!AS383 -> 0 | AT42: =AT41-MainInputs!AT383 -> 0 | AU42: =AU41-MainInputs!AU383 -> 0 | AV42: =AV41-MainInputs!AV383 -> 0 | AW42: =AW41-MainInputs!AW383 -> 0 | AX42: =AX41-MainInputs!AX383 -> 0 | AY42: =AY41-MainInputs!AY383 -> 0
D44: Nominal WACC elements
E46: Fixed rate debt | G46: nominal % | AP46: =(1+AP28)*(1+AP39)-1 -> 0.04091 | AQ46: 0.03938 | AR46: 0.039584 | AS46: 0.0374376 | AT46: 0.043052 | AU46: 0.05084830723 | AV46: 0.05180880479 | AW46: 0.05273600815 | AX46: 0.05397494053 | AY46: 0.05529411887
E48: Nominal WACC | G48: nominal % | AP48: =((1+AP38)*(1+AP24)-1)*AP32 + ((1+AP39)*(1+AP24)-1)*AP33 + AP46*AP34 -> 0.06586890345 | AQ48: =((1+AQ38)*(1+AQ24)-1)*AQ32 + ((1+AQ39)*(1+AQ24)-1)*AQ33 + AQ46*AQ34 -> 0.09097613515 | AR48: 0.07475084568 | AS48: 0.06135864356 | AT48: 0.07356492097 | AU48: 0.05786552786 | AV48: 0.06458764697 | AW48: 0.06482408329 | AX48: 0.06570674827 | AY48: 0.06652230067
D50: RAV indexation
E52: Inflation applied to indexed portion of capital structure | G52: annual % | AP52: =AP24*AP10 + AP24*(AP32+AP33)*AP11 -> 0.04474180389 | AQ52: 0.08774127008 | AR52: 0.05546901456 | AS52: 0.03214835729 | AT52: 0.04889745588 | AU52: 0.006409749686 | AV52: 0.01225546309 | AW52: 0.01195130969 | AX52: 0.01208373465 | AY52: 0.0121065692
E53: Inflation index | G53: scalar | AP53: =(1+AP52)*AO53 + AP$13 -> 0 | AQ53: 0 | AR53: 1 | AS53: 1.032148357 | AT53: 1.082617786 | AU53: 1.089557095 | AV53: 1.102910122 | AW53: 1.116091342 | AX53: 1.129577894 | AY53: 1.143253207
E54: Semi-nominal WACC | G54: semi-nominal % | AP54: =AP32*AP38+AP33*AP39+AP34*AP46 -> 0.0389449524 | AQ54: 0.038186842 | AR54: 0.0412148576 | AS54: 0.0418719752 | AT54: 0.0439399984 | AU54: 0.05112677581 | AV54: 0.05169955152 | AW54: 0.05225247282 | AX54: 0.0529912882 | AY54: 0.05377795684
E56: RAV inflation (splice pre-RIIO-3, splice or semi-nominal in RIIO-3) | G56: annual % | I56: =Scenarios!F55 -> Option 1 | AH56: =AH24*(AH9+AH10) + IF($I56="Status quo", AH24, AH52)*AH11 -> 0.02884779129 | AI56: 0.01959745763 | AJ56: 0.01077922078 | AK56: 0.02142490042 | AL56: 0.03742256046 | AM56: 0.03055563976 | AN56: 0.02588463688 | AO56: 0.01212833673 | AP56: 0.04474180389 | AQ56: 0.08774127008 | AR56: 0.05546901456 | AS56: 0.03214835729 | AT56: 0.04889745588 | AU56: 0.006409749686 | AV56: 0.01225546309 | AW56: 0.01195130969 | AX56: 0.01208373465 | AY56: 0.0121065692
C58: Re-basing RIIO3 additions for depreciation
E60: Pre-RIIO-3 slow money additions | G60: =price_label -> £m 23/24 prices | AH60: =MainInputs!AH1491+MainInputs!AH1496+TIM!AH109*AH10 -> 168.9566848 | AI60: =MainInputs!AI1491+MainInputs!AI1496+TIM!AI109*AI10 -> 164.301292 | AJ60: =MainInputs!AJ1491+MainInputs!AJ1496+TIM!AJ109*AJ10 -> 176.8416384 | AK60: =MainInputs!AK1491+MainInputs!AK1496+TIM!AK109*AK10 -> 185.53643 | AL60: =MainInputs!AL1491+MainInputs!AL1496+TIM!AL109*AL10 -> 201.996472 | AM60: =MainInputs!AM1491+MainInputs!AM1496+TIM!AM109*AM10 -> 197.286444 | AN60: =MainInputs!AN1491+MainInputs!AN1496+TIM!AN109*AN10 -> 237.4417891 | AO60: =MainInputs!AO1491+MainInputs!AO1496+TIM!AO109*AO10 -> 268.5120681 | AP60: =MainInputs!AP1491+MainInputs!AP1496+TIM!AP109*AP10 -> 252.0851687 | AQ60: =MainInputs!AQ1491+MainInputs!AQ1496+TIM!AQ109*AQ10 -> 258.9688378 | AR60: =MainInputs!AR1491+MainInputs!AR1496+TIM!AR109*AR10 -> 260.8568139 | AS60: =MainInputs!AS1491+MainInputs!AS1496+TIM!AS109*AS10 -> 263.8873385 | AT60: =MainInputs!AT1491+MainInputs!AT1496+TIM!AT109*AT10 -> 280.8726883 | AU60: =MainInputs!AU1491+MainInputs!AU1496+TIM!AU109*AU10 -> 0 | AV60: =MainInputs!AV1491+MainInputs!AV1496+TIM!AV109*AV10 -> 0 | AW60: =MainInputs!AW1491+MainInputs!AW1496+TIM!AW109*AW10 -> 0 | AX60: =MainInputs!AX1491+MainInputs!AX1496+TIM!AX109*AX10 -> 0 | AY60: =MainInputs!AY1491+MainInputs!AY1496+TIM!AY109*AY10 -> 0
E61: RIIO-3 slow money additions | G61: =price_label -> £m 23/24 prices | AP61: =TIM!AP109*AP11 -> 0 | AQ61: =TIM!AQ109*AQ11 -> 0 | AR61: =TIM!AR109*AR11 -> 0 | AS61: =TIM!AS109*AS11 -> 0 | AT61: =TIM!AT109*AT11 -> 0 | AU61: =TIM!AU109*AU11 -> 303.1711242 | AV61: =TIM!AV109*AV11 -> 295.6208593 | AW61: =TIM!AW109*AW11 -> 288.4140419 | AX61: =TIM!AX109*AX11 -> 295.8556744 | AY61: =TIM!AY109*AY11 -> 288.9981365
E62: RIIO-3 slow money additions (nominal) | G62: £m nominal | AP62: =AP61*GDNpf -> 0 | AQ62: 0 | AR62: 0 | AS62: 0 | AT62: 0 | AU62: 331.8456894 | AV62: 330.4186126 | AW62: 329.0060025 | AX62: 344.5263641 | AY62: 343.5654519
... 47 more rows

Sheet TaxPools
A1: Tax Pools
B2: =UserInterface!G17 -> East
E3: Parameter | G3: Units | I3: Constant | AP3: Annual values
E4: PCFM year ending | I4: =UserInterface!$G$10 -> 2025-03-31 | K4: 1991-03-31 | L4: 1992-03-31 | M4: 1993-03-31 | N4: 1994-03-31 | O4: 1995-03-31 | P4: 1996-03-31 | Q4: 1997-03-31 | R4: 1998-03-31 | S4: 1999-03-31 | T4: 2000-03-31 | U4: 2001-03-31 | V4: 2002-03-31 | W4: 2003-03-31 | X4: 2004-03-31 | Y4: 2005-03-31 | Z4: 2006-03-31 | AA4: 2007-03-31 | AB4: 2008-03-31 | AC4: 2009-03-31 | AD4: 2010-03-31 | AE4: 2011-03-31 | AF4: 2012-03-31 | AG4: 2013-03-31 | AH4: 2014-03-31 | AI4: 2015-03-31 | AJ4: 2016-03-31 | AK4: 2017-03-31 | AL4: 2018-03-31 | AM4: 2019-03-31 | AN4: 2020-03-31 | AO4: 2021-03-31 | AP4: 2022-03-31 | AQ4: 2023-03-31 | AR4: 2024-03-31 | AS4: 2025-03-31 | AT4: 2026-03-31 | AU4: 2027-03-31 | AV4: 2028-03-31 | AW4: 2029-03-31 | AX4: 2030-03-31 | AY4: =EOMONTH(AX4,12) -> 2031-03-31
AP5: 2 | AQ5: 2 | AR5: 2 | AS5: 2 | AT5: 2 | AU5: 3 | AV5: 3 | AW5: 3 | AX5: 3 | AY5: 3
B7: Tax pool additions
B8: Note: Actual totex is combined with other expenditure and allocated to tax pools. Each cost sub-category can have its own percentage split between each pool.
C10: Expenditure categories allocated to tax pools
D12: Actual totex
E14: Load related capex | G14: =price_label -> £m 23/24 prices | AP14: =Totex!AP77 -> 31.33546856 | AQ14: =Totex!AQ77 -> 23.14975493 | AR14: =Totex!AR77 -> 22.90215393 | AS14: =Totex!AS77 -> 23.7004029 | AT14: =Totex!AT77 -> 36.81889078 | AU14: =Totex!AU77 -> 15.00315244 | AV14: =Totex!AV77 -> 13.98081705 | AW14: =Totex!AW77 -> 12.83111255 | AX14: =Totex!AX77 -> 12.71756673 | AY14: =Totex!AY77 -> 12.09128833
E15: Non-load related capex - other | G15: £m 23/24 prices | AP15: =Totex!AP78 -> 55.25026759 | AQ15: =Totex!AQ78 -> 66.49188663 | AR15: =Totex!AR78 -> 83.74884778 | AS15: =Totex!AS78 -> 66.77174476 | AT15: =Totex!AT78 -> 81.73022845 | AU15: =Totex!AU78 -> 105.8134083 | AV15: =Totex!AV78 -> 80.21921037 | AW15: =Totex!AW78 -> 76.0717224 | AX15: =Totex!AX78 -> 80.6209335 | AY15: =Totex!AY78 -> 60.31867976
E16: Business support (opex) | G16: £m 23/24 prices | AP16: =Totex!AP79 -> 51.55090333 | AQ16: =Totex!AQ79 -> 54.01561127 | AR16: =Totex!AR79 -> 61.23030679 | AS16: =Totex!AS79 -> 65.94580722 | AT16: =Totex!AT79 -> 73.11894465 | AU16: =Totex!AU79 -> 66.07136579 | AV16: =Totex!AV79 -> 62.83415406 | AW16: =Totex!AW79 -> 58.51944902 | AX16: =Totex!AX79 -> 61.64368468 | AY16: =Totex!AY79 -> 61.65241399
E17: Directs opex | G17: £m 23/24 prices | AP17: =Totex!AP80 -> 115.9131334 | AQ17: =Totex!AQ80 -> 129.2738743 | AR17: =Totex!AR80 -> 116.9161022 | AS17: =Totex!AS80 -> 122.6942297 | AT17: =Totex!AT80 -> 131.2923192 | AU17: =Totex!AU80 -> 160.9177425 | AV17: =Totex!AV80 -> 164.0306669 | AW17: =Totex!AW80 -> 154.5177156 | AX17: =Totex!AX80 -> 152.2403413 | AY17: =Totex!AY80 -> 152.7385062
E18: Repex | G18: £m 23/24 prices | AP18: =Totex!AP81 -> 160.6441836 | AQ18: =Totex!AQ81 -> 191.8172693 | AR18: =Totex!AR81 -> 196.7220043 | AS18: =Totex!AS81 -> 186.5105663 | AT18: =Totex!AT81 -> 184.5411447 | AU18: =Totex!AU81 -> 194.9692055 | AV18: =Totex!AV81 -> 195.3391638 | AW18: =Totex!AW81 -> 198.1701037 | AX18: =Totex!AX81 -> 201.3073458 | AY18: =Totex!AY81 -> 200.4234858
E19: Actual totex | G19: £m 23/24 prices | AP19: =SUM(AP14:AP18) -> 414.6939565 | AQ19: =SUM(AQ14:AQ18) -> 464.7483964 | AR19: =SUM(AR14:AR18) -> 481.5194151 | AS19: =SUM(AS14:AS18) -> 465.6227508 | AT19: =SUM(AT14:AT18) -> 507.5015278 | AU19: =SUM(AU14:AU18) -> 542.7748745 | AV19: 516.4040121 | AW19: 500.1101033 | AX19: 508.529872 | AY19: 487.2243741
D21: Non-totex items
E23: Pass-through expenditure and "Other revenue associated costs" | G23: =price_label -> £m 23/24 prices | AP23: =SUM(MainInputs!AP274, MainInputs!AP299) -> 207.9599769 | AQ23: =SUM(MainInputs!AQ274, MainInputs!AQ299) -> 347.4593185 | AR23: =SUM(MainInputs!AR274, MainInputs!AR299) -> 178.3343317 | AS23: =SUM(MainInputs!AS274, MainInputs!AS299) -> 149.2446752 | AT23: =SUM(MainInputs!AT274, MainInputs!AT299) -> 173.418667 | AU23: =SUM(MainInputs!AU274, MainInputs!AU299) -> 176.687722 | AV23: =SUM(MainInputs!AV274, MainInputs!AV299) -> 197.0345142 | AW23: =SUM(MainInputs!AW274, MainInputs!AW299) -> 194.2827138 | AX23: =SUM(MainInputs!AX274, MainInputs!AX299) -> 192.6874085 | AY23: =SUM(MainInputs!AY274, MainInputs!AY299) -> 192.7548343
C25: Tax pool allocation
E27: Allocation to "General" tax pool | G27: % | AP27: =MainInputs!AP435 -> 0.04881273168 | AQ27: =MainInputs!AQ435 -> 0.04835021639 | AR27: =MainInputs!AR435 -> 0.04089032433 | AS27: =MainInputs!AS435 -> 0.02168444979 | AT27: =MainInputs!AT435 -> 0.06228466885 | AU27: =MainInputs!AU435 -> 0.06004965287 | AV27: =MainInputs!AV435 -> 0.04335583503 | AW27: =MainInputs!AW435 -> 0.02866554847 | AX27: =MainInputs!AX435 -> 0.03828650756 | AY27: =MainInputs!AY435 -> 0.01524664915
E28: Allocation to "Special Rate" tax pool | G28: % | AP28: =MainInputs!AP436 -> 0.1466100015 | AQ28: =MainInputs!AQ436 -> 0.1390218113 | AR28: =MainInputs!AR436 -> 0.1780413147 | AS28: =MainInputs!AS436 -> 0.170815309 | AT28: =MainInputs!AT436 -> 0.1690452029 | AU28: =MainInputs!AU436 -> 0.1767039167 | AV28: =MainInputs!AV436 -> 0.157340461 | AW28: =MainInputs!AW436 -> 0.1444804687 | AX28: =MainInputs!AX436 -> 0.1392900348 | AY28: =MainInputs!AY436 -> 0.1285060377
E29: Allocation to "Structures and Buildings" tax pool | G29: % | AP29: =MainInputs!AP437 -> 0.004409929667 | AQ29: =MainInputs!AQ437 -> 0.001836687094 | AR29: =MainInputs!AR437 -> 0.0005707766477 | AS29: =MainInputs!AS437 -> 0.0003006298032 | AT29: =MainInputs!AT437 -> 0.0003772914368 | AU29: =MainInputs!AU437 -> 0.0008285866382 | AV29: =MainInputs!AV437 -> 0.0004729030914 | AW29: =MainInputs!AW437 -> 0.0006805413866 | AX29: =MainInputs!AX437 -> 0.0006763164637 | AY29: =MainInputs!AY437 -> 0.0002379482108
E30: Allocation to "Deferred Revenue" tax pool | G30: % | AP30: =MainInputs!AP438 -> 0.3873800935 | AQ30: =MainInputs!AQ438 -> 0.4127335797 | AR30: =MainInputs!AR438 -> 0.4085442834 | AS30: =MainInputs!AS438 -> 0.4005615403 | AT30: =MainInputs!AT438 -> 0.3636267767 | AU30: =MainInputs!AU438 -> 0.3677277645 | AV30: =MainInputs!AV438 -> 0.3874941746 | AW30: =MainInputs!AW438 -> 0.4064942227 | AX30: =MainInputs!AX438 -> 0.4034096536 | AY30: =MainInputs!AY438 -> 0.4217737625
E31: Allocation to "Revenue" tax pool | G31: % | AP31: =MainInputs!AP439 -> 0.4038256022 | AQ31: =MainInputs!AQ439 -> 0.3943843313 | AR31: =MainInputs!AR439 -> 0.36996724 | AS31: =MainInputs!AS439 -> 0.4051349221 | AT31: =MainInputs!AT439 -> 0.4027796029 | AU31: =MainInputs!AU439 -> 0.3905471461 | AV31: =MainInputs!AV439 -> 0.4089721108 | AW31: =MainInputs!AW439 -> 0.4162765119 | AX31: =MainInputs!AX439 -> 0.4149559053 | AY31: =MainInputs!AY439 -> 0.4330458614
E32: Allocation to "Non Qualifying" tax pool | G32: % | AP32: =MainInputs!AP440 -> 0.008961641497 | AQ32: =MainInputs!AQ440 -> 0.003673374189 | AR32: =MainInputs!AR440 -> 0.001986060953 | AS32: =MainInputs!AS440 -> 0.001503149016 | AT32: =MainInputs!AT440 -> 0.001886457184 | AU32: =MainInputs!AU440 -> 0.004142933191 | AV32: =MainInputs!AV440 -> 0.002364515457 | AW32: =MainInputs!AW440 -> 0.003402706933 | AX32: =MainInputs!AX440 -> 0.003381582318 | AY32: =MainInputs!AY440 -> 0.001189741054
E33: Allocation check | G33: % | AP33: =SUM(AP27:AP32) -> 1 | AQ33: =SUM(AQ27:AQ32) -> 1 | AR33: 1 | AS33: 1 | AT33: 1 | AU33: =SUM(AU27:AU32) -> 1 | AV33: 1 | AW33: 1 | AX33: 1 | AY33: 1
E35: General pool additions qualifying for super-deduction/first year allowance | G35: % | AP35: =MainInputs!AP443 -> 0 | AQ35: =MainInputs!AQ443 -> 0 | AR35: =MainInputs!AR443 -> 0 | AS35: =MainInputs!AS443 -> 0 | AT35: =MainInputs!AT443 -> 0 | AU35: =MainInputs!AU443 -> 1 | AV35: =MainInputs!AV443 -> 1 | AW35: =MainInputs!AW443 -> 1 | AX35: =MainInputs!AX443 -> 1 | AY35: =MainInputs!AY443 -> 1
E36: Special rate pool additions qualifying for first year allowance | G36: % | AP36: =MainInputs!AP444 -> 0 | AQ36: =MainInputs!AQ444 -> 0 | AR36: =MainInputs!AR444 -> 0 | AS36: =MainInputs!AS444 -> 0 | AT36: =MainInputs!AT444 -> 0 | AU36: =MainInputs!AU444 -> 1 | AV36: =MainInputs!AV444 -> 1 | AW36: =MainInputs!AW444 -> 1 | AX36: =MainInputs!AX444 -> 1 | AY36: =MainInputs!AY444 -> 1
E38: General pool additions | G38: =price_label -> £m 23/24 prices | AP38: =AP27*AP$19 -> 20.24234483 | AQ38: 22.47068553 | AR38: 19.68948505 | AS38: 10.09677316 | AT38: 31.6095646 | AU38: =AU27*AU$19 -> 32.5934428 | AV38: 22.38912716 | AW38: 14.3359304 | AX38: 19.46983279 | AY38: 7.428539089
E39: Special Rate pool additions | G39: £m 23/24 prices | AP39: 60.79828158 | AQ39: 64.61016389 | AR39: 85.73034971 | AS39: 79.53549404 | AT39: 85.79069875 | AU39: =AU28*AU$19 -> 95.91044623 | AV39: 81.25124532 | AW39: 72.2561421 | AX39: 70.83314356 | AY39: 62.6112738
E40: Structures and Buildings pool additions | G40: £m 23/24 prices | AP40: 1.828771182 | AQ40: 0.8535973818 | AR40: 0.2748400375 | AS40: 0.1399800759 | AT40: 0.1914759806 | AU40: =AU29*AU$19 -> 0.4497360085 | AV40: 0.2442090537 | AW40: 0.3403456231 | AX40: 0.3439271247 | AY40: 0.1159341681
E41: Deferred revenue pool additions | G41: £m 23/24 prices | AP41: 160.6441836 | AQ41: 191.8172693 | AR41: 196.7220043 | AS41: 186.5105663 | AT41: 184.5411447 | AU41: =AU30*AU$19 -> 199.5933912 | AV41: 200.1035464 | AW41: 203.2918677 | AX41: 205.1458595 | AY41: 205.4984574
E42: Revenue pool additions | G42: £m 23/24 prices | AP42: =AP31*AP$19 +AP23 -> 375.4240136 | AQ42: =AQ31*AQ$19 +AQ23 -> 530.7488041 | AR42: 356.4807407 | AS42: 337.8847121 | AT42: 377.8299308 | AU42: =AU31*AU$19 +AU23 -> 388.6669003 | AV42: 408.2293531 | AW42: 402.4668031 | AX42: 403.7048819 | AY42: 403.7453331
E43: Non-qualifying expenditure | G43: £m 23/24 prices | AP43: =AP32*AP$19 -> 3.716338569 | AQ43: =AQ32*AQ$19 -> 1.707194764 | AR43: =AR32*AR$19 -> 0.9563269081 | AS43: =AS32*AS$19 -> 0.6999003797 | AT43: =AT32*AT$19 -> 0.957379903 | AU43: =AU32*AU$19 -> 2.248680043 | AV43: 1.221045269 | AW43: 1.701728116 | AX43: 1.719635623 | AY43: 0.5796708404
B45: Capital allowances
B46: Note: Special, General and deferred revenue capital allowances are calculated for the tax allowance calculation.
B47: When "non-core" assets are transferred to the RAV their tax book value is moved into the "Transfer" line.
C49: General pool
E51: Capital allowance rate | G51: % | AP51: =MainInputs!AP447 -> 0.18 | AQ51: =MainInputs!AQ447 -> 0.18 | AR51: =MainInputs!AR447 -> 0.18 | AS51: =MainInputs!AS447 -> 0.18 | AT51: =MainInputs!AT447 -> 0.18 | AU51: =MainInputs!AU447 -> 0.14 | AV51: =MainInputs!AV447 -> 0.14 | AW51: =MainInputs!AW447 -> 0.14 | AX51: =MainInputs!AX447 -> 0.14 | AY51: =MainInputs!AY447 -> 0.14
E53: Opening balance brought forward | G53: £m nominal | AP53: =MainInputs!$AP$428 -> 119.6457873 | AQ53: =AP60 -> 112.567391 | AR53: =AQ60 -> 109.7628665 | AS53: =AR60 -> 87.08608266 | AT53: =AS60 -> 66.71689966 | AU53: =AT60 -> 75.51808015 | AV53: 55.45784173 | AW53: 47.69374389 | AX53: 41.01661974 | AY53: 35.27429298
E54: Revisions | G54: £m nominal | AP54: =MainInputs!AP422 -> 0 | AQ54: =MainInputs!AQ422 -> 0 | AR54: =MainInputs!AR422 -> -23.24981176 | AS54: =MainInputs!AS422 -> -16.14537774 | AT54: =MainInputs!AT422 -> -8.545521624 | AU54: =MainInputs!AU422 -> -11.03221767 | AV54: =MainInputs!AV422 -> 0 | AW54: =MainInputs!AW422 -> 0 | AX54: =MainInputs!AX422 -> 0 | AY54: =MainInputs!AY422 -> 0
E55: Capex additions | G55: £m nominal | AP55: =AP38 * GDNpf -> 17.63151878 | AQ55: 21.28976334 | AR55: 19.68948505 | AS55: 10.42136783 | AT55: =AT38 * GDNpf -> 33.92384166 | AU55: 35.67619945 | AV55: 25.02456813 | AW55: 16.3535975 | AX55: 22.67278028 | AY55: 8.831162098
E56: Transfers out to Super deduction | G56: £m nominal | AP56: =-AP55*AP35 -> 0 | AQ56: =-AQ55*AQ35 -> 0 | AR56: 0 | AS56: 0 | AT56: 0 | AU56: -35.67619945 | AV56: -25.02456813 | AW56: -16.3535975 | AX56: -22.67278028 | AY56: -8.831162098
E57: Transfers in from Super deduction | G57: £m nominal | AP57: =-AP65 -> 0 | AQ57: =-AQ65 -> 0 | AR57: 0 | AS57: 0 | AT57: 0 | AU57: 0 | AV57: 0 | AW57: 0 | AX57: 0 | AY57: 0
E58: Tax book value pre-depreciation | G58: £m nominal | AP58: =SUM(AP53:AP57) -> 137.2773061 | AQ58: =SUM(AQ53:AQ57) -> 133.8571543 | AR58: 106.2025398 | AS58: 81.36207275 | AT58: =SUM(AT53:AT57) -> 92.0952197 | AU58: 64.48586248 | AV58: 55.45784173 | AW58: 47.69374389 | AX58: 41.01661974 | AY58: 35.27429298
E59: General pool capital allowance (reducing balance) | G59: £m nominal | AP59: =-AP58*AP51 -> -24.70991509 | AQ59: =-AQ58*AQ51 -> -24.09428778 | AR59: -19.11645717 | AS59: -14.6451731 | AT59: -16.57713955 | AU59: =-AU58*AU51 -> -9.028020747 | AV59: -7.764097842 | AW59: -6.677124144 | AX59: -5.742326764 | AY59: -4.938401017
E60: Closing balance carried forward | G60: £m nominal | AP60: =SUM(AP58:AP59) -> 112.567391 | AQ60: =SUM(AQ58:AQ59) -> 109.7628665 | AR60: =SUM(AR58:AR59) -> 87.08608266 | AS60: =SUM(AS58:AS59) -> 66.71689966 | AT60: =SUM(AT58:AT59) -> 75.51808015 | AU60: =SUM(AU58:AU59) -> 55.45784173 | AV60: 47.69374389 | AW60: 41.01661974 | AX60: 35.27429298 | AY60: 30.33589196
E62: Super deduction allowance rate | G62: % | AP62: =MainInputs!AP452 -> 0 | AQ62: =MainInputs!AQ452 -> 0 | AR62: =MainInputs!AR452 -> 0 | AS62: =MainInputs!AS452 -> 0 | AT62: =MainInputs!AT452 -> 0 | AU62: =MainInputs!AU452 -> 1 | AV62: =MainInputs!AV452 -> 1 | AW62: =MainInputs!AW452 -> 1 | AX62: =MainInputs!AX452 -> 1 | AY62: =MainInputs!AY452 -> 1
E64: Opening balance brought forward | G64: £m nominal | AP64: =AO70 -> 0 | AQ64: =AP70 -> 0 | AR64: 0 | AS64: 0 | AT64: 0 | AU64: 0 | AV64: 0 | AW64: 0 | AX64: 0 | AY64: 0
E65: Transfer | G65: £m nominal | AP65: =-AP64 -> 0 | AQ65: =-AQ64 -> 0 | AR65: 0 | AS65: 0 | AT65: 0 | AU65: 0 | AV65: 0 | AW65: 0 | AX65: 0 | AY65: 0
E66: Revisions | G66: £m nominal
E67: Capex additions | G67: £m nominal | AP67: =-AP56 -> 0 | AQ67: 0 | AR67: 0 | AS67: 0 | AT67: 0 | AU67: 35.67619945 | AV67: 25.02456813 | AW67: 16.3535975 | AX67: 22.67278028 | AY67: 8.831162098
E68: Tax book value pre-depreciation | G68: £m nominal | AP68: =SUM(AP64:AP67) -> 0 | AQ68: =SUM(AQ64:AQ67) -> 0 | AR68: 0 | AS68: 0 | AT68: 0 | AU68: 35.67619945 | AV68: 25.02456813 | AW68: 16.3535975 | AX68: 22.67278028 | AY68: 8.831162098
E69: General pool capital allowance (reducing balance) | G69: £m nominal | AP69: =AP68*-AP62 -> 0 | AQ69: =AQ68*-AQ62 -> 0 | AR69: 0 | AS69: 0 | AT69: 0 | AU69: -35.67619945 | AV69: -25.02456813 | AW69: -16.3535975 | AX69: -22.67278028 | AY69: -8.831162098
E70: Closing balance carried forward (limited to 0) | G70: £m nominal | AP70: =MAX(SUM(AP68:AP69),0) -> 0 | AQ70: =MAX(SUM(AQ68:AQ69),0) -> 0 | AR70: 0 | AS70: 0 | AT70: 0 | AU70: 0 | AV70: 0 | AW70: 0 | AX70: 0 | AY70: 0
C72: Special Rates pool
E74: Capital allowance rate | G74: % | AP74: =MainInputs!AP448 -> 0.06 | AQ74: =MainInputs!AQ448 -> 0.06 | AR74: =MainInputs!AR448 -> 0.06 | AS74: =MainInputs!AS448 -> 0.06 | AT74: =MainInputs!AT448 -> 0.06 | AU74: =MainInputs!AU448 -> 0.06 | AV74: =MainInputs!AV448 -> 0.06 | AW74: =MainInputs!AW448 -> 0.06 | AX74: =MainInputs!AX448 -> 0.06 | AY74: =MainInputs!AY448 -> 0.06
E76: Opening balance brought forward | G76: £m nominal | AP76: =MainInputs!$AP$429 -> 363.2997648 | AQ76: =AP83 -> 391.2809962 | AR76: =AQ83 -> 425.3459053 | AS76: =AR83 -> 439.5877922 | AT76: =AS83 -> 454.9213357 | AU76: =AT83 -> 480.2201357 | AV76: 421.2504027 | AW76: 445.3168522 | AX76: 461.2810746 | AY76: 472.3442486
E77: Revisions | G77: £m nominal | AP77: =MainInputs!AP423 -> 0 | AQ77: =MainInputs!AQ423 -> 0 | AR77: =MainInputs!AR423 -> -43.42966756 | AS77: =MainInputs!AS423 -> -37.72135387 | AT77: =MainInputs!AT423 -> -36.12066899 | AU77: =MainInputs!AU423 -> -32.0814094 | AV77: =MainInputs!AV423 -> 0 | AW77: =MainInputs!AW423 -> 0 | AX77: =MainInputs!AX423 -> 0 | AY77: =MainInputs!AY423 -> 0
E78: Capex additions | G78: £m nominal | AP78: =AP39 * GDNpf -> 52.9566141 | AQ78: 61.2146477 | AR78: 85.73034971 | AS78: 82.09242952 | AT78: 92.07181806 | AU78: 104.9818588 | AV78: 90.81539042 | AW78: 82.42561392 | AX78: 82.48577775 | AY78: 74.43325012
E79: Transfers out to First year | G79: £m nominal | AP79: =-AP78*AP36 -> 0 | AQ79: 0 | AR79: 0 | AS79: 0 | AT79: 0 | AU79: -104.9818588 | AV79: -90.81539042 | AW79: -82.42561392 | AX79: -82.48577775 | AY79: -74.43325012
E80: Transfers in from to First year | G80: £m nominal | AP80: =-AP88 -> 0 | AQ80: =-AQ88 -> 0 | AR80: 0 | AS80: 0 | AT80: 0 | AU80: 0 | AV80: 52.4909294 | AW80: 45.40769521 | AX80: 41.21280696 | AY80: 41.24288888
E81: Tax book value pre-depreciation | G81: £m nominal | AP81: =SUM(AP76:AP80) -> 416.2563789 | AQ81: =SUM(AQ76:AQ80) -> 452.4956439 | AR81: 467.6465874 | AS81: 483.9588678 | AT81: 510.8724848 | AU81: 448.1387263 | AV81: 473.7413321 | AW81: 490.7245474 | AX81: 502.4938815 | AY81: 513.5871375
E82: Special Rates capital allowance (reducing balance) | G82: £m nominal | AP82: =-AP81*AP74 -> -24.97538274 | AQ82: =-AQ81*AQ74 -> -27.14973863 | AR82: -28.05879524 | AS82: -29.03753207 | AT82: -30.65234909 | AU82: =-AU81*AU74 -> -26.88832358 | AV82: -28.42447993 | AW82: -29.44347285 | AX82: -30.14963289 | AY82: -30.81522825
E83: Closing balance carried forward | G83: £m nominal | AP83: =SUM(AP81:AP82) -> 391.2809962 | AQ83: =SUM(AQ81:AQ82) -> 425.3459053 | AR83: =SUM(AR81:AR82) -> 439.5877922 | AS83: =SUM(AS81:AS82) -> 454.9213357 | AT83: =SUM(AT81:AT82) -> 480.2201357 | AU83: =SUM(AU81:AU82) -> 421.2504027 | AV83: 445.3168522 | AW83: 461.2810746 | AX83: 472.3442486 | AY83: 482.7719093
E85: First year Capital allowance rate | G85: % | AP85: =MainInputs!AP453 -> 0 | AQ85: =MainInputs!AQ453 -> 0 | AR85: =MainInputs!AR453 -> 0 | AS85: =MainInputs!AS453 -> 0 | AT85: =MainInputs!AT453 -> 0 | AU85: =MainInputs!AU453 -> 0.5 | AV85: =MainInputs!AV453 -> 0.5 | AW85: =MainInputs!AW453 -> 0.5 | AX85: =MainInputs!AX453 -> 0.5 | AY85: =MainInputs!AY453 -> 0.5
E87: Opening balance brought forward | G87: £m nominal | AP87: =AO93 -> 0 | AQ87: =AP93 -> 0 | AR87: 0 | AS87: 0 | AT87: 0 | AU87: 0 | AV87: 52.4909294 | AW87: 45.40769521 | AX87: 41.21280696 | AY87: 41.24288888
E88: Transfer | G88: £m nominal | AP88: =-AP87 -> 0 | AQ88: =-AQ87 -> 0 | AR88: 0 | AS88: 0 | AT88: 0 | AU88: 0 | AV88: -52.4909294 | AW88: -45.40769521 | AX88: -41.21280696 | AY88: -41.24288888
E89: Revisions | G89: £m nominal
E90: Capex additions | G90: £m nominal | AP90: =-AP79 -> 0 | AQ90: =-AQ79 -> 0 | AR90: 0 | AS90: 0 | AT90: 0 | AU90: 104.9818588 | AV90: 90.81539042 | AW90: 82.42561392 | AX90: 82.48577775 | AY90: 74.43325012
E91: Tax book value pre-depreciation | G91: £m nominal | AP91: =SUM(AP87:AP90) -> 0 | AQ91: =SUM(AQ87:AQ90) -> 0 | AR91: 0 | AS91: 0 | AT91: 0 | AU91: 104.9818588 | AV91: 90.81539042 | AW91: 82.42561392 | AX91: 82.48577775 | AY91: 74.43325012
E92: General pool capital allowance (reducing balance) | G92: £m nominal | AP92: =AP91*-AP85 -> 0 | AQ92: =AQ91*-AQ85 -> 0 | AR92: 0 | AS92: 0 | AT92: 0 | AU92: -52.4909294 | AV92: -45.40769521 | AW92: -41.21280696 | AX92: -41.24288888 | AY92: -37.21662506
E93: Closing balance carried forward | G93: £m nominal | AP93: =SUM(AP91:AP92) -> 0 | AQ93: 0 | AR93: 0 | AS93: 0 | AT93: 0 | AU93: 52.4909294 | AV93: 45.40769521 | AW93: 41.21280696 | AX93: 41.24288888 | AY93: 37.21662506
C95: Structures and Buildings pool
E97: Capital allowance rate | G97: % | AP97: =MainInputs!AP449 -> 0.03 | AQ97: =MainInputs!AQ449 -> 0.03 | AR97: =MainInputs!AR449 -> 0.03 | AS97: =MainInputs!AS449 -> 0.03 | AT97: =MainInputs!AT449 -> 0.03 | AU97: =MainInputs!AU449 -> 0.03 | AV97: =MainInputs!AV449 -> 0.03 | AW97: =MainInputs!AW449 -> 0.03 | AX97: =MainInputs!AX449 -> 0.03 | AY97: =MainInputs!AY449 -> 0.03
E99: Opening balance brought forward | G99: £m nominal | AP99: =MainInputs!$AP$430 -> 0 | AQ99: =AP104 -> 1.592899129 | AR99: =AQ104 -> 2.353849664 | AS99: =AR104 -> 2.556640602 | AT99: =AS104 -> 2.620826507 | AU99: =AT104 -> 2.741692591 | AV99: 3.142254925 | AW99: 3.308581989 | AX99: 3.58192914 | AY99: 3.85577067
E100: Revisions | G100: £m nominal
E101: Capex additions | G101: £m nominal | AP101: =AP40 * GDNpf -> 1.592899129 | AQ101: 0.8087375091 | AR101: 0.2748400375 | AS101: 0.1444802054 | AT101: 0.2054947903 | AU101: 0.49227299 | AV101: 0.2729550849 | AW101: 0.3882465368 | AX101: 0.4005059629 | AY101: 0.1378243311
E102: Tax book value pre-depreciation | G102: £m nominal | AP102: =SUM(AP99:AP101) -> 1.592899129 | AQ102: =SUM(AQ99:AQ101) -> 2.401636638 | AR102: =SUM(AR99:AR101) -> 2.628689701 | AS102: =SUM(AS99:AS101) -> 2.701120808 | AT102: =SUM(AT99:AT101) -> 2.826321298 | AU102: =SUM(AU99:AU101) -> 3.233965581 | AV102: 3.415210009 | AW102: 3.696828526 | AX102: 3.982435103 | AY102: 3.993595001
E103: Structures and Buildings capital allowance (straight line) | G103: £m nominal | AP103: =(-($AH$99+SUM($AG101:AO101))*AP97*MainInputs!AP$10)+(-SUM(OFFSET(AO101,,-MIN(YEAR(AO$4)-YEAR($AO$4),ROUNDUP(1/AP97-1,0))):AO101)/ROUND(1/AP97,0)*MainInputs!AP$11) -> 0 | AQ103: =(-($AH$99+SUM($AG101:AP101))*AQ97*MainInputs!AQ$10)+(-SUM(OFFSET(AP101,,-MIN(YEAR(AP$4)-YEAR($AO$4),ROUNDUP(1/AQ97-1,0))):AP101)/ROUND(1/AQ97,0)*MainInputs!AQ$11) -> -0.04778697386 | AR103: =(-($AH$99+SUM($AG101:AQ101))*AR97*MainInputs!AR$10)+(-SUM(OFFSET(AQ101,,-MIN(YEAR(AQ$4)-YEAR($AO$4),ROUNDUP(1/AR97-1,0))):AQ101)/ROUND(1/AR97,0)*MainInputs!AR$11) -> -0.07204909913 | AS103: =(-($AH$99+SUM($AG101:AR101))*AS97*MainInputs!AS$10)+(-SUM(OFFSET(AR101,,-MIN(YEAR(AR$4)-YEAR($AO$4),ROUNDUP(1/AS97-1,0))):AR101)/ROUND(1/AS97,0)*MainInputs!AS$11) -> -0.08029430026 | AT103: =(-($AH$99+SUM($AG101:AS101))*AT97*MainInputs!AT$10)+(-SUM(OFFSET(AS101,,-MIN(YEAR(AS$4)-YEAR($AO$4),ROUNDUP(1/AT97-1,0))):AS101)/ROUND(1/AT97,0)*MainInputs!AT$11) -> -0.08462870642 | AU103: =(-($AH$99+SUM($AG101:AT101))*AU97*MainInputs!AU$10)+(-SUM(OFFSET(AT101,,-MIN(YEAR(AT$4)-YEAR($AO$4),ROUNDUP(1/AU97-1,0))):AT101)/ROUND(1/AU97,0)*MainInputs!AU$11) -> -0.0917106567 | AV103: =(-($AH$99+SUM($AG101:AU101))*AV97*MainInputs!AV$10)+(-SUM(OFFSET(AU101,,-MIN(YEAR(AU$4)-YEAR($AO$4),ROUNDUP(1/AV97-1,0))):AU101)/ROUND(1/AV97,0)*MainInputs!AV$11) -> -0.10662802 | AW103: =(-($AH$99+SUM($AG101:AV101))*AW97*MainInputs!AW$10)+(-SUM(OFFSET(AV101,,-MIN(YEAR(AV$4)-YEAR($AO$4),ROUNDUP(1/AW97-1,0))):AV101)/ROUND(1/AW97,0)*MainInputs!AW$11) -> -0.1148993862 | AX103: =(-($AH$99+SUM($AG101:AW101))*AX97*MainInputs!AX$10)+(-SUM(OFFSET(AW101,,-MIN(YEAR(AW$4)-YEAR($AO$4),ROUNDUP(1/AX97-1,0))):AW101)/ROUND(1/AX97,0)*MainInputs!AX$11) -> -0.1266644328 | AY103: =(-($AH$99+SUM($AG101:AX101))*AY97*MainInputs!AY$10)+(-SUM(OFFSET(AX101,,-MIN(YEAR(AX$4)-YEAR($AO$4),ROUNDUP(1/AY97-1,0))):AX101)/ROUND(1/AY97,0)*MainInputs!AY$11) -> -0.1388009771
E104: Closing balance carried forward | G104: £m nominal | AP104: =AP102 + AP103 -> 1.592899129 | AQ104: =AQ102 + AQ103 -> 2.353849664 | AR104: =AR102 + AR103 -> 2.556640602 | AS104: =AS102 + AS103 -> 2.620826507 | AT104: =AT102 + AT103 -> 2.741692591 | AU104: =AU102 + AU103 -> 3.142254925 | AV104: 3.308581989 | AW104: 3.58192914 | AX104: 3.85577067 | AY104: 3.854794024
C106: Deferred revenue expenditure
E108: Capital allowance rate | G108: % | AP108: =MainInputs!AP450 -> 0.0222 | AQ108: =MainInputs!AQ450 -> 0.0222 | AR108: =MainInputs!AR450 -> 0.0222 | AS108: =MainInputs!AS450 -> 0.0222 | AT108: =MainInputs!AT450 -> 0.0222 | AU108: =MainInputs!AU450 -> 0.0222 | AV108: =MainInputs!AV450 -> 0.0222 | AW108: =MainInputs!AW450 -> 0.0222 | AX108: =MainInputs!AX450 -> 0.0222 | AY108: =MainInputs!AY450 -> 0.0222
E110: Opening balance brought forward | G110: £m nominal | AP110: =MainInputs!$AP$431 -> 777.681972 | AQ110: =AP116 -> 899.4558838 | AR110: =AQ116 -> 1059.935446 | AS110: =AR116 -> 1231.365939 | AT110: =AS116 -> 1394.213774 | AU110: =AT116 -> 1558.333612 | AV110: 1738.437455 | AW110: 1918.872908 | AX110: 2102.583867 | AY110: 2288.131886
E111: Transfer | G111: £m nominal
E112: Revisions | G112: £m nominal
E113: Capex additions | G113: £m nominal | AO113: =MainInputs!$AO$432 -> 817.596206 | AP113: =AP41 * GDNpf -> 139.9245475 | AQ113: 181.7365234 | AR113: 196.7220043 | AS113: 192.5065746 | AT113: 198.0522241 | AU113: 218.4713557 | AV113: 223.6578852 | AW113: 231.9035657 | AX113: 238.8940392 | AY113: 244.2997427
E114: Tax book value pre-depreciation | G114: £m nominal | AP114: =SUM(AP110:AP113) -> 917.6065196 | AQ114: =SUM(AQ110:AQ113) -> 1081.192407 | AR114: =SUM(AR110:AR113) -> 1256.657451 | AS114: =SUM(AS110:AS113) -> 1423.872514 | AT114: =SUM(AT110:AT113) -> 1592.265998 | AU114: =SUM(AU110:AU113) -> 1776.804968 | AV114: 1962.09534 | AW114: 2150.776474 | AX114: 2341.477906 | AY114: 2532.431629
